{"text_format":"1","workbook":"xlsx","n_sheets":8,"sheets":["User Guidance","PART A","Part A - hidden","PART B","Part B - hidden","Supporting Information","Data Sheet","Weighted Populations"],"not_rendered":{"charts":0,"images":3,"macros":1,"external_links":3,"defined_names":27,"comments":1,"pivot_tables":0},"unopened":[],"bounds":{"document_bytes":16777216,"sheet_cells":100000,"rows_first":2000,"rows_last":500,"rows_between":2000,"halvings":0,"cell_chars":16384,"cell_head_chars":4096},"cells_cut":0,"cells_raw":0,"read":"whole","date_system":"1900"}

{"sheet":"User Guidance","index":0,"n_rows":2,"n_cols":2,"rows_kept":2,"cut":false,"hidden":false,"merged":[[1,1,2,15]]}
[]
[null,"PCN Workforce Planning Template 2020/21: Guidance notes for completion  \n \nThis workforce planning template is designed to support primary care workforce planning activity at Primary Care Network (PCN) level. Two parts of the template are included (see tabs 'Part A' and 'Part B'), which should be completed in line with the expected timescales set out below. We appreciate that PCNs submitted a previous version of the form for 2020/21 in August.  We are asking that the plans for 2020/21 are re-entered into this updated template. This is to provide an updated view of PCN recruitment plans, reflecting the addition of the Nursing Associate and Trainee Nursing Associate roles from October 2020, and any changes in the 2020/21 plans agreed since that earlier submission.\n\nThe purpose of collecting this data is to support internal planning and so it is not anticipated that the data provided will be shared outside the NHS.\n\nThis is in line with requirements set out in the Network Contract Directed Enhanced Service (DES) Contract Specification 2020/21 – PCN Entitlements and Requirements PCN Network (Section 6.5). A worked example of the template is available at: https://future.nhs.uk/primarycareworkforce/grouphome. \n\nPart A  covers ARRS recruitment only. Working closely with their CCG and the local primary care training hub, PCNs should use this to indicate the number of staff they intend to recruit through the scheme in 2020/21, as well as emerging recruitment intentions for 2021/22 and beyond to support workforce planning activity. For 2020/21, the template will calculate the indicative spend against the financial allocation available to the PCN, and highlight any remaining allocation that could be lost to the PCN if not used.  Once submitted, PCNs are free to change their workforce plan at any stage. To support local flexibility, the process for submission will be defined and communicated by the receiving CCG. \n\nPart B covers indicative recruitment intentions for the wider team. In light of the COVID-19 response, use of this section is voluntary to support discussions between the PCN and their training hub on available local supply, and the education, clinical supervision and ongoing career support and development needs of all staff groups within the PCN team. This will include retention and the support available to PCNs to introduce new roles and ways of working. CCGs and systems will similarly use PCN workforce plans to consider support required for recruitment activity, including opportunities to broker arrangements across PCNs. ICSs, STPs and CCGs may additionally agree local processes to make use of the tool for workforce planning. Completion of this section would provide a more comprehensive view of the Primary Care Workforce Planning intentions of the systems, and so facilitate the provision of a system-wide picture in this regard.\n\nExpected timescales for this stage of the process (please review against latest guidance in light of ongoing COVID-19 response) \n\nAs soon as possible, taking into account COVID-19 response: Lead CCGs and primary care training hubs to liaise with PCNs (and other local health, social and community care stakeholders) to discuss their recruitment plans for 2020/21. In consultation with their training hub, CCG and other stakeholders, PCNs should develop and adjust their workforce plans as needed going forwards, seeking to maximise recruitment through the ARRS scheme. \nFrom 01 April, taking into account latest NHS Digital guidance during COVID-19 response:  PCNs / practices to update the National Workforce Reporting System with workforce changes on a monthly basis, in line with Network Contract DES.\nBy 31 October: PCNs to provide indicative recruitment intentions for 2021/22 and beyond under the ARRS scheme to their CCG utilising the PCN Template. Each PCN should submit one version of their total recrutiment intentions to their agreed lead CCG.\nBy 9 November: CCGs to provide aggregated returns to their region and copied to the Primary Care workforce Team, utilising the CCG Aggregation Tool provided..\nBy 30 November: CCGs to agree an aggregate local plan with PCN clinical directors and consider amounts for in-year redistribution to other PCNs (if required), arranging provision of amended PCN returns if appropriate and submitting an updated CCG return using the CCG Aggregation Tool."]

{"sheet":"PART A","index":1,"n_rows":108,"n_cols":17,"rows_kept":108,"cut":false,"hidden":false,"merged":[[11,12,11,14],[29,6,29,12],[99,2,99,16],[1,2,1,16],[27,2,27,16],[11,4,11,6],[13,4,13,6],[15,12,15,14],[62,2,62,16],[107,2,107,16],[100,2,105,16],[108,2,113,16],[98,2,98,16],[13,12,13,14],[15,4,15,6]]}
[]
[null,null,"     Part A (Required for all PCNs)\t\t\t\t\t\t\t\t\t\t\t\t\t\t"]
[]
[]
[]
[null,null,"PCN Code:",null,null,null,null,null,null,null,"Name of PCN: "]
[]
[]
[]
[]
[]
[null,null,"PCN Name: ",null,"",null,null,null,null,null,"PCN Clinical Director:"]
[]
[null,null,"PCN Code:",null,"",null,null,null,null,null,"Training Hub Contact:"]
[]
[null,null,"CCG:",null,{"$f":"IF(E12=\"\",\"\",VLOOKUP(E14,'Weighted Populations'!D2:F1266,3,FALSE))","v":""},null,null,null,null,null,"Last updated:"]
[]
[]
[null,null,"Allocation available to the PCN under the Additional Roles Reimbursement Scheme"]
[]
[null,null,null,null,null,null,null,null,"PCN weighted population as at January 2020:",null,{"$f":"IF(E12<>\"\",VLOOKUP(E12,'Weighted Populations'!B2:C1266,2,FALSE),0)","v":0}]
[]
[null,null,null,null,null,null,null,null,"PCN-level ARRS Allocation 2020/21:",null,{"$f":"IF(K21>0,K21*7.131,\"\")","v":""}]
[]
[]
[null,null,"Recruitment intentions for 2020/21 through the Additional Roles Reimbursement Scheme (due by 31 October)"]
[]
[null,null,"This part was submitted in August and PCNs are thanked for that submission. \nThis updated template needs to be completed and provides the means to include the Nursing Associates and Trainee Nursing Associates, and any changes agreed within systems since the 31 August submission.\nThis section sets out all additional roles available through the scheme in the forthcoming year. Enter the full time equivalent (FTE) number of people in each role the PCN intends to recruit in the table below, based on a 37.5 standard working week. The template splits recruitment by quarter to allow a more accurate calculation of spend against the available allocation. If the PCN anticipates the loss of someone recruited through the scheme during the year (for example, because a role is changing to be split across neighbouring PCNs), this should be entered as a negative figure. Note that the indicative spend calculation is based on the maximum reimbursement amount for each staff role, and assumes that individuals are in place for the whole of the quarter for which they are entered into the table."]
[]
[null,null,null,null,null,null,"Recruitment intentions for 2020/21"]
[null,null,null,null,"Recruited during 2019/20",null,"Quarter 1\nApril - Jun",null,"Quarter 2\nJul - Sep",null,"Quarter 3\nOct - Dec",null,"Quarter 4\nJan - Mar",null,"Additional FTE\nas at March 2021",null,"Indicative spend per role 2020/21"]
[null,null,"Clinical pharmacists",null,null,null,null,null,null,null,null,null,null,null,{"$f":"SUM(E32:M32)","v":0},null,{"$f":"(E32*'Supporting Information'!E11)+(G32*'Supporting Information'!E11)+(I32*'Supporting Information'!H11)+(K32*'Supporting Information'!K11)+(M32*'Supporting Information'!N11)","v":0}]
[]
[null,null,"Nursing Associates",null,null,null,null,null,null,null,null,null,null,null,{"$f":"SUM(E34:M34)","v":0},null,{"$f":"(G34*'Supporting Information'!E13)+(I34*'Supporting Information'!H13)+(K34*'Supporting Information'!K13)+(M34*'Supporting Information'!N13)","v":0}]
[]
[null,null,"Trainee Nursing Associates",null,null,null,null,null,null,null,null,null,null,null,{"$f":"SUM(E36:M36)","v":0},null,{"$f":"(G36*'Supporting Information'!E15)+(I36*'Supporting Information'!H15)+(K36*'Supporting Information'!K15)+(M36*'Supporting Information'!N15)","v":0}]
[]
[null,null,"Social prescribing link workers ",null,null,null,null,null,null,null,null,null,null,null,{"$f":"SUM(E38:M38)","v":0},null,{"$f":"(E38*'Supporting Information'!E17)+(G38*'Supporting Information'!E17)+(I38*'Supporting Information'!H17)+(K38*'Supporting Information'!K17)+(M38*'Supporting Information'!N17)","v":0}]
[]
[null,null,"First contact physiotherapists",null,null,null,null,null,null,null,null,null,null,null,{"$f":"SUM(G40:M40)","v":0},null,{"$f":"(G40*'Supporting Information'!E19)+(I40*'Supporting Information'!H19)+(K40*'Supporting Information'!K19)+(M40*'Supporting Information'!N19)","v":0}]
[]
[null,null,"Physician associates",null,null,null,null,null,null,null,null,null,null,null,{"$f":"SUM(G42:M42)","v":0},null,{"$f":"(G42*'Supporting Information'!E21)+(I42*'Supporting Information'!H21)+(K42*'Supporting Information'!K21)+(M42*'Supporting Information'!N21)","v":0}]
[]
[null,null,"Pharmacy technicians",null,null,null,null,null,null,null,null,null,null,null,{"$f":"SUM(G44:M44)","v":0},null,{"$f":"(G44*'Supporting Information'!E23)+(I44*'Supporting Information'!H23)+(K44*'Supporting Information'!K23)+(M44*'Supporting Information'!N23)","v":0}]
[]
[null,null,"Occupational therapists",null,null,null,null,null,null,null,null,null,null,null,{"$f":"SUM(G46:M46)","v":0},null,{"$f":"(G46*'Supporting Information'!E27)+(I46*'Supporting Information'!H27)+(K46*'Supporting Information'!K27)+(M46*'Supporting Information'!N27)","v":0}]
[]
[null,null,"Dietitians",null,null,null,null,null,null,null,null,null,null,null,{"$f":"SUM(G48:M48)","v":0},null,{"$f":"(G48*'Supporting Information'!E29)+(I48*'Supporting Information'!H29)+(K48*'Supporting Information'!K29)+(M48*'Supporting Information'!N29)","v":0}]
[]
[null,null,"Podiatrists",null,null,null,null,null,null,null,null,null,null,null,{"$f":"SUM(G50:M50)","v":0},null,{"$f":"(G50*'Supporting Information'!E31)+(I50*'Supporting Information'!H31)+(K50*'Supporting Information'!K31)+(M50*'Supporting Information'!N31)","v":0}]
[]
[null,null,"Health and wellbeing coaches",null,null,null,null,null,null,null,null,null,null,null,{"$f":"SUM(G52:M52)","v":0},null,{"$f":"(G52*'Supporting Information'!E33)+(I52*'Supporting Information'!H33)+(K52*'Supporting Information'!K33)+(M52*'Supporting Information'!N33)","v":0}]
[]
[null,null,"Care co-ordinators",null,null,null,null,null,null,null,null,null,null,null,{"$f":"SUM(G54:M54)","v":0},null,{"$f":"(G54*'Supporting Information'!E35)+(I54*'Supporting Information'!H35)+(K54*'Supporting Information'!K35)+(M54*'Supporting Information'!N35)","v":0}]
[]
[null,null,null,null,null,null,null,null,null,null,null,null,"TOTAL:",null,{"$f":"SUM(O32:O54)","v":0},null,{"$f":"SUM(Q32:Q54)","v":0}]
[null,null,null,null,null,null,null,null,null,null,null,null,"Amount lost to PCN:",null,null,null,{"$f":"IF(ISNUMBER(K23),K23-Q56,0)","v":0}]
[]
[]
[]
[null,null,"Indicative intentions for 2021/22 to 2023/24 (due by 31st October 2020)"]
[]
[null,null,"Lastly, enter emerging recruitment intentions (reflecting perceived demand) across all staff groups as a whole figure for each remaining year of the GP contract deal. CCGs will share this information to support demand and supply modelling at local, system, regional and national level. Further detail for each role is set out on the 'Supporting Information' tab. "]
[]
[null,null,null,null,"2020/21",null,"2021/22",null,"2022/23",null,"2023/24",null,"Position as at March 2024"]
[]
[null,null,"Clinical pharmacists",null,{"$f":"O32","v":0},null,null,null,null,null,null,null,{"$f":"SUM(E67:K67)","v":0}]
[]
[null,null,"Nursing Associates",null,{"$f":"O34","v":0},null,null,null,null,null,null,null,{"$f":"SUM(E69:K69)","v":0}]
[]
[null,null,"Trainee Nursing Associates",null,{"$f":"O36","v":0},null,null,null,null,null,null,null,{"$f":"SUM(E71:K71)","v":0}]
[]
[null,null,"Social prescribing link workers ",null,{"$f":"O38","v":0},null,null,null,null,null,null,null,{"$f":"SUM(E73:K73)","v":0}]
[]
[null,null,"First contact physiotherapists",null,{"$f":"O40","v":0},null,null,null,null,null,null,null,{"$f":"SUM(E75:K75)","v":0}]
[]
[null,null,"Physician associates",null,{"$f":"O42","v":0},null,null,null,null,null,null,null,{"$f":"SUM(E77:K77)","v":0}]
[]
[null,null,"Pharmacy technicians",null,{"$f":"O44","v":0},null,null,null,null,null,null,null,{"$f":"SUM(E79:K79)","v":0}]
[]
[null,null,"Paramedics",null,"-",null,null,null,null,null,null,null,{"$f":"SUM(G81:K81)","v":0}]
[]
[null,null,"Occupational therapists",null,{"$f":"O46","v":0},null,null,null,null,null,null,null,{"$f":"SUM(E83:K83)","v":0}]
[]
[null,null,"Dietitians",null,{"$f":"O48","v":0},null,null,null,null,null,null,null,{"$f":"SUM(E85:K85)","v":0}]
[]
[null,null,"Podiatrists",null,{"$f":"O50","v":0},null,null,null,null,null,null,null,{"$f":"SUM(E87:K87)","v":0}]
[]
[null,null,"Health and wellbeing coaches",null,{"$f":"O52","v":0},null,null,null,null,null,null,null,{"$f":"SUM(E89:K89)","v":0}]
[]
[null,null,"Care co-ordinators",null,{"$f":"O54","v":0},null,null,null,null,null,null,null,{"$f":"SUM(E91:K91)","v":0}]
[]
[null,null,"Mental health practitioners",null,"-",null,null,null,null,null,null,null,{"$f":"SUM(G93:K93)","v":0}]
[]
[null,null,null,null,null,null,null,null,null,null,"Indicative total recruitment as at end March 2024:",null,{"$f":"SUM(M66:M94)","v":0}]
[]
[]
[]
[null,null,"Additional comments (please ensure you do not include any personally identifiable information in this section). "]
[null,null,"Requests for support to progress recruitment activity (e.g. advertising posts, supporting recruitment activity, brokering recruitment opportunities with neighbouring PCNs):"]
[]
[]
[]
[]
[]
[]
[]
[null,null,"Any other comments: "]

{"sheet":"Part A - hidden","index":2,"n_rows":40,"n_cols":6,"rows_kept":40,"cut":false,"hidden":true,"merged":[]}
["Name of PCN: ",{"$f":"'PART A'!E12","v":""}]
["Org Code (if known):",{"$f":"'PART A'!E14","v":""}]
["Last updated:",{"$f":"'PART A'!M16","v":"00:00:00"}]
["PCN Clinical Director: ",{"$f":"'PART A'!M12","v":0}]
["Training Hub Contact:",{"$f":"'PART A'!M14","v":0}]
["Enter the PCN weighted population as at January 2020 (to be sourced from CCG):",{"$f":"'PART A'!K21","v":0}]
[]
[]
[]
[null,"Recruited during 2019/20","Quarter 1\nApril - Jun","Quarter 2\nJul - Sep","Quarter 3\nOct - Dec","Quarter 4\nJan - Mar"]
["Clinical pharmacists",{"$f":"'PART A'!E32","v":0},{"$f":"'PART A'!G32","v":0},{"$f":"'PART A'!I32","v":0},{"$f":"'PART A'!K32","v":0},{"$f":"'PART A'!M32","v":0}]
["Social prescribing link workers ",{"$f":"'PART A'!E38","v":0},{"$f":"'PART A'!G38","v":0},{"$f":"'PART A'!I38","v":0},{"$f":"'PART A'!K38","v":0},{"$f":"'PART A'!M38","v":0}]
["First contact physiotherapists",null,{"$f":"'PART A'!G40","v":0},{"$f":"'PART A'!I40","v":0},{"$f":"'PART A'!K40","v":0},{"$f":"'PART A'!M40","v":0}]
["Physician associates",null,{"$f":"'PART A'!G42","v":0},{"$f":"'PART A'!I42","v":0},{"$f":"'PART A'!K42","v":0},{"$f":"'PART A'!M42","v":0}]
["Pharmacy technicians",null,{"$f":"'PART A'!G44","v":0},{"$f":"'PART A'!I44","v":0},{"$f":"'PART A'!K44","v":0},{"$f":"'PART A'!M44","v":0}]
["Occupational therapists",null,{"$f":"'PART A'!G46","v":0},{"$f":"'PART A'!I46","v":0},{"$f":"'PART A'!K46","v":0},{"$f":"'PART A'!M46","v":0}]
["Dietitians",null,{"$f":"'PART A'!G48","v":0},{"$f":"'PART A'!I48","v":0},{"$f":"'PART A'!K48","v":0},{"$f":"'PART A'!M48","v":0}]
["Podiatrists",null,{"$f":"'PART A'!G50","v":0},{"$f":"'PART A'!I50","v":0},{"$f":"'PART A'!K50","v":0},{"$f":"'PART A'!M50","v":0}]
["Health and wellbeing coaches",null,{"$f":"'PART A'!G52","v":0},{"$f":"'PART A'!I52","v":0},{"$f":"'PART A'!K52","v":0},{"$f":"'PART A'!M52","v":0}]
["Care co-ordinators",null,{"$f":"'PART A'!G54","v":0},{"$f":"'PART A'!I54","v":0},{"$f":"'PART A'!K54","v":0},{"$f":"'PART A'!M54","v":0}]
[]
[]
[null,"2021/22","2022/23","2023/24"]
[]
["Clinical pharmacists",{"$f":"'PART A'!G67","v":0},{"$f":"'PART A'!I67","v":0},{"$f":"'PART A'!K67","v":0}]
["Social prescribing link workers ",{"$f":"'PART A'!G73","v":0},{"$f":"'PART A'!I73","v":0},{"$f":"'PART A'!K73","v":0}]
["First contact physiotherapists",{"$f":"'PART A'!G75","v":0},{"$f":"'PART A'!I75","v":0},{"$f":"'PART A'!K75","v":0}]
["Physician associates",{"$f":"'PART A'!G77","v":0},{"$f":"'PART A'!I77","v":0},{"$f":"'PART A'!K77","v":0}]
["Pharmacy technicians",{"$f":"'PART A'!G79","v":0},{"$f":"'PART A'!I79","v":0},{"$f":"'PART A'!K79","v":0}]
["Community paramedics",{"$f":"'PART A'!G81","v":0},{"$f":"'PART A'!I81","v":0},{"$f":"'PART A'!K81","v":0}]
["Occupational therapists",{"$f":"'PART A'!G83","v":0},{"$f":"'PART A'!I83","v":0},{"$f":"'PART A'!K83","v":0}]
["Dietitians",{"$f":"'PART A'!G85","v":0},{"$f":"'PART A'!I85","v":0},{"$f":"'PART A'!K85","v":0}]
["Podiatrists",{"$f":"'PART A'!G87","v":0},{"$f":"'PART A'!I87","v":0},{"$f":"'PART A'!K87","v":0}]
["Health and wellbeing coaches",{"$f":"'PART A'!G89","v":0},{"$f":"'PART A'!I89","v":0},{"$f":"'PART A'!K89","v":0}]
["Care co-ordinators",{"$f":"'PART A'!G91","v":0},{"$f":"'PART A'!I91","v":0},{"$f":"'PART A'!K91","v":0}]
["Mental health practitioners",{"$f":"'PART A'!G93","v":0},{"$f":"'PART A'!I93","v":0},{"$f":"'PART A'!K93","v":0}]
[]
[]
["Requests for support to progress recruitment activity (e.g. advertising posts, supporting recruitment activity, brokering recruitment opportunities with neighbouring PCNs):",{"$f":"'PART A'!C101","v":0}]
["Any other comments: ",{"$f":"'PART A'!C109","v":0}]

{"sheet":"PART B","index":3,"n_rows":108,"n_cols":15,"rows_kept":108,"cut":false,"hidden":false,"merged":[[91,2,91,14],[92,2,97,14],[108,2,113,14],[2,2,2,15],[6,4,6,6],[6,12,6,14],[8,4,8,6],[8,12,8,14],[38,2,38,14],[89,2,89,14],[10,4,10,6],[16,2,16,15],[99,2,99,14],[100,2,105,14],[107,2,107,14]]}
[]
[]
[null,null,"Part B (Voluntary for all PCNs)"]
[]
[]
[]
[null,null,{"$f":"'PART A'!C12","v":"PCN Name: "},null,{"$f":"'PART A'!E12:G12","v":""},null,null,null,null,null,{"$f":"'PART A'!K12","v":"PCN Clinical Director:"},null,{"$f":"'PART A'!M12:O12","v":0}]
[]
[null,null,{"$f":"'PART A'!C14","v":"PCN Code:"},null,{"$f":"'PART A'!E14:G14","v":""},null,null,null,null,null,{"$f":"'PART A'!K14","v":"Training Hub Contact:"},null,{"$f":"'PART A'!M14:O14","v":0}]
[]
[null,null,{"$f":"'PART A'!K16","v":"Last updated:"}]
[]
[]
[]
[null,null,"Recruitment intentions for 2020/21 across the wider PCN team"]
[]
[null,null,"PCNs can now enter additional information on planned recruitment for 2020/21 across the wider team to support skills mix planning.  This will support discussions with the primary care training hub to plan for the education, supervision and career support needs of the whole multi-disciplinary team. It will also feed into the development of recruitment and retention initiatives at CCG and system level.  The starting position as at end March 2020 should reflect latest workforce information provided by the PCN and its member practices to the National Workforce Reporting System. Numbers should be entered in full time equivalent (FTE) terms, as per Part A."]
[null,null,null,null,"Staff numbers\nas at \nMarch 2020",null,"Quarter 1\nApril - Jun",null,"Quarter 2\nJul - Sep",null,"Quarter 3\nOct - Dec",null,"Quarter 4\nJan - Mar",null,"Position as at March 2021"]
[]
[null,null,"GPs (excluding registrars and locums)",null,null,null,null,null,null,null,null,null,null,null,{"$f":"SUM(E20:M20)","v":0}]
[]
[null,null,"Nurses ",null,null,null,null,null,null,null,null,null,null,null,{"$f":"SUM(E22:M22)","v":0}]
[]
[null,null,null,null,"Of these, how many do you anticipate will be: "]
[]
[null,null,null,null,"…advanced nurse practitioners",null,null,null,null,null,null,null,null,null,{"$f":"SUM(G26:M26)","v":0}]
[]
[null,null,"PCN Clinical Directors",null,null,null,null,null,null,null,null,null,null,null,{"$f":"SUM(E28:M28)","v":0}]
[]
[null,null,"Other direct patient care staff (outside of ARRS)",null,null,null,null,null,null,null,null,null,null,null,{"$f":"SUM(E30:M30)","v":0}]
[]
[null,null,"Non-clinical / admin roles",null,null,null,null,null,null,null,null,null,null,null,{"$f":"SUM(E32:M32)","v":0}]
[]
[]
[]
[]
[null,null,"Indicative intentions for the remainder of the five year GP contract deal "]
[]
[null,null,"Lastly, enter emerging recruitment intentions (including perceived demand) across the same staff groups for each remaining year of the GP contract deal. CCGs will share this information to support demand and supply modelling at local, system, regional and national level. Information already entered for 2020/21 recruitment, and recruitment under the ARRS scheme, will automatically feed through to this section. "]
[]
[null,null,null,null,"2020/21",null,"2021/22",null,"2022/23",null,"2023/24",null,"Position as at March 2024"]
[]
[null,null,"GPs (excluding registrars and locums)",null,{"$f":"O20","v":0},null,null,null,null,null,null,null,{"$f":"SUM(E43:K43)","v":0}]
[]
[]
[null,null,"Nurses ",null,{"$f":"O22","v":0},null,null,null,null,null,null,null,{"$f":"SUM(E46:K46)","v":0}]
[]
[]
[null,null,"Clinical pharmacists",null,{"$f":"'PART A'!O32","v":0},null,{"$f":"'PART A'!G67","v":0},null,{"$f":"'PART A'!I67","v":0},null,{"$f":"'PART A'!K67","v":0},null,{"$f":"SUM(E49:K49)","v":0}]
[]
[null,null,"Nursing Associates",null,{"$f":"'PART A'!O34","v":0},null,{"$f":"'PART A'!G69","v":0},null,{"$f":"'PART A'!I69","v":0},null,{"$f":"'PART A'!K69","v":0},null,{"$f":"SUM(E51:K51)","v":0}]
[]
[null,null,"Trainee Nursing Associates",null,{"$f":"'PART A'!O36","v":0},null,{"$f":"'PART A'!G71","v":0},null,{"$f":"'PART A'!I71","v":0},null,{"$f":"'PART A'!K71","v":0},null,{"$f":"SUM(E53:K53)","v":0}]
[]
[null,null,"Social prescribing link workers ",null,{"$f":"'PART A'!O38","v":0},null,{"$f":"'PART A'!G73","v":0},null,{"$f":"'PART A'!I73","v":0},null,{"$f":"'PART A'!K73","v":0},null,{"$f":"SUM(E55:K55)","v":0}]
[]
[null,null,"First contact physiotherapists",null,{"$f":"'PART A'!O40","v":0},null,{"$f":"'PART A'!G75","v":0},null,{"$f":"'PART A'!I75","v":0},null,{"$f":"'PART A'!K75","v":0},null,{"$f":"SUM(E57:K57)","v":0}]
[]
[null,null,"Physician associates",null,{"$f":"'PART A'!O42","v":0},null,{"$f":"'PART A'!G77","v":0},null,{"$f":"'PART A'!I77","v":0},null,{"$f":"'PART A'!K77","v":0},null,{"$f":"SUM(E59:K59)","v":0}]
[]
[null,null,"Pharmacy technicians",null,{"$f":"'PART A'!O44","v":0},null,{"$f":"'PART A'!G79","v":0},null,{"$f":"'PART A'!I79","v":0},null,{"$f":"'PART A'!K79","v":0},null,{"$f":"SUM(E61:K61)","v":0}]
[]
[null,null,"Paramedics",null,null,null,{"$f":"'PART A'!G81","v":0},null,{"$f":"'PART A'!I81","v":0},null,{"$f":"'PART A'!K81","v":0},null,{"$f":"SUM(G63:K63)","v":0}]
[]
[null,null,"Occupational therapists",null,{"$f":"'PART A'!O46","v":0},null,{"$f":"'PART A'!G83","v":0},null,{"$f":"'PART A'!I83","v":0},null,{"$f":"'PART A'!K83","v":0},null,{"$f":"SUM(E65:K65)","v":0}]
[]
[null,null,"Dietitians",null,{"$f":"'PART A'!O48","v":0},null,{"$f":"'PART A'!G85","v":0},null,{"$f":"'PART A'!I85","v":0},null,{"$f":"'PART A'!K85","v":0},null,{"$f":"SUM(E67:K67)","v":0}]
[]
[null,null,"Podiatrists",null,{"$f":"'PART A'!O50","v":0},null,{"$f":"'PART A'!G87","v":0},null,{"$f":"'PART A'!I87","v":0},null,{"$f":"'PART A'!K87","v":0},null,{"$f":"SUM(E69:K69)","v":0}]
[]
[null,null,"Health and wellbeing coaches",null,{"$f":"'PART A'!O52","v":0},null,{"$f":"'PART A'!G89","v":0},null,{"$f":"'PART A'!I89","v":0},null,{"$f":"'PART A'!K89","v":0},null,{"$f":"SUM(E71:K71)","v":0}]
[]
[null,null,"Care co-ordinators",null,{"$f":"'PART A'!O54","v":0},null,{"$f":"'PART A'!G91","v":0},null,{"$f":"'PART A'!I91","v":0},null,{"$f":"'PART A'!K91","v":0},null,{"$f":"SUM(E73:K73)","v":0}]
[]
[null,null,"Mental health practitioners",null,null,null,{"$f":"'PART A'!G93","v":0},null,{"$f":"'PART A'!I93","v":0},null,{"$f":"'PART A'!K93","v":0},null,{"$f":"SUM(G75:K75)","v":0}]
[]
[]
[null,null,"PCN Clinical Directors",null,{"$f":"O28","v":0},null,null,null,null,null,null,null,{"$f":"SUM(E78:K78)","v":0}]
[]
[]
[null,null,"Other direct patient care staff",null,{"$f":"O30","v":0},null,null,null,null,null,null,null,{"$f":"SUM(E81:K81)","v":0}]
[]
[]
[null,null,"Non-clinical/admin staff",null,{"$f":"O32","v":0},null,null,null,null,null,null,null,{"$f":"SUM(E84:K84)","v":0}]
[]
[null,null,"Total indicative multi-disciplinary team:",null,{"$f":"SUM(E43:E84)","v":0},null,{"$f":"SUM(G43:G84)","v":0},null,{"$f":"SUM(I43:I84)","v":0},null,{"$f":"SUM(K43:K84)","v":0},null,{"$f":"SUM(M42:M84)","v":0}]
[]
[]
[]
[null,null,"Additional comments (please ensure you do not include any personally identifiable information in this section). "]
[]
[null,null,"Supporting information and / or requests for support Please provide any supporting information below, or indicate if your PCN requires any further support to help progress recruitment workforce planning activity. "]
[]
[]
[]
[]
[]
[]
[]
[null,null,"Nursing Please indicate which branch of nursing you are considering (e.g. adults, children's, mental health, learning disability etc):  "]
[]
[]
[]
[]
[]
[]
[]
[null,null,"Other direct patient care staff (i.e. those recruited outside of the ARRS scheme), please give an indication of the roles being considered (e.g. health visitors, nursing associates, health care assistants) to support conversations with your training hub:\n"]

{"sheet":"Part B - hidden","index":4,"n_rows":41,"n_cols":6,"rows_kept":41,"cut":false,"hidden":true,"merged":[]}
["Name of PCN: ",{"$f":"'PART B'!E7","v":""}]
["Org Code (if known):",{"$f":"'PART B'!E9","v":""}]
["Last updated:",{"$f":"'PART B'!E11","v":"00:00:00"}]
["PCN Clinical Director: ",{"$f":"'PART B'!M7","v":0}]
["Training Hub Contact:",{"$f":"'PART B'!M9","v":0}]
[]
[]
[]
[]
[null,"Staff numbers\nas at \nMarch 2020","Quarter 1\nApril - Jun","Quarter 2\nJul - Sep","Quarter 3\nOct - Dec","Quarter 4\nJan - Mar"]
["GPs (excluding registrars and locums)",{"$f":"'PART B'!E20","v":0},{"$f":"'PART B'!G20","v":0},{"$f":"'PART B'!I20","v":0},{"$f":"'PART B'!K20","v":0},{"$f":"'PART B'!M20","v":0}]
["Nurses ",{"$f":"'PART B'!E22","v":0},{"$f":"'PART B'!G22","v":0},{"$f":"'PART B'!I22","v":0},{"$f":"'PART B'!K22","v":0},{"$f":"'PART B'!M22","v":0}]
[null,null,{"$f":"'PART B'!G24","v":0},{"$f":"'PART B'!I24","v":0},{"$f":"'PART B'!K24","v":0},{"$f":"'PART B'!M24","v":0}]
[null,null,{"$f":"'PART B'!G26","v":0},{"$f":"'PART B'!I26","v":0},{"$f":"'PART B'!K26","v":0},{"$f":"'PART B'!M26","v":0}]
["PCN Clinical Directors",{"$f":"'PART B'!E28","v":0},{"$f":"'PART B'!G28","v":0},{"$f":"'PART B'!I28","v":0},{"$f":"'PART B'!K28","v":0},{"$f":"'PART B'!M28","v":0}]
["Other direct patient care staff (outside of ARRS)",{"$f":"'PART B'!E30","v":0},{"$f":"'PART B'!G30","v":0},{"$f":"'PART B'!I30","v":0},{"$f":"'PART B'!K30","v":0},{"$f":"'PART B'!M30","v":0}]
["Non-clinical / admin roles",{"$f":"'PART B'!E32","v":0},{"$f":"'PART B'!G32","v":0},{"$f":"'PART B'!I32","v":0},{"$f":"'PART B'!K32","v":0},{"$f":"'PART B'!M32","v":0}]
[]
[]
[]
[]
[]
[null,"2021/22","2022/23","2023/24"]
[]
["GPs (excluding registrars and locums)",{"$f":"'PART B'!G43","v":0},{"$f":"'PART B'!I43","v":0},{"$f":"'PART B'!K43","v":0}]
["Nurses ",{"$f":"'PART B'!G46","v":0},{"$f":"'PART B'!I46","v":0},{"$f":"'PART B'!K46","v":0}]
["PCN Clinical Directors",{"$f":"'PART B'!G78","v":0},{"$f":"'PART B'!I78","v":0},{"$f":"'PART B'!K78","v":0}]
["Other direct patient care staff",{"$f":"'PART B'!G81","v":0},{"$f":"'PART B'!I81","v":0},{"$f":"'PART B'!K81","v":0}]
["Non-clinical/admin staff",{"$f":"'PART B'!G84","v":0},{"$f":"'PART B'!I84","v":0},{"$f":"'PART B'!K84","v":0}]
[]
[]
[]
[]
[]
[]
[]
[]
[]
["Supporting information and / or requests for support Please provide any supporting information below, or indicate if your PCN requires any further support to help progress recruitment workforce planning activity. ",{"$f":"'PART B'!C93","v":0}]
["Nursing Please indicate which branch of nursing you are considering (e.g. adults, children's, mental health, learning disability etc):  ",{"$f":"'PART B'!C101","v":0}]
["Other direct patient care staff (i.e. those recruited outside of the ARRS scheme), please give an indication of the roles being considered (e.g. health visitors, nursing associates, health care assistants) to support conversations with your training hub:\n",{"$f":"'PART B'!C109","v":0}]

{"sheet":"Supporting Information","index":5,"n_rows":40,"n_cols":19,"rows_kept":40,"cut":false,"hidden":false,"merged":[[39,1,42,18],[6,1,9,1],[6,2,9,2],[6,16,9,16],[6,18,9,18],[7,4,7,15],[3,1,4,18],[8,7,8,9],[8,4,8,6],[8,13,8,15],[8,10,8,12]]}
[]
[null,"PCN Workforce Planning Template: Supporting Information"]
[]
[null,"Additional Roles Reimbursement Scheme \nThe information set out in this template aligns to requirements set out in Updates to the GP Contract - 20/21 - 23/24 (published 6 February 2020). The roles identified align to those available for reimbursement under the Additional Roles Reimbursement Scheme (including on costs). This scheme has expanded from April 2020 to include pharmacy technicians, care co-ordinators, health & wellbeing coaches, dietitians, podiatrists and occupational therapists in addition to the five roles already included (clinical pharmacists, social prescribing link workers, physician associates, paramedics and first contact physiotherapists). Nursing Associates and Trainee Nursing Associates were added from October 2020.\n\n"]
[]
[]
[null,"Roles covered by the Additional Roles Reimbursement Scheme","2020/21 \nMaximum Reimbursement Rates ",null,null,null,null,null,null,null,null,null,null,null,null,null,"AfC band "]
[null,null,null,null,"Indicative reimbursement amounts based on month of recruitment"]
[]
[null,null,null,null,"Apr","May","Jun","Jul","Aug","Sep","Oct","Nov","Dec","Jan","Feb","Mar"]
[null,"Clinical pharmacists ",55670,null,{"$f":"C11/12*12","v":55670},{"$f":"C11/12*11","v":51030.833333333336},{"$f":"C11/12*10","v":46391.666666666672},{"$f":"C11/12*9","v":41752.5},{"$f":"C11/12*8","v":37113.333333333336},{"$f":"C11/12*7","v":32474.166666666668},{"$f":"C11/12*6","v":27835},{"$f":"C11/12*5","v":23195.833333333336},{"$f":"C11/12*4","v":18556.666666666668},{"$f":"C11/12*3","v":13917.5},{"$f":"C11/12*2","v":9278.3333333333339},{"$f":"C11/12*1","v":4639.166666666667},"7-8A",null,"Introduced from July 2019. To include staff transferred from the Clinical Pharmacist in General Practice / Medicines Optimisation in Care Homes Schemes."]
[]
[null,"Nursing Associates",29135,null,{"$f":"C13/12*12","v":29135},{"$f":"C13/12*11","v":26707.083333333332},{"$f":"C13/12*10","v":24279.166666666664},{"$f":"C13/12*9","v":21851.25},{"$f":"C13/12*8","v":19423.333333333332},{"$f":"C13/12*7","v":16995.416666666664},{"$f":"C13/12*6","v":14567.5},{"$f":"C13/12*5","v":12139.583333333332},{"$f":"C13/12*4","v":9711.6666666666661},{"$f":"C13/12*3","v":7283.75},{"$f":"C13/12*2","v":4855.833333333333},{"$f":"C13/12*1","v":2427.9166666666665},4,null,"Available from 1 October 2020. "]
[]
[null,"Trainee Nursing Associates",25370,null,{"$f":"C15/12*12","v":25370},{"$f":"C15/12*11","v":23255.833333333332},{"$f":"C15/12*10","v":21141.666666666664},{"$f":"C15/12*9","v":19027.5},{"$f":"C15/12*8","v":16913.333333333332},{"$f":"C15/12*7","v":14799.166666666666},{"$f":"C15/12*6","v":12685},{"$f":"C15/12*5","v":10570.833333333332},{"$f":"C15/12*4","v":8456.6666666666661},{"$f":"C15/12*3","v":6342.5},{"$f":"C15/12*2","v":4228.333333333333},{"$f":"C15/12*1","v":2114.1666666666665},3,null,"Available from 1 October 2020. "]
[]
[null,"Social prescribing link workers",35389,null,{"$f":"C17/12*12","v":35389},{"$f":"C17/12*11","v":32439.916666666668},{"$f":"C17/12*10","v":29490.833333333336},{"$f":"C17/12*9","v":26541.75},{"$f":"C17/12*8","v":23592.666666666668},{"$f":"C17/12*7","v":20643.583333333336},{"$f":"C17/12*6","v":17694.5},{"$f":"C17/12*5","v":14745.416666666668},{"$f":"C17/12*4","v":11796.333333333334},{"$f":"C17/12*3","v":8847.25},{"$f":"C17/12*2","v":5898.166666666667},{"$f":"C17/12*1","v":2949.0833333333335},"Up to 5",null,"Introduced from July 2019."]
[]
[null,"First contact physiotherapists",55670,null,{"$f":"C19/12*12","v":55670},{"$f":"C19/12*11","v":51030.833333333336},{"$f":"C19/12*10","v":46391.666666666672},{"$f":"C19/12*9","v":41752.5},{"$f":"C19/12*8","v":37113.333333333336},{"$f":"C19/12*7","v":32474.166666666668},{"$f":"C19/12*6","v":27835},{"$f":"C19/12*5","v":23195.833333333336},{"$f":"C19/12*4","v":18556.666666666668},{"$f":"C19/12*3","v":13917.5},{"$f":"C19/12*2","v":9278.3333333333339},{"$f":"C19/12*1","v":4639.166666666667},"7-8A",null,"Available from 1 April 2020. "]
[]
[null,"Physician associates",53724,null,{"$f":"C21/12*12","v":53724},{"$f":"C21/12*11","v":49247},{"$f":"C21/12*10","v":44770},{"$f":"C21/12*9","v":40293},{"$f":"C21/12*8","v":35816},{"$f":"C21/12*7","v":31339},{"$f":"C21/12*6","v":26862},{"$f":"C21/12*5","v":22385},{"$f":"C21/12*4","v":17908},{"$f":"C21/12*3","v":13431},{"$f":"C21/12*2","v":8954},{"$f":"C21/12*1","v":4477},7,null,"Available from 1 April 2020. "]
[]
[null,"Pharmacy technicians",35389,null,{"$f":"C23/12*12","v":35389},{"$f":"C23/12*11","v":32439.916666666668},{"$f":"C23/12*10","v":29490.833333333336},{"$f":"C23/12*9","v":26541.75},{"$f":"C23/12*8","v":23592.666666666668},{"$f":"C23/12*7","v":20643.583333333336},{"$f":"C23/12*6","v":17694.5},{"$f":"C23/12*5","v":14745.416666666668},{"$f":"C23/12*4","v":11796.333333333334},{"$f":"C23/12*3","v":8847.25},{"$f":"C23/12*2","v":5898.166666666667},{"$f":"C23/12*1","v":2949.0833333333335},5,null,"Available from 1 April 2020. "]
[]
[null,"Paramedics ","TBC",null,null,null,null,null,null,null,null,null,null,null,null,null,7,null,"Community paramedics are due to be introduced to the Scheme from 2021/22. "]
[]
[null,"Occupational therapists",53724,null,{"$f":"C27/12*12","v":53724},{"$f":"C27/12*11","v":49247},{"$f":"C27/12*10","v":44770},{"$f":"C27/12*9","v":40293},{"$f":"C27/12*8","v":35816},{"$f":"C27/12*7","v":31339},{"$f":"C27/12*6","v":26862},{"$f":"C27/12*5","v":22385},{"$f":"C27/12*4","v":17908},{"$f":"C27/12*3","v":13431},{"$f":"C27/12*2","v":8954},{"$f":"C27/12*1","v":4477},7,null,"Available from 1 April 2020. "]
[]
[null,"Dietitians",53724,null,{"$f":"C29/12*12","v":53724},{"$f":"C29/12*11","v":49247},{"$f":"C29/12*10","v":44770},{"$f":"C29/12*9","v":40293},{"$f":"C29/12*8","v":35816},{"$f":"C29/12*7","v":31339},{"$f":"C29/12*6","v":26862},{"$f":"C29/12*5","v":22385},{"$f":"C29/12*4","v":17908},{"$f":"C29/12*3","v":13431},{"$f":"C29/12*2","v":8954},{"$f":"C29/12*1","v":4477},7,null,"Available from 1 April 2020. "]
[]
[null,"Chiropodists / podiatrists",53724,null,{"$f":"C31/12*12","v":53724},{"$f":"C31/12*11","v":49247},{"$f":"C31/12*10","v":44770},{"$f":"C31/12*9","v":40293},{"$f":"C31/12*8","v":35816},{"$f":"C31/12*7","v":31339},{"$f":"C31/12*6","v":26862},{"$f":"C31/12*5","v":22385},{"$f":"C31/12*4","v":17908},{"$f":"C31/12*3","v":13431},{"$f":"C31/12*2","v":8954},{"$f":"C31/12*1","v":4477},7,null,"Available from 1 April 2020. "]
[]
[null,"Health and wellbeing coaches",35389,null,{"$f":"C33/12*12","v":35389},{"$f":"C33/12*11","v":32439.916666666668},{"$f":"C33/12*10","v":29490.833333333336},{"$f":"C33/12*9","v":26541.75},{"$f":"C33/12*8","v":23592.666666666668},{"$f":"C33/12*7","v":20643.583333333336},{"$f":"C33/12*6","v":17694.5},{"$f":"C33/12*5","v":14745.416666666668},{"$f":"C33/12*4","v":11796.333333333334},{"$f":"C33/12*3","v":8847.25},{"$f":"C33/12*2","v":5898.166666666667},{"$f":"C33/12*1","v":2949.0833333333335},"Up to 5",null,"Available from 1 April 2020. "]
[]
[null,"Care co-ordinators",29135,null,{"$f":"C35/12*12","v":29135},{"$f":"C35/12*11","v":26707.083333333332},{"$f":"C35/12*10","v":24279.166666666664},{"$f":"C35/12*9","v":21851.25},{"$f":"C35/12*8","v":19423.333333333332},{"$f":"C35/12*7","v":16995.416666666664},{"$f":"C35/12*6","v":14567.5},{"$f":"C35/12*5","v":12139.583333333332},{"$f":"C35/12*4","v":9711.6666666666661},{"$f":"C35/12*3","v":7283.75},{"$f":"C35/12*2","v":4855.833333333333},{"$f":"C35/12*1","v":2427.9166666666665},4,null,"Available from 1 April 2020. "]
[]
[null,"Mental health practitioners ","TBC ",null,null,null,null,null,null,null,null,null,null,null,null,null,"TBC",null,"It is intended that mental health practitioners will be added to the ARRS from April 2021 following current pilots."]
[]
[]
[null,"National Workforce Reporting System\nWorkforce data reported by practices via the National Workforce Reporting System (NWRS) is vital to understanding workforce pressures in primary care, and supporting effective workforce planning. The Network Contract DES introduces a new contractual requirement for practice updates to the NWRS to be made on a monthly basis as a minimum (currently quarterly). We will also continue to work with NHS Digital and wider stakeholders to strengthen the reporting and tools made available to practices and PCNs from this data to support their workforce planning activity. NWRS can be accessed here: https://www.nwrs.nhs.uk/ "]

{"sheet":"Data Sheet","index":6,"n_rows":4,"n_cols":165,"rows_kept":4,"cut":false,"hidden":true,"merged":[]}
["PART A",null,null,null,null,null,null,"Recruitment intentions for 2020/21",null,null,null,null,null,null,null,null,null,null,null,null,null,null,null,null,null,null,null,null,null,null,null,null,null,null,null,null,null,null,null,null,null,null,null,null,null,null,null,null,null,null,null,null,null,null,null,null,null,null,null,null,null,null,null,null,null,null,null,"Indicative intentions for 2021/22 (due by 31st October 2020)",null,null,null,null,null,null,null,null,null,null,null,null,null,null,null,null,null,null,null,null,null,null,null,null,null,null,null,null,null,null,null,null,null,null,null,null,null,null,null,null,null,null,null,"PART B",null,null,null,null,null,null,null,null,null,null,null,null,null,null,null,null,null,null,null,null,null,null,null,null,null,null,null,null,null,null,null,null,null,null,null,"Indicative intentions for the remainder of the five year GP contract deal "]
[null,null,null,null,null,null,null,"Recruited during 2019/20",null,null,null,null,null,null,null,null,null,null,null,"Quarter 1\nApril - Jun",null,null,null,null,null,null,null,null,null,null,null,"Quarter 2\nJul - Sep",null,null,null,null,null,null,null,null,null,null,null,"Quarter 3\nOct - Dec",null,null,null,null,null,null,null,null,null,null,null,"Quarter 4\nJan - Mar",null,null,null,null,null,null,null,null,null,null,null,"2021/22",null,null,null,null,null,null,null,null,null,null,null,null,null,"2022/23",null,null,null,null,null,null,null,null,null,null,null,null,null,"2023/24",null,null,null,null,null,null,null,null,null,null,null,null,null,null,null,null,"Staff numbers as at March 2020",null,null,null,null,null,null,"Quarter 1\nApril - Jun",null,null,null,null,null,null,"Quarter 2\nJul - Sep",null,null,null,null,null,null,"Quarter 3\nOct - Dec",null,null,null,null,null,null,"Quarter 4\nJan - Mar",null,null,null,null,null,null,"2021/22",null,null,null,null,"2022/23",null,null,null,null,"2023/24",null,null,null,null,"Additional comments"]
["Name of PCN: ","Org Code (if known):","Last updated:","PCN Clinical Director:","Training Hub Contact:","Enter the PCN weighted population as at January 2020:","PCN-level ARRS Allocation 2020/21:","Clinical pharmacists","Nurse Associates","Nurse Training Associates","Social prescribing link workers ","First contact physiotherapists","Physician associates","Pharmacy technicians","Occupational therapists","Dietitians","Podiatrists","Health and wellbeing coaches","Care co-ordinators","Clinical pharmacists","Nurse Associates","Nurse Training Associates","Social prescribing link workers ","First contact physiotherapists","Physician associates","Pharmacy technicians","Occupational therapists","Dietitians","Podiatrists","Health and wellbeing coaches","Care co-ordinators","Clinical pharmacists","Nurse Associates","Nurse Training Associates","Social prescribing link workers ","First contact physiotherapists","Physician associates","Pharmacy technicians","Occupational therapists","Dietitians","Podiatrists","Health and wellbeing coaches","Care co-ordinators","Clinical pharmacists","Nurse Associates","Nurse Training Associates","Social prescribing link workers ","First contact physiotherapists","Physician associates","Pharmacy technicians","Occupational therapists","Dietitians","Podiatrists","Health and wellbeing coaches","Care co-ordinators","Clinical pharmacists","Nurse Associates","Nurse Training Associates","Social prescribing link workers ","First contact physiotherapists","Physician associates","Pharmacy technicians","Occupational therapists","Dietitians","Podiatrists","Health and wellbeing coaches","Care co-ordinators","Clinical pharmacists","Nurse Associates","Nurse Training Associates","Social prescribing link workers ","First contact physiotherapists","Physician associates","Pharmacy technicians","Community paramedics","Occupational therapists","Dietitians","Podiatrists","Health and wellbeing coaches","Care co-ordinators","Mental health practitioners","Clinical pharmacists","Nurse Associates","Nurse Training Associates","Social prescribing link workers ","First contact physiotherapists","Physician associates","Pharmacy technicians","Community paramedics","Occupational therapists","Dietitians","Podiatrists","Health and wellbeing coaches","Care co-ordinators","Mental health practitioners","Clinical pharmacists","Nurse Associates","Nurse Training Associates","Social prescribing link workers ","First contact physiotherapists","Physician associates","Pharmacy technicians","Community paramedics","Occupational therapists","Dietitians","Podiatrists","Health and wellbeing coaches","Care co-ordinators","Mental health practitioners","Requests for support to progress recruitment activity (e.g. advertising posts, supporting recruitment activity, brokering recruitment opportunities with neighbouring PCNs):","Any other comments: ","Last updated:","GPs (excluding registrars and locums)","Nurses ","Of these, how many do you anticipate will be: ","…advanced nurse practitioners","PCN Clinical Directors","Other direct patient care staff (outside of ARRS)","Non-clinical / admin roles","GPs (excluding registrars and locums)","Nurses ","Of these, how many do you anticipate will be: ","…advanced nurse practitioners","PCN Clinical Directors","Other direct patient care staff (outside of ARRS)","Non-clinical / admin roles","GPs (excluding registrars and locums)","Nurses ","Of these, how many do you anticipate will be: ","…advanced nurse practitioners","PCN Clinical Directors","Other direct patient care staff (outside of ARRS)","Non-clinical / admin roles","GPs (excluding registrars and locums)","Nurses ","Of these, how many do you anticipate will be: ","…advanced nurse practitioners","PCN Clinical Directors","Other direct patient care staff (outside of ARRS)","Non-clinical / admin roles","GPs (excluding registrars and locums)","Nurses ","Of these, how many do you anticipate will be: ","…advanced nurse practitioners","PCN Clinical Directors","Other direct patient care staff (outside of ARRS)","Non-clinical / admin roles","GPs (excluding registrars and locums)","Nurses ","PCN Clinical Directors","Other direct patient care staff","Non-clinical/admin staff","GPs (excluding registrars and locums)","Nurses ","PCN Clinical Directors","Other direct patient care staff","Non-clinical/admin staff","GPs (excluding registrars and locums)","Nurses ","PCN Clinical Directors","Other direct patient care staff","Non-clinical/admin staff","Supporting information and / or requests for support","Nursing","Other direct patient care staff"]
[{"$f":"IF('PART A'!$E12=\"\",\"\",'PART A'!$E12)","v":""},{"$f":"IF('PART A'!$E14=\"\",\"\",'PART A'!$E14)","v":""},{"$f":"IF('PART A'!$M16=\"\",\"\",'PART A'!$M16)","v":""},{"$f":"IF('PART A'!$M12=\"\",\"\",'PART A'!$M12)","v":""},{"$f":"IF('PART A'!$M14=\"\",\"\",'PART A'!$M14)","v":""},{"$f":"IF('PART A'!$K21=\"\",\"\",'PART A'!$K21)","v":0},{"$f":"IF('PART A'!$K23=\"\",\"\",'PART A'!$K23)","v":""},{"$f":"IF('PART A'!$E32=\"\",\"\",'PART A'!$E32)","v":""},{"$f":"IF('PART A'!$E34=\"\",\"\",'PART A'!$E34)","v":""},{"$f":"IF('PART A'!$E36=\"\",\"\",'PART A'!$E36)","v":""},{"$f":"IF('PART A'!$E38=\"\",\"\",'PART A'!$E38)","v":""},null,null,null,null,null,null,null,null,{"$f":"IF('PART A'!$G32=\"\",\"\",'PART A'!$G32)","v":""},{"$f":"IF('PART A'!$G34=\"\",\"\",'PART A'!$G34)","v":""},{"$f":"IF('PART A'!$G36=\"\",\"\",'PART A'!$G36)","v":""},{"$f":"IF('PART A'!$G38=\"\",\"\",'PART A'!$G38)","v":""},{"$f":"IF('PART A'!$G40=\"\",\"\",'PART A'!$G40)","v":""},{"$f":"IF('PART A'!$G42=\"\",\"\",'PART A'!$G42)","v":""},{"$f":"IF('PART A'!$G44=\"\",\"\",'PART A'!$G44)","v":""},{"$f":"IF('PART A'!$G46=\"\",\"\",'PART A'!$G46)","v":""},{"$f":"IF('PART A'!$G48=\"\",\"\",'PART A'!$G48)","v":""},{"$f":"IF('PART A'!$G50=\"\",\"\",'PART A'!$G50)","v":""},{"$f":"IF('PART A'!$G52=\"\",\"\",'PART A'!$G52)","v":""},{"$f":"IF('PART A'!$G54=\"\",\"\",'PART A'!$G54)","v":""},{"$f":"IF('PART A'!$I32=\"\",\"\",'PART A'!$I32)","v":""},{"$f":"IF('PART A'!$I34=\"\",\"\",'PART A'!$I34)","v":""},{"$f":"IF('PART A'!$I36=\"\",\"\",'PART A'!$I36)","v":""},{"$f":"IF('PART A'!$I38=\"\",\"\",'PART A'!$I38)","v":""},{"$f":"IF('PART A'!$I40=\"\",\"\",'PART A'!$I40)","v":""},{"$f":"IF('PART A'!$I42=\"\",\"\",'PART A'!$I42)","v":""},{"$f":"IF('PART A'!$I44=\"\",\"\",'PART A'!$I44)","v":""},{"$f":"IF('PART A'!$I46=\"\",\"\",'PART A'!$I46)","v":""},{"$f":"IF('PART A'!$I48=\"\",\"\",'PART A'!$I48)","v":""},{"$f":"IF('PART A'!$I50=\"\",\"\",'PART A'!$I50)","v":""},{"$f":"IF('PART A'!$I52=\"\",\"\",'PART A'!$I52)","v":""},{"$f":"IF('PART A'!$I54=\"\",\"\",'PART A'!$I54)","v":""},{"$f":"IF('PART A'!$K32=\"\",\"\",'PART A'!$K32)","v":""},{"$f":"IF('PART A'!$K34=\"\",\"\",'PART A'!$K34)","v":""},{"$f":"IF('PART A'!$K36=\"\",\"\",'PART A'!$K36)","v":""},{"$f":"IF('PART A'!$K38=\"\",\"\",'PART A'!$K38)","v":""},{"$f":"IF('PART A'!$K40=\"\",\"\",'PART A'!$K40)","v":""},{"$f":"IF('PART A'!$K42=\"\",\"\",'PART A'!$K42)","v":""},{"$f":"IF('PART A'!$K44=\"\",\"\",'PART A'!$K44)","v":""},{"$f":"IF('PART A'!$K46=\"\",\"\",'PART A'!$K46)","v":""},{"$f":"IF('PART A'!$K48=\"\",\"\",'PART A'!$K48)","v":""},{"$f":"IF('PART A'!$K50=\"\",\"\",'PART A'!$K50)","v":""},{"$f":"IF('PART A'!$K52=\"\",\"\",'PART A'!$K52)","v":""},{"$f":"IF('PART A'!$K54=\"\",\"\",'PART A'!$K54)","v":""},{"$f":"IF('PART A'!$M32=\"\",\"\",'PART A'!$M32)","v":""},{"$f":"IF('PART A'!$M34=\"\",\"\",'PART A'!$M34)","v":""},{"$f":"IF('PART A'!$M36=\"\",\"\",'PART A'!$M36)","v":""},{"$f":"IF('PART A'!$M38=\"\",\"\",'PART A'!$M38)","v":""},{"$f":"IF('PART A'!$M40=\"\",\"\",'PART A'!$M40)","v":""},{"$f":"IF('PART A'!$M42=\"\",\"\",'PART A'!$M42)","v":""},{"$f":"IF('PART A'!$M44=\"\",\"\",'PART A'!$M44)","v":""},{"$f":"IF('PART A'!$M46=\"\",\"\",'PART A'!$M46)","v":""},{"$f":"IF('PART A'!$M48=\"\",\"\",'PART A'!$M48)","v":""},{"$f":"IF('PART A'!$M50=\"\",\"\",'PART A'!$M50)","v":""},{"$f":"IF('PART A'!$M52=\"\",\"\",'PART A'!$M52)","v":""},{"$f":"IF('PART A'!$M54=\"\",\"\",'PART A'!$M54)","v":""},{"$f":"IF('PART A'!$G67=\"\",\"\",'PART A'!$G67)","v":""},{"$f":"IF('PART A'!$G69=\"\",\"\",'PART A'!$G69)","v":""},{"$f":"IF('PART A'!$G71=\"\",\"\",'PART A'!$G71)","v":""},{"$f":"IF('PART A'!$G73=\"\",\"\",'PART A'!$G73)","v":""},{"$f":"IF('PART A'!$G75=\"\",\"\",'PART A'!$G75)","v":""},{"$f":"IF('PART A'!$G77=\"\",\"\",'PART A'!$G77)","v":""},{"$f":"IF('PART A'!$G79=\"\",\"\",'PART A'!$G79)","v":""},{"$f":"IF('PART A'!$G81=\"\",\"\",'PART A'!$G81)","v":""},{"$f":"IF('PART A'!$G83=\"\",\"\",'PART A'!$G83)","v":""},{"$f":"IF('PART A'!$G85=\"\",\"\",'PART A'!$G85)","v":""},{"$f":"IF('PART A'!$G87=\"\",\"\",'PART A'!$G87)","v":""},{"$f":"IF('PART A'!$G89=\"\",\"\",'PART A'!$G89)","v":""},{"$f":"IF('PART A'!$G91=\"\",\"\",'PART A'!$G91)","v":""},{"$f":"IF('PART A'!$G93=\"\",\"\",'PART A'!$G93)","v":""},{"$f":"IF('PART A'!$I67=\"\",\"\",'PART A'!$I67)","v":""},{"$f":"IF('PART A'!$I69=\"\",\"\",'PART A'!$I69)","v":""},{"$f":"IF('PART A'!$I71=\"\",\"\",'PART A'!$I71)","v":""},{"$f":"IF('PART A'!$I73=\"\",\"\",'PART A'!$I73)","v":""},{"$f":"IF('PART A'!$I75=\"\",\"\",'PART A'!$I75)","v":""},{"$f":"IF('PART A'!$I77=\"\",\"\",'PART A'!$I77)","v":""},{"$f":"IF('PART A'!$I79=\"\",\"\",'PART A'!$I79)","v":""},{"$f":"IF('PART A'!$I81=\"\",\"\",'PART A'!$I81)","v":""},{"$f":"IF('PART A'!$I83=\"\",\"\",'PART A'!$I83)","v":""},{"$f":"IF('PART A'!$I85=\"\",\"\",'PART A'!$I85)","v":""},{"$f":"IF('PART A'!$I87=\"\",\"\",'PART A'!$I87)","v":""},{"$f":"IF('PART A'!$I89=\"\",\"\",'PART A'!$I89)","v":""},{"$f":"IF('PART A'!$I91=\"\",\"\",'PART A'!$I91)","v":""},{"$f":"IF('PART A'!$I93=\"\",\"\",'PART A'!$I93)","v":""},{"$f":"IF('PART A'!$K67=\"\",\"\",'PART A'!$K67)","v":""},{"$f":"IF('PART A'!$K69=\"\",\"\",'PART A'!$K69)","v":""},{"$f":"IF('PART A'!$K71=\"\",\"\",'PART A'!$K71)","v":""},{"$f":"IF('PART A'!$K73=\"\",\"\",'PART A'!$K73)","v":""},{"$f":"IF('PART A'!$K75=\"\",\"\",'PART A'!$K75)","v":""},{"$f":"IF('PART A'!$K77=\"\",\"\",'PART A'!$K77)","v":""},{"$f":"IF('PART A'!$K79=\"\",\"\",'PART A'!$K79)","v":""},{"$f":"IF('PART A'!$K81=\"\",\"\",'PART A'!$K81)","v":""},{"$f":"IF('PART A'!$K83=\"\",\"\",'PART A'!$K83)","v":""},{"$f":"IF('PART A'!$K85=\"\",\"\",'PART A'!$K85)","v":""},{"$f":"IF('PART A'!$K87=\"\",\"\",'PART A'!$K87)","v":""},{"$f":"IF('PART A'!$K89=\"\",\"\",'PART A'!$K89)","v":""},{"$f":"IF('PART A'!$K91=\"\",\"\",'PART A'!$K91)","v":""},{"$f":"IF('PART A'!$K93=\"\",\"\",'PART A'!$K93)","v":""},{"$f":"IF('PART A'!$C101=\"\",\"\",'PART A'!$C101)","v":""},{"$f":"IF('PART A'!$C109=\"\",\"\",'PART A'!$C109)","v":""},{"$f":"IF('PART B'!$E11=\"\",\"\",'PART B'!$E11)","v":""},{"$f":"IF('PART B'!$E20=\"\",\"\",'PART B'!$E20)","v":""},{"$f":"IF('PART B'!$E22=\"\",\"\",'PART B'!$E22)","v":""},null,null,{"$f":"IF('PART B'!$E28=\"\",\"\",'PART B'!$E28)","v":""},{"$f":"IF('PART B'!$E30=\"\",\"\",'PART B'!$E30)","v":""},{"$f":"IF('PART B'!$E32=\"\",\"\",'PART B'!$E32)","v":""},{"$f":"IF('PART B'!$G20=\"\",\"\",'PART B'!$G20)","v":""},{"$f":"IF('PART B'!$G22=\"\",\"\",'PART B'!$G22)","v":""},{"$f":"IF('PART B'!$G24=\"\",\"\",'PART B'!$G24)","v":""},{"$f":"IF('PART B'!$G26=\"\",\"\",'PART B'!$G26)","v":""},{"$f":"IF('PART B'!$G28=\"\",\"\",'PART B'!$G28)","v":""},{"$f":"IF('PART B'!$G30=\"\",\"\",'PART B'!$G30)","v":""},{"$f":"IF('PART B'!$G32=\"\",\"\",'PART B'!$G32)","v":""},{"$f":"IF('PART B'!$I20=\"\",\"\",'PART B'!$I20)","v":""},{"$f":"IF('PART B'!$I22=\"\",\"\",'PART B'!$I22)","v":""},{"$f":"IF('PART B'!$I24=\"\",\"\",'PART B'!$I24)","v":""},{"$f":"IF('PART B'!$I26=\"\",\"\",'PART B'!$I26)","v":""},{"$f":"IF('PART B'!$I28=\"\",\"\",'PART B'!$I28)","v":""},{"$f":"IF('PART B'!$I30=\"\",\"\",'PART B'!$I30)","v":""},{"$f":"IF('PART B'!$I32=\"\",\"\",'PART B'!$I32)","v":""},{"$f":"IF('PART B'!$K20=\"\",\"\",'PART B'!$K20)","v":""},{"$f":"IF('PART B'!$K22=\"\",\"\",'PART B'!$K22)","v":""},{"$f":"IF('PART B'!$K24=\"\",\"\",'PART B'!$K24)","v":""},{"$f":"IF('PART B'!$K26=\"\",\"\",'PART B'!$K26)","v":""},{"$f":"IF('PART B'!$K28=\"\",\"\",'PART B'!$K28)","v":""},{"$f":"IF('PART B'!$K30=\"\",\"\",'PART B'!$K30)","v":""},{"$f":"IF('PART B'!$K32=\"\",\"\",'PART B'!$K32)","v":""},{"$f":"IF('PART B'!$M20=\"\",\"\",'PART B'!$M20)","v":""},{"$f":"IF('PART B'!$M22=\"\",\"\",'PART B'!$M22)","v":""},{"$f":"IF('PART B'!$M24=\"\",\"\",'PART B'!$M24)","v":""},{"$f":"IF('PART B'!$M26=\"\",\"\",'PART B'!$M26)","v":""},{"$f":"IF('PART B'!$M28=\"\",\"\",'PART B'!$M28)","v":""},{"$f":"IF('PART B'!$M30=\"\",\"\",'PART B'!$M30)","v":""},{"$f":"IF('PART B'!$M32=\"\",\"\",'PART B'!$M32)","v":""},{"$f":"IF('PART B'!$G43=\"\",\"\",'PART B'!$G43)","v":""},{"$f":"IF('PART B'!$G46=\"\",\"\",'PART B'!$G46)","v":""},{"$f":"IF('PART B'!$G78=\"\",\"\",'PART B'!$G78)","v":""},{"$f":"IF('PART B'!$G81=\"\",\"\",'PART B'!$G81)","v":""},{"$f":"IF('PART B'!$G84=\"\",\"\",'PART B'!$G84)","v":""},{"$f":"IF('PART B'!$I43=\"\",\"\",'PART B'!$I43)","v":""},{"$f":"IF('PART B'!$I46=\"\",\"\",'PART B'!$I46)","v":""},{"$f":"IF('PART B'!$I78=\"\",\"\",'PART B'!$I78)","v":""},{"$f":"IF('PART B'!$I81=\"\",\"\",'PART B'!$I81)","v":""},{"$f":"IF('PART B'!$I84=\"\",\"\",'PART B'!$I84)","v":""},{"$f":"IF('PART B'!$K43=\"\",\"\",'PART B'!$K43)","v":""},{"$f":"IF('PART B'!$K46=\"\",\"\",'PART B'!$K46)","v":""},{"$f":"IF('PART B'!$K78=\"\",\"\",'PART B'!$K78)","v":""},{"$f":"IF('PART B'!$K81=\"\",\"\",'PART B'!$K81)","v":""},{"$f":"IF('PART B'!$K84=\"\",\"\",'PART B'!$K84)","v":""},{"$f":"IF('PART B'!C93=\"\",\"\",'PART B'!C93)","v":""},{"$f":"IF('PART B'!C101=\"\",\"\",'PART B'!C101)","v":""},{"$f":"IF('PART B'!C109=\"\",\"\",'PART B'!C109)","v":""}]

{"sheet":"Weighted Populations","index":7,"n_rows":1266,"n_cols":17,"rows_kept":1266,"cut":false,"hidden":true,"merged":[]}
["PCN Code","PCN Name","Normalised Weighted List Size","PCN Code","PCN Parent\nCCG Code","PCN Parent\nCCG Name",null,null,null,null,"PCN Code","PCN Name","PCN Parent\nCCG Code","PCN Parent\nCCG Name",null,"PCN Code","PCN Name"]
["U00070","WEST MERTON PCN",25756.443284708999,{"$f":"A2","v":"U00070"},{"$f":"VLOOKUP($A2,$K$2:$N$1255,3,FALSE)","v":"36L"},{"$f":"VLOOKUP($A2,$K$2:$N$1255,4,FALSE)","v":"NHS SOUTH WEST LONDON CCG"},null,null,null,null,"U00070","WEST MERTON PCN","36L","NHS SOUTH WEST LONDON CCG",null,"U60176","3 CENTRES PCN"]
["U00147","AEGIS HEALTHCARE PCN",44081.87514870576,{"$f":"A3","v":"U00147"},{"$f":"VLOOKUP($A3,$K$2:$N$1255,3,FALSE)","v":"04C"},{"$f":"VLOOKUP($A3,$K$2:$N$1255,4,FALSE)","v":"NHS LEICESTER CITY CCG"},null,null,null,null,"U00147","AEGIS HEALTHCARE PCN","04C","NHS LEICESTER CITY CCG",null,"U72999","4 DONCASTER PCN"]
["U00203","ECCLES & IRLAM PCN",61820.012986500442,"U00203","01G","NHS SALFORD CCG",null,null,null,null,"U00203","ECCLES & IRLAM PCN","01G","NHS SALFORD CCG",null,"U16600","4PCC (BNSSG) PCN"]
["U00254","BLACKHEATH AND CHARLTON PCN",45653.480727063041,"U00254","72Q","NHS SOUTH EAST LONDON CCG",null,null,null,null,"U00254","BLACKHEATH AND CHARLTON PCN","72Q","NHS SOUTH EAST LONDON CCG",null,"U89554","A1 NETWORK PCN"]
["U00351","SOLIHULL SOUTH CENTRAL PCN",26992.153601899008,"U00351","15E","NHS BIRMINGHAM AND SOLIHULL CCG",null,null,null,null,"U00351","SOLIHULL SOUTH CENTRAL PCN","15E","NHS BIRMINGHAM AND SOLIHULL CCG",null,"U72748","A31 GROUP PCN"]
["U00367","HAVERING SOUTH PCN",103450.55504326268,"U00367","08F","NHS HAVERING CCG",null,null,null,null,"U00367","HAVERING SOUTH PCN","08F","NHS HAVERING CCG",null,"U16983","A34 WEST BERKSHIRE PCN"]
["U00402","CONNEXUS PCN",50443.312616118121,"U00402","15C","NHS BRISTOL, NORTH SOMERSET AND SOUTH GLOUCESTERSHIRE CCG",null,null,null,null,"U00402","CONNEXUS PCN","15C","NHS BRISTOL, NORTH SOMERSET AND SOUTH GLOUCESTERSHIRE CCG",null,"U06079","ABBEY HEALTH PCN"]
["U00639","CARLISLE RURAL PCN",22919.851198897068,"U00639","01H","NHS NORTH CUMBRIA CCG",null,null,null,null,"U00639","CARLISLE RURAL PCN","01H","NHS NORTH CUMBRIA CCG",null,"U47228","ABC PCN"]
["U00760","NORTH SEDGEMOOR PCN",40696.209222262492,"U00760","11X","NHS SOMERSET CCG",null,null,null,null,"U00760","NORTH SEDGEMOOR PCN","11X","NHS SOMERSET CCG",null,"U57321","ABINGDON AND DISTRICT PCN"]
["U01092","CISSBURY INTEGRATED CARE PCN",49480.664401350179,"U01092","70F","NHS WEST SUSSEX CCG",null,null,null,null,"U01092","CISSBURY INTEGRATED CARE PCN","70F","NHS WEST SUSSEX CCG",null,"U15230","ABINGDON CENTRAL PCN"]
["U01096","LOUGHTON BUCKHURST HILL & CHIGWELL PCN",55132.746916103853,"U01096","07H","NHS WEST ESSEX CCG",null,null,null,null,"U01096","LOUGHTON BUCKHURST HILL & CHIGWELL PCN","07H","NHS WEST ESSEX CCG",null,"U93998","ABOUT BETTER CARE (ABC) PCN"]
["U01150","WELWYN GARDEN CITY AND VILLAGES PCN",19690.1636828396,"U01150","06K","NHS EAST AND NORTH HERTFORDSHIRE CCG",null,null,null,null,"U01150","WELWYN GARDEN CITY AND VILLAGES PCN","06K","NHS EAST AND NORTH HERTFORDSHIRE CCG",null,"U81324","ACTON PCN"]
["U01198","SOUTH (IW) PCN",28122.018067672463,"U01198","10L","NHS ISLE OF WIGHT CCG",null,null,null,null,"U01198","SOUTH (IW) PCN","10L","NHS ISLE OF WIGHT CCG",null,"U00147","AEGIS HEALTHCARE PCN"]
["U01315","FAVERSHAM PCN",30656.221769278098,"U01315","91Q","NHS KENT AND MEDWAY CCG",null,null,null,null,"U01315","FAVERSHAM PCN","91Q","NHS KENT AND MEDWAY CCG",null,"U12553","AEGROS HEALTH PCN"]
["U01367","WALLINGFORD & SURROUNDS PCN",34070.188608792421,"U01367","10Q","NHS OXFORDSHIRE CCG",null,null,null,null,"U01367","WALLINGFORD & SURROUNDS PCN","10Q","NHS OXFORDSHIRE CCG",null,"U66596","AFFINITY (BNSSG) PCN"]
["U01577","WALSALL WEST 2 PCN",47555.089432474735,"U01577","05Y","NHS WALSALL CCG",null,null,null,null,"U01577","WALSALL WEST 2 PCN","05Y","NHS WALSALL CCG",null,"U87769","AFFINITY CARE PCN"]
["U01630","STALYBRIDGE PCN",42508.129099565718,"U01630","01Y","NHS TAMESIDE AND GLOSSOP CCG",null,null,null,null,"U01630","STALYBRIDGE PCN","01Y","NHS TAMESIDE AND GLOSSOP CCG",null,"U45013","AINSDALE & BIRKDALE PCN"]
["U01680","MALTBY WICKERSLEY PCN",38870.840627027559,"U01680","03L","NHS ROTHERHAM CCG",null,null,null,null,"U01680","MALTBY WICKERSLEY PCN","03L","NHS ROTHERHAM CCG",null,"U80186","AINTREE PCN"]
["U01901","CHORLEY CENTRAL PCN",57663.161042734435,"U01901","00X","NHS CHORLEY AND SOUTH RIBBLE CCG",null,null,null,null,"U01901","CHORLEY CENTRAL PCN","00X","NHS CHORLEY AND SOUTH RIBBLE CCG",null,"U78369","ALBAN HEALTHCARE PCN"]
["U01916","CYGNET PCN",42930.218337696017,"U01916","14Y","NHS BUCKINGHAMSHIRE CCG",null,null,null,null,"U01916","CYGNET PCN","14Y","NHS BUCKINGHAMSHIRE CCG",null,"U03055","ALDERSHOT PCN"]
["U01989","DURHAM WEST PCN",57546.733337755606,"U01989","84H","NHS COUNTY DURHAM CCG",null,null,null,null,"U01989","DURHAM WEST PCN","84H","NHS COUNTY DURHAM CCG",null,"U72812","ALFRETON RIPLEY CRICH & HEANOR PCN"]
["U02049","SOUTH TANDRIDGE PCN",26833.3170111242,"U02049","92A","NHS SURREY HEARTLANDS CCG",null,null,null,null,"U02049","SOUTH TANDRIDGE PCN","92A","NHS SURREY HEARTLANDS CCG",null,"U47609","ALLIANCE OF SUTTON PRACTICES PCN"]
["U02275","HYDE PCN",75254.76504262368,"U02275","01Y","NHS TAMESIDE AND GLOSSOP CCG",null,null,null,null,"U02275","HYDE PCN","01Y","NHS TAMESIDE AND GLOSSOP CCG",null,"U75382","ALLIANCE PCN"]
["U02453","WEST CENTRAL PCN",34136.301044360873,"U02453","99G","NHS SOUTHEND CCG",null,null,null,null,"U02453","WEST CENTRAL PCN","99G","NHS SOUTHEND CCG",null,"U36299","ALPHA PCN"]
["U02454","NIGHTINGALE PCN",26839.866952268814,"U02454","36L","NHS SOUTH WEST LONDON CCG",null,null,null,null,"U02454","NIGHTINGALE PCN","36L","NHS SOUTH WEST LONDON CCG",null,"U52868","ALPS GROUP PCN"]
["U02610","EAST CORNWALL PCN",115558.06795974821,"U02610","11N","NHS KERNOW CCG",null,null,null,null,"U02610","EAST CORNWALL PCN","11N","NHS KERNOW CCG",null,"U95344","ALTRINCHAM HEALTHCARE ALLIANCE PCN"]
["U02669","BERKELEY VALE PCN",35672.8205321477,"U02669","11M","NHS GLOUCESTERSHIRE CCG",null,null,null,null,"U02669","BERKELEY VALE PCN","11M","NHS GLOUCESTERSHIRE CCG",null,"U15164","ANDOVER PCN"]
["U02671","GREATER MIDDLESBROUGH PCN",70153.077191094999,"U02671","16C","NHS TEES VALLEY CCG",null,null,null,null,"U02671","GREATER MIDDLESBROUGH PCN","16C","NHS TEES VALLEY CCG",null,"U49727","ANFIELD & EVERTON PCN"]
["U02678","WINSFORD PCN",38533.629097239063,"U02678","27D","NHS CHESHIRE CCG",null,null,null,null,"U02678","WINSFORD PCN","27D","NHS CHESHIRE CCG",null,"U17435","APEX PCN"]
["U02731","IGPC PCN",48712.765883981214,"U02731","99A","NHS LIVERPOOL CCG",null,null,null,null,"U02731","IGPC PCN","99A","NHS LIVERPOOL CCG",null,"U07140","APL BEXLEY PCN"]
["U02739","WHITLEY BAY PCN",51090.68773810791,"U02739","99C","NHS NORTH TYNESIDE CCG",null,null,null,null,"U02739","WHITLEY BAY PCN","99C","NHS NORTH TYNESIDE CCG",null,"U23546","APLOS HEALTH PCN"]
["U02749","CENTRAL BOURNEMOUTH PCN",43655.679692211073,"U02749","11J","NHS DORSET CCG",null,null,null,null,"U02749","CENTRAL BOURNEMOUTH PCN","11J","NHS DORSET CCG",null,"U36721","ARBENNEK HEALTH PCN"]
["U02961","SOUTH WESTMINSTER PCN",75169.610266096264,"U02961","09A","NHS CENTRAL LONDON (WESTMINSTER) CCG",null,null,null,null,"U02961","SOUTH WESTMINSTER PCN","09A","NHS CENTRAL LONDON (WESTMINSTER) CCG",null,"U23821","ARC BUCKS PCN"]
["U03055","ALDERSHOT PCN",46099.897181708606,"U03055","99M","NHS NORTH EAST HAMPSHIRE AND FARNHAM CCG",null,null,null,null,"U03055","ALDERSHOT PCN","99M","NHS NORTH EAST HAMPSHIRE AND FARNHAM CCG",null,"U55724","ARDEN PCN"]
["U03153","BROUGHTON HEALTH ALLIANCE PCN",53113.47552867682,"U03153","01G","NHS SALFORD CCG",null,null,null,null,"U03153","BROUGHTON HEALTH ALLIANCE PCN","01G","NHS SALFORD CCG",null,"U07506","ARDWICK AND LONGSIGHT PCN"]
["U03186","THE LEICESTER FOXES PCN",30817.285805241423,"U03186","04C","NHS LEICESTER CITY CCG",null,null,null,null,"U03186","THE LEICESTER FOXES PCN","04C","NHS LEICESTER CITY CCG",null,"U92581","ARMLEY PCN"]
["U03298","RICHMONDSHIRE PCN",48428.537096299093,"U03298","42D","NHS NORTH YORKSHIRE CCG",null,null,null,null,"U03298","RICHMONDSHIRE PCN","42D","NHS NORTH YORKSHIRE CCG",null,"U51200","ARNOLD AND CALVERTON PCN"]
["U03364","HAYWARDS HEATH VILLAGES PCN",29039.328727171298,"U03364","70F","NHS WEST SUSSEX CCG",null,null,null,null,"U03364","HAYWARDS HEATH VILLAGES PCN","70F","NHS WEST SUSSEX CCG",null,"U47851","ARROW HEALTH PCN"]
["U03379","THORPE AND RANWORTH PCN",48472.223577870427,"U03379","06T","NHS NORTH EAST ESSEX CCG",null,null,null,null,"U03379","THORPE AND RANWORTH PCN","06T","NHS NORTH EAST ESSEX CCG",null,"U21339","ARUN PCN"]
["U03551","MOTTINGHAM, DOWNHAM & CHISLEHURST PCN",33922.265786922406,"U03551","72Q","NHS SOUTH EAST LONDON CCG",null,null,null,null,"U03551","MOTTINGHAM, DOWNHAM & CHISLEHURST PCN","72Q","NHS SOUTH EAST LONDON CCG",null,"U49574","ASCENT PCN"]
["U03653","FAIRLOP PCN",57091.397595745475,"U03653","08N","NHS REDBRIDGE CCG",null,null,null,null,"U03653","FAIRLOP PCN","08N","NHS REDBRIDGE CCG",null,"U14074","ASCOT PCN"]
["U03810","ISLAND CITY PCN",44724.139499776,"U03810","10R","NHS PORTSMOUTH CCG",null,null,null,null,"U03810","ISLAND CITY PCN","10R","NHS PORTSMOUTH CCG",null,"U85198","ASHFIELD NORTH PCN"]
["U03824","HULL NEXUS PCN",74447.628116632433,"U03824","03F","NHS HULL CCG",null,null,null,null,"U03824","HULL NEXUS PCN","03F","NHS HULL CCG",null,"U53963","ASHFIELD SOUTH PCN"]
["U03826","YORKSHIRE EAST PCN",44478.908885534547,"U03826","03Q","NHS VALE OF YORK CCG",null,null,null,null,"U03826","YORKSHIRE EAST PCN","03Q","NHS VALE OF YORK CCG",null,"U50767","ASHFORD MEDICAL PARTNERSHIP PCN"]
["U03864","NORTH CORNWALL COAST",23343.703031937657,"U03864","11N","NHS KERNOW CCG",null,null,null,null,"U03864","NORTH CORNWALL COAST","11N","NHS KERNOW CCG",null,"U07648","ASHFORD RURAL PCN"]
["U03892","FELIXSTOWE PCN",48417.594390805316,"U03892","06L","NHS IPSWICH AND EAST SUFFOLK CCG",null,null,null,null,"U03892","FELIXSTOWE PCN","06L","NHS IPSWICH AND EAST SUFFOLK CCG",null,"U87442","ASHFORD STOUR PCN"]
["U03989","WHITLEY PCN",34265.220359367129,"U03989","15A","NHS BERKSHIRE WEST CCG",null,null,null,null,"U03989","WHITLEY PCN","15A","NHS BERKSHIRE WEST CCG",null,"U38271","ASHTON PCN"]
["U04079","WEST READING VILLAGES PCN",42332.372344246614,"U04079","15A","NHS BERKSHIRE WEST CCG",null,null,null,null,"U04079","WEST READING VILLAGES PCN","15A","NHS BERKSHIRE WEST CCG",null,"U28765","ASOP PCN"]
["U04154","NORTH NORFOLK 4 PCN",54298.546433287942,"U04154","26A","NHS NORFOLK AND WAVENEY CCG",null,null,null,null,"U04154","NORTH NORFOLK 4 PCN","26A","NHS NORFOLK AND WAVENEY CCG",null,"U16816","ASPEN PCN"]
["U04443","WEST LEIGH PCN",53991.605191584684,"U04443","99G","NHS SOUTHEND CCG",null,null,null,null,"U04443","WEST LEIGH PCN","99G","NHS SOUTHEND CCG",null,"U18315","AT MEDICS STREATHAM PCN"]
["U04545","SOUTHEND EAST PCN",35171.317891594641,"U04545","99G","NHS SOUTHEND CCG",null,null,null,null,"U04545","SOUTHEND EAST PCN","99G","NHS SOUTHEND CCG",null,"U34538","ATTENBOROUGH & TUDOR PCN"]
["U04725","HAYWARDS HEATH CENTRAL PCN",28527.373130402033,"U04725","70F","NHS WEST SUSSEX CCG",null,null,null,null,"U04725","HAYWARDS HEATH CENTRAL PCN","70F","NHS WEST SUSSEX CCG",null,"U84277","AVON VALLEY PCN"]
["U04784","WARWICKSHIRE EAST PCN",26946.50576569893,"U04784","05R","NHS SOUTH WARWICKSHIRE CCG",null,null,null,null,"U04784","WARWICKSHIRE EAST PCN","05R","NHS SOUTH WARWICKSHIRE CCG",null,"U88743","AYLESBURY VALE SOUTH PCN"]
["U04862","WHITE HORSE BOTLEY PCN",32301.1957174524,"U04862","10Q","NHS OXFORDSHIRE CCG",null,null,null,null,"U04862","WHITE HORSE BOTLEY PCN","10Q","NHS OXFORDSHIRE CCG",null,"U19803","BABYLON GP AT HAND PCN"]
["U04901","STONE & ECCLESHALL PCN",35486.827599372868,"U04901","05V","NHS STAFFORD AND SURROUNDS CCG",null,null,null,null,"U04901","STONE & ECCLESHALL PCN","05V","NHS STAFFORD AND SURROUNDS CCG",null,"U10998","BACHS PCN"]
["U04914","PRESTON EAST PCN",37510.3195557164,"U04914","01E","NHS GREATER PRESTON CCG",null,null,null,null,"U04914","PRESTON EAST PCN","01E","NHS GREATER PRESTON CCG",null,"U42598","BALHAM, TOOTING & FURZEDOWN PCN"]
["U04973","GARDEN CITY PCN",43867.767285783855,"U04973","91Q","NHS KENT AND MEDWAY CCG",null,null,null,null,"U04973","GARDEN CITY PCN","91Q","NHS KENT AND MEDWAY CCG",null,"U54948","BALSALL HEATH, SPARKHILL & MOSELEY PCN"]
["U05001","LARWOOD & BAWTRY PCN",40389.611718785745,"U05001","02Q","NHS BASSETLAW CCG",null,null,null,null,"U05001","LARWOOD & BAWTRY PCN","02Q","NHS BASSETLAW CCG",null,"U23620","BANBURY PCN"]
["U05048","NORTH HARDWICK BOLSOVER PCN",58343.686132013339,"U05048","15M","NHS DERBY AND DERBYSHIRE CCG",null,null,null,null,"U05048","NORTH HARDWICK BOLSOVER PCN","15M","NHS DERBY AND DERBYSHIRE CCG",null,"U42235","BANSTEAD HEALTHCARE PCN"]
["U05340","THREE VALLEYS HEALTH PCN",65914.199421508805,"U05340","92G","NHS BATH AND NORTH EAST SOMERSET, SWINDON AND WILTSHIRE CCG",null,null,null,null,"U05340","THREE VALLEYS HEALTH PCN","92G","NHS BATH AND NORTH EAST SOMERSET, SWINDON AND WILTSHIRE CCG",null,"U27362","BARKING & DAGENHAM EAST ONE PCN"]
["U05433","SOUTH NORFOLK HIP PCN",68324.579552293508,"U05433","26A","NHS NORFOLK AND WAVENEY CCG",null,null,null,null,"U05433","SOUTH NORFOLK HIP PCN","26A","NHS NORFOLK AND WAVENEY CCG",null,"U86966","BARKING & DAGENHAM EAST PCN"]
["U05451","HACKNEY MARSHES PCN",47056.935011982641,"U05451","07T","NHS CITY AND HACKNEY CCG",null,null,null,null,"U05451","HACKNEY MARSHES PCN","07T","NHS CITY AND HACKNEY CCG",null,"U26744","BARKING & DAGENHAM NEW WEST PCN"]
["U05458","SUNDERLAND WEST 2 PCN",42169.34406224703,"U05458","00P","NHS SUNDERLAND CCG",null,null,null,null,"U05458","SUNDERLAND WEST 2 PCN","00P","NHS SUNDERLAND CCG",null,"U55387","BARKING & DAGENHAM NORTH PCN"]
["U05510","MALLING PCN",55425.458428159858,"U05510","91Q","NHS KENT AND MEDWAY CCG",null,null,null,null,"U05510","MALLING PCN","91Q","NHS KENT AND MEDWAY CCG",null,"U92874","BARKING & DAGENHAM NORTH WEST PCN"]
["U05512","WEST NORTHUMBERLAND PCN",80115.086816496711,"U05512","00L","NHS NORTHUMBERLAND CCG",null,null,null,null,"U05512","WEST NORTHUMBERLAND PCN","00L","NHS NORTHUMBERLAND CCG",null,"U11211","BARKING & DAGENHAM WEST PCN"]
["U05517","HWL NETWORK PCN",27822.528072748093,{"$f":"A67","v":"U05517"},{"$f":"VLOOKUP($A67,$K$2:$N$1255,3,FALSE)","v":"00T"},{"$f":"VLOOKUP($A67,$K$2:$N$1255,4,FALSE)","v":"NHS BOLTON CCG"},null,null,null,null,"U05517","HWL NETWORK PCN","00T","NHS BOLTON CCG",null,"U84655","BARNET 1D PCN"]
["U05632","SEAFORD PCN",30193.953906093302,"U05632","97R","NHS EAST SUSSEX CCG",null,null,null,null,"U05632","SEAFORD PCN","97R","NHS EAST SUSSEX CCG",null,"U07605","BARNET 1W PCN"]
["U05642","MILLENNIUM PCN",49210.547646225277,"U05642","04C","NHS LEICESTER CITY CCG",null,null,null,null,"U05642","MILLENNIUM PCN","04C","NHS LEICESTER CITY CCG",null,"U33392","BARNET 2 PCN"]
["U05734","HANLEY, BUCKNALL & BENTILEE PCN",35216.919388819537,"U05734","05W","NHS STOKE ON TRENT CCG",null,null,null,null,"U05734","HANLEY, BUCKNALL & BENTILEE PCN","05W","NHS STOKE ON TRENT CCG",null,"U58538","BARNET 3 PCN"]
["U05784","BROMPTON HEALTH PCN",62619.880408464902,"U05784","08Y","NHS WEST LONDON CCG",null,null,null,null,"U05784","BROMPTON HEALTH PCN","08Y","NHS WEST LONDON CCG",null,"U35438","BARNET 4 PCN"]
["U05796","LEICESTER HEALTH FOCUS PCN",36757.765842576089,"U05796","04C","NHS LEICESTER CITY CCG",null,null,null,null,"U05796","LEICESTER HEALTH FOCUS PCN","04C","NHS LEICESTER CITY CCG",null,"U39686","BARNET 5 PCN"]
["U05885","SOUTH CAMDEN PCN",34921.550299670373,"U05885","93C","NHS NORTH CENTRAL LONDON CCG",null,null,null,null,"U05885","SOUTH CAMDEN PCN","93C","NHS NORTH CENTRAL LONDON CCG",null,"U30079","BARNET 6 PCN"]
["U05906","LEYLAND PCN",45011.679914152206,"U05906","00X","NHS CHORLEY AND SOUTH RIBBLE CCG",null,null,null,null,"U05906","LEYLAND PCN","00X","NHS CHORLEY AND SOUTH RIBBLE CCG",null,"U16464","BARNSLEY PCN"]
["U06000","KNUTSFORD PCN",24171.489947486487,"U06000","27D","NHS CHESHIRE CCG",null,null,null,null,"U06000","KNUTSFORD PCN","27D","NHS CHESHIRE CCG",null,"U50322","BARNSTAPLE ALLIANCE PCN"]
["U06079","ABBEY HEALTH PCN",24539.837922612918,"U06079","06N","NHS HERTS VALLEYS CCG",null,null,null,null,"U06079","ABBEY HEALTH PCN","06N","NHS HERTS VALLEYS CCG",null,"U26878","BARRACK LANE & IVRY STREET PCN"]
["U06092","GREENWOOD PCN",55986.813860618517,"U06092","03A","NHS GREATER HUDDERSFIELD CCG",null,null,null,null,"U06092","GREENWOOD PCN","03A","NHS GREATER HUDDERSFIELD CCG",null,"U17992","BARROW AND MILLOM PCN"]
["U06180","NORTH SOUTHWARK PCN",182057.59893335812,"U06180","72Q","NHS SOUTH EAST LONDON CCG",null,null,null,null,"U06180","NORTH SOUTHWARK PCN","72Q","NHS SOUTH EAST LONDON CCG",null,"U63770","BATH INDEPENDENTS PCN"]
["U06243","TILBURY AND CHADWELL PCN",38133.596561379934,"U06243","07G","NHS THURROCK CCG",null,null,null,null,"U06243","TILBURY AND CHADWELL PCN","07G","NHS THURROCK CCG",null,"U63540","BATLEY BIRSTALL PCN"]
["U06256","HIPC (HOLISTIC PATIENT CENTRED CARE) PCN",45867.055238501009,"U06256","05W","NHS STOKE ON TRENT CCG",null,null,null,null,"U06256","HIPC (HOLISTIC PATIENT CENTRED CARE) PCN","05W","NHS STOKE ON TRENT CCG",null,"U42154","BATTERSEA PCN"]
["U06387","NEXUS (DEVON) PCN",38683.137398211351,"U06387","15N","NHS DEVON CCG",null,null,null,null,"U06387","NEXUS (DEVON) PCN","15N","NHS DEVON CCG",null,"U27624","BAY PCN"]
["U06437","BYRON PCN",39363.722522479628,"U06437","52R","NHS NOTTINGHAM AND NOTTINGHAMSHIRE CCG",null,null,null,null,"U06437","BYRON PCN","52R","NHS NOTTINGHAM AND NOTTINGHAMSHIRE CCG",null,"U55399","BAYWIDE PCN"]
["U06438","PCCO PCN",39765.480879247596,"U06438","15M","NHS DERBY AND DERBYSHIRE CCG",null,null,null,null,"U06438","PCCO PCN","15M","NHS DERBY AND DERBYSHIRE CCG",null,"U64232","B-CONNECTED CARE PCN"]
["U06486","STOKES PCN",48215.737123061517,"U06486","15C","NHS BRISTOL, NORTH SOMERSET AND SOUTH GLOUCESTERSHIRE CCG",null,null,null,null,"U06486","STOKES PCN","15C","NHS BRISTOL, NORTH SOMERSET AND SOUTH GLOUCESTERSHIRE CCG",null,"U27086","BD4+ PCN"]
["U06610","DUDLEY AND NETHERTON PCN",54674.189743933544,"U06610","05C","NHS DUDLEY CCG",null,null,null,null,"U06610","DUDLEY AND NETHERTON PCN","05C","NHS DUDLEY CCG",null,"U51667","BEACON (CHARNWOOD) PCN"]
["U06816","EXETER CITY PCN",34252.358040197432,"U06816","15N","NHS DEVON CCG",null,null,null,null,"U06816","EXETER CITY PCN","15N","NHS DEVON CCG",null,"U68552","BEACON MEDICAL GROUP PCN"]
["U06871","BURGESS HILL & VILLAGES PCN",50660.573967864657,"U06871","70F","NHS WEST SUSSEX CCG",null,null,null,null,"U06871","BURGESS HILL & VILLAGES PCN","70F","NHS WEST SUSSEX CCG",null,"U36188","BECKENHAM PCN"]
["U06978","NEWHAM NORTH EAST 2 PCN",38677.47414846273,"U06978","08M","NHS NEWHAM CCG",null,null,null,null,"U06978","NEWHAM NORTH EAST 2 PCN","08M","NHS NEWHAM CCG",null,"U94317","BEDWORTH AND BULKINGTON PCN"]
["U07003","RUMWORTH PCN",30884.917126208409,"U07003","00T","NHS BOLTON CCG",null,null,null,null,"U07003","RUMWORTH PCN","00T","NHS BOLTON CCG",null,"U16878","BEESTON PCN"]
["U07032","NORTH STOCKTON PCN",50737.373808027303,"U07032","16C","NHS TEES VALLEY CCG",null,null,null,null,"U07032","NORTH STOCKTON PCN","16C","NHS TEES VALLEY CCG",null,"U64426","BELGRAVE & SPINNEY HILL PCN"]
["U07140","APL BEXLEY PCN",36269.451581947884,"U07140","72Q","NHS SOUTH EAST LONDON CCG",null,null,null,null,"U07140","APL BEXLEY PCN","72Q","NHS SOUTH EAST LONDON CCG",null,"U61321","BELPER PCN"]
["U07169","SHOREDITCH PARK PCN",55985.354897579673,"U07169","07T","NHS CITY AND HACKNEY CCG",null,null,null,null,"U07169","SHOREDITCH PARK PCN","07T","NHS CITY AND HACKNEY CCG",null,"U27924","BENFLEET PCN"]
["U07199","EAST & CENTRAL BRIGHTON 1 PCN",33221.502372927964,"U07199","09D","NHS BRIGHTON AND HOVE CCG",null,null,null,null,"U07199","EAST & CENTRAL BRIGHTON 1 PCN","09D","NHS BRIGHTON AND HOVE CCG",null,"U02669","BERKELEY VALE PCN"]
["U07392","NORTH CONNECT PCN",51564.990789781019,"U07392","08G","NHS HILLINGDON CCG",null,null,null,null,"U07392","NORTH CONNECT PCN","08G","NHS HILLINGDON CCG",null,"U44561","BESTWOOD AND SHERWOOD PCN"]
["U07449","PORTSDOWN PCN",42917.933038330499,"U07449","10R","NHS PORTSMOUTH CCG",null,null,null,null,"U07449","PORTSDOWN PCN","10R","NHS PORTSMOUTH CCG",null,"U30913","BEVERLEY PCN"]
["U07506","ARDWICK AND LONGSIGHT PCN",73212.794005756106,"U07506","14L","NHS MANCHESTER CCG",null,null,null,null,"U07506","ARDWICK AND LONGSIGHT PCN","14L","NHS MANCHESTER CCG",null,"U85348","BEXHILL PCN"]
["U07605","BARNET 1W PCN",33350.540217504284,"U07605","93C","NHS NORTH CENTRAL LONDON CCG",null,null,null,null,"U07605","BARNET 1W PCN","93C","NHS NORTH CENTRAL LONDON CCG",null,"U83604","BICESTER PCN"]
["U07607","CENTRAL SUTTON PCN",40862.108995874994,"U07607","36L","NHS SOUTH WEST LONDON CCG",null,null,null,null,"U07607","CENTRAL SUTTON PCN","36L","NHS SOUTH WEST LONDON CCG",null,"U91979","BILLERICAY PCN"]
["U07648","ASHFORD RURAL PCN",40490.813045996518,"U07648","91Q","NHS KENT AND MEDWAY CCG",null,null,null,null,"U07648","ASHFORD RURAL PCN","91Q","NHS KENT AND MEDWAY CCG",null,"U94460","BILLINGHAM & NORTON PCN"]
["U07776","CHESTER EAST PCN",37168.924140321593,"U07776","27D","NHS CHESHIRE CCG",null,null,null,null,"U07776","CHESTER EAST PCN","27D","NHS CHESHIRE CCG",null,"U99194","BIRKENHEAD PCN"]
["U07789","COVENTRY NORTH PCN",51129.290992165123,"U07789","05A","NHS COVENTRY AND RUGBY CCG",null,null,null,null,"U07789","COVENTRY NORTH PCN","05A","NHS COVENTRY AND RUGBY CCG",null,"U79433","BIRMINGHAM EAST CENTRAL PCN"]
["U07842","EAST CLEVELAND PCN",49480.451158498785,"U07842","16C","NHS TEES VALLEY CCG",null,null,null,null,"U07842","EAST CLEVELAND PCN","16C","NHS TEES VALLEY CCG",null,"U76028","BIRTLEY, OXFORD TERR & RAWLING RD PCN"]
["U07902","BRACKLEY & TOWCESTER PCN",40818.940879949587,"U07902","78H","NHS NORTHAMPTONSHIRE CCG",null,null,null,null,"U07902","BRACKLEY & TOWCESTER PCN","78H","NHS NORTHAMPTONSHIRE CCG",null,"U85067","BISHOP AUCKLAND PCN"]
["U08085","EDEN (CUMBRIA) PCN",59901.575273125702,"U08085","01H","NHS NORTH CUMBRIA CCG",null,null,null,null,"U08085","EDEN (CUMBRIA) PCN","01H","NHS NORTH CUMBRIA CCG",null,"U23742","BLACKBOURNE PCN"]
["U08086","PENDLE WEST PCN",49897.664731897952,"U08086","01A","NHS EAST LANCASHIRE CCG",null,null,null,null,"U08086","PENDLE WEST PCN","01A","NHS EAST LANCASHIRE CCG",null,"U48502","BLACKBURN EAST PCN"]
["U08229","SOLAS PCN",34472.362520256742,"U08229","71E","NHS LINCOLNSHIRE CCG",null,null,null,null,"U08229","SOLAS PCN","71E","NHS LINCOLNSHIRE CCG",null,"U69841","BLACKBURN NORTH PCN"]
["U08235","REGIS HEALTHCARE PCN",106496.24218269595,"U08235","70F","NHS WEST SUSSEX CCG",null,null,null,null,"U08235","REGIS HEALTHCARE PCN","70F","NHS WEST SUSSEX CCG",null,"U34816","BLACKBURN WEST PCN"]
["U08248","BRIGANTES PCN",49040.167907828065,"U08248","03R","NHS WAKEFIELD CCG",null,null,null,null,"U08248","BRIGANTES PCN","03R","NHS WAKEFIELD CCG",null,"U00254","BLACKHEATH AND CHARLTON PCN"]
["U08561","SOUTHAMPTON LIVING WELL PARTNERSHIP PCN",35225.391379691428,"U08561","10X","NHS SOUTHAMPTON CCG",null,null,null,null,"U08561","SOUTHAMPTON LIVING WELL PARTNERSHIP PCN","10X","NHS SOUTHAMPTON CCG",null,"U97645","BLACKPOOL CENTRAL PCN"]
["U08579","HARPENDEN PCN",37405.413626370064,"U08579","06N","NHS HERTS VALLEYS CCG",null,null,null,null,"U08579","HARPENDEN PCN","06N","NHS HERTS VALLEYS CCG",null,"U47882","BLACKPOOL CENTRAL WEST PCN"]
["U08711","GRAVESEND ALLIANCE PCN",49763.049473621417,"U08711","91Q","NHS KENT AND MEDWAY CCG",null,null,null,null,"U08711","GRAVESEND ALLIANCE PCN","91Q","NHS KENT AND MEDWAY CCG",null,"U82077","BLACKPOOL NORTH PCN"]
["U08803","TOWER HAMLETS NETWORK 6 PCN",53593.302696242899,"U08803","08V","NHS TOWER HAMLETS CCG",null,null,null,null,"U08803","TOWER HAMLETS NETWORK 6 PCN","08V","NHS TOWER HAMLETS CCG",null,"U45809","BLACKPOOL SOUTH PCN"]
["U08925","STAFFORD CENTRAL PCN",36832.912203182306,"U08925","05V","NHS STAFFORD AND SURROUNDS CCG",null,null,null,null,"U08925","STAFFORD CENTRAL PCN","05V","NHS STAFFORD AND SURROUNDS CCG",null,"U42510","BLANDFORD PCN"]
["U09057","HYNDBURN RURAL PCN",35363.858473796128,"U09057","01A","NHS EAST LANCASHIRE CCG",null,null,null,null,"U09057","HYNDBURN RURAL PCN","01A","NHS EAST LANCASHIRE CCG",null,"U52261","BLUE PCN"]
["U09071","GPNET5 PCN",34342.587258542299,"U09071","36L","NHS SOUTH WEST LONDON CCG",null,null,null,null,"U09071","GPNET5 PCN","36L","NHS SOUTH WEST LONDON CCG",null,"U25489","BLYTH PCN"]
["U09072","PRESTON PARK COMMUNITY PCN",52071.443866748828,"U09072","09D","NHS BRIGHTON AND HOVE CCG",null,null,null,null,"U09072","PRESTON PARK COMMUNITY PCN","09D","NHS BRIGHTON AND HOVE CCG",null,"U11694","BMC PASTON PCN"]
["U09081","FALMOUTH AND PENRYN PCN",45719.898184246013,"U09081","11N","NHS KERNOW CCG",null,null,null,null,"U09081","FALMOUTH AND PENRYN PCN","11N","NHS KERNOW CCG",null,"U65316","BOLTON CENTRAL PCN"]
["U09100","GREATER PRESTON PCN",80694.946913437947,"U09100","01E","NHS GREATER PRESTON CCG",null,null,null,null,"U09100","GREATER PRESTON PCN","01E","NHS GREATER PRESTON CCG",null,"U46437","BORDESLEY EAST PCN"]
["U09187","GRAND UNION PCN",65541.336086529467,"U09187","78H","NHS NORTHAMPTONSHIRE CCG",null,null,null,null,"U09187","GRAND UNION PCN","78H","NHS NORTHAMPTONSHIRE CCG",null,"U75268","BOSTON PCN"]
["U09193","TOWER HAMLETS NETWORK 8 PCN",47149.038505217148,"U09193","08V","NHS TOWER HAMLETS CCG",null,null,null,null,"U09193","TOWER HAMLETS NETWORK 8 PCN","08V","NHS TOWER HAMLETS CCG",null,"U74544","BOSWORTH PCN"]
["U09275","TAUNTON DEANE WEST PCN",30193.76770415598,"U09275","11X","NHS SOMERSET CCG",null,null,null,null,"U09275","TAUNTON DEANE WEST PCN","11X","NHS SOMERSET CCG",null,"U27515","BOURNEMOUTH EAST COLLABORATIVE PCN"]
["U09521","OADBY & WIGSTON PCN",46431.285562799421,"U09521","03W","NHS EAST LEICESTERSHIRE AND RUTLAND CCG",null,null,null,null,"U09521","OADBY & WIGSTON PCN","03W","NHS EAST LEICESTERSHIRE AND RUTLAND CCG",null,"U27366","BOURNVILLE AND NORTHFIELD PCN"]
["U09529","ROTHERHAM CENTRAL NORTH PCN",38216.765913445473,"U09529","03L","NHS ROTHERHAM CCG",null,null,null,null,"U09529","ROTHERHAM CENTRAL NORTH PCN","03L","NHS ROTHERHAM CCG",null,"U07902","BRACKLEY & TOWCESTER PCN"]
["U09531","CHILTERN HILLS PCN",43615.519340674437,"U09531","06F","NHS BEDFORDSHIRE CCG",null,null,null,null,"U09531","CHILTERN HILLS PCN","06F","NHS BEDFORDSHIRE CCG",null,"U75847","BRACKNELL AND DISTRICT PCN"]
["U09643","RUNCORN PCN",72994.84163117336,"U09643","01F","NHS HALTON CCG",null,null,null,null,"U09643","RUNCORN PCN","01F","NHS HALTON CCG",null,"U37316","BRADFORD CITY 4 PCN"]
["U09727","DENGIE & SOUTH WOODHAM FERRERS PCN",44392.169334967402,"U09727","06Q","NHS MID ESSEX CCG",null,null,null,null,"U09727","DENGIE & SOUTH WOODHAM FERRERS PCN","06Q","NHS MID ESSEX CCG",null,"U78361","BRADFORD CITY 5 PCN"]
["U09738","CAMBRIDGE NORTH VILLAGES PCN",46457.126297817864,"U09738","06H","NHS CAMBRIDGESHIRE AND PETERBOROUGH CCG",null,null,null,null,"U09738","CAMBRIDGE NORTH VILLAGES PCN","06H","NHS CAMBRIDGESHIRE AND PETERBOROUGH CCG",null,"U38216","BRADFORD CITY 6 PCN"]
["U09772","RED KITE HEALTHCARE PCN",57256.600594385105,"U09772","78H","NHS NORTHAMPTONSHIRE CCG",null,null,null,null,"U09772","RED KITE HEALTHCARE PCN","78H","NHS NORTHAMPTONSHIRE CCG",null,"U17022","BRADFORD NORTH WEST PCN"]
["U09847","NORTH COTSWOLDS PCN",35762.955703400701,"U09847","11M","NHS GLOUCESTERSHIRE CCG",null,null,null,null,"U09847","NORTH COTSWOLDS PCN","11M","NHS GLOUCESTERSHIRE CCG",null,"U82536","BRADFORD ON AVON & MELKSHAM PCN"]
["U09883","FARNWORTH & KEARSLEY PCN",38885.327096714347,"U09883","00T","NHS BOLTON CCG",null,null,null,null,"U09883","FARNWORTH & KEARSLEY PCN","00T","NHS BOLTON CCG",null,"U65044","BRADFORD SOUTH PCN"]
["U10033","NORTH EAST COASTAL PCN",32007.663857663749,{"$f":"A131","v":"U10033"},{"$f":"VLOOKUP($A131,$K$2:$N$1255,3,FALSE)","v":"06L"},{"$f":"VLOOKUP($A131,$K$2:$N$1255,4,FALSE)","v":"NHS IPSWICH AND EAST SUFFOLK CCG"},null,null,null,null,"U10033","NORTH EAST COASTAL PCN","06L","NHS IPSWICH AND EAST SUFFOLK CCG",null,"U80679","BRAINTREE PCN"]
["U10128","SHEPPEY PCN",52809.799204521449,"U10128","91Q","NHS KENT AND MEDWAY CCG",null,null,null,null,"U10128","SHEPPEY PCN","91Q","NHS KENT AND MEDWAY CCG",null,"U37388","BRAMHALL CHEADLE AND HULME PCN"]
["U10200","DARTFORD CENTRAL PCN",35991.024802008724,"U10200","91Q","NHS KENT AND MEDWAY CCG",null,null,null,null,"U10200","DARTFORD CENTRAL PCN","91Q","NHS KENT AND MEDWAY CCG",null,"U98623","BRAMLEY, WORTLEY & MIDDLETON PCN"]
["U10335","BRUNEL PCN",46858.425877042748,"U10335","10R","NHS PORTSMOUTH CCG",null,null,null,null,"U10335","BRUNEL PCN","10R","NHS PORTSMOUTH CCG",null,"U31420","BRECKLAND SURGERIES PCN"]
["U10339","HARROW COLLABORATIVE PCN",40766.95000061742,"U10339","08E","NHS HARROW CCG",null,null,null,null,"U10339","HARROW COLLABORATIVE PCN","08E","NHS HARROW CCG",null,"U79938","BREIGHTMET & LITTLE LEVER PCN"]
["U10386","WALLSEND PCN",43013.484308181258,"U10386","99C","NHS NORTH TYNESIDE CCG",null,null,null,null,"U10386","WALLSEND PCN","99C","NHS NORTH TYNESIDE CCG",null,"U89375","BRENT CENTRAL KWH PCN"]
["U10430","SUDBURY PCN",35347.373788027398,"U10430","07K","NHS WEST SUFFOLK CCG",null,null,null,null,"U10430","SUDBURY PCN","07K","NHS WEST SUFFOLK CCG",null,"U57586","BRENT NORTH KWH PCN"]
["U10439","WAKEFIELD HEALTH ALLIANCE CENTRAL PCN",52336.618913379047,"U10439","03R","NHS WAKEFIELD CCG",null,null,null,null,"U10439","WAKEFIELD HEALTH ALLIANCE CENTRAL PCN","03R","NHS WAKEFIELD CCG",null,"U77170","BRENT SOUTH KWH PCN"]
["U10555","SWAFFHAM & DOWNHAM MARKET PCN",54176.180925034205,"U10555","26A","NHS NORFOLK AND WAVENEY CCG",null,null,null,null,"U10555","SWAFFHAM & DOWNHAM MARKET PCN","26A","NHS NORFOLK AND WAVENEY CCG",null,"U78157","BRENT WEST KWH PCN"]
["U10602","WEST NORFOLK COASTAL PCN",30197.945941923532,"U10602","26A","NHS NORFOLK AND WAVENEY CCG",null,null,null,null,"U10602","WEST NORFOLK COASTAL PCN","26A","NHS NORFOLK AND WAVENEY CCG",null,"U79723","BRENTWOOD PCN"]
["U10684","CHARD, ILMINSTER & LANGPORT (CLICK) PCN",51085.128074382817,"U10684","11X","NHS SOMERSET CCG",null,null,null,null,"U10684","CHARD, ILMINSTER & LANGPORT (CLICK) PCN","11X","NHS SOMERSET CCG",null,"U56341","BRENTWORTH PCN"]
["U10730","KIRKBY PCN",59991.201486493243,"U10730","01J","NHS KNOWSLEY CCG",null,null,null,null,"U10730","KIRKBY PCN","01J","NHS KNOWSLEY CCG",null,"U84294","BRIDGE VIEW PCN"]
["U10743","KENILWORTH AND WARWICK PCN",58944.294768985157,"U10743","05R","NHS SOUTH WARWICKSHIRE CCG",null,null,null,null,"U10743","KENILWORTH AND WARWICK PCN","05R","NHS SOUTH WARWICKSHIRE CCG",null,"U34632","BRIDGEDALE SOUTH RIBBLE PCN"]
["U10748","NEWGATE MEDICAL GROUP PCN",33827.0739087037,"U10748","02Q","NHS BASSETLAW CCG",null,null,null,null,"U10748","NEWGATE MEDICAL GROUP PCN","02Q","NHS BASSETLAW CCG",null,"U81930","BRIDGWATER PCN"]
["U10791","CHORLEY AND SOUTH RIBBLE HEALTH PCN",11259.63795710546,"U10791","00X","NHS CHORLEY AND SOUTH RIBBLE CCG",null,null,null,null,"U10791","CHORLEY AND SOUTH RIBBLE HEALTH PCN","00X","NHS CHORLEY AND SOUTH RIBBLE CCG",null,"U56223","BRIDLINGTON PCN"]
["U10827","TRINITY HEALTH GROUP PCN",57151.125969825269,"U10827","03R","NHS WAKEFIELD CCG",null,null,null,null,"U10827","TRINITY HEALTH GROUP PCN","03R","NHS WAKEFIELD CCG",null,"U66146","BRIERLEY HILL PCN"]
["U10834","REDDITCH & BROMSGROVE NIGHTINGALES PCN",41029.945628704059,"U10834","18C","NHS HEREFORDSHIRE AND WORCESTERSHIRE CCG",null,null,null,null,"U10834","REDDITCH & BROMSGROVE NIGHTINGALES PCN","18C","NHS HEREFORDSHIRE AND WORCESTERSHIRE CCG",null,"U08248","BRIGANTES PCN"]
["U10847","EYNSHAM & WITNEY PCN",50045.513891706687,"U10847","10Q","NHS OXFORDSHIRE CCG",null,null,null,null,"U10847","EYNSHAM & WITNEY PCN","10Q","NHS OXFORDSHIRE CCG",null,"U55014","BRIGHTON CLUSTER 5 PCN"]
["U10995","RURAL WEST PCN",38243.160529108194,"U10995","10J","NHS NORTH HAMPSHIRE CCG",null,null,null,null,"U10995","RURAL WEST PCN","10J","NHS NORTH HAMPSHIRE CCG",null,"U22426","BRIGHTON II PCN"]
["U10998","BACHS PCN",62436.883723617982,"U10998","52R","NHS NOTTINGHAM AND NOTTINGHAMSHIRE CCG",null,null,null,null,"U10998","BACHS PCN","52R","NHS NOTTINGHAM AND NOTTINGHAMSHIRE CCG",null,"U33963","BRISTOL INNER CITY PCN"]
["U11059","LEWISHAM CARE PARTNERSHIP PCN",49518.284024034809,"U11059","72Q","NHS SOUTH EAST LONDON CCG",null,null,null,null,"U11059","LEWISHAM CARE PARTNERSHIP PCN","72Q","NHS SOUTH EAST LONDON CCG",null,"U87914","BRIXHAM AND PAIGNTON PCN"]
["U11103","YEOVIL PCN",50023.069797735981,"U11103","11X","NHS SOMERSET CCG",null,null,null,null,"U11103","YEOVIL PCN","11X","NHS SOMERSET CCG",null,"U36779","BRIXTON AND CLAPHAM PARK PCN"]
["U11112","WANSBECK PCN",50934.886490144112,"U11112","00L","NHS NORTHUMBERLAND CCG",null,null,null,null,"U11112","WANSBECK PCN","00L","NHS NORTHUMBERLAND CCG",null,"U71206","BROCKLEBANK PCN"]
["U11176","DENE AND STOUR VALLEYS PCN",31180.63648815548,"U11176","05R","NHS SOUTH WARWICKSHIRE CCG",null,null,null,null,"U11176","DENE AND STOUR VALLEYS PCN","05R","NHS SOUTH WARWICKSHIRE CCG",null,"U43112","BROMLEY CONNECT PCN"]
["U11181","WINCHESTER RURAL SOUTH PCN",53686.961570339809,"U11181","11A","NHS WEST HAMPSHIRE CCG",null,null,null,null,"U11181","WINCHESTER RURAL SOUTH PCN","11A","NHS WEST HAMPSHIRE CCG",null,"U05784","BROMPTON HEALTH PCN"]
["U11211","BARKING & DAGENHAM WEST PCN",37604.82958882329,"U11211","07L","NHS BARKING AND DAGENHAM CCG",null,null,null,null,"U11211","BARKING & DAGENHAM WEST PCN","07L","NHS BARKING AND DAGENHAM CCG",null,"U03153","BROUGHTON HEALTH ALLIANCE PCN"]
["U11269","RIBBLESDALE PCN",40746.108804639327,"U11269","01A","NHS EAST LANCASHIRE CCG",null,null,null,null,"U11269","RIBBLESDALE PCN","01A","NHS EAST LANCASHIRE CCG",null,"U38328","BROXBOURNE ALLIANCE PCN"]
["U11373","NEWHAM CENTRAL PCN",28949.45150496412,"U11373","08M","NHS NEWHAM CCG",null,null,null,null,"U11373","NEWHAM CENTRAL PCN","08M","NHS NEWHAM CCG",null,"U78462","BRUNEL HEALTH GROUP PCN1"]
["U11393","WETHERBY PCN",37284.246756857385,"U11393","15F","NHS LEEDS CCG",null,null,null,null,"U11393","WETHERBY PCN","15F","NHS LEEDS CCG",null,"U71014","BRUNEL HEALTH GROUP PCN2"]
["U11559","HARNESS SOUTH PCN",68840.977007109221,"U11559","07P","NHS BRENT CCG",null,null,null,null,"U11559","HARNESS SOUTH PCN","07P","NHS BRENT CCG",null,"U32901","BRUNEL HEALTH GROUP PCN3"]
["U11602","HORWICH NETWORK PCN",37185.973520600041,"U11602","00T","NHS BOLTON CCG",null,null,null,null,"U11602","HORWICH NETWORK PCN","00T","NHS BOLTON CCG",null,"U28791","BRUNEL HEALTH GROUP PCN4"]
["U11614","WARWICKSHIRE RURAL PCN",38323.070873138633,"U11614","05H","NHS WARWICKSHIRE NORTH CCG",null,null,null,null,"U11614","WARWICKSHIRE RURAL PCN","05H","NHS WARWICKSHIRE NORTH CCG",null,"U10335","BRUNEL PCN"]
["U11684","RAMSGATE PCN",56138.749411816912,"U11684","91Q","NHS KENT AND MEDWAY CCG",null,null,null,null,"U11684","RAMSGATE PCN","91Q","NHS KENT AND MEDWAY CCG",null,"U63129","BULWELL AND TOP VALLEY PCN"]
["U11690","RIVERVIEW HEALTH PCN",76593.979067578359,"U11690","72Q","NHS SOUTH EAST LONDON CCG",null,null,null,null,"U11690","RIVERVIEW HEALTH PCN","72Q","NHS SOUTH EAST LONDON CCG",null,"U06871","BURGESS HILL & VILLAGES PCN"]
["U11694","BMC PASTON PCN",42288.6913782958,"U11694","06H","NHS CAMBRIDGESHIRE AND PETERBOROUGH CCG",null,null,null,null,"U11694","BMC PASTON PCN","06H","NHS CAMBRIDGESHIRE AND PETERBOROUGH CCG",null,"U31228","BURMANTOFTS, HAREHILLS & RICHMOND HILL PCN"]
["U11746","SWB NEWCOMEN PCN",42634.166173674719,"U11746","05L","NHS SANDWELL AND WEST BIRMINGHAM CCG",null,null,null,null,"U11746","SWB NEWCOMEN PCN","05L","NHS SANDWELL AND WEST BIRMINGHAM CCG",null,"U31823","BURNLEY EAST PCN"]
["U11781","WEST BERKSHIRE RURAL PCN",24082.452848112458,"U11781","15A","NHS BERKSHIRE WEST CCG",null,null,null,null,"U11781","WEST BERKSHIRE RURAL PCN","15A","NHS BERKSHIRE WEST CCG",null,"U69695","BURNLEY WEST PCN"]
["U11864","WOODSLEY PCN",65133.430977845142,"U11864","15F","NHS LEEDS CCG",null,null,null,null,"U11864","WOODSLEY PCN","15F","NHS LEEDS CCG",null,"U46695","BURNTWOOD PCN"]
["U12169","NORTH BLABY PCN",58940.16497066521,"U12169","03W","NHS EAST LEICESTERSHIRE AND RUTLAND CCG",null,null,null,null,"U12169","NORTH BLABY PCN","03W","NHS EAST LEICESTERSHIRE AND RUTLAND CCG",null,"U49226","BURY PCN"]
["U12199","EAST HEREFORDSHIRE PCN",33270.664460369029,"U12199","18C","NHS HEREFORDSHIRE AND WORCESTERSHIRE CCG",null,null,null,null,"U12199","EAST HEREFORDSHIRE PCN","18C","NHS HEREFORDSHIRE AND WORCESTERSHIRE CCG",null,"U98785","BURY ST EDMONDS PCN"]
["U12200","CANNOCK NORTH PCN",42663.461228653803,"U12200","04Y","NHS CANNOCK CHASE CCG",null,null,null,null,"U12200","CANNOCK NORTH PCN","04Y","NHS CANNOCK CHASE CCG",null,"U06437","BYRON PCN"]
["U12365","SEDGEFIELD 2 PCN",66473.945334396034,"U12365","84H","NHS COUNTY DURHAM CCG",null,null,null,null,"U12365","SEDGEFIELD 2 PCN","84H","NHS COUNTY DURHAM CCG",null,"U63844","BYTES PCN"]
["U12376","HEELEY PLUS PCN",48051.561606077368,"U12376","03N","NHS SHEFFIELD CCG",null,null,null,null,"U12376","HEELEY PLUS PCN","03N","NHS SHEFFIELD CCG",null,"U53279","CALDER & RYBURN PCN"]
["U12413","EAST LINDSEY PCN",97962.423576312984,"U12413","71E","NHS LINCOLNSHIRE CCG",null,null,null,null,"U12413","EAST LINDSEY PCN","71E","NHS LINCOLNSHIRE CCG",null,"U68450","CALNE PCN"]
["U12548","REGENT HEALTH PCN",62400.724225275495,"U12548","09A","NHS CENTRAL LONDON (WESTMINSTER) CCG",null,null,null,null,"U12548","REGENT HEALTH PCN","09A","NHS CENTRAL LONDON (WESTMINSTER) CCG",null,"U88254","CAM MEDICAL PCN"]
["U12553","AEGROS HEALTH PCN",33173.009377288923,"U12553","06Q","NHS MID ESSEX CCG",null,null,null,null,"U12553","AEGROS HEALTH PCN","06Q","NHS MID ESSEX CCG",null,"U65941","CAMBRIDGE CITY 4 PCN"]
["U12563","RUSHCLIFFE PCN",127447.85168548027,"U12563","52R","NHS NOTTINGHAM AND NOTTINGHAMSHIRE CCG",null,null,null,null,"U12563","RUSHCLIFFE PCN","52R","NHS NOTTINGHAM AND NOTTINGHAMSHIRE CCG",null,"U71777","CAMBRIDGE CITY PCN"]
["U12754","SOUTH EAST OXFORD HEALTH ALLIANCE (SEOxHA) PCN",39455.946707369651,"U12754","10Q","NHS OXFORDSHIRE CCG",null,null,null,null,"U12754","SOUTH EAST OXFORD HEALTH ALLIANCE (SEOxHA) PCN","10Q","NHS OXFORDSHIRE CCG",null,"U09738","CAMBRIDGE NORTH VILLAGES PCN"]
["U12833","HEALTHIER SOUTH WIRRAL PCN",54146.823033285509,"U12833","12F","NHS WIRRAL CCG",null,null,null,null,"U12833","HEALTHIER SOUTH WIRRAL PCN","12F","NHS WIRRAL CCG",null,"U98116","CAMROSE, GILLIES & HACKWOOD PARTNERSHIP PCN"]
["U12920","HARINGEY - NORTH WEST PCN",36893.417714166535,"U12920","93C","NHS NORTH CENTRAL LONDON CCG",null,null,null,null,"U12920","HARINGEY - NORTH WEST PCN","93C","NHS NORTH CENTRAL LONDON CCG",null,"U32831","CANALSIDE HEALTH & WELLBEING NETWORK PCN"]
["U12949","SYNERGY HEALTH PCN",28838.14444676815,"U12949","52R","NHS NOTTINGHAM AND NOTTINGHAMSHIRE CCG",null,null,null,null,"U12949","SYNERGY HEALTH PCN","52R","NHS NOTTINGHAM AND NOTTINGHAMSHIRE CCG",null,"U37262","CANBURY CHURCHILL ORCHARD BERRYLANDS PCN"]
["U12951","LEEK & BIDDULPH PCN",55026.432226606878,"U12951","05G","NHS NORTH STAFFORDSHIRE CCG",null,null,null,null,"U12951","LEEK & BIDDULPH PCN","05G","NHS NORTH STAFFORDSHIRE CCG",null,"U12200","CANNOCK NORTH PCN"]
["U13032","FENS & BRECKS PCN",43572.170449836565,"U13032","26A","NHS NORFOLK AND WAVENEY CCG",null,null,null,null,"U13032","FENS & BRECKS PCN","26A","NHS NORFOLK AND WAVENEY CCG",null,"U88414","CANNOCK VILLAGES PCN"]
["U13098","MILES PLATTING NEWTON HEATH & MOSTON PCN",49058.8343692614,"U13098","14L","NHS MANCHESTER CCG",null,null,null,null,"U13098","MILES PLATTING NEWTON HEATH & MOSTON PCN","14L","NHS MANCHESTER CCG",null,"U24388","CANTAB MEDICAL PRACTICES PCN"]
["U13205","WREKIN PCN",47190.887910515485,"U13205","05X","NHS TELFORD AND WREKIN CCG",null,null,null,null,"U13205","WREKIN PCN","05X","NHS TELFORD AND WREKIN CCG",null,"U73009","CANTERBURY NORTH PCN"]
["U13245","PORTER VALLEY PCN",38353.085425618097,"U13245","03N","NHS SHEFFIELD CCG",null,null,null,null,"U13245","PORTER VALLEY PCN","03N","NHS SHEFFIELD CCG",null,"U84081","CANTERBURY SOUTH PCN"]
["U13456","YATE & FRAMPTON PCN",54735.308213011333,"U13456","15C","NHS BRISTOL, NORTH SOMERSET AND SOUTH GLOUCESTERSHIRE CCG",null,null,null,null,"U13456","YATE & FRAMPTON PCN","15C","NHS BRISTOL, NORTH SOMERSET AND SOUTH GLOUCESTERSHIRE CCG",null,"U84454","CANVEY PCN"]
["U13557","NORWICH PCN",223903.34794748982,"U13557","26A","NHS NORFOLK AND WAVENEY CCG",null,null,null,null,"U13557","NORWICH PCN","26A","NHS NORFOLK AND WAVENEY CCG",null,"U57300","CARE COLLABORATIVE (REDHILL) PCN"]
["U13655","SOUTH BIRMINGHAM ALLIANCE PCN",72735.562549148453,"U13655","15E","NHS BIRMINGHAM AND SOLIHULL CCG",null,null,null,null,"U13655","SOUTH BIRMINGHAM ALLIANCE PCN","15E","NHS BIRMINGHAM AND SOLIHULL CCG",null,"U52891","CARE ENTERPRISE PCN"]
["U13720","GATESHEAD EAST PCN",34879.112027806172,"U13720","13T","NHS NEWCASTLE GATESHEAD CCG",null,null,null,null,"U13720","GATESHEAD EAST PCN","13T","NHS NEWCASTLE GATESHEAD CCG",null,"U67045","CARE KENT PCN"]
["U13761","THE RIDGE PCN",42783.720171886263,"U13761","91Q","NHS KENT AND MEDWAY CCG",null,null,null,null,"U13761","THE RIDGE PCN","91Q","NHS KENT AND MEDWAY CCG",null,"U76772","CARILLON PCN"]
["U13771","PETERBOROUGH PARTNERSHIPS PCN",36188.102049756788,"U13771","06H","NHS CAMBRIDGESHIRE AND PETERBOROUGH CCG",null,null,null,null,"U13771","PETERBOROUGH PARTNERSHIPS PCN","06H","NHS CAMBRIDGESHIRE AND PETERBOROUGH CCG",null,"U74819","CARITAS MEDICAL PCN"]
["U13952","CENTRAL WORTHING PRACTICES PCN",40760.958208535303,"U13952","70F","NHS WEST SUSSEX CCG",null,null,null,null,"U13952","CENTRAL WORTHING PRACTICES PCN","70F","NHS WEST SUSSEX CCG",null,"U92223","CARLISLE HEALTHCARE PCN"]
["U13956","CHELTENHAM PERIPHERAL PCN",53172.247343209536,"U13956","11M","NHS GLOUCESTERSHIRE CCG",null,null,null,null,"U13956","CHELTENHAM PERIPHERAL PCN","11M","NHS GLOUCESTERSHIRE CCG",null,"U66688","CARLISLE PCN"]
["U13990","RIPON & MASHAM PCN",30006.102186697091,{"$f":"A195","v":"U13990"},{"$f":"VLOOKUP($A195,$K$2:$N$1255,3,FALSE)","v":"42D"},{"$f":"VLOOKUP($A195,$K$2:$N$1255,4,FALSE)","v":"NHS NORTH YORKSHIRE CCG"},null,null,null,null,"U13990","RIPON & MASHAM PCN","42D","NHS NORTH YORKSHIRE CCG",null,"U00639","CARLISLE RURAL PCN"]
["U14006","VICTORIA PCN",44835.482296171685,"U14006","01W","NHS STOCKPORT CCG",null,null,null,null,"U14006","VICTORIA PCN","01W","NHS STOCKPORT CCG",null,"U50573","CARNFORTH AND MILNTHORPE PCN"]
["U14045","EAST WARRINGTON PCN",32818.728062437294,"U14045","02E","NHS WARRINGTON CCG",null,null,null,null,"U14045","EAST WARRINGTON PCN","02E","NHS WARRINGTON CCG",null,"U87787","CARSHALTON PCN"]
["U14062","WEST HOVE PCN",47813.540754934242,"U14062","09D","NHS BRIGHTON AND HOVE CCG",null,null,null,null,"U14062","WEST HOVE PCN","09D","NHS BRIGHTON AND HOVE CCG",null,"U63186","CAVERSHAM PCN"]
["U14074","ASCOT PCN",31444.841206272118,"U14074","15D","NHS EAST BERKSHIRE CCG",null,null,null,null,"U14074","ASCOT PCN","15D","NHS EAST BERKSHIRE CCG",null,"U35513","CELADINE HEALTH & METROCARE PCN"]
["U14261","POOLE BAY & BOURNEMOUTH PCN",37403.741666843162,"U14261","11J","NHS DORSET CCG",null,null,null,null,"U14261","POOLE BAY & BOURNEMOUTH PCN","11J","NHS DORSET CCG",null,"U24247","CENTRAL & WEST (IW) PCN"]
["U14327","OLDHAM CENTRAL PCN",72957.833613939118,"U14327","00Y","NHS OLDHAM CCG",null,null,null,null,"U14327","OLDHAM CENTRAL PCN","00Y","NHS OLDHAM CCG",null,"U96870","CENTRAL & WEST WARRINGTON PCN"]
["U14482","WEST-HILL HEALTH PCN",62891.2126732701,"U14482","08Y","NHS WEST LONDON CCG",null,null,null,null,"U14482","WEST-HILL HEALTH PCN","08Y","NHS WEST LONDON CCG",null,"U60337","CENTRAL 1 ISLINGTON PCN"]
["U14615","EASINGTON CENTRAL PCN",41936.916035181697,"U14615","84H","NHS COUNTY DURHAM CCG",null,null,null,null,"U14615","EASINGTON CENTRAL PCN","84H","NHS COUNTY DURHAM CCG",null,"U55709","CENTRAL 2 ISLINGTON PCN"]
["U14646","SUNDERLAND WEST 1 PCN",54526.065998199127,"U14646","00P","NHS SUNDERLAND CCG",null,null,null,null,"U14646","SUNDERLAND WEST 1 PCN","00P","NHS SUNDERLAND CCG",null,"U55146","CENTRAL BASILDON PCN"]
["U14694","CENTRAL SLOUGH NETWORK PCN",47730.717924523517,"U14694","15D","NHS EAST BERKSHIRE CCG",null,null,null,null,"U14694","CENTRAL SLOUGH NETWORK PCN","15D","NHS EAST BERKSHIRE CCG",null,"U72129","CENTRAL BMW PCN"]
["U14816","HEALTHY CRAWLEY PCN",45448.222500201882,"U14816","70F","NHS WEST SUSSEX CCG",null,null,null,null,"U14816","HEALTHY CRAWLEY PCN","70F","NHS WEST SUSSEX CCG",null,"U02749","CENTRAL BOURNEMOUTH PCN"]
["U14878","NESTON & WILLASTON PCN",23018.612486594699,"U14878","27D","NHS CHESHIRE CCG",null,null,null,null,"U14878","NESTON & WILLASTON PCN","27D","NHS CHESHIRE CCG",null,"U83457","CENTRAL CAMDEN PCN"]
["U14922","CW UNITY PCN",56632.950552640803,"U14922","05A","NHS COVENTRY AND RUGBY CCG",null,null,null,null,"U14922","CW UNITY PCN","05A","NHS COVENTRY AND RUGBY CCG",null,"U34742","CENTRAL HALIFAX PCN"]
["U15138","HERTFORD AND RURALS PCN",48191.814738576621,"U15138","06K","NHS EAST AND NORTH HERTFORDSHIRE CCG",null,null,null,null,"U15138","HERTFORD AND RURALS PCN","06K","NHS EAST AND NORTH HERTFORDSHIRE CCG",null,"U52461","CENTRAL HAMPSTEAD PCN"]
["U15164","ANDOVER PCN",60836.933337775365,"U15164","11A","NHS WEST HAMPSHIRE CCG",null,null,null,null,"U15164","ANDOVER PCN","11A","NHS WEST HAMPSHIRE CCG",null,"U35980","CENTRAL LIVERPOOL PCN"]
["U15166","PHOENIX (MID ESSEX) PCN",37560.988389050901,"U15166","06Q","NHS MID ESSEX CCG",null,null,null,null,"U15166","PHOENIX (MID ESSEX) PCN","06Q","NHS MID ESSEX CCG",null,"U82404","CENTRAL MAPLE PCN"]
["U15230","ABINGDON CENTRAL PCN",32074.812917512299,"U15230","10Q","NHS OXFORDSHIRE CCG",null,null,null,null,"U15230","ABINGDON CENTRAL PCN","10Q","NHS OXFORDSHIRE CCG",null,"U55830","CENTRAL MIDDLESBROUGH PCN"]
["U15334","HARINGEY - EAST CENTRAL PCN",33363.347624879374,"U15334","93C","NHS NORTH CENTRAL LONDON CCG",null,null,null,null,"U15334","HARINGEY - EAST CENTRAL PCN","93C","NHS NORTH CENTRAL LONDON CCG",null,"U82712","CENTRAL NORTH LEEDS PCN"]
["U15435","HEATONS GROUP NETWORK PCN",58911.901714530257,"U15435","01W","NHS STOCKPORT CCG",null,null,null,null,"U15435","HEATONS GROUP NETWORK PCN","01W","NHS STOCKPORT CCG",null,"U14694","CENTRAL SLOUGH NETWORK PCN"]
["U15488","EAST BASILDON PCN",35122.680378477758,"U15488","99E","NHS BASILDON AND BRENTWOOD CCG",null,null,null,null,"U15488","EAST BASILDON PCN","99E","NHS BASILDON AND BRENTWOOD CCG",null,"U07607","CENTRAL SUTTON PCN"]
["U15552","SMALL HEATH PCN",35436.907199698537,"U15552","15E","NHS BIRMINGHAM AND SOLIHULL CCG",null,null,null,null,"U15552","SMALL HEATH PCN","15E","NHS BIRMINGHAM AND SOLIHULL CCG",null,"U89134","CENTRAL THISTLEMOOR PCN"]
["U15644","LEIGHTON BUZZARD PCN",44698.684076938502,"U15644","06F","NHS BEDFORDSHIRE CCG",null,null,null,null,"U15644","LEIGHTON BUZZARD PCN","06F","NHS BEDFORDSHIRE CCG",null,"U36652","CENTRAL WATFORD PCN"]
["U16004","ELY SOUTH PCN",35985.925931334037,"U16004","06H","NHS CAMBRIDGESHIRE AND PETERBOROUGH CCG",null,null,null,null,"U16004","ELY SOUTH PCN","06H","NHS CAMBRIDGESHIRE AND PETERBOROUGH CCG",null,"U13952","CENTRAL WORTHING PRACTICES PCN"]
["U16083","SOUTH CENTRAL EALING PCN",43898.014823031321,"U16083","07W","NHS EALING CCG",null,null,null,null,"U16083","SOUTH CENTRAL EALING PCN","07W","NHS EALING CCG",null,"U57981","CHANCTONBURY PCN"]
["U16196","FOREST OF DEAN PCN",71678.751785079541,"U16196","11M","NHS GLOUCESTERSHIRE CCG",null,null,null,null,"U16196","FOREST OF DEAN PCN","11M","NHS GLOUCESTERSHIRE CCG",null,"U88279","CHANDLER'S FORD PCN"]
["U16318","RUGELEY & GREAT HAYWOOD PCN",45377.322693626091,"U16318","04Y","NHS CANNOCK CHASE CCG",null,null,null,null,"U16318","RUGELEY & GREAT HAYWOOD PCN","04Y","NHS CANNOCK CHASE CCG",null,"U78708","CHAPELTOWN PCN"]
["U16338","NORTH & SOUTH GLOUCESTER (NSG) PCN",54032.220083940767,"U16338","11M","NHS GLOUCESTERSHIRE CCG",null,null,null,null,"U16338","NORTH & SOUTH GLOUCESTER (NSG) PCN","11M","NHS GLOUCESTERSHIRE CCG",null,"U10684","CHARD, ILMINSTER & LANGPORT (CLICK) PCN"]
["U16428","MIDDLETON PCN",55280.649471363504,"U16428","01D","NHS HEYWOOD, MIDDLETON AND ROCHDALE CCG",null,null,null,null,"U16428","MIDDLETON PCN","01D","NHS HEYWOOD, MIDDLETON AND ROCHDALE CCG",null,"U31094","CHAW (CHELFORD, HANDFORTH, ALDERLEY EDGE, WILMSLOW) PCN"]
["U16446","NORTH UTTLESFORD PCN",39399.340215007651,"U16446","07H","NHS WEST ESSEX CCG",null,null,null,null,"U16446","NORTH UTTLESFORD PCN","07H","NHS WEST ESSEX CCG",null,"U56857","CHEADLE NETWORK PCN"]
["U16464","BARNSLEY PCN",293981.60360017902,"U16464","02P","NHS BARNSLEY CCG",null,null,null,null,"U16464","BARNSLEY PCN","02P","NHS BARNSLEY CCG",null,"U92151","CHEAM AND SOUTH SUTTON PCN"]
["U16538","MERIDIAN HEALTH GROUP NEL PCN",35090.708898633529,"U16538","03H","NHS NORTH EAST LINCOLNSHIRE CCG",null,null,null,null,"U16538","MERIDIAN HEALTH GROUP NEL PCN","03H","NHS NORTH EAST LINCOLNSHIRE CCG",null,"U85748","CHEETHAM HILL & CRUMPSALL PCN"]
["U16600","4PCC (BNSSG) PCN",48207.140666795873,"U16600","15C","NHS BRISTOL, NORTH SOMERSET AND SOUTH GLOUCESTERSHIRE CCG",null,null,null,null,"U16600","4PCC (BNSSG) PCN","15C","NHS BRISTOL, NORTH SOMERSET AND SOUTH GLOUCESTERSHIRE CCG",null,"U48176","CHELMER PCN"]
["U16737","POOLE NORTH PCN",50728.96743587534,"U16737","11J","NHS DORSET CCG",null,null,null,null,"U16737","POOLE NORTH PCN","11J","NHS DORSET CCG",null,"U99739","CHELMSFORD CITY HEALTH PCN"]
["U16816","ASPEN PCN",29187.046033206101,"U16816","11M","NHS GLOUCESTERSHIRE CCG",null,null,null,null,"U16816","ASPEN PCN","11M","NHS GLOUCESTERSHIRE CCG",null,"U87998","CHELMSFORD WEST PCN"]
["U16878","BEESTON PCN",46665.111597013485,"U16878","15F","NHS LEEDS CCG",null,null,null,null,"U16878","BEESTON PCN","15F","NHS LEEDS CCG",null,"U36833","CHELTENHAM CENTRAL PCN"]
["U16896","GOSPORT WEST PCN",48733.845625821967,"U16896","10K","NHS FAREHAM AND GOSPORT CCG",null,null,null,null,"U16896","GOSPORT WEST PCN","10K","NHS FAREHAM AND GOSPORT CCG",null,"U13956","CHELTENHAM PERIPHERAL PCN"]
["U16983","A34 WEST BERKSHIRE PCN",46198.606273646299,"U16983","15A","NHS BERKSHIRE WEST CCG",null,null,null,null,"U16983","A34 WEST BERKSHIRE PCN","15A","NHS BERKSHIRE WEST CCG",null,"U47184","CHESHAM & LITTLE CHALFONT PCN"]
["U17012","SOUTH LINCOLNSHIRE RURAL PCN",77130.146920855099,"U17012","71E","NHS LINCOLNSHIRE CCG",null,null,null,null,"U17012","SOUTH LINCOLNSHIRE RURAL PCN","71E","NHS LINCOLNSHIRE CCG",null,"U19424","CHESSINGTON AND SURBITON PCN"]
["U17022","BRADFORD NORTH WEST PCN",49562.534917795063,"U17022","36J","NHS BRADFORD DISTRICT AND CRAVEN CCG",null,null,null,null,"U17022","BRADFORD NORTH WEST PCN","36J","NHS BRADFORD DISTRICT AND CRAVEN CCG",null,"U07776","CHESTER EAST PCN"]
["U17081","ROMSEY & NORTH BADDESLEY PCN",40682.805687280954,"U17081","11A","NHS WEST HAMPSHIRE CCG",null,null,null,null,"U17081","ROMSEY & NORTH BADDESLEY PCN","11A","NHS WEST HAMPSHIRE CCG",null,"U77096","CHESTER LE STREET PCN"]
["U17084","WALTHAM FOREST WALTHAMSTOW WEST PCN",40040.651216784216,"U17084","08W","NHS WALTHAM FOREST CCG",null,null,null,null,"U17084","WALTHAM FOREST WALTHAMSTOW WEST PCN","08W","NHS WALTHAM FOREST CCG",null,"U68943","CHESTER SOUTH PCN"]
["U17153","WEST MENDIP PCN",54308.249249811743,"U17153","11X","NHS SOMERSET CCG",null,null,null,null,"U17153","WEST MENDIP PCN","11X","NHS SOMERSET CCG",null,"U78207","CHESTERFIELD AND DRONFIELD PCN"]
["U17156","MILLTOWN ALLIANCE PCN",39930.563052824102,"U17156","00Y","NHS OLDHAM CCG",null,null,null,null,"U17156","MILLTOWN ALLIANCE PCN","00Y","NHS OLDHAM CCG",null,"U24558","CHICHESTER ALLIANCE OF MEDICAL PRACTICES PCN"]
["U17168","SOUTH HARDWICK PCN",75532.724873944069,"U17168","15M","NHS DERBY AND DERBYSHIRE CCG",null,null,null,null,"U17168","SOUTH HARDWICK PCN","15M","NHS DERBY AND DERBYSHIRE CCG",null,"U65582","CHILDWALL & WAVERTREE PCN"]
["U17435","APEX PCN",53273.851404767149,"U17435","71E","NHS LINCOLNSHIRE CCG",null,null,null,null,"U17435","APEX PCN","71E","NHS LINCOLNSHIRE CCG",null,"U09531","CHILTERN HILLS PCN"]
["U17794","SOUTHEND CENTRAL PCN",29639.990541969248,"U17794","99G","NHS SOUTHEND CCG",null,null,null,null,"U17794","SOUTHEND CENTRAL PCN","99G","NHS SOUTHEND CCG",null,"U93148","CHIPPENHAM, CORSHAM & BOX PCN"]
["U17834","DARTFORD MODEL PCN",29915.923085541952,"U17834","91Q","NHS KENT AND MEDWAY CCG",null,null,null,null,"U17834","DARTFORD MODEL PCN","91Q","NHS KENT AND MEDWAY CCG",null,"U42276","CHISWICK PCN"]
["U17849","NEWCASTLE EAST PCN",68399.308888876272,"U17849","13T","NHS NEWCASTLE GATESHEAD CCG",null,null,null,null,"U17849","NEWCASTLE EAST PCN","13T","NHS NEWCASTLE GATESHEAD CCG",null,"U98152","CHOC (CONGLETON & HOLMES CHAPEL) PCN"]
["U17969","FARNHAM PCN",47370.331698144626,"U17969","99M","NHS NORTH EAST HAMPSHIRE AND FARNHAM CCG",null,null,null,null,"U17969","FARNHAM PCN","99M","NHS NORTH EAST HAMPSHIRE AND FARNHAM CCG",null,"U10791","CHORLEY AND SOUTH RIBBLE HEALTH PCN"]
["U17992","BARROW AND MILLOM PCN",78328.636319145007,"U17992","01K","NHS MORECAMBE BAY CCG",null,null,null,null,"U17992","BARROW AND MILLOM PCN","01K","NHS MORECAMBE BAY CCG",null,"U01901","CHORLEY CENTRAL PCN"]
["U18020","STOURBRIDGE, WOLLESCOTE & LYE PCN",66999.141030765852,"U18020","05C","NHS DUDLEY CCG",null,null,null,null,"U18020","STOURBRIDGE, WOLLESCOTE & LYE PCN","05C","NHS DUDLEY CCG",null,"U85108","CHORLEY EAST PCN"]
["U18195","KINGSTANDING, ERDINGTON & NECHELLS PCN",49624.467714175291,"U18195","15E","NHS BIRMINGHAM AND SOLIHULL CCG",null,null,null,null,"U18195","KINGSTANDING, ERDINGTON & NECHELLS PCN","15E","NHS BIRMINGHAM AND SOLIHULL CCG",null,"U97801","CHORLEY ROADS NETWORK PCN"]
["U18267","ROSEWOOD PCN",48734.324317919498,"U18267","52R","NHS NOTTINGHAM AND NOTTINGHAMSHIRE CCG",null,null,null,null,"U18267","ROSEWOOD PCN","52R","NHS NOTTINGHAM AND NOTTINGHAMSHIRE CCG",null,"U78604","CHRISTCHURCH PCN"]
["U18315","AT MEDICS STREATHAM PCN",30478.355169544498,"U18315","72Q","NHS SOUTH EAST LONDON CCG",null,null,null,null,"U18315","AT MEDICS STREATHAM PCN","72Q","NHS SOUTH EAST LONDON CCG",null,"U01092","CISSBURY INTEGRATED CARE PCN"]
["U18398","HAMMERSMITH & FULHAM PARTNERSHIP PCN",63971.136601504506,"U18398","08C","NHS HAMMERSMITH AND FULHAM CCG",null,null,null,null,"U18398","HAMMERSMITH & FULHAM PARTNERSHIP PCN","08C","NHS HAMMERSMITH AND FULHAM CCG",null,"U90236","CITY - EAST OXFORD PCN"]
["U18888","MANOR VIEW PCN",27155.164801368181,"U18888","06N","NHS HERTS VALLEYS CCG",null,null,null,null,"U18888","MANOR VIEW PCN","06N","NHS HERTS VALLEYS CCG",null,"U60916","CITY - OX3+ PCN"]
["U18986","SOUTHAMPTON CENTRAL PCN",61020.263151930267,"U18986","10X","NHS SOUTHAMPTON CCG",null,null,null,null,"U18986","SOUTHAMPTON CENTRAL PCN","10X","NHS SOUTHAMPTON CCG",null,"U87332","CITY CARE ALLIANCE PCN"]
["U18990","WITHAM & MALDON PCN",37742.465946242351,"U18990","06Q","NHS MID ESSEX CCG",null,null,null,null,"U18990","WITHAM & MALDON PCN","06Q","NHS MID ESSEX CCG",null,"U45992","CITY CENTRE & ANCOATS PCN"]
["U19031","WELLINGBOROUGH & DISTRICT PCN",75991.55023730424,"U19031","78H","NHS NORTHAMPTONSHIRE CCG",null,null,null,null,"U19031","WELLINGBOROUGH & DISTRICT PCN","78H","NHS NORTHAMPTONSHIRE CCG",null,"U26996","CITY CENTRE AND UNIVERSITY SHU PCN"]
["U19037","NORTH SOLIHULL SOUTH PCN",44672.758065638329,"U19037","15E","NHS BIRMINGHAM AND SOLIHULL CCG",null,null,null,null,"U19037","NORTH SOLIHULL SOUTH PCN","15E","NHS BIRMINGHAM AND SOLIHULL CCG",null,"U29053","CITY SOUTH PCN"]
["U19124","PORTSMOUTH NORTH PCN",35936.005778719533,"U19124","10R","NHS PORTSMOUTH CCG",null,null,null,null,"U19124","PORTSMOUTH NORTH PCN","10R","NHS PORTSMOUTH CCG",null,"U42142","CLACTON PCN"]
["U19152","WELWYN GARDEN CITY A PCN",33403.45175796024,"U19152","06K","NHS EAST AND NORTH HERTFORDSHIRE CCG",null,null,null,null,"U19152","WELWYN GARDEN CITY A PCN","06K","NHS EAST AND NORTH HERTFORDSHIRE CCG",null,"U45098","CLAPHAM PCN"]
["U19169","CLIFTON & MEADOWS PCN",34461.894772690022,"U19169","52R","NHS NOTTINGHAM AND NOTTINGHAMSHIRE CCG",null,null,null,null,"U19169","CLIFTON & MEADOWS PCN","52R","NHS NOTTINGHAM AND NOTTINGHAMSHIRE CCG",null,"U38486","CLAYPATH & UNIVERSITY MEDICAL GROUP PCN"]
["U19348","WOLVERHAMPTON UNITY EAST PCN",33297.599132947093,{"$f":"A259","v":"U19348"},{"$f":"VLOOKUP($A259,$K$2:$N$1255,3,FALSE)","v":"06A"},{"$f":"VLOOKUP($A259,$K$2:$N$1255,4,FALSE)","v":"NHS WOLVERHAMPTON CCG"},null,null,null,null,"U19348","WOLVERHAMPTON UNITY EAST PCN","06A","NHS WOLVERHAMPTON CCG",null,"U49529","CLAYTON BESWICK & OPENSHAW PCN"]
["U19424","CHESSINGTON AND SURBITON PCN",29361.016745865782,"U19424","36L","NHS SOUTH WEST LONDON CCG",null,null,null,null,"U19424","CHESSINGTON AND SURBITON PCN","36L","NHS SOUTH WEST LONDON CCG",null,"U19169","CLIFTON & MEADOWS PCN"]
["U19471","MERIDIAN PCN",48918.54046070316,"U19471","06H","NHS CAMBRIDGESHIRE AND PETERBOROUGH CCG",null,null,null,null,"U19471","MERIDIAN PCN","06H","NHS CAMBRIDGESHIRE AND PETERBOROUGH CCG",null,"U51492","CLISSOLD PARK PCN"]
["U19803","BABYLON GP AT HAND PCN",75858.164866686697,"U19803","08C","NHS HAMMERSMITH AND FULHAM CCG",null,null,null,null,"U19803","BABYLON GP AT HAND PCN","08C","NHS HAMMERSMITH AND FULHAM CCG",null,"U88820","CLOCKTOWER PCN"]
["U19808","LANCASTER PCN",74602.497102136593,"U19808","01K","NHS MORECAMBE BAY CCG",null,null,null,null,"U19808","LANCASTER PCN","01K","NHS MORECAMBE BAY CCG",null,"U69720","COALFIELDS PCN"]
["U19923","WIMBORNE & FERNDOWN PCN",44149.671658427455,"U19923","11J","NHS DORSET CCG",null,null,null,null,"U19923","WIMBORNE & FERNDOWN PCN","11J","NHS DORSET CCG",null,"U49536","COASTAL & SOUTH DOWNS CARE PARTNERSHIP PCN"]
["U20036","HARINGEY - WEST CENTRAL PCN",26742.567244323851,"U20036","93C","NHS NORTH CENTRAL LONDON CCG",null,null,null,null,"U20036","HARINGEY - WEST CENTRAL PCN","93C","NHS NORTH CENTRAL LONDON CCG",null,"U62043","COASTAL (KERNOW) PCN"]
["U20165","COCO PCN",43499.907384013757,"U20165","92A","NHS SURREY HEARTLANDS CCG",null,null,null,null,"U20165","COCO PCN","92A","NHS SURREY HEARTLANDS CCG",null,"U56140","COASTAL (WEST HAMPSHIRE) PCN"]
["U20256","SOUTH TYNESIDE EAST PCN",57681.977948626853,"U20256","00N","NHS SOUTH TYNESIDE CCG",null,null,null,null,"U20256","SOUTH TYNESIDE EAST PCN","00N","NHS SOUTH TYNESIDE CCG",null,"U21972","COASTAL FAREHAM & GOSPORT PCN"]
["U20290","LOXFORD PCN",55344.908253416732,"U20290","08N","NHS REDBRIDGE CCG",null,null,null,null,"U20290","LOXFORD PCN","08N","NHS REDBRIDGE CCG",null,"U76572","COCKERMOUTH & MARYPORT PCN"]
["U20320","MAIDENHEAD PCN",68546.742707144309,"U20320","15D","NHS EAST BERKSHIRE CCG",null,null,null,null,"U20320","MAIDENHEAD PCN","15D","NHS EAST BERKSHIRE CCG",null,"U20165","COCO PCN"]
["U20349","NEWTON AND HAYDOCK PCN",53250.902413228483,"U20349","01X","NHS ST HELENS CCG",null,null,null,null,"U20349","NEWTON AND HAYDOCK PCN","01X","NHS ST HELENS CCG",null,"U66344","COLCHESTER MEDICAL GROUP PCN"]
["U20350","FOUNDRY PCN",58444.923022602408,"U20350","03N","NHS SHEFFIELD CCG",null,null,null,null,"U20350","FOUNDRY PCN","03N","NHS SHEFFIELD CCG",null,"U36510","COLNE UNION PCN"]
["U20410","WHAM PCN",61826.843711744397,"U20410","92A","NHS SURREY HEARTLANDS CCG",null,null,null,null,"U20410","WHAM PCN","92A","NHS SURREY HEARTLANDS CCG",null,"U84465","COLNE VALLEY PCN"]
["U20454","WOLVERHAMPTON RWT PCN",54786.106601884254,"U20454","06A","NHS WOLVERHAMPTON CCG",null,null,null,null,"U20454","WOLVERHAMPTON RWT PCN","06A","NHS WOLVERHAMPTON CCG",null,"U28266","COLTE PARTNERSHIP (ARA) PCN"]
["U20639","DELTA PCN",33506.042458150376,"U20639","06N","NHS HERTS VALLEYS CCG",null,null,null,null,"U20639","DELTA PCN","06N","NHS HERTS VALLEYS CCG",null,"U72457","COLTE PARTNERSHIP (TMR) PCN"]
["U20640","ST NEOTS PCN",39951.603698189014,"U20640","06H","NHS CAMBRIDGESHIRE AND PETERBOROUGH CCG",null,null,null,null,"U20640","ST NEOTS PCN","06H","NHS CAMBRIDGESHIRE AND PETERBOROUGH CCG",null,"U40386","COLTE PARTNERSHIP (WCW) PCN"]
["U20827","RURAL WEST OXFORDSHIRE PCN",30800.371616824381,"U20827","10Q","NHS OXFORDSHIRE CCG",null,null,null,null,"U20827","RURAL WEST OXFORDSHIRE PCN","10Q","NHS OXFORDSHIRE CCG",null,"U25587","COMMUNITY CARE HALL GREEN PCN"]
["U20871","GOSPORT CENTRAL PCN",35096.010096378297,"U20871","10K","NHS FAREHAM AND GOSPORT CCG",null,null,null,null,"U20871","GOSPORT CENTRAL PCN","10K","NHS FAREHAM AND GOSPORT CCG",null,"U84425","CONNECTHEALTH ALLIANCE PCN"]
["U20931","KIDLINGTON, ISLIP, WOODSTOCK & YARNTON (KIWY) PCN",34881.730063431227,"U20931","10Q","NHS OXFORDSHIRE CCG",null,null,null,null,"U20931","KIDLINGTON, ISLIP, WOODSTOCK & YARNTON (KIWY) PCN","10Q","NHS OXFORDSHIRE CCG",null,"U00402","CONNEXUS PCN"]
["U21059","NORTH DEVON COASTAL PCN",50486.092807821165,"U21059","15N","NHS DEVON CCG",null,null,null,null,"U21059","NORTH DEVON COASTAL PCN","15N","NHS DEVON CCG",null,"U48302","COPELAND PCN"]
["U21078","TADCASTER AND SELBY PCN",29454.877012817051,"U21078","03Q","NHS VALE OF YORK CCG",null,null,null,null,"U21078","TADCASTER AND SELBY PCN","03Q","NHS VALE OF YORK CCG",null,"U58127","COVENTRY CENTAL PCN"]
["U21222","LEWISHAM ALLIANCE PCN",51162.166054530477,"U21222","72Q","NHS SOUTH EAST LONDON CCG",null,null,null,null,"U21222","LEWISHAM ALLIANCE PCN","72Q","NHS SOUTH EAST LONDON CCG",null,"U29575","COVENTRY NAVIGATION 1 PCN"]
["U21248","TRIANGLE PCN",32443.5305534703,"U21248","78H","NHS NORTHAMPTONSHIRE CCG",null,null,null,null,"U21248","TRIANGLE PCN","78H","NHS NORTHAMPTONSHIRE CCG",null,"U07789","COVENTRY NORTH PCN"]
["U21268","HACKNEY DOWNS PCN",38619.827067457329,"U21268","07T","NHS CITY AND HACKNEY CCG",null,null,null,null,"U21268","HACKNEY DOWNS PCN","07T","NHS CITY AND HACKNEY CCG",null,"U24977","CRAMLINGTON SEATON VALLEY PCN"]
["U21317","THE HAVENS PCN",36858.650471742709,"U21317","97R","NHS EAST SUSSEX CCG",null,null,null,null,"U21317","THE HAVENS PCN","97R","NHS EAST SUSSEX CCG",null,"U51307","CRANBROOK PCN"]
["U21339","ARUN PCN",68423.892978066899,"U21339","70F","NHS WEST SUSSEX CCG",null,null,null,null,"U21339","ARUN PCN","70F","NHS WEST SUSSEX CCG",null,"U34826","CRANE VALLEY PCN"]
["U21359","SOUTH WORCS VALE OF EVESHAM HEALTH PCN",62137.569840509939,"U21359","18C","NHS HEREFORDSHIRE AND WORCESTERSHIRE CCG",null,null,null,null,"U21359","SOUTH WORCS VALE OF EVESHAM HEALTH PCN","18C","NHS HEREFORDSHIRE AND WORCESTERSHIRE CCG",null,"U52694","CRAWLEY CARE COLLABORATIVE PCN"]
["U21400","PENDLE EAST PCN",49553.488216065074,"U21400","01A","NHS EAST LANCASHIRE CCG",null,null,null,null,"U21400","PENDLE EAST PCN","01A","NHS EAST LANCASHIRE CCG",null,"U31390","CREFFIELD MEDICAL GROUP PCN"]
["U21465","SHORE MEDICAL PCN",56810.178971008128,"U21465","11J","NHS DORSET CCG",null,null,null,null,"U21465","SHORE MEDICAL PCN","11J","NHS DORSET CCG",null,"U98432","CREWE - GHR PCN"]
["U21470","HERNE BAY PCN",43698.243107847302,"U21470","91Q","NHS KENT AND MEDWAY CCG",null,null,null,null,"U21470","HERNE BAY PCN","91Q","NHS KENT AND MEDWAY CCG",null,"U97058","CROSBY & MAGHULL PARTNERSHIP PCN"]
["U21547","SALISBURY PLAIN PCN",17952.1595898743,"U21547","92G","NHS BATH AND NORTH EAST SOMERSET, SWINDON AND WILTSHIRE CCG",null,null,null,null,"U21547","SALISBURY PLAIN PCN","92G","NHS BATH AND NORTH EAST SOMERSET, SWINDON AND WILTSHIRE CCG",null,"U30213","CROSS COUNTIES PCN"]
["U21617","TYNTESFIELD PCN",31940.500953994499,"U21617","15C","NHS BRISTOL, NORTH SOMERSET AND SOUTH GLOUCESTERSHIRE CCG",null,null,null,null,"U21617","TYNTESFIELD PCN","15C","NHS BRISTOL, NORTH SOMERSET AND SOUTH GLOUCESTERSHIRE CCG",null,"U43067","CROSSGATES PCN"]
["U21757","ORMSKIRK PCN",30759.36544752882,"U21757","02G","NHS WEST LANCASHIRE CCG",null,null,null,null,"U21757","ORMSKIRK PCN","02G","NHS WEST LANCASHIRE CCG",null,"U35004","CROWN PCN"]
["U21926","HINDLEY PCN",52841.545006934684,"U21926","02H","NHS WIGAN BOROUGH CCG",null,null,null,null,"U21926","HINDLEY PCN","02H","NHS WIGAN BOROUGH CCG",null,"U60524","CROXTED PCN"]
["U21951","MENDIP PCN",38680.214555229031,"U21951","11X","NHS SOMERSET CCG",null,null,null,null,"U21951","MENDIP PCN","11X","NHS SOMERSET CCG",null,"U74798","CROYDON GP SUPER NETWORK PCN"]
["U21965","MEDWAY SOUTH PCN",47811.057532893392,"U21965","91Q","NHS KENT AND MEDWAY CCG",null,null,null,null,"U21965","MEDWAY SOUTH PCN","91Q","NHS KENT AND MEDWAY CCG",null,"U92836","CROYDON LINK PCN"]
["U21972","COASTAL FAREHAM & GOSPORT PCN",36112.303550497199,"U21972","10K","NHS FAREHAM AND GOSPORT CCG",null,null,null,null,"U21972","COASTAL FAREHAM & GOSPORT PCN","10K","NHS FAREHAM AND GOSPORT CCG",null,"U34388","CULM VALLEY PCN"]
["U22020","ST PAUL'S PCN",45611.870252571418,"U22020","11M","NHS GLOUCESTERSHIRE CCG",null,null,null,null,"U22020","ST PAUL'S PCN","11M","NHS GLOUCESTERSHIRE CCG",null,"U14922","CW UNITY PCN"]
["U22092","STRAWBERRY HEALTH PCN",41811.237222942698,"U22092","10V","NHS SOUTH EASTERN HAMPSHIRE CCG",null,null,null,null,"U22092","STRAWBERRY HEALTH PCN","10V","NHS SOUTH EASTERN HAMPSHIRE CCG",null,"U64175","CYGNET EAST RIDING PCN"]
["U22192","THE MARSH PCN",27066.542176103201,"U22192","91Q","NHS KENT AND MEDWAY CCG",null,null,null,null,"U22192","THE MARSH PCN","91Q","NHS KENT AND MEDWAY CCG",null,"U01916","CYGNET PCN"]
["U22273","SOUTH RIBBLE MEDICAL GROUP PCN",38752.889272337772,"U22273","01E","NHS GREATER PRESTON CCG",null,null,null,null,"U22273","SOUTH RIBBLE MEDICAL GROUP PCN","01E","NHS GREATER PRESTON CCG",null,"U53612","DACORUM BETA PCN"]
["U22426","BRIGHTON II PCN",39511.34641697679,"U22426","09D","NHS BRIGHTON AND HOVE CCG",null,null,null,null,"U22426","BRIGHTON II PCN","09D","NHS BRIGHTON AND HOVE CCG",null,"U24241","DANAIS PCN"]
["U22471","SMARTCARE CENTRAL PCN",37898.129136341689,"U22471","15E","NHS BIRMINGHAM AND SOLIHULL CCG",null,null,null,null,"U22471","SMARTCARE CENTRAL PCN","15E","NHS BIRMINGHAM AND SOLIHULL CCG",null,"U45102","DARLINGTON PCN"]
["U22506","MODALITY LEWISHAM PCN",38105.715664546835,"U22506","72Q","NHS SOUTH EAST LONDON CCG",null,null,null,null,"U22506","MODALITY LEWISHAM PCN","72Q","NHS SOUTH EAST LONDON CCG",null,"U10200","DARTFORD CENTRAL PCN"]
["U23362","SOUTH ONE NEWHAM PCN",51397.905465132892,"U23362","08M","NHS NEWHAM CCG",null,null,null,null,"U23362","SOUTH ONE NEWHAM PCN","08M","NHS NEWHAM CCG",null,"U17834","DARTFORD MODEL PCN"]
["U23418","LiGA WIGAN PCN",40468.035677456312,"U23418","02H","NHS WIGAN BOROUGH CCG",null,null,null,null,"U23418","LiGA WIGAN PCN","02H","NHS WIGAN BOROUGH CCG",null,"U88348","DARWEN PCN"]
["U23535","REDHILL PHOENIX PCN",26165.481633620882,"U23535","92A","NHS SURREY HEARTLANDS CCG",null,null,null,null,"U23535","REDHILL PHOENIX PCN","92A","NHS SURREY HEARTLANDS CCG",null,"U67475","DASHWOOD PCN"]
["U23546","APLOS HEALTH PCN",48042.264637504675,"U23546","72Q","NHS SOUTH EAST LONDON CCG",null,null,null,null,"U23546","APLOS HEALTH PCN","72Q","NHS SOUTH EAST LONDON CCG",null,"U79464","DAVENTRY PCN"]
["U23620","BANBURY PCN",23968.410746921199,"U23620","10Q","NHS OXFORDSHIRE CCG",null,null,null,null,"U23620","BANBURY PCN","10Q","NHS OXFORDSHIRE CCG",null,"U25255","DEAL & SANDWICH PCN"]
["U23710","SEVERN HEALTH PCN",42756.891382370442,"U23710","11M","NHS GLOUCESTERSHIRE CCG",null,null,null,null,"U23710","SEVERN HEALTH PCN","11M","NHS GLOUCESTERSHIRE CCG",null,"U20639","DELTA PCN"]
["U23714","REDCAR COASTAL PCN",63233.835738188332,"U23714","16C","NHS TEES VALLEY CCG",null,null,null,null,"U23714","REDCAR COASTAL PCN","16C","NHS TEES VALLEY CCG",null,"U11176","DENE AND STOUR VALLEYS PCN"]
["U23717","SEAFORTH & LITHERLAND PCN",44186.033737664911,"U23717","01T","NHS SOUTH SEFTON CCG",null,null,null,null,"U23717","SEAFORTH & LITHERLAND PCN","01T","NHS SOUTH SEFTON CCG",null,"U09727","DENGIE & SOUTH WOODHAM FERRERS PCN"]
["U23742","BLACKBOURNE PCN",31241.196275954208,"U23742","07K","NHS WEST SUFFOLK CCG",null,null,null,null,"U23742","BLACKBOURNE PCN","07K","NHS WEST SUFFOLK CCG",null,"U53900","DENTON PCN"]
["U23821","ARC BUCKS PCN",83768.106569891708,"U23821","14Y","NHS BUCKINGHAMSHIRE CCG",null,null,null,null,"U23821","ARC BUCKS PCN","14Y","NHS BUCKINGHAMSHIRE CCG",null,"U60509","DERBY CITY NORTH PCN"]
["U23862","STROUD COTSWOLD PCN",39739.317025144839,"U23862","11M","NHS GLOUCESTERSHIRE CCG",null,null,null,null,"U23862","STROUD COTSWOLD PCN","11M","NHS GLOUCESTERSHIRE CCG",null,"U47223","DERBY CITY SOUTH PCN"]
["U24241","DANAIS PCN",29078.762336117001,"U24241","06N","NHS HERTS VALLEYS CCG",null,null,null,null,"U24241","DANAIS PCN","06N","NHS HERTS VALLEYS CCG",null,"U63258","DERBYSHIRE DALES PCN"]
["U24247","CENTRAL & WEST (IW) PCN",51793.748434123401,"U24247","10L","NHS ISLE OF WIGHT CCG",null,null,null,null,"U24247","CENTRAL & WEST (IW) PCN","10L","NHS ISLE OF WIGHT CCG",null,"U70497","DERWENTSIDE PCN"]
["U24388","CANTAB MEDICAL PRACTICES PCN",39622.162904429424,"U24388","06H","NHS CAMBRIDGESHIRE AND PETERBOROUGH CCG",null,null,null,null,"U24388","CANTAB MEDICAL PRACTICES PCN","06H","NHS CAMBRIDGESHIRE AND PETERBOROUGH CCG",null,"U25572","DEVIZES PCN"]
["U24481","SEVENOAKS PCN",80526.398661347121,"U24481","91Q","NHS KENT AND MEDWAY CCG",null,null,null,null,"U24481","SEVENOAKS PCN","91Q","NHS KENT AND MEDWAY CCG",null,"U66858","DEWSBURY & THORNHILL PCN"]
["U24558","CHICHESTER ALLIANCE OF MEDICAL PRACTICES PCN",92463.775663650798,"U24558","70F","NHS WEST SUSSEX CCG",null,null,null,null,"U24558","CHICHESTER ALLIANCE OF MEDICAL PRACTICES PCN","70F","NHS WEST SUSSEX CCG",null,"U64705","DHG SOUTH PCN"]
["U24727","POTTERS BAR PCN",29917.976152085663,"U24727","06N","NHS HERTS VALLEYS CCG",null,null,null,null,"U24727","POTTERS BAR PCN","06N","NHS HERTS VALLEYS CCG",null,"U47655","DIDCOT PCN"]
["U24740","HOUNSLOW HEALTH PCN",79508.652166380023,"U24740","07Y","NHS HOUNSLOW CCG",null,null,null,null,"U24740","HOUNSLOW HEALTH PCN","07Y","NHS HOUNSLOW CCG",null,"U78687","DIDSBURY CHORLTON PARK & BURNAGE PCN"]
["U24883","NORTH SHROPSHIRE PCN",86279.929709875258,"U24883","05N","NHS SHROPSHIRE CCG",null,null,null,null,"U24883","NORTH SHROPSHIRE PCN","05N","NHS SHROPSHIRE CCG",null,"U56681","DOCKLANDS PCN"]
["U24977","CRAMLINGTON SEATON VALLEY PCN",33334.720084345747,{"$f":"A323","v":"U24977"},{"$f":"VLOOKUP($A323,$K$2:$N$1255,3,FALSE)","v":"00L"},{"$f":"VLOOKUP($A323,$K$2:$N$1255,4,FALSE)","v":"NHS NORTHUMBERLAND CCG"},null,null,null,null,"U24977","CRAMLINGTON SEATON VALLEY PCN","00L","NHS NORTHUMBERLAND CCG",null,"U36746","DONCASTER CENTRAL PCN"]
["U24992","HERITAGE PCN",29665.883393737629,"U24992","72Q","NHS SOUTH EAST LONDON CCG",null,null,null,null,"U24992","HERITAGE PCN","72Q","NHS SOUTH EAST LONDON CCG",null,"U54853","DONCASTER EAST PCN"]
["U25131","KILBURN PARTNERSHIP PCN",30294.968896476072,"U25131","07P","NHS BRENT CCG",null,null,null,null,"U25131","KILBURN PARTNERSHIP PCN","07P","NHS BRENT CCG",null,"U30587","DONCASTER NORTH PCN"]
["U25219","FIVE TOWNS PCN",61795.532593595075,"U25219","03R","NHS WAKEFIELD CCG",null,null,null,null,"U25219","FIVE TOWNS PCN","03R","NHS WAKEFIELD CCG",null,"U75018","DONCASTER SOUTH PCN"]
["U25240","PEOPLE'S HEALTH PARTNERSHIP PCN",56098.16386826073,"U25240","05L","NHS SANDWELL AND WEST BIRMINGHAM CCG",null,null,null,null,"U25240","PEOPLE'S HEALTH PARTNERSHIP PCN","05L","NHS SANDWELL AND WEST BIRMINGHAM CCG",null,"U77584","DORKING PCN"]
["U25251","WEYMOUTH & PORTLAND PCN",83258.772819392529,"U25251","11J","NHS DORSET CCG",null,null,null,null,"U25251","WEYMOUTH & PORTLAND PCN","11J","NHS DORSET CCG",null,"U34235","DOVER TOWN PCN"]
["U25255","DEAL & SANDWICH PCN",54267.043012155569,"U25255","91Q","NHS KENT AND MEDWAY CCG",null,null,null,null,"U25255","DEAL & SANDWICH PCN","91Q","NHS KENT AND MEDWAY CCG",null,"U72848","DRAKE MEDICAL ALLIANCE PCN"]
["U25294","MELTON, SYSTON AND VALE PCN",69795.836604364536,"U25294","03W","NHS EAST LEICESTERSHIRE AND RUTLAND CCG",null,null,null,null,"U25294","MELTON, SYSTON AND VALE PCN","03W","NHS EAST LEICESTERSHIRE AND RUTLAND CCG",null,"U06610","DUDLEY AND NETHERTON PCN"]
["U25405","YATELEY PCN",26378.3929934681,"U25405","99M","NHS NORTH EAST HAMPSHIRE AND FARNHAM CCG",null,null,null,null,"U25405","YATELEY PCN","99M","NHS NORTH EAST HAMPSHIRE AND FARNHAM CCG",null,"U96202","DURHAM DALES PCN"]
["U25489","BLYTH PCN",43094.391982201705,"U25489","00L","NHS NORTHUMBERLAND CCG",null,null,null,null,"U25489","BLYTH PCN","00L","NHS NORTHUMBERLAND CCG",null,"U53962","DURHAM EAST PCN"]
["U25520","MID FURNESS PCN",32345.074221497838,"U25520","01K","NHS MORECAMBE BAY CCG",null,null,null,null,"U25520","MID FURNESS PCN","01K","NHS MORECAMBE BAY CCG",null,"U01989","DURHAM WEST PCN"]
["U25545","WELL UP NORTH PCN",94997.957505132625,"U25545","00L","NHS NORTHUMBERLAND CCG",null,null,null,null,"U25545","WELL UP NORTH PCN","00L","NHS NORTHUMBERLAND CCG",null,"U79049","EAGLE BRIDGE PCN"]
["U25572","DEVIZES PCN",32913.822745917547,"U25572","92G","NHS BATH AND NORTH EAST SOMERSET, SWINDON AND WILTSHIRE CCG",null,null,null,null,"U25572","DEVIZES PCN","92G","NHS BATH AND NORTH EAST SOMERSET, SWINDON AND WILTSHIRE CCG",null,"U14615","EASINGTON CENTRAL PCN"]
["U25587","COMMUNITY CARE HALL GREEN PCN",42233.942767009903,"U25587","15E","NHS BIRMINGHAM AND SOLIHULL CCG",null,null,null,null,"U25587","COMMUNITY CARE HALL GREEN PCN","15E","NHS BIRMINGHAM AND SOLIHULL CCG",null,"U26864","EASINGTON DISTRICT PCN"]
["U25656","WALLASEY PCN",70961.957264998782,"U25656","12F","NHS WIRRAL CCG",null,null,null,null,"U25656","WALLASEY PCN","12F","NHS WIRRAL CCG",null,"U07199","EAST & CENTRAL BRIGHTON 1 PCN"]
["U25680","KESWICK & SOLWAY PCN",47607.003915095964,"U25680","01H","NHS NORTH CUMBRIA CCG",null,null,null,null,"U25680","KESWICK & SOLWAY PCN","01H","NHS NORTH CUMBRIA CCG",null,"U54308","EAST & CENTRAL BRIGHTON 2 PCN"]
["U25707","TONE VALLEY PCN",34086.158718868013,"U25707","11X","NHS SOMERSET CCG",null,null,null,null,"U25707","TONE VALLEY PCN","11X","NHS SOMERSET CCG",null,"U71643","EAST AND SOUTH KNOWSLEY PCN"]
["U25735","SWB CITRUS PCN",32719.804214839263,"U25735","05L","NHS SANDWELL AND WEST BIRMINGHAM CCG",null,null,null,null,"U25735","SWB CITRUS PCN","05L","NHS SANDWELL AND WEST BIRMINGHAM CCG",null,"U15488","EAST BASILDON PCN"]
["U25799","SMASH PCN",70268.243036348867,"U25799","27D","NHS CHESHIRE CCG",null,null,null,null,"U25799","SMASH PCN","27D","NHS CHESHIRE CCG",null,"U39446","EAST BEDFORD PCN"]
["U25882","EREWASH PCN",101660.9838585082,"U25882","15M","NHS DERBY AND DERBYSHIRE CCG",null,null,null,null,"U25882","EREWASH PCN","15M","NHS DERBY AND DERBYSHIRE CCG",null,"U07842","EAST CLEVELAND PCN"]
["U26059","NEW FOREST PCN",31422.679836213229,"U26059","11A","NHS WEST HAMPSHIRE CCG",null,null,null,null,"U26059","NEW FOREST PCN","11A","NHS WEST HAMPSHIRE CCG",null,"U02610","EAST CORNWALL PCN"]
["U26254","TELDOC PCN",56260.853800338598,"U26254","05X","NHS TELFORD AND WREKIN CCG",null,null,null,null,"U26254","TELDOC PCN","05X","NHS TELFORD AND WREKIN CCG",null,"U89131","EAST ELMBRIDGE PCN"]
["U26345","SE SHROPSHIRE PCN",64316.425809610431,"U26345","05N","NHS SHROPSHIRE CCG",null,null,null,null,"U26345","SE SHROPSHIRE PCN","05N","NHS SHROPSHIRE CCG",null,"U80779","EAST GRINSTEAD PCN"]
["U26715","WOLVERHAMPTON SOUTH EAST PCN",55622.825501296495,"U26715","06A","NHS WOLVERHAMPTON CCG",null,null,null,null,"U26715","WOLVERHAMPTON SOUTH EAST PCN","06A","NHS WOLVERHAMPTON CCG",null,"U87221","EAST HANTS PCN"]
["U26743","TONBRIDGE PCN",63903.343005963266,"U26743","91Q","NHS KENT AND MEDWAY CCG",null,null,null,null,"U26743","TONBRIDGE PCN","91Q","NHS KENT AND MEDWAY CCG",null,"U12199","EAST HEREFORDSHIRE PCN"]
["U26744","BARKING & DAGENHAM NEW WEST PCN",28908.802026659396,"U26744","07L","NHS BARKING AND DAGENHAM CCG",null,null,null,null,"U26744","BARKING & DAGENHAM NEW WEST PCN","07L","NHS BARKING AND DAGENHAM CCG",null,"U51488","EAST HILL & ABBEY FIELDS PCN"]
["U26788","LYTHAM ST ANNE'S & ANSDELL (LSA) PCN",59475.389099403874,"U26788","02M","NHS FYLDE AND WYRE CCG",null,null,null,null,"U26788","LYTHAM ST ANNE'S & ANSDELL (LSA) PCN","02M","NHS FYLDE AND WYRE CCG",null,"U27258","EAST IPSWICH PCN"]
["U26808","SARUM NORTH PCN",32078.405958200168,"U26808","92G","NHS BATH AND NORTH EAST SOMERSET, SWINDON AND WILTSHIRE CCG",null,null,null,null,"U26808","SARUM NORTH PCN","92G","NHS BATH AND NORTH EAST SOMERSET, SWINDON AND WILTSHIRE CCG",null,"U62545","EAST KENNET PCN"]
["U26844","MOSAIC HEALTHCARE PCN",38530.9186508559,"U26844","10J","NHS NORTH HAMPSHIRE CCG",null,null,null,null,"U26844","MOSAIC HEALTHCARE PCN","10J","NHS NORTH HAMPSHIRE CCG",null,"U12413","EAST LINDSEY PCN"]
["U26864","EASINGTON DISTRICT PCN",41735.01090231831,"U26864","84H","NHS COUNTY DURHAM CCG",null,null,null,null,"U26864","EASINGTON DISTRICT PCN","84H","NHS COUNTY DURHAM CCG",null,"U45943","EAST MERTON PCN"]
["U26878","BARRACK LANE & IVRY STREET PCN",29094.506579345802,"U26878","06L","NHS IPSWICH AND EAST SUFFOLK CCG",null,null,null,null,"U26878","BARRACK LANE & IVRY STREET PCN","06L","NHS IPSWICH AND EAST SUFFOLK CCG",null,"U64356","EAST MK PCN"]
["U26939","HORSHAM CENTRAL PCN",52128.861203450513,"U26939","70F","NHS WEST SUSSEX CCG",null,null,null,null,"U26939","HORSHAM CENTRAL PCN","70F","NHS WEST SUSSEX CCG",null,"U28255","EAST NORTHANTS PCN"]
["U26996","CITY CENTRE AND UNIVERSITY SHU PCN",46535.741195204697,"U26996","03N","NHS SHEFFIELD CCG",null,null,null,null,"U26996","CITY CENTRE AND UNIVERSITY SHU PCN","03N","NHS SHEFFIELD CCG",null,"U57641","EAST STAFFORDSHIRE PCN"]
["U26997","OXFORD CENTRAL PCN",31912.67424910103,"U26997","10Q","NHS OXFORDSHIRE CCG",null,null,null,null,"U26997","OXFORD CENTRAL PCN","10Q","NHS OXFORDSHIRE CCG",null,"U96434","EAST TWICKENHAM PCN"]
["U27026","GRAVESEND CENTRAL PCN",31209.992670087078,"U27026","91Q","NHS KENT AND MEDWAY CCG",null,null,null,null,"U27026","GRAVESEND CENTRAL PCN","91Q","NHS KENT AND MEDWAY CCG",null,"U14045","EAST WARRINGTON PCN"]
["U27032","NORTH SOLIHULL NORTH PCN",39554.950366178266,"U27032","15E","NHS BIRMINGHAM AND SOLIHULL CCG",null,null,null,null,"U27032","NORTH SOLIHULL NORTH PCN","15E","NHS BIRMINGHAM AND SOLIHULL CCG",null,"U94184","EAST WAVERLEY PCN"]
["U27086","BD4+ PCN",45444.9894959831,"U27086","36J","NHS BRADFORD DISTRICT AND CRAVEN CCG",null,null,null,null,"U27086","BD4+ PCN","36J","NHS BRADFORD DISTRICT AND CRAVEN CCG",null,"U89419","EAST WOKINGHAM PCN"]
["U27128","PHOENIX SUNRISERS PCN",45824.252186180769,"U27128","06P","NHS LUTON CCG",null,null,null,null,"U27128","PHOENIX SUNRISERS PCN","06P","NHS LUTON CCG",null,"U48056","EASTBOURNE EAST PCN"]
["U27129","EDGBASTON PCN",35114.035733183598,"U27129","15E","NHS BIRMINGHAM AND SOLIHULL CCG",null,null,null,null,"U27129","EDGBASTON PCN","15E","NHS BIRMINGHAM AND SOLIHULL CCG",null,"U40164","EASTLEIGH HEALTH PCN"]
["U27139","HARINGEY - CROUCH END PCN",32877.584788508895,"U27139","93C","NHS NORTH CENTRAL LONDON CCG",null,null,null,null,"U27139","HARINGEY - CROUCH END PCN","93C","NHS NORTH CENTRAL LONDON CCG",null,"U63233","EASTLEIGH SOUTHERN PARISHES PCN"]
["U27258","EAST IPSWICH PCN",32729.328997251658,"U27258","06L","NHS IPSWICH AND EAST SUFFOLK CCG",null,null,null,null,"U27258","EAST IPSWICH PCN","06L","NHS IPSWICH AND EAST SUFFOLK CCG",null,"U00203","ECCLES & IRLAM PCN"]
["U27349","ONE LIFE HARTLEPOOL PCN",39089.1825739423,"U27349","16C","NHS TEES VALLEY CCG",null,null,null,null,"U27349","ONE LIFE HARTLEPOOL PCN","16C","NHS TEES VALLEY CCG",null,"U08085","EDEN (CUMBRIA) PCN"]
["U27362","BARKING & DAGENHAM EAST ONE PCN",37043.222458712698,"U27362","07L","NHS BARKING AND DAGENHAM CCG",null,null,null,null,"U27362","BARKING & DAGENHAM EAST ONE PCN","07L","NHS BARKING AND DAGENHAM CCG",null,"U33695","EDEN (LUTON) PCN"]
["U27366","BOURNVILLE AND NORTHFIELD PCN",50681.814372876797,"U27366","15E","NHS BIRMINGHAM AND SOLIHULL CCG",null,null,null,null,"U27366","BOURNVILLE AND NORTHFIELD PCN","15E","NHS BIRMINGHAM AND SOLIHULL CCG",null,"U27129","EDGBASTON PCN"]
["U27515","BOURNEMOUTH EAST COLLABORATIVE PCN",50263.059896723571,"U27515","11J","NHS DORSET CCG",null,null,null,null,"U27515","BOURNEMOUTH EAST COLLABORATIVE PCN","11J","NHS DORSET CCG",null,"U39263","ELTHAM PCN"]
["U27585","SEVEN KINGS PCN",63225.987034360151,"U27585","08N","NHS REDBRIDGE CCG",null,null,null,null,"U27585","SEVEN KINGS PCN","08N","NHS REDBRIDGE CCG",null,"U30123","ELY NORTH PCN"]
["U27607","WOLVERHAMPTON TOTAL HEALTH PCN",57896.64038772753,"U27607","06A","NHS WOLVERHAMPTON CCG",null,null,null,null,"U27607","WOLVERHAMPTON TOTAL HEALTH PCN","06A","NHS WOLVERHAMPTON CCG",null,"U16004","ELY SOUTH PCN"]
["U27624","BAY PCN",60924.362728951499,"U27624","01K","NHS MORECAMBE BAY CCG",null,null,null,null,"U27624","BAY PCN","01K","NHS MORECAMBE BAY CCG",null,"U80019","ENFIELD CARE NETWORK PCN"]
["U27664","STROOD PCN",30221.837526429161,"U27664","91Q","NHS KENT AND MEDWAY CCG",null,null,null,null,"U27664","STROOD PCN","91Q","NHS KENT AND MEDWAY CCG",null,"U36687","ENFIELD SOUTH WEST PCN"]
["U27924","BENFLEET PCN",42266.660021727206,"U27924","99F","NHS CASTLE POINT AND ROCHFORD CCG",null,null,null,null,"U27924","BENFLEET PCN","99F","NHS CASTLE POINT AND ROCHFORD CCG",null,"U58312","ENFIELD UNITY PCN"]
["U27932","WEB PCN",52325.72457973683,"U27932","15N","NHS DEVON CCG",null,null,null,null,"U27932","WEB PCN","15N","NHS DEVON CCG",null,"U56676","EPPING FOREST NORTH PCN"]
["U28163","WEST 5 PCN",35137.49290846959,"U28163","03N","NHS SHEFFIELD CCG",null,null,null,null,"U28163","WEST 5 PCN","03N","NHS SHEFFIELD CCG",null,"U88407","EPSOM PCN"]
["U28174","TAUNTON CENTRAL PCN",58682.741647243325,"U28174","11X","NHS SOMERSET CCG",null,null,null,null,"U28174","TAUNTON CENTRAL PCN","11X","NHS SOMERSET CCG",null,"U25882","EREWASH PCN"]
["U28178","UNITY (BEDFORD) PCN",42397.065909235374,"U28178","06F","NHS BEDFORDSHIRE CCG",null,null,null,null,"U28178","UNITY (BEDFORD) PCN","06F","NHS BEDFORDSHIRE CCG",null,"U85257","ESTON PCN"]
["U28237","MIDDLEWOOD PCN",34465.202745922499,"U28237","27D","NHS CHESHIRE CCG",null,null,null,null,"U28237","MIDDLEWOOD PCN","27D","NHS CHESHIRE CCG",null,"U06816","EXETER CITY PCN"]
["U28255","EAST NORTHANTS PCN",75801.751148501775,"U28255","78H","NHS NORTHAMPTONSHIRE CCG",null,null,null,null,"U28255","EAST NORTHANTS PCN","78H","NHS NORTHAMPTONSHIRE CCG",null,"U76444","EXETER WEST PCN"]
["U28266","COLTE PARTNERSHIP (ARA) PCN",30393.083015422089,"U28266","06T","NHS NORTH EAST ESSEX CCG",null,null,null,null,"U28266","COLTE PARTNERSHIP (ARA) PCN","06T","NHS NORTH EAST ESSEX CCG",null,"U10847","EYNSHAM & WITNEY PCN"]
["U28348","HARTHILL EAST RIDING PCN",39824.172050897861,"U28348","02Y","NHS EAST RIDING OF YORKSHIRE CCG",null,null,null,null,"U28348","HARTHILL EAST RIDING PCN","02Y","NHS EAST RIDING OF YORKSHIRE CCG",null,"U88179","FABB (FISHPONDS, AIR BALLOON & BEECHWOOD) PCN"]
["U28378","TOWNSHIPS 2 PCN",31881.606883174369,"U28378","03N","NHS SHEFFIELD CCG",null,null,null,null,"U28378","TOWNSHIPS 2 PCN","03N","NHS SHEFFIELD CCG",null,"U03653","FAIRLOP PCN"]
["U28405","HIGH PEAK & BUXTON PCN",63170.248447492311,"U28405","15M","NHS DERBY AND DERBYSHIRE CCG",null,null,null,null,"U28405","HIGH PEAK & BUXTON PCN","15M","NHS DERBY AND DERBYSHIRE CCG",null,"U09081","FALMOUTH AND PENRYN PCN"]
["U28474","THE BINGLEY BUBBLE PCN",45788.7435969648,"U28474","36J","NHS BRADFORD DISTRICT AND CRAVEN CCG",null,null,null,null,"U28474","THE BINGLEY BUBBLE PCN","36J","NHS BRADFORD DISTRICT AND CRAVEN CCG",null,"U30563","FAREHAM & PORTCHESTER PCN"]
["U28765","ASOP PCN",39397.399193899371,"U28765","07G","NHS THURROCK CCG",null,null,null,null,"U28765","ASOP PCN","07G","NHS THURROCK CCG",null,"U90174","FARNBOROUGH PCN"]
["U28791","BRUNEL HEALTH GROUP PCN4",35754.070554154503,"U28791","92G","NHS BATH AND NORTH EAST SOMERSET, SWINDON AND WILTSHIRE CCG",null,null,null,null,"U28791","BRUNEL HEALTH GROUP PCN4","92G","NHS BATH AND NORTH EAST SOMERSET, SWINDON AND WILTSHIRE CCG",null,"U17969","FARNHAM PCN"]
["U29000","WARRINGTON CENTRAL EAST PCN",39196.714616403857,"U29000","02E","NHS WARRINGTON CCG",null,null,null,null,"U29000","WARRINGTON CENTRAL EAST PCN","02E","NHS WARRINGTON CCG",null,"U09883","FARNWORTH & KEARSLEY PCN"]
["U29053","CITY SOUTH PCN",36562.552745378896,{"$f":"A387","v":"U29053"},{"$f":"VLOOKUP($A387,$K$2:$N$1255,3,FALSE)","v":"52R"},{"$f":"VLOOKUP($A387,$K$2:$N$1255,4,FALSE)","v":"NHS NOTTINGHAM AND NOTTINGHAMSHIRE CCG"},null,null,null,null,"U29053","CITY SOUTH PCN","52R","NHS NOTTINGHAM AND NOTTINGHAMSHIRE CCG",null,"U01315","FAVERSHAM PCN"]
["U29246","TOTTON PCN",34700.342579875898,"U29246","11A","NHS WEST HAMPSHIRE CCG",null,null,null,null,"U29246","TOTTON PCN","11A","NHS WEST HAMPSHIRE CCG",null,"U03892","FELIXSTOWE PCN"]
["U29424","HAVERING CREST PCN",41422.767765802164,"U29424","08F","NHS HAVERING CCG",null,null,null,null,"U29424","HAVERING CREST PCN","08F","NHS HAVERING CCG",null,"U98004","FELTHAM & BEDFONNT PCN"]
["U29575","COVENTRY NAVIGATION 1 PCN",63951.24298019828,"U29575","05A","NHS COVENTRY AND RUGBY CCG",null,null,null,null,"U29575","COVENTRY NAVIGATION 1 PCN","05A","NHS COVENTRY AND RUGBY CCG",null,"U66904","FENLAND PCN"]
["U29951","NANTWICH & RURAL PCN",35930.735980741869,"U29951","27D","NHS CHESHIRE CCG",null,null,null,null,"U29951","NANTWICH & RURAL PCN","27D","NHS CHESHIRE CCG",null,"U13032","FENS & BRECKS PCN"]
["U30079","BARNET 6 PCN",43612.699479609953,"U30079","93C","NHS NORTH CENTRAL LONDON CCG",null,null,null,null,"U30079","BARNET 6 PCN","93C","NHS NORTH CENTRAL LONDON CCG",null,"U57009","FILEY AND SCARBOROUGH PCN"]
["U30123","ELY NORTH PCN",38095.692809487569,"U30123","06H","NHS CAMBRIDGESHIRE AND PETERBOROUGH CCG",null,null,null,null,"U30123","ELY NORTH PCN","06H","NHS CAMBRIDGESHIRE AND PETERBOROUGH CCG",null,"U58435","FIRST COASTAL PCN"]
["U30170","TABA WIGAN PCN",54900.931489350478,"U30170","02H","NHS WIGAN BOROUGH CCG",null,null,null,null,"U30170","TABA WIGAN PCN","02H","NHS WIGAN BOROUGH CCG",null,"U77447","FIVE ELMS PCN"]
["U30213","CROSS COUNTIES PCN",41162.51941680548,"U30213","03W","NHS EAST LEICESTERSHIRE AND RUTLAND CCG",null,null,null,null,"U30213","CROSS COUNTIES PCN","03W","NHS EAST LEICESTERSHIRE AND RUTLAND CCG",null,"U98513","FIVE LANE ENDS PCN"]
["U30335","RAYLEIGH AND DISTRICT PCN",52754.821195125172,"U30335","99F","NHS CASTLE POINT AND ROCHFORD CCG",null,null,null,null,"U30335","RAYLEIGH AND DISTRICT PCN","99F","NHS CASTLE POINT AND ROCHFORD CCG",null,"U25219","FIVE TOWNS PCN"]
["U30526","MAYDAY SOUTH PCN",32019.50335750221,"U30526","36L","NHS SOUTH WEST LONDON CCG",null,null,null,null,"U30526","MAYDAY SOUTH PCN","36L","NHS SOUTH WEST LONDON CCG",null,"U41041","FIVEWAYS PCN"]
["U30563","FAREHAM & PORTCHESTER PCN",44380.970685761611,"U30563","10K","NHS FAREHAM AND GOSPORT CCG",null,null,null,null,"U30563","FAREHAM & PORTCHESTER PCN","10K","NHS FAREHAM AND GOSPORT CCG",null,"U42671","FLEET PCN"]
["U30587","DONCASTER NORTH PCN",82702.575856122799,"U30587","02X","NHS DONCASTER CCG",null,null,null,null,"U30587","DONCASTER NORTH PCN","02X","NHS DONCASTER CCG",null,"U74229","FLEETWOOD PCN"]
["U30913","BEVERLEY PCN",50690.707118809878,"U30913","02Y","NHS EAST RIDING OF YORKSHIRE CCG",null,null,null,null,"U30913","BEVERLEY PCN","02Y","NHS EAST RIDING OF YORKSHIRE CCG",null,"U80502","FOLKESTONE HYTHE & RURAL PCN"]
["U31094","CHAW (CHELFORD, HANDFORTH, ALDERLEY EDGE, WILMSLOW) PCN",45699.253984298921,"U31094","27D","NHS CHESHIRE CCG",null,null,null,null,"U31094","CHAW (CHELFORD, HANDFORTH, ALDERLEY EDGE, WILMSLOW) PCN","27D","NHS CHESHIRE CCG",null,"U89162","FOREST HEATH PCN"]
["U31169","SEVEN HILLS PCN",32184.575538490521,"U31169","03N","NHS SHEFFIELD CCG",null,null,null,null,"U31169","SEVEN HILLS PCN","03N","NHS SHEFFIELD CCG",null,"U16196","FOREST OF DEAN PCN"]
["U31228","BURMANTOFTS, HAREHILLS & RICHMOND HILL PCN",71283.661636732897,"U31228","15F","NHS LEEDS CCG",null,null,null,null,"U31228","BURMANTOFTS, HAREHILLS & RICHMOND HILL PCN","15F","NHS LEEDS CCG",null,"U82880","FORMBY PCN"]
["U31269","WEST LEEDS PCN",67538.613320983539,"U31269","15F","NHS LEEDS CCG",null,null,null,null,"U31269","WEST LEEDS PCN","15F","NHS LEEDS CCG",null,"U98167","FOSS (FIRECLAY & OLD SCHOOL SURGERY) PCN"]
["U31305","SHAPE PCN",25808.124994607948,"U31305","15D","NHS EAST BERKSHIRE CCG",null,null,null,null,"U31305","SHAPE PCN","15D","NHS EAST BERKSHIRE CCG",null,"U95499","FOSSEWAY PCN"]
["U31313","SOUTH WARRINGTON PCN",49209.152464533108,"U31313","02E","NHS WARRINGTON CCG",null,null,null,null,"U31313","SOUTH WARRINGTON PCN","02E","NHS WARRINGTON CCG",null,"U37341","FOUNDRY HEALTHCARE LEWES PCN"]
["U31390","CREFFIELD MEDICAL GROUP PCN",43656.853651902973,"U31390","06T","NHS NORTH EAST ESSEX CCG",null,null,null,null,"U31390","CREFFIELD MEDICAL GROUP PCN","06T","NHS NORTH EAST ESSEX CCG",null,"U20350","FOUNDRY PCN"]
["U31420","BRECKLAND SURGERIES PCN",41616.386943819169,"U31420","26A","NHS NORFOLK AND WAVENEY CCG",null,null,null,null,"U31420","BRECKLAND SURGERIES PCN","26A","NHS NORFOLK AND WAVENEY CCG",null,"U42807","FOUNTAINS PCN"]
["U31504","ROSSENDALE WEST PCN",46072.683294685201,"U31504","01A","NHS EAST LANCASHIRE CCG",null,null,null,null,"U31504","ROSSENDALE WEST PCN","01A","NHS EAST LANCASHIRE CCG",null,"U52802","FOUR COUNTIES PCN"]
["U31538","ROSEBANK PCN",23381.049725738601,"U31538","11M","NHS GLOUCESTERSHIRE CCG",null,null,null,null,"U31538","ROSEBANK PCN","11M","NHS GLOUCESTERSHIRE CCG",null,"U36776","FRESHNEY PELHAM NEL PCN"]
["U31548","HEALTH VISION PARTNERSHIP PCN",52036.198043233664,"U31548","05L","NHS SANDWELL AND WEST BIRMINGHAM CCG",null,null,null,null,"U31548","HEALTH VISION PARTNERSHIP PCN","05L","NHS SANDWELL AND WEST BIRMINGHAM CCG",null,"U50197","FROGNAL PCN"]
["U31619","TEESDALE PCN",28454.836199280504,"U31619","84H","NHS COUNTY DURHAM CCG",null,null,null,null,"U31619","TEESDALE PCN","84H","NHS COUNTY DURHAM CCG",null,"U84175","FROME PCN"]
["U31823","BURNLEY EAST PCN",55873.935398464811,"U31823","01A","NHS EAST LANCASHIRE CCG",null,null,null,null,"U31823","BURNLEY EAST PCN","01A","NHS EAST LANCASHIRE CCG",null,"U04973","GARDEN CITY PCN"]
["U31847","WAKEFIELD HEALTH ALLIANCE SOUTH PCN",75615.838965209026,"U31847","03R","NHS WAKEFIELD CCG",null,null,null,null,"U31847","WAKEFIELD HEALTH ALLIANCE SOUTH PCN","03R","NHS WAKEFIELD CCG",null,"U91254","GATESHEAD CENTRAL SOUTH PCN"]
["U31922","NEXUS MK PCN",52474.309418556804,"U31922","04F","NHS MILTON KEYNES CCG",null,null,null,null,"U31922","NEXUS MK PCN","04F","NHS MILTON KEYNES CCG",null,"U13720","GATESHEAD EAST PCN"]
["U31970","TRURO PCN",34742.384945713799,"U31970","11N","NHS KERNOW CCG",null,null,null,null,"U31970","TRURO PCN","11N","NHS KERNOW CCG",null,"U33691","GATESHEAD INNER WEST PCN"]
["U32001","SEVERNVALE PCN",32146.89191645613,"U32001","15C","NHS BRISTOL, NORTH SOMERSET AND SOUTH GLOUCESTERSHIRE CCG",null,null,null,null,"U32001","SEVERNVALE PCN","15C","NHS BRISTOL, NORTH SOMERSET AND SOUTH GLOUCESTERSHIRE CCG",null,"U41930","GATESHEAD OUTER WEST PCN"]
["U32116","SWB YOUR HEALTH PARTNERSHIP PCN",54916.026633069443,"U32116","05L","NHS SANDWELL AND WEST BIRMINGHAM CCG",null,null,null,null,"U32116","SWB YOUR HEALTH PARTNERSHIP PCN","05L","NHS SANDWELL AND WEST BIRMINGHAM CCG",null,"U76908","GILLINGHAM SOUTH PCN"]
["U32323","MANSFIELD NORTH PCN",63507.936510750063,"U32323","52R","NHS NOTTINGHAM AND NOTTINGHAMSHIRE CCG",null,null,null,null,"U32323","MANSFIELD NORTH PCN","52R","NHS NOTTINGHAM AND NOTTINGHAMSHIRE CCG",null,"U60978","GLOSSOP PCN"]
["U32349","SOUTH WORCS WORCESTER CITY GP PCN",117063.78268229929,"U32349","18C","NHS HEREFORDSHIRE AND WORCESTERSHIRE CCG",null,null,null,null,"U32349","SOUTH WORCS WORCESTER CITY GP PCN","18C","NHS HEREFORDSHIRE AND WORCESTERSHIRE CCG",null,"U53179","GLOUCESTER INNER CITY PCN"]
["U32372","OUTER EXETER PCN",44154.441299881277,"U32372","15N","NHS DEVON CCG",null,null,null,null,"U32372","OUTER EXETER PCN","15N","NHS DEVON CCG",null,"U49145","GO WEST PCN"]
["U32760","PURBECK PCN",37780.749494540178,"U32760","11J","NHS DORSET CCG",null,null,null,null,"U32760","PURBECK PCN","11J","NHS DORSET CCG",null,"U46447","GOLDSTONE PCN"]
["U32828","SHEEN & BARNES PCN",46779.681449446078,"U32828","36L","NHS SOUTH WEST LONDON CCG",null,null,null,null,"U32828","SHEEN & BARNES PCN","36L","NHS SOUTH WEST LONDON CCG",null,"U78490","GORDANO & MENDIP PCN"]
["U32831","CANALSIDE HEALTH & WELLBEING NETWORK PCN",30302.346174472092,"U32831","01D","NHS HEYWOOD, MIDDLETON AND ROCHDALE CCG",null,null,null,null,"U32831","CANALSIDE HEALTH & WELLBEING NETWORK PCN","01D","NHS HEYWOOD, MIDDLETON AND ROCHDALE CCG",null,"U36042","GORLESTON PCN"]
["U32901","BRUNEL HEALTH GROUP PCN3",42517.461300205418,"U32901","92G","NHS BATH AND NORTH EAST SOMERSET, SWINDON AND WILTSHIRE CCG",null,null,null,null,"U32901","BRUNEL HEALTH GROUP PCN3","92G","NHS BATH AND NORTH EAST SOMERSET, SWINDON AND WILTSHIRE CCG",null,"U34667","GORTON AND LEVENSHULME PCN"]
["U32995","WHITSTABLE PCN",41867.724462357903,"U32995","91Q","NHS KENT AND MEDWAY CCG",null,null,null,null,"U32995","WHITSTABLE PCN","91Q","NHS KENT AND MEDWAY CCG",null,"U82305","GOSK PCN"]
["U33024","ONE THORNTON HEATH PCN",51406.254196585483,"U33024","36L","NHS SOUTH WEST LONDON CCG",null,null,null,null,"U33024","ONE THORNTON HEATH PCN","36L","NHS SOUTH WEST LONDON CCG",null,"U20871","GOSPORT CENTRAL PCN"]
["U33065","HARNESS NORTH PCN",66369.527851022751,"U33065","07P","NHS BRENT CCG",null,null,null,null,"U33065","HARNESS NORTH PCN","07P","NHS BRENT CCG",null,"U16896","GOSPORT WEST PCN"]
["U33098","NUNEATON SOUTH PCN",40011.015116186143,"U33098","05H","NHS WARWICKSHIRE NORTH CCG",null,null,null,null,"U33098","NUNEATON SOUTH PCN","05H","NHS WARWICKSHIRE NORTH CCG",null,"U33954","GP CONNECT PCN"]
["U33192","SOAR VALLEY PCN",46233.260723432089,"U33192","04V","NHS WEST LEICESTERSHIRE CCG",null,null,null,null,"U33192","SOAR VALLEY PCN","04V","NHS WEST LEICESTERSHIRE CCG",null,"U91476","GPA1 PCN"]
["U33392","BARNET 2 PCN",55505.798694700337,"U33392","93C","NHS NORTH CENTRAL LONDON CCG",null,null,null,null,"U33392","BARNET 2 PCN","93C","NHS NORTH CENTRAL LONDON CCG",null,"U09071","GPNET5 PCN"]
["U33451","SOUTH CRAWLEY PCN",36290.833184605399,"U33451","70F","NHS WEST SUSSEX CCG",null,null,null,null,"U33451","SOUTH CRAWLEY PCN","70F","NHS WEST SUSSEX CCG",null,"U67607","GPS HEALTHCARE PCN"]
["U33522","HARLOW SOUTH PCN",39584.838638618639,"U33522","07H","NHS WEST ESSEX CCG",null,null,null,null,"U33522","HARLOW SOUTH PCN","07H","NHS WEST ESSEX CCG",null,"U78272","GRAFTON MEDICAL PARTNERS PCN"]
["U33566","GUILDFORD EAST PCN",54381.098669204221,"U33566","92A","NHS SURREY HEARTLANDS CCG",null,null,null,null,"U33566","GUILDFORD EAST PCN","92A","NHS SURREY HEARTLANDS CCG",null,"U09187","GRAND UNION PCN"]
["U33593","RURAL NORTH CHICHESTER PCN",41428.941789082906,"U33593","70F","NHS WEST SUSSEX CCG",null,null,null,null,"U33593","RURAL NORTH CHICHESTER PCN","70F","NHS WEST SUSSEX CCG",null,"U59570","GRANGE AND LAKES PCN"]
["U33609","NGP PCN",60579.355204684543,"U33609","07W","NHS EALING CCG",null,null,null,null,"U33609","NGP PCN","07W","NHS EALING CCG",null,"U83524","GRANTA PCN"]
["U33691","GATESHEAD INNER WEST PCN",49645.662616658461,"U33691","13T","NHS NEWCASTLE GATESHEAD CCG",null,null,null,null,"U33691","GATESHEAD INNER WEST PCN","13T","NHS NEWCASTLE GATESHEAD CCG",null,"U71716","GRANTHAM AND RURAL PCN"]
["U33695","EDEN (LUTON) PCN",35684.862320766653,"U33695","06P","NHS LUTON CCG",null,null,null,null,"U33695","EDEN (LUTON) PCN","06P","NHS LUTON CCG",null,"U08711","GRAVESEND ALLIANCE PCN"]
["U33954","GP CONNECT PCN",73456.493003026306,"U33954","05A","NHS COVENTRY AND RUGBY CCG",null,null,null,null,"U33954","GP CONNECT PCN","05A","NHS COVENTRY AND RUGBY CCG",null,"U27026","GRAVESEND CENTRAL PCN"]
["U33963","BRISTOL INNER CITY PCN",83539.556127234711,"U33963","15C","NHS BRISTOL, NORTH SOMERSET AND SOUTH GLOUCESTERSHIRE CCG",null,null,null,null,"U33963","BRISTOL INNER CITY PCN","15C","NHS BRISTOL, NORTH SOMERSET AND SOUTH GLOUCESTERSHIRE CCG",null,"U68127","GRAYS PCN"]
["U34072","HARLOW NORTH PCN",55077.796620598456,"U34072","07H","NHS WEST ESSEX CCG",null,null,null,null,"U34072","HARLOW NORTH PCN","07H","NHS WEST ESSEX CCG",null,"U80710","GREAT WEST ROAD PCN"]
["U34146","JESMOND - LOWER GOSFORTH PCN",32512.302594539949,"U34146","13T","NHS NEWCASTLE GATESHEAD CCG",null,null,null,null,"U34146","JESMOND - LOWER GOSFORTH PCN","13T","NHS NEWCASTLE GATESHEAD CCG",null,"U34807","GREAT WESTERN HEALTH CARE PCN"]
["U34184","WHITEWATER LODDON PCN",36858.998492632963,"U34184","10J","NHS NORTH HAMPSHIRE CCG",null,null,null,null,"U34184","WHITEWATER LODDON PCN","10J","NHS NORTH HAMPSHIRE CCG",null,"U72706","GREAT YARMOUTH & NORTHERN VILLAGES PCN"]
["U34188","NEWHAM NORTH EAST 1 PCN",29004.914084023003,"U34188","08M","NHS NEWHAM CCG",null,null,null,null,"U34188","NEWHAM NORTH EAST 1 PCN","08M","NHS NEWHAM CCG",null,"U53999","GREATER DERBY PCN"]
["U34230","NEWTON WEST PCN",37979.056755642705,"U34230","15N","NHS DEVON CCG",null,null,null,null,"U34230","NEWTON WEST PCN","15N","NHS DEVON CCG",null,"U02671","GREATER MIDDLESBROUGH PCN"]
["U34235","DOVER TOWN PCN",43910.74543278171,"U34235","91Q","NHS KENT AND MEDWAY CCG",null,null,null,null,"U34235","DOVER TOWN PCN","91Q","NHS KENT AND MEDWAY CCG",null,"U09100","GREATER PRESTON PCN"]
["U34388","CULM VALLEY PCN",36819.956059333083,"U34388","15N","NHS DEVON CCG",null,null,null,null,"U34388","CULM VALLEY PCN","15N","NHS DEVON CCG",null,"U36842","GREATER WEALDEN PCN"]
["U34538","ATTENBOROUGH & TUDOR PCN",29108.970765682203,"U34538","06N","NHS HERTS VALLEYS CCG",null,null,null,null,"U34538","ATTENBOROUGH & TUDOR PCN","06N","NHS HERTS VALLEYS CCG",null,"U45703","GREENWELL PCN"]
["U34632","BRIDGEDALE SOUTH RIBBLE PCN",30237.90407976343,"U34632","00X","NHS CHORLEY AND SOUTH RIBBLE CCG",null,null,null,null,"U34632","BRIDGEDALE SOUTH RIBBLE PCN","00X","NHS CHORLEY AND SOUTH RIBBLE CCG",null,"U46593","GREENWICH WEST PCN"]
["U34667","GORTON AND LEVENSHULME PCN",57508.26484613432,"U34667","14L","NHS MANCHESTER CCG",null,null,null,null,"U34667","GORTON AND LEVENSHULME PCN","14L","NHS MANCHESTER CCG",null,"U06092","GREENWOOD PCN"]
["U34742","CENTRAL HALIFAX PCN",37841.942773455579,{"$f":"A451","v":"U34742"},{"$f":"VLOOKUP($A451,$K$2:$N$1255,3,FALSE)","v":"02T"},{"$f":"VLOOKUP($A451,$K$2:$N$1255,4,FALSE)","v":"NHS CALDERDALE CCG"},null,null,null,null,"U34742","CENTRAL HALIFAX PCN","02T","NHS CALDERDALE CCG",null,"U33566","GUILDFORD EAST PCN"]
["U34807","GREAT WESTERN HEALTH CARE PCN",27671.830541428499,"U34807","92G","NHS BATH AND NORTH EAST SOMERSET, SWINDON AND WILTSHIRE CCG",null,null,null,null,"U34807","GREAT WESTERN HEALTH CARE PCN","92G","NHS BATH AND NORTH EAST SOMERSET, SWINDON AND WILTSHIRE CCG",null,"U52875","H IS FOR HEALTH PCN"]
["U34816","BLACKBURN WEST PCN",49117.654051106627,"U34816","00Q","NHS BLACKBURN WITH DARWEN CCG",null,null,null,null,"U34816","BLACKBURN WEST PCN","00Q","NHS BLACKBURN WITH DARWEN CCG",null,"U21268","HACKNEY DOWNS PCN"]
["U34826","CRANE VALLEY PCN",30720.26271613923,"U34826","11J","NHS DORSET CCG",null,null,null,null,"U34826","CRANE VALLEY PCN","11J","NHS DORSET CCG",null,"U05451","HACKNEY MARSHES PCN"]
["U35004","CROWN PCN",42171.059583007751,"U35004","04F","NHS MILTON KEYNES CCG",null,null,null,null,"U35004","CROWN PCN","04F","NHS MILTON KEYNES CCG",null,"U76977","HADWEN QUEDGELEY PCN"]
["U35438","BARNET 4 PCN",42871.356816656407,"U35438","93C","NHS NORTH CENTRAL LONDON CCG",null,null,null,null,"U35438","BARNET 4 PCN","93C","NHS NORTH CENTRAL LONDON CCG",null,"U94996","HAILSHAM PCN"]
["U35513","CELADINE HEALTH & METROCARE PCN",55958.968390504291,"U35513","08G","NHS HILLINGDON CCG",null,null,null,null,"U35513","CELADINE HEALTH & METROCARE PCN","08G","NHS HILLINGDON CCG",null,"U55441","HALESOWEN PCN"]
["U35724","MEIR PCN",37435.162079731643,"U35724","05W","NHS STOKE ON TRENT CCG",null,null,null,null,"U35724","MEIR PCN","05W","NHS STOKE ON TRENT CCG",null,"U80470","HAMBLETON NORTH PCN"]
["U35821","KETTERING & SOUTH WEST RURAL PCN",30652.091554324332,"U35821","78H","NHS NORTHAMPTONSHIRE CCG",null,null,null,null,"U35821","KETTERING & SOUTH WEST RURAL PCN","78H","NHS NORTHAMPTONSHIRE CCG",null,"U57955","HAMBLETON SOUTH PCN"]
["U35939","KENDAL PCN",37631.287082558294,"U35939","01K","NHS MORECAMBE BAY CCG",null,null,null,null,"U35939","KENDAL PCN","01K","NHS MORECAMBE BAY CCG",null,"U55717","HAMMERSMITH & FULHAM CENTRAL PCN"]
["U35980","CENTRAL LIVERPOOL PCN",110362.67850876445,"U35980","99A","NHS LIVERPOOL CCG",null,null,null,null,"U35980","CENTRAL LIVERPOOL PCN","99A","NHS LIVERPOOL CCG",null,"U18398","HAMMERSMITH & FULHAM PARTNERSHIP PCN"]
["U35987","HINCKLEY CENTRAL PCN",37420.756583997965,"U35987","04V","NHS WEST LEICESTERSHIRE CCG",null,null,null,null,"U35987","HINCKLEY CENTRAL PCN","04V","NHS WEST LEICESTERSHIRE CCG",null,"U84150","HAMPTON PCN"]
["U36042","GORLESTON PCN",44499.8933720817,"U36042","26A","NHS NORFOLK AND WAVENEY CCG",null,null,null,null,"U36042","GORLESTON PCN","26A","NHS NORFOLK AND WAVENEY CCG",null,"U05734","HANLEY, BUCKNALL & BENTILEE PCN"]
["U36134","NEWCASTLE CENTRAL PCN",42264.504917314669,"U36134","05G","NHS NORTH STAFFORDSHIRE CCG",null,null,null,null,"U36134","NEWCASTLE CENTRAL PCN","05G","NHS NORTH STAFFORDSHIRE CCG",null,"U46454","HARBORNE PCN"]
["U36188","BECKENHAM PCN",53333.8401574085,"U36188","72Q","NHS SOUTH EAST LONDON CCG",null,null,null,null,"U36188","BECKENHAM PCN","72Q","NHS SOUTH EAST LONDON CCG",null,"U27139","HARINGEY - CROUCH END PCN"]
["U36299","ALPHA PCN",51560.591956203301,"U36299","06N","NHS HERTS VALLEYS CCG",null,null,null,null,"U36299","ALPHA PCN","06N","NHS HERTS VALLEYS CCG",null,"U15334","HARINGEY - EAST CENTRAL PCN"]
["U36452","LEAMINGTON SOUTH PCN",30804.281131685409,"U36452","05R","NHS SOUTH WARWICKSHIRE CCG",null,null,null,null,"U36452","LEAMINGTON SOUTH PCN","05R","NHS SOUTH WARWICKSHIRE CCG",null,"U36584","HARINGEY - N15/SOUTH EAST PCN"]
["U36510","COLNE UNION PCN",43452.614597870903,"U36510","08G","NHS HILLINGDON CCG",null,null,null,null,"U36510","COLNE UNION PCN","08G","NHS HILLINGDON CCG",null,"U51636","HARINGEY - NORTH CENTRAL PCN"]
["U36512","WHITFIELD PCN",42833.843026352653,"U36512","05W","NHS STOKE ON TRENT CCG",null,null,null,null,"U36512","WHITFIELD PCN","05W","NHS STOKE ON TRENT CCG",null,"U96599","HARINGEY - NORTH EAST PCN"]
["U36584","HARINGEY - N15/SOUTH EAST PCN",39028.827218468308,"U36584","93C","NHS NORTH CENTRAL LONDON CCG",null,null,null,null,"U36584","HARINGEY - N15/SOUTH EAST PCN","93C","NHS NORTH CENTRAL LONDON CCG",null,"U12920","HARINGEY - NORTH WEST PCN"]
["U36651","M-WEB PCN",30853.425963872171,"U36651","78H","NHS NORTHAMPTONSHIRE CCG",null,null,null,null,"U36651","M-WEB PCN","78H","NHS NORTHAMPTONSHIRE CCG",null,"U83168","HARINGEY - WELBOURNE PCN"]
["U36652","CENTRAL WATFORD PCN",41167.848692749991,"U36652","06N","NHS HERTS VALLEYS CCG",null,null,null,null,"U36652","CENTRAL WATFORD PCN","06N","NHS HERTS VALLEYS CCG",null,"U20036","HARINGEY - WEST CENTRAL PCN"]
["U36687","ENFIELD SOUTH WEST PCN",41227.438734434545,"U36687","93C","NHS NORTH CENTRAL LONDON CCG",null,null,null,null,"U36687","ENFIELD SOUTH WEST PCN","93C","NHS NORTH CENTRAL LONDON CCG",null,"U34072","HARLOW NORTH PCN"]
["U36721","ARBENNEK HEALTH PCN",33956.862489486113,"U36721","11N","NHS KERNOW CCG",null,null,null,null,"U36721","ARBENNEK HEALTH PCN","11N","NHS KERNOW CCG",null,"U33522","HARLOW SOUTH PCN"]
["U36746","DONCASTER CENTRAL PCN",71608.045359512616,"U36746","02X","NHS DONCASTER CCG",null,null,null,null,"U36746","DONCASTER CENTRAL PCN","02X","NHS DONCASTER CCG",null,"U33065","HARNESS NORTH PCN"]
["U36776","FRESHNEY PELHAM NEL PCN",39724.669741794169,"U36776","03H","NHS NORTH EAST LINCOLNSHIRE CCG",null,null,null,null,"U36776","FRESHNEY PELHAM NEL PCN","03H","NHS NORTH EAST LINCOLNSHIRE CCG",null,"U11559","HARNESS SOUTH PCN"]
["U36779","BRIXTON AND CLAPHAM PARK PCN",32505.238682886971,"U36779","72Q","NHS SOUTH EAST LONDON CCG",null,null,null,null,"U36779","BRIXTON AND CLAPHAM PARK PCN","72Q","NHS SOUTH EAST LONDON CCG",null,"U08579","HARPENDEN PCN"]
["U36780","HEALTH VILLAGE/DEARNE VALLEY PCN",46670.394404450199,"U36780","03L","NHS ROTHERHAM CCG",null,null,null,null,"U36780","HEALTH VILLAGE/DEARNE VALLEY PCN","03L","NHS ROTHERHAM CCG",null,"U10339","HARROW COLLABORATIVE PCN"]
["U36795","NORTH ISLINGTON PCN",105253.54539387744,"U36795","93C","NHS NORTH CENTRAL LONDON CCG",null,null,null,null,"U36795","NORTH ISLINGTON PCN","93C","NHS NORTH CENTRAL LONDON CCG",null,"U51050","HARROW EAST PCN"]
["U36833","CHELTENHAM CENTRAL PCN",49850.884781851601,"U36833","11M","NHS GLOUCESTERSHIRE CCG",null,null,null,null,"U36833","CHELTENHAM CENTRAL PCN","11M","NHS GLOUCESTERSHIRE CCG",null,"U28348","HARTHILL EAST RIDING PCN"]
["U36842","GREATER WEALDEN PCN",57474.57283249485,"U36842","97R","NHS EAST SUSSEX CCG",null,null,null,null,"U36842","GREATER WEALDEN PCN","97R","NHS EAST SUSSEX CCG",null,"U40502","HARTLEPOOL HEALTH PCN"]
["U37007","READING UNIVERSITY PCN",25693.0996282124,"U37007","15A","NHS BERKSHIRE WEST CCG",null,null,null,null,"U37007","READING UNIVERSITY PCN","15A","NHS BERKSHIRE WEST CCG",null,"U70212","HARTLEPOOL PCN"]
["U37037","SHOREHAM AND SOUTHWICK PCN",34425.056584206715,"U37037","70F","NHS WEST SUSSEX CCG",null,null,null,null,"U37037","SHOREHAM AND SOUTHWICK PCN","70F","NHS WEST SUSSEX CCG",null,"U99438","HASTINGS & ST LEONARDS PCN"]
["U37086","WEST END & MARYLEBONE PCN",42559.504271167178,"U37086","09A","NHS CENTRAL LONDON (WESTMINSTER) CCG",null,null,null,null,"U37086","WEST END & MARYLEBONE PCN","09A","NHS CENTRAL LONDON (WESTMINSTER) CCG",null,"U71089","HATFIELD PCN"]
["U37262","CANBURY CHURCHILL ORCHARD BERRYLANDS PCN",37907.166651974949,"U37262","36L","NHS SOUTH WEST LONDON CCG",null,null,null,null,"U37262","CANBURY CHURCHILL ORCHARD BERRYLANDS PCN","36L","NHS SOUTH WEST LONDON CCG",null,"U79932","HATTERS HEALTH PCN"]
["U37286","TOWER HAMLETS NETWORK 3 PCN",30114.806864690006,"U37286","08V","NHS TOWER HAMLETS CCG",null,null,null,null,"U37286","TOWER HAMLETS NETWORK 3 PCN","08V","NHS TOWER HAMLETS CCG",null,"U46389","HAVANT AND WATERLOOVILLE PCN"]
["U37296","WEST KNOWSLEY PCN",55363.08016725965,"U37296","01J","NHS KNOWSLEY CCG",null,null,null,null,"U37296","WEST KNOWSLEY PCN","01J","NHS KNOWSLEY CCG",null,"U52763","HAVERHILL PCN"]
["U37297","NETWORK 4 (BNSSG) PCN",63277.787725541224,"U37297","15C","NHS BRISTOL, NORTH SOMERSET AND SOUTH GLOUCESTERSHIRE CCG",null,null,null,null,"U37297","NETWORK 4 (BNSSG) PCN","15C","NHS BRISTOL, NORTH SOMERSET AND SOUTH GLOUCESTERSHIRE CCG",null,"U29424","HAVERING CREST PCN"]
["U37316","BRADFORD CITY 4 PCN",42077.716932146519,"U37316","36J","NHS BRADFORD DISTRICT AND CRAVEN CCG",null,null,null,null,"U37316","BRADFORD CITY 4 PCN","36J","NHS BRADFORD DISTRICT AND CRAVEN CCG",null,"U50107","HAVERING MARSHALL PCN"]
["U37339","SITTINGBOURNE PCN",61672.912237348486,"U37339","91Q","NHS KENT AND MEDWAY CCG",null,null,null,null,"U37339","SITTINGBOURNE PCN","91Q","NHS KENT AND MEDWAY CCG",null,"U55939","HAVERING NORTH PCN"]
["U37341","FOUNDRY HEALTHCARE LEWES PCN",27926.748052403149,"U37341","97R","NHS EAST SUSSEX CCG",null,null,null,null,"U37341","FOUNDRY HEALTHCARE LEWES PCN","97R","NHS EAST SUSSEX CCG",null,"U00367","HAVERING SOUTH PCN"]
["U37388","BRAMHALL CHEADLE AND HULME PCN",54317.145161571927,"U37388","01W","NHS STOCKPORT CCG",null,null,null,null,"U37388","BRAMHALL CHEADLE AND HULME PCN","01W","NHS STOCKPORT CCG",null,"U98580","HAYES WICK PCN"]
["U37412","WEST DEVON PCN",37111.240579836049,"U37412","15N","NHS DEVON CCG",null,null,null,null,"U37412","WEST DEVON PCN","15N","NHS DEVON CCG",null,"U90861","HAYLING ISLAND & EMSWORTH PCN"]
["U37593","SEDGEFIELD 1 PCN",48641.652109826449,"U37593","84H","NHS COUNTY DURHAM CCG",null,null,null,null,"U37593","SEDGEFIELD 1 PCN","84H","NHS COUNTY DURHAM CCG",null,"U04725","HAYWARDS HEATH CENTRAL PCN"]
["U37826","SOUTH TYNESIDE WEST PCN",55404.446711050507,"U37826","00N","NHS SOUTH TYNESIDE CCG",null,null,null,null,"U37826","SOUTH TYNESIDE WEST PCN","00N","NHS SOUTH TYNESIDE CCG",null,"U03364","HAYWARDS HEATH VILLAGES PCN"]
["U38045","NORTH LAMBETH PCN",68791.123977851981,"U38045","72Q","NHS SOUTH EAST LONDON CCG",null,null,null,null,"U38045","NORTH LAMBETH PCN","72Q","NHS SOUTH EAST LONDON CCG",null,"U64597","HAZEL GROVE HIGH LANE & MARPLE PCN"]
["U38064","NORTH & WEST HEREFORDSHIRE PCN",48382.173680059786,"U38064","18C","NHS HEREFORDSHIRE AND WORCESTERSHIRE CCG",null,null,null,null,"U38064","NORTH & WEST HEREFORDSHIRE PCN","18C","NHS HEREFORDSHIRE AND WORCESTERSHIRE CCG",null,"U85954","H-BLACKLEY HARPURHEY & CHARLESTOWN PCN"]
["U38216","BRADFORD CITY 6 PCN",49734.764932783612,"U38216","36J","NHS BRADFORD DISTRICT AND CRAVEN CCG",null,null,null,null,"U38216","BRADFORD CITY 6 PCN","36J","NHS BRADFORD DISTRICT AND CRAVEN CCG",null,"U60450","HEALTH ALLIANCE PCN"]
["U38221","TOLSON CARE PARTNERSHIP PCN",46657.112431037065,"U38221","03A","NHS GREATER HUDDERSFIELD CCG",null,null,null,null,"U38221","TOLSON CARE PARTNERSHIP PCN","03A","NHS GREATER HUDDERSFIELD CCG",null,"U36780","HEALTH VILLAGE/DEARNE VALLEY PCN"]
["U38271","ASHTON PCN",61492.848523165572,"U38271","01Y","NHS TAMESIDE AND GLOSSOP CCG",null,null,null,null,"U38271","ASHTON PCN","01Y","NHS TAMESIDE AND GLOSSOP CCG",null,"U31548","HEALTH VISION PARTNERSHIP PCN"]
["U38328","BROXBOURNE ALLIANCE PCN",33201.515317281563,"U38328","06K","NHS EAST AND NORTH HERTFORDSHIRE CCG",null,null,null,null,"U38328","BROXBOURNE ALLIANCE PCN","06K","NHS EAST AND NORTH HERTFORDSHIRE CCG",null,"U83279","HEALTHIER OXFORD CITY NETWORK PCN"]
["U38486","CLAYPATH & UNIVERSITY MEDICAL GROUP PCN",25704.442554212299,"U38486","84H","NHS COUNTY DURHAM CCG",null,null,null,null,"U38486","CLAYPATH & UNIVERSITY MEDICAL GROUP PCN","84H","NHS COUNTY DURHAM CCG",null,"U12833","HEALTHIER SOUTH WIRRAL PCN"]
["U38661","MARINA PCN",26697.802974025079,"U38661","71E","NHS LINCOLNSHIRE CCG",null,null,null,null,"U38661","MARINA PCN","71E","NHS LINCOLNSHIRE CCG",null,"U79121","HEALTHIER WEST WIRRAL PCN"]
["U38731","MID DORSET PCN",51581.399208083865,"U38731","11J","NHS DORSET CCG",null,null,null,null,"U38731","MID DORSET PCN","11J","NHS DORSET CCG",null,"U84846","HEALTHSENSE PCN"]
["U38734","SELSDON PURLEY & COULSDON HEALTH PCN",47972.516869616462,"U38734","36L","NHS SOUTH WEST LONDON CCG",null,null,null,null,"U38734","SELSDON PURLEY & COULSDON HEALTH PCN","36L","NHS SOUTH WEST LONDON CCG",null,"U48538","HEALTHWEST PCN"]
["U39025","WGGL PCN",28578.818657396463,"U39025","07K","NHS WEST SUFFOLK CCG",null,null,null,null,"U39025","WGGL PCN","07K","NHS WEST SUFFOLK CCG",null,"U14816","HEALTHY CRAWLEY PCN"]
["U39113","NEWCASTLE SOUTH PCN",43184.478452853939,"U39113","05G","NHS NORTH STAFFORDSHIRE CCG",null,null,null,null,"U39113","NEWCASTLE SOUTH PCN","05G","NHS NORTH STAFFORDSHIRE CCG",null,"U84550","HEALTHY HORLEY PCN"]
["U39263","ELTHAM PCN",49873.371229945769,"U39263","72Q","NHS SOUTH EAST LONDON CCG",null,null,null,null,"U39263","ELTHAM PCN","72Q","NHS SOUTH EAST LONDON CCG",null,"U70185","HEART OF BATH PCN"]
["U39345","UOS STUDENT PCN",26379.0079292068,"U39345","03N","NHS SHEFFIELD CCG",null,null,null,null,"U39345","UOS STUDENT PCN","03N","NHS SHEFFIELD CCG",null,"U91790","HEART OF HARROGATE PCN"]
["U39446","EAST BEDFORD PCN",46897.662489824332,"U39446","06F","NHS BEDFORDSHIRE CCG",null,null,null,null,"U39446","EAST BEDFORD PCN","06F","NHS BEDFORDSHIRE CCG",null,"U15435","HEATONS GROUP NETWORK PCN"]
["U39686","BARNET 5 PCN",50618.980937445442,"U39686","93C","NHS NORTH CENTRAL LONDON CCG",null,null,null,null,"U39686","BARNET 5 PCN","93C","NHS NORTH CENTRAL LONDON CCG",null,"U12376","HEELEY PLUS PCN"]
["U39721","HILLS, BROOKS & DALES GROUP PCN",56944.495640478832,"U39721","72Q","NHS SOUTH EAST LONDON CCG",null,null,null,null,"U39721","HILLS, BROOKS & DALES GROUP PCN","72Q","NHS SOUTH EAST LONDON CCG",null,"U96099","HENLEY SONNET PCN"]
["U39739","WEST OF WAVERLEY PCN",49202.492770706041,"U39739","92A","NHS SURREY HEARTLANDS CCG",null,null,null,null,"U39739","WEST OF WAVERLEY PCN","92A","NHS SURREY HEARTLANDS CCG",null,"U65562","HEREFORDSHIRE HEREFORD CITY HMG PCN"]
["U40100","LONDON FIELDS PCN",46174.93028573638,"U40100","07T","NHS CITY AND HACKNEY CCG",null,null,null,null,"U40100","LONDON FIELDS PCN","07T","NHS CITY AND HACKNEY CCG",null,"U24992","HERITAGE PCN"]
["U40115","MAYFLOWER PCN",41212.794576520115,{"$f":"A515","v":"U40115"},{"$f":"VLOOKUP($A515,$K$2:$N$1255,3,FALSE)","v":"15N"},{"$f":"VLOOKUP($A515,$K$2:$N$1255,4,FALSE)","v":"NHS DEVON CCG"},null,null,null,null,"U40115","MAYFLOWER PCN","15N","NHS DEVON CCG",null,"U21470","HERNE BAY PCN"]
["U40159","MMWF PCN",45233.575159749176,"U40159","78H","NHS NORTHAMPTONSHIRE CCG",null,null,null,null,"U40159","MMWF PCN","78H","NHS NORTHAMPTONSHIRE CCG",null,"U15138","HERTFORD AND RURALS PCN"]
["U40164","EASTLEIGH HEALTH PCN",31878.437239941963,"U40164","11A","NHS WEST HAMPSHIRE CCG",null,null,null,null,"U40164","EASTLEIGH HEALTH PCN","11A","NHS WEST HAMPSHIRE CCG",null,"U97051","HERTS FIVE PCN"]
["U40386","COLTE PARTNERSHIP (WCW) PCN",30097.244472041417,"U40386","06T","NHS NORTH EAST ESSEX CCG",null,null,null,null,"U40386","COLTE PARTNERSHIP (WCW) PCN","06T","NHS NORTH EAST ESSEX CCG",null,"U78443","HEYWOOD PCN"]
["U40458","MORDEN PCN",35536.008624847447,"U40458","36L","NHS SOUTH WEST LONDON CCG",null,null,null,null,"U40458","MORDEN PCN","36L","NHS SOUTH WEST LONDON CCG",null,"U51498","HH COLLABORATIVE PCN"]
["U40502","HARTLEPOOL HEALTH PCN",34567.616721581362,"U40502","16C","NHS TEES VALLEY CCG",null,null,null,null,"U40502","HARTLEPOOL HEALTH PCN","16C","NHS TEES VALLEY CCG",null,"U28405","HIGH PEAK & BUXTON PCN"]
["U40593","ORWELL PCN",24072.855938696259,"U40593","06L","NHS IPSWICH AND EAST SUFFOLK CCG",null,null,null,null,"U40593","ORWELL PCN","06L","NHS IPSWICH AND EAST SUFFOLK CCG",null,"U54760","HIGH WEALD PCN"]
["U40722","SWANLEY & RURAL PCN",36301.84383845047,"U40722","91Q","NHS KENT AND MEDWAY CCG",null,null,null,null,"U40722","SWANLEY & RURAL PCN","91Q","NHS KENT AND MEDWAY CCG",null,"U39721","HILLS, BROOKS & DALES GROUP PCN"]
["U40951","MID DEVON HEALTHCARE PCN",41463.59989410967,"U40951","15N","NHS DEVON CCG",null,null,null,null,"U40951","MID DEVON HEALTHCARE PCN","15N","NHS DEVON CCG",null,"U80633","HILLSBOROUGH PCN"]
["U41041","FIVEWAYS PCN",38626.964574297293,"U41041","72Q","NHS SOUTH EAST LONDON CCG",null,null,null,null,"U41041","FIVEWAYS PCN","72Q","NHS SOUTH EAST LONDON CCG",null,"U83511","HILLTON PCN"]
["U41523","SOUTH COTSWOLDS PCN",61711.785781843173,"U41523","11M","NHS GLOUCESTERSHIRE CCG",null,null,null,null,"U41523","SOUTH COTSWOLDS PCN","11M","NHS GLOUCESTERSHIRE CCG",null,"U35987","HINCKLEY CENTRAL PCN"]
["U41563","OLDHAM NORTH PCN",42590.216945701934,"U41563","00Y","NHS OLDHAM CCG",null,null,null,null,"U41563","OLDHAM NORTH PCN","00Y","NHS OLDHAM CCG",null,"U21926","HINDLEY PCN"]
["U41591","HOLSWORTHY, BUDE & SURROUNDING VILLAGES PCN",38718.625551037701,"U41591","15N","NHS DEVON CCG",null,null,null,null,"U41591","HOLSWORTHY, BUDE & SURROUNDING VILLAGES PCN","15N","NHS DEVON CCG",null,"U06256","HIPC (HOLISTIC PATIENT CENTRED CARE) PCN"]
["U41693","SPALDING & MARKET DEEPING PCN",63927.731235648738,"U41693","71E","NHS LINCOLNSHIRE CCG",null,null,null,null,"U41693","SPALDING & MARKET DEEPING PCN","71E","NHS LINCOLNSHIRE CCG",null,"U81398","HITCHIN AND WHITWELL PCN"]
["U41928","SOLIHULL RURAL PCN",31633.869925210471,"U41928","15E","NHS BIRMINGHAM AND SOLIHULL CCG",null,null,null,null,"U41928","SOLIHULL RURAL PCN","15E","NHS BIRMINGHAM AND SOLIHULL CCG",null,"U73966","HLH PCN"]
["U41930","GATESHEAD OUTER WEST PCN",35439.510613300074,"U41930","13T","NHS NEWCASTLE GATESHEAD CCG",null,null,null,null,"U41930","GATESHEAD OUTER WEST PCN","13T","NHS NEWCASTLE GATESHEAD CCG",null,"U87508","HODDESDON & BROXBOURNE PCN"]
["U42007","NORTH WEST LEICESTERSHIRE PCN",113976.73815045763,"U42007","04V","NHS WEST LEICESTERSHIRE CCG",null,null,null,null,"U42007","NORTH WEST LEICESTERSHIRE PCN","04V","NHS WEST LEICESTERSHIRE CCG",null,"U64827","HOLDERNESS PRIMARY CARE HOME PCN"]
["U42142","CLACTON PCN",34616.493474554081,"U42142","06T","NHS NORTH EAST ESSEX CCG",null,null,null,null,"U42142","CLACTON PCN","06T","NHS NORTH EAST ESSEX CCG",null,"U85008","HOLGATE PCN"]
["U42152","WIGAN CENTRAL PCN",68765.47238224154,"U42152","02H","NHS WIGAN BOROUGH CCG",null,null,null,null,"U42152","WIGAN CENTRAL PCN","02H","NHS WIGAN BOROUGH CCG",null,"U41591","HOLSWORTHY, BUDE & SURROUNDING VILLAGES PCN"]
["U42154","BATTERSEA PCN",50018.702241022067,"U42154","36L","NHS SOUTH WEST LONDON CCG",null,null,null,null,"U42154","BATTERSEA PCN","36L","NHS SOUTH WEST LONDON CCG",null,"U61505","HOLT PARK PCN"]
["U42235","BANSTEAD HEALTHCARE PCN",47118.057592558951,"U42235","92A","NHS SURREY HEARTLANDS CCG",null,null,null,null,"U42235","BANSTEAD HEALTHCARE PCN","92A","NHS SURREY HEARTLANDS CCG",null,"U79574","HONITON/OTTERY/SID VALLEY (HOSMS) PCN"]
["U42276","CHISWICK PCN",44122.387680173721,"U42276","07Y","NHS HOUNSLOW CCG",null,null,null,null,"U42276","CHISWICK PCN","07Y","NHS HOUNSLOW CCG",null,"U49525","HORIZON PCN"]
["U42510","BLANDFORD PCN",24886.106399682802,"U42510","11J","NHS DORSET CCG",null,null,null,null,"U42510","BLANDFORD PCN","11J","NHS DORSET CCG",null,"U26939","HORSHAM CENTRAL PCN"]
["U42598","BALHAM, TOOTING & FURZEDOWN PCN",56424.304553311398,"U42598","36L","NHS SOUTH WEST LONDON CCG",null,null,null,null,"U42598","BALHAM, TOOTING & FURZEDOWN PCN","36L","NHS SOUTH WEST LONDON CCG",null,"U96386","HORSHAM COLLABORATIVE PCN"]
["U42671","FLEET PCN",41977.634657466158,"U42671","99M","NHS NORTH EAST HAMPSHIRE AND FARNHAM CCG",null,null,null,null,"U42671","FLEET PCN","99M","NHS NORTH EAST HAMPSHIRE AND FARNHAM CCG",null,"U11602","HORWICH NETWORK PCN"]
["U42807","FOUNTAINS PCN",39437.525372909477,"U42807","27D","NHS CHESHIRE CCG",null,null,null,null,"U42807","FOUNTAINS PCN","27D","NHS CHESHIRE CCG",null,"U24740","HOUNSLOW HEALTH PCN"]
["U42898","SOUTH TRAFFORD PCN",31415.52557803864,"U42898","02A","NHS TRAFFORD CCG",null,null,null,null,"U42898","SOUTH TRAFFORD PCN","02A","NHS TRAFFORD CCG",null,"U65725","HULL BEVAN LTD PCN"]
["U42972","VICTORIA EASTBOURNE PCN",27392.872072212973,"U42972","97R","NHS EAST SUSSEX CCG",null,null,null,null,"U42972","VICTORIA EASTBOURNE PCN","97R","NHS EAST SUSSEX CCG",null,"U82095","HULL MEDICAS PCN"]
["U43067","CROSSGATES PCN",32347.115230088872,"U43067","15F","NHS LEEDS CCG",null,null,null,null,"U43067","CROSSGATES PCN","15F","NHS LEEDS CCG",null,"U62384","HULL MODALITY PARTNERSHIP PCN"]
["U43084","WEST WAKEFIELD PCN",71220.360487425438,"U43084","03R","NHS WAKEFIELD CCG",null,null,null,null,"U43084","WEST WAKEFIELD PCN","03R","NHS WAKEFIELD CCG",null,"U03824","HULL NEXUS PCN"]
["U43112","BROMLEY CONNECT PCN",36308.125453924396,"U43112","72Q","NHS SOUTH EAST LONDON CCG",null,null,null,null,"U43112","BROMLEY CONNECT PCN","72Q","NHS SOUTH EAST LONDON CCG",null,"U88890","HULL SYMPHONIE PCN"]
["U43314","SUNDERLAND NORTH PCN",47383.658015561319,"U43314","00P","NHS SUNDERLAND CCG",null,null,null,null,"U43314","SUNDERLAND NORTH PCN","00P","NHS SUNDERLAND CCG",null,"U64595","HULME MOSS SIDE & RUSHOLME PCN"]
["U43524","NEWCASTLE CENTRAL HEALTH PCN",34958.1786270253,"U43524","13T","NHS NEWCASTLE GATESHEAD CCG",null,null,null,null,"U43524","NEWCASTLE CENTRAL HEALTH PCN","13T","NHS NEWCASTLE GATESHEAD CCG",null,"U95574","HUNTINGDON PCN"]
["U43660","NORTH BIRMINGHAM PCN",47352.52804700924,"U43660","15E","NHS BIRMINGHAM AND SOLIHULL CCG",null,null,null,null,"U43660","NORTH BIRMINGHAM PCN","15E","NHS BIRMINGHAM AND SOLIHULL CCG",null,"U05517","HWL NETWORK PCN"]
["U44012","KESTON MOORINGS & PARKSIDE PCN",32449.37024693744,"U44012","36L","NHS SOUTH WEST LONDON CCG",null,null,null,null,"U44012","KESTON MOORINGS & PARKSIDE PCN","36L","NHS SOUTH WEST LONDON CCG",null,"U02275","HYDE PCN"]
["U44050","SOUTH WEST MERTON PCN",32910.156970402597,"U44050","36L","NHS SOUTH WEST LONDON CCG",null,null,null,null,"U44050","SOUTH WEST MERTON PCN","36L","NHS SOUTH WEST LONDON CCG",null,"U96653","HYNDBURN CENTRAL PCN"]
["U44365","WEST BIRMINGHAM PCN",27798.0130673204,"U44365","15E","NHS BIRMINGHAM AND SOLIHULL CCG",null,null,null,null,"U44365","WEST BIRMINGHAM PCN","15E","NHS BIRMINGHAM AND SOLIHULL CCG",null,"U09057","HYNDBURN RURAL PCN"]
["U44401","NORTH LINCOLNSHIRE EAST PCN",36312.377136410716,"U44401","03K","NHS NORTH LINCOLNSHIRE CCG",null,null,null,null,"U44401","NORTH LINCOLNSHIRE EAST PCN","03K","NHS NORTH LINCOLNSHIRE CCG",null,"U82047","ICKNIELD PCN"]
["U44537","SWB MODALITY PCN",69114.231414421141,"U44537","05L","NHS SANDWELL AND WEST BIRMINGHAM CCG",null,null,null,null,"U44537","SWB MODALITY PCN","05L","NHS SANDWELL AND WEST BIRMINGHAM CCG",null,"U02731","IGPC PCN"]
["U44561","BESTWOOD AND SHERWOOD PCN",50445.618779236109,"U44561","52R","NHS NOTTINGHAM AND NOTTINGHAMSHIRE CCG",null,null,null,null,"U44561","BESTWOOD AND SHERWOOD PCN","52R","NHS NOTTINGHAM AND NOTTINGHAMSHIRE CCG",null,"U58704","IMP PCN"]
["U44623","TOTAL HEALTH EXCELLENCE EAST PCN",35275.534974759285,"U44623","91Q","NHS KENT AND MEDWAY CCG",null,null,null,null,"U44623","TOTAL HEALTH EXCELLENCE EAST PCN","91Q","NHS KENT AND MEDWAY CCG",null,"U91471","INCLUSIVE HEALTH PCN"]
["U44671","KENNET PCN",38907.079802634675,"U44671","15A","NHS BERKSHIRE WEST CCG",null,null,null,null,"U44671","KENNET PCN","15A","NHS BERKSHIRE WEST CCG",null,"U47657","INTEGRATED CARE PARTNERSHIP PCN"]
["U44695","WEST END FAMILY HEALTH PCN",34007.3696217861,"U44695","13T","NHS NEWCASTLE GATESHEAD CCG",null,null,null,null,"U44695","WEST END FAMILY HEALTH PCN","13T","NHS NEWCASTLE GATESHEAD CCG",null,"U03810","ISLAND CITY PCN"]
["U45013","AINSDALE & BIRKDALE PCN",30269.36594756486,"U45013","01V","NHS SOUTHPORT AND FORMBY CCG",null,null,null,null,"U45013","AINSDALE & BIRKDALE PCN","01V","NHS SOUTHPORT AND FORMBY CCG",null,"U64053","ISLES OF SCILLY & SOUTH KERRIER PCN"]
["U45014","WARRINGTON INNOVATION PCN",53351.761098551797,"U45014","02E","NHS WARRINGTON CCG",null,null,null,null,"U45014","WARRINGTON INNOVATION PCN","02E","NHS WARRINGTON CCG",null,"U50130","IVEL VALLEY NORTH PCN"]
["U45098","CLAPHAM PCN",46645.758162847917,"U45098","72Q","NHS SOUTH EAST LONDON CCG",null,null,null,null,"U45098","CLAPHAM PCN","72Q","NHS SOUTH EAST LONDON CCG",null,"U46464","IVEL VALLEY SOUTH PCN"]
["U45102","DARLINGTON PCN",112311.78003959746,"U45102","16C","NHS TEES VALLEY CCG",null,null,null,null,"U45102","DARLINGTON PCN","16C","NHS TEES VALLEY CCG",null,"U34146","JESMOND - LOWER GOSFORTH PCN"]
["U45156","OLDBURY & SMETHWICK PCN",51910.926568599098,"U45156","05L","NHS SANDWELL AND WEST BIRMINGHAM CCG",null,null,null,null,"U45156","OLDBURY & SMETHWICK PCN","05L","NHS SANDWELL AND WEST BIRMINGHAM CCG",null,"U58840","JURASSIC COAST PCN"]
["U45528","SOLIHULL HEALTHCARE PARTNERSHIP PCN",51738.706140027003,"U45528","15E","NHS BIRMINGHAM AND SOLIHULL CCG",null,null,null,null,"U45528","SOLIHULL HEALTHCARE PARTNERSHIP PCN","15E","NHS BIRMINGHAM AND SOLIHULL CCG",null,"U62614","K AND C SOUTH PCN"]
["U45611","SKELMERSDALE PCN",61241.491793433219,"U45611","02G","NHS WEST LANCASHIRE CCG",null,null,null,null,"U45611","SKELMERSDALE PCN","02G","NHS WEST LANCASHIRE CCG",null,"U71550","K2 HEALTHCARE SLEAFORD PCN"]
["U45670","WEST OUTER AND NORTH EAST YORK PCN",49306.600344022016,"U45670","03Q","NHS VALE OF YORK CCG",null,null,null,null,"U45670","WEST OUTER AND NORTH EAST YORK PCN","03Q","NHS VALE OF YORK CCG",null,"U35939","KENDAL PCN"]
["U45703","GREENWELL PCN",35151.741814421082,"U45703","07W","NHS EALING CCG",null,null,null,null,"U45703","GREENWELL PCN","07W","NHS EALING CCG",null,"U10743","KENILWORTH AND WARWICK PCN"]
["U45809","BLACKPOOL SOUTH PCN",42049.978435509154,"U45809","00R","NHS BLACKPOOL CCG",null,null,null,null,"U45809","BLACKPOOL SOUTH PCN","00R","NHS BLACKPOOL CCG",null,"U44671","KENNET PCN"]
["U45842","WEST WANDSWORTH PCN",36170.991669521172,"U45842","36L","NHS SOUTH WEST LONDON CCG",null,null,null,null,"U45842","WEST WANDSWORTH PCN","36L","NHS SOUTH WEST LONDON CCG",null,"U51577","KENTISH TOWN CENTRAL PCN"]
["U45898","NEWCASTLE INNER WEST PCN",53669.531618270383,"U45898","13T","NHS NEWCASTLE GATESHEAD CCG",null,null,null,null,"U45898","NEWCASTLE INNER WEST PCN","13T","NHS NEWCASTLE GATESHEAD CCG",null,"U78517","KENTISH TOWN SOUTH PCN"]
["U45943","EAST MERTON PCN",43225.742700013405,"U45943","36L","NHS SOUTH WEST LONDON CCG",null,null,null,null,"U45943","EAST MERTON PCN","36L","NHS SOUTH WEST LONDON CCG",null,"U44012","KESTON MOORINGS & PARKSIDE PCN"]
["U45992","CITY CENTRE & ANCOATS PCN",34198.273432770729,"U45992","14L","NHS MANCHESTER CCG",null,null,null,null,"U45992","CITY CENTRE & ANCOATS PCN","14L","NHS MANCHESTER CCG",null,"U25680","KESWICK & SOLWAY PCN"]
["U46071","WESTHOUGHTON NETWORK PCN",28034.116588031138,"U46071","00T","NHS BOLTON CCG",null,null,null,null,"U46071","WESTHOUGHTON NETWORK PCN","00T","NHS BOLTON CCG",null,"U35821","KETTERING & SOUTH WEST RURAL PCN"]
["U46082","YORK CITY CENTRE PCN",42717.087532180856,"U46082","03Q","NHS VALE OF YORK CCG",null,null,null,null,"U46082","YORK CITY CENTRE PCN","03Q","NHS VALE OF YORK CCG",null,"U90673","KETTS OAK PCN"]
["U46154","WINCHESTER RURAL NORTH & EAST PCN",47733.725377557173,"U46154","11A","NHS WEST HAMPSHIRE CCG",null,null,null,null,"U46154","WINCHESTER RURAL NORTH & EAST PCN","11A","NHS WEST HAMPSHIRE CCG",null,"U66269","KEYNSHAM PCN"]
["U46190","MEWSTONE PCN",32736.887893215011,"U46190","15N","NHS DEVON CCG",null,null,null,null,"U46190","MEWSTONE PCN","15N","NHS DEVON CCG",null,"U20931","KIDLINGTON, ISLIP, WOODSTOCK & YARNTON (KIWY) PCN"]
["U46293","WOODBERRY WETLANDS PCN",32913.839642625353,"U46293","07T","NHS CITY AND HACKNEY CCG",null,null,null,null,"U46293","WOODBERRY WETLANDS PCN","07T","NHS CITY AND HACKNEY CCG",null,"U25131","KILBURN PARTNERSHIP PCN"]
["U46389","HAVANT AND WATERLOOVILLE PCN",67288.939614844843,"U46389","10V","NHS SOUTH EASTERN HAMPSHIRE CCG",null,null,null,null,"U46389","HAVANT AND WATERLOOVILLE PCN","10V","NHS SOUTH EASTERN HAMPSHIRE CCG",null,"U48652","KINGS LYNN PCN"]
["U46417","MILL ROAD GROUP PCN",32296.87032327172,"U46417","06T","NHS NORTH EAST ESSEX CCG",null,null,null,null,"U46417","MILL ROAD GROUP PCN","06T","NHS NORTH EAST ESSEX CCG",null,"U18195","KINGSTANDING, ERDINGTON & NECHELLS PCN"]
["U46437","BORDESLEY EAST PCN",41137.762491318106,{"$f":"A579","v":"U46437"},{"$f":"VLOOKUP($A579,$K$2:$N$1255,3,FALSE)","v":"15E"},{"$f":"VLOOKUP($A579,$K$2:$N$1255,4,FALSE)","v":"NHS BIRMINGHAM AND SOLIHULL CCG"},null,null,null,null,"U46437","BORDESLEY EAST PCN","15E","NHS BIRMINGHAM AND SOLIHULL CCG",null,"U52814","KINGSTON PCN"]
["U46447","GOLDSTONE PCN",59143.337405597398,"U46447","09D","NHS BRIGHTON AND HOVE CCG",null,null,null,null,"U46447","GOLDSTONE PCN","09D","NHS BRIGHTON AND HOVE CCG",null,"U66484","KINGSWINFORD & WORDSLEY PCN"]
["U46454","HARBORNE PCN",48965.457046626907,"U46454","15E","NHS BIRMINGHAM AND SOLIHULL CCG",null,null,null,null,"U46454","HARBORNE PCN","15E","NHS BIRMINGHAM AND SOLIHULL CCG",null,"U10730","KIRKBY PCN"]
["U46464","IVEL VALLEY SOUTH PCN",34349.303933970135,"U46464","06F","NHS BEDFORDSHIRE CCG",null,null,null,null,"U46464","IVEL VALLEY SOUTH PCN","06F","NHS BEDFORDSHIRE CCG",null,"U56977","KNARESBOROUGH & RURAL PCN"]
["U46593","GREENWICH WEST PCN",40832.241318290638,"U46593","72Q","NHS SOUTH EAST LONDON CCG",null,null,null,null,"U46593","GREENWICH WEST PCN","72Q","NHS SOUTH EAST LONDON CCG",null,"U06000","KNUTSFORD PCN"]
["U46695","BURNTWOOD PCN",34750.94090812112,"U46695","05Q","NHS SOUTH EAST STAFFORDSHIRE AND SEISDON PENINSULA CCG",null,null,null,null,"U46695","BURNTWOOD PCN","05Q","NHS SOUTH EAST STAFFORDSHIRE AND SEISDON PENINSULA CCG",null,"U19808","LANCASTER PCN"]
["U46901","SASSE NETWORK 1 PCN",52679.859202579239,"U46901","92A","NHS SURREY HEARTLANDS CCG",null,null,null,null,"U46901","SASSE NETWORK 1 PCN","92A","NHS SURREY HEARTLANDS CCG",null,"U87478","LANCING AND SOMPTING PCN"]
["U46976","MORETON AND MEOLS PCN",34055.559321289402,"U46976","12F","NHS WIRRAL CCG",null,null,null,null,"U46976","MORETON AND MEOLS PCN","12F","NHS WIRRAL CCG",null,"U05001","LARWOOD & BAWTRY PCN"]
["U47004","SOUTHAMPTON WEST PCN",83456.556778753307,"U47004","10X","NHS SOUTHAMPTON CCG",null,null,null,null,"U47004","SOUTHAMPTON WEST PCN","10X","NHS SOUTHAMPTON CCG",null,"U87882","LEA VALLEY HEALTH PCN"]
["U47184","CHESHAM & LITTLE CHALFONT PCN",32697.884291128819,"U47184","14Y","NHS BUCKINGHAMSHIRE CCG",null,null,null,null,"U47184","CHESHAM & LITTLE CHALFONT PCN","14Y","NHS BUCKINGHAMSHIRE CCG",null,"U82789","LEAMINGTON NORTH PCN"]
["U47223","DERBY CITY SOUTH PCN",93594.872984663947,"U47223","15M","NHS DERBY AND DERBYSHIRE CCG",null,null,null,null,"U47223","DERBY CITY SOUTH PCN","15M","NHS DERBY AND DERBYSHIRE CCG",null,"U36452","LEAMINGTON SOUTH PCN"]
["U47228","ABC PCN",32096.590067268829,"U47228","91Q","NHS KENT AND MEDWAY CCG",null,null,null,null,"U47228","ABC PCN","91Q","NHS KENT AND MEDWAY CCG",null,"U94503","LEASIDE NETWORK PCN"]
["U47242","NOTTINGHAM CITY EAST PCN",68886.720458173877,"U47242","52R","NHS NOTTINGHAM AND NOTTINGHAMSHIRE CCG",null,null,null,null,"U47242","NOTTINGHAM CITY EAST PCN","52R","NHS NOTTINGHAM AND NOTTINGHAMSHIRE CCG",null,"U80251","LEATHERHEAD PCN"]
["U47425","WEST SOMERSET PCN",39352.320521600079,"U47425","11X","NHS SOMERSET CCG",null,null,null,null,"U47425","WEST SOMERSET PCN","11X","NHS SOMERSET CCG",null,"U12951","LEEK & BIDDULPH PCN"]
["U47608","NEOHEALTH PCN",41102.930232430786,"U47608","08Y","NHS WEST LONDON CCG",null,null,null,null,"U47608","NEOHEALTH PCN","08Y","NHS WEST LONDON CCG",null,"U77315","LEICESTER CENTRAL PCN"]
["U47609","ALLIANCE OF SUTTON PRACTICES PCN",42985.195833939404,"U47609","15E","NHS BIRMINGHAM AND SOLIHULL CCG",null,null,null,null,"U47609","ALLIANCE OF SUTTON PRACTICES PCN","15E","NHS BIRMINGHAM AND SOLIHULL CCG",null,"U48026","LEICESTER CITY & UNIVERSITY PCN"]
["U47655","DIDCOT PCN",38095.682718933414,"U47655","10Q","NHS OXFORDSHIRE CCG",null,null,null,null,"U47655","DIDCOT PCN","10Q","NHS OXFORDSHIRE CCG",null,"U54764","LEICESTER CITY SOUTH PCN"]
["U47657","INTEGRATED CARE PARTNERSHIP PCN",31213.6969329405,"U47657","92A","NHS SURREY HEARTLANDS CCG",null,null,null,null,"U47657","INTEGRATED CARE PARTNERSHIP PCN","92A","NHS SURREY HEARTLANDS CCG",null,"U05796","LEICESTER HEALTH FOCUS PCN"]
["U47812","WALTHAM FOREST SOUTH LEYTONSTONE PCN",32685.10954941122,"U47812","08W","NHS WALTHAM FOREST CCG",null,null,null,null,"U47812","WALTHAM FOREST SOUTH LEYTONSTONE PCN","08W","NHS WALTHAM FOREST CCG",null,"U70230","LEIGH PCN"]
["U47851","ARROW HEALTH PCN",36447.31720959727,"U47851","52R","NHS NOTTINGHAM AND NOTTINGHAMSHIRE CCG",null,null,null,null,"U47851","ARROW HEALTH PCN","52R","NHS NOTTINGHAM AND NOTTINGHAMSHIRE CCG",null,"U15644","LEIGHTON BUZZARD PCN"]
["U47882","BLACKPOOL CENTRAL WEST PCN",38577.218428903499,"U47882","00R","NHS BLACKPOOL CCG",null,null,null,null,"U47882","BLACKPOOL CENTRAL WEST PCN","00R","NHS BLACKPOOL CCG",null,"U21222","LEWISHAM ALLIANCE PCN"]
["U47946","WALTHAM FOREST CHINGFORD E4 PCN",50445.456698989445,"U47946","08W","NHS WALTHAM FOREST CCG",null,null,null,null,"U47946","WALTHAM FOREST CHINGFORD E4 PCN","08W","NHS WALTHAM FOREST CCG",null,"U11059","LEWISHAM CARE PARTNERSHIP PCN"]
["U47975","SOUTH WAVENEY PCN",59448.851238141564,"U47975","26A","NHS NORFOLK AND WAVENEY CCG",null,null,null,null,"U47975","SOUTH WAVENEY PCN","26A","NHS NORFOLK AND WAVENEY CCG",null,"U05906","LEYLAND PCN"]
["U48026","LEICESTER CITY & UNIVERSITY PCN",35409.285971845704,"U48026","04C","NHS LEICESTER CITY CCG",null,null,null,null,"U48026","LEICESTER CITY & UNIVERSITY PCN","04C","NHS LEICESTER CITY CCG",null,"U64148","LICHFIELD PCN"]
["U48056","EASTBOURNE EAST PCN",55886.60277996138,"U48056","97R","NHS EAST SUSSEX CCG",null,null,null,null,"U48056","EASTBOURNE EAST PCN","97R","NHS EAST SUSSEX CCG",null,"U23418","LiGA WIGAN PCN"]
["U48176","CHELMER PCN",31618.911697771771,"U48176","06Q","NHS MID ESSEX CCG",null,null,null,null,"U48176","CHELMER PCN","06Q","NHS MID ESSEX CCG",null,"U54911","LIVERPOOL FIRST PCN"]
["U48302","COPELAND PCN",70796.989377326012,"U48302","01H","NHS NORTH CUMBRIA CCG",null,null,null,null,"U48302","COPELAND PCN","01H","NHS NORTH CUMBRIA CCG",null,"U74266","LMN PCN"]
["U48502","BLACKBURN EAST PCN",55542.338134285659,"U48502","00Q","NHS BLACKBURN WITH DARWEN CCG",null,null,null,null,"U48502","BLACKBURN EAST PCN","00Q","NHS BLACKBURN WITH DARWEN CCG",null,"U56575","LOCC PCN"]
["U48538","HEALTHWEST PCN",56254.765982609104,"U48538","15C","NHS BRISTOL, NORTH SOMERSET AND SOUTH GLOUCESTERSHIRE CCG",null,null,null,null,"U48538","HEALTHWEST PCN","15C","NHS BRISTOL, NORTH SOMERSET AND SOUTH GLOUCESTERSHIRE CCG",null,"U40100","LONDON FIELDS PCN"]
["U48652","KINGS LYNN PCN",77649.87255392682,"U48652","26A","NHS NORFOLK AND WAVENEY CCG",null,null,null,null,"U48652","KINGS LYNN PCN","26A","NHS NORFOLK AND WAVENEY CCG",null,"U91930","LONG LANE FIRST CARE GROUP PCN"]
["U48691","WARE AND RURALS PCN",32862.872666002506,"U48691","06K","NHS EAST AND NORTH HERTFORDSHIRE CCG",null,null,null,null,"U48691","WARE AND RURALS PCN","06K","NHS EAST AND NORTH HERTFORDSHIRE CCG",null,"U01096","LOUGHTON BUCKHURST HILL & CHIGWELL PCN"]
["U48923","SWB URBAN HEALTH PCN",36398.868230913453,"U48923","05L","NHS SANDWELL AND WEST BIRMINGHAM CCG",null,null,null,null,"U48923","SWB URBAN HEALTH PCN","05L","NHS SANDWELL AND WEST BIRMINGHAM CCG",null,"U50996","LOWER VALLEY PCN"]
["U49001","WATERGATE PCN",48021.545325564002,"U49001","11N","NHS KERNOW CCG",null,null,null,null,"U49001","WATERGATE PCN","11N","NHS KERNOW CCG",null,"U59961","LOWESTOFT PCN"]
["U49145","GO WEST PCN",49113.922681903015,"U49145","05A","NHS COVENTRY AND RUGBY CCG",null,null,null,null,"U49145","GO WEST PCN","05A","NHS COVENTRY AND RUGBY CCG",null,"U20290","LOXFORD PCN"]
["U49226","BURY PCN",68933.647699519206,"U49226","00V","NHS BURY CCG",null,null,null,null,"U49226","BURY PCN","00V","NHS BURY CCG",null,"U76315","LS25/LS26 PCN"]
["U49304","WOKINGHAM NORTH PCN",58919.222907834643,"U49304","15A","NHS BERKSHIRE WEST CCG",null,null,null,null,"U49304","WOKINGHAM NORTH PCN","15A","NHS BERKSHIRE WEST CCG",null,"U96282","LSMP AND THE LIGHT PCN"]
["U49326","SOUTH WORCS THE RURALS PCN",23774.099145323959,"U49326","18C","NHS HEREFORDSHIRE AND WORCESTERSHIRE CCG",null,null,null,null,"U49326","SOUTH WORCS THE RURALS PCN","18C","NHS HEREFORDSHIRE AND WORCESTERSHIRE CCG",null,"U26788","LYTHAM ST ANNE'S & ANSDELL (LSA) PCN"]
["U49525","HORIZON PCN",70337.555588180374,"U49525","00V","NHS BURY CCG",null,null,null,null,"U49525","HORIZON PCN","00V","NHS BURY CCG",null,"U82612","MACCLESFIELD PCN"]
["U49529","CLAYTON BESWICK & OPENSHAW PCN",58601.470438822755,"U49529","14L","NHS MANCHESTER CCG",null,null,null,null,"U49529","CLAYTON BESWICK & OPENSHAW PCN","14L","NHS MANCHESTER CCG",null,"U20320","MAIDENHEAD PCN"]
["U49536","COASTAL & SOUTH DOWNS CARE PARTNERSHIP PCN",32941.856439638417,"U49536","70F","NHS WEST SUSSEX CCG",null,null,null,null,"U49536","COASTAL & SOUTH DOWNS CARE PARTNERSHIP PCN","70F","NHS WEST SUSSEX CCG",null,"U67133","MAIDSTONE CENTRAL PCN"]
["U49574","ASCENT PCN",26838.29833178535,"U49574","04F","NHS MILTON KEYNES CCG",null,null,null,null,"U49574","ASCENT PCN","04F","NHS MILTON KEYNES CCG",null,"U05510","MALLING PCN"]
["U49615","SOUTH RURAL PCN",56676.239439685771,"U49615","06L","NHS IPSWICH AND EAST SUFFOLK CCG",null,null,null,null,"U49615","SOUTH RURAL PCN","06L","NHS IPSWICH AND EAST SUFFOLK CCG",null,"U01680","MALTBY WICKERSLEY PCN"]
["U49616","NORTH WEST SUFFOLK PCN",35013.535406214069,"U49616","06L","NHS IPSWICH AND EAST SUFFOLK CCG",null,null,null,null,"U49616","NORTH WEST SUFFOLK PCN","06L","NHS IPSWICH AND EAST SUFFOLK CCG",null,"U18888","MANOR VIEW PCN"]
["U49727","ANFIELD & EVERTON PCN",47552.807641965112,"U49727","99A","NHS LIVERPOOL CCG",null,null,null,null,"U49727","ANFIELD & EVERTON PCN","99A","NHS LIVERPOOL CCG",null,"U32323","MANSFIELD NORTH PCN"]
["U49728","WALSALL WEST 1 PCN",33904.73790069895,"U49728","05Y","NHS WALSALL CCG",null,null,null,null,"U49728","WALSALL WEST 1 PCN","05Y","NHS WALSALL CCG",null,"U91844","MARGATE PCN"]
["U49785","WYVERN HEALTH PARTNERSHIP PCN",52837.285904831311,"U49785","92G","NHS BATH AND NORTH EAST SOMERSET, SWINDON AND WILTSHIRE CCG",null,null,null,null,"U49785","WYVERN HEALTH PARTNERSHIP PCN","92G","NHS BATH AND NORTH EAST SOMERSET, SWINDON AND WILTSHIRE CCG",null,"U38661","MARINA PCN"]
["U49851","WACA PCN",75037.5353180159,"U49851","36J","NHS BRADFORD DISTRICT AND CRAVEN CCG",null,null,null,null,"U49851","WACA PCN","36J","NHS BRADFORD DISTRICT AND CRAVEN CCG",null,"U50165","MARKET HARBOROUGH & BOSWORTH PCN"]
["U49896","TEDDINGTON PCN",28442.489879952551,"U49896","36L","NHS SOUTH WEST LONDON CCG",null,null,null,null,"U49896","TEDDINGTON PCN","36L","NHS SOUTH WEST LONDON CCG",null,"U30526","MAYDAY SOUTH PCN"]
["U49929","ROCHFORD PCN",42461.604159295683,"U49929","99F","NHS CASTLE POINT AND ROCHFORD CCG",null,null,null,null,"U49929","ROCHFORD PCN","99F","NHS CASTLE POINT AND ROCHFORD CCG",null,"U40115","MAYFLOWER PCN"]
["U49944","UPPER DON VALLEY PCN",21698.76542329443,"U49944","03N","NHS SHEFFIELD CCG",null,null,null,null,"U49944","UPPER DON VALLEY PCN","03N","NHS SHEFFIELD CCG",null,"U51229","MEDICS PCN"]
["U50083","THE WBC (HEREFORD CITY) PCN",29511.060470824254,"U50083","18C","NHS HEREFORDSHIRE AND WORCESTERSHIRE CCG",null,null,null,null,"U50083","THE WBC (HEREFORD CITY) PCN","18C","NHS HEREFORDSHIRE AND WORCESTERSHIRE CCG",null,"U78466","MEDWAY CENTRAL PCN"]
["U50107","HAVERING MARSHALL PCN",45113.35851287868,"U50107","08F","NHS HAVERING CCG",null,null,null,null,"U50107","HAVERING MARSHALL PCN","08F","NHS HAVERING CCG",null,"U56757","MEDWAY PENINSULA PCN"]
["U50130","IVEL VALLEY NORTH PCN",42009.357844495775,"U50130","06F","NHS BEDFORDSHIRE CCG",null,null,null,null,"U50130","IVEL VALLEY NORTH PCN","06F","NHS BEDFORDSHIRE CCG",null,"U61151","MEDWAY RAINHAM PCN"]
["U50165","MARKET HARBOROUGH & BOSWORTH PCN",28778.762339495541,"U50165","03W","NHS EAST LEICESTERSHIRE AND RUTLAND CCG",null,null,null,null,"U50165","MARKET HARBOROUGH & BOSWORTH PCN","03W","NHS EAST LEICESTERSHIRE AND RUTLAND CCG",null,"U21965","MEDWAY SOUTH PCN"]
["U50197","FROGNAL PCN",45254.372707561393,"U50197","72Q","NHS SOUTH EAST LONDON CCG",null,null,null,null,"U50197","FROGNAL PCN","72Q","NHS SOUTH EAST LONDON CCG",null,"U35724","MEIR PCN"]
["U50263","OTLEY PCN",29361.49327994472,"U50263","15F","NHS LEEDS CCG",null,null,null,null,"U50263","OTLEY PCN","15F","NHS LEEDS CCG",null,"U25294","MELTON, SYSTON AND VALE PCN"]
["U50277","THE CRAYS COLLABORATIVE PCN",36030.272225265195,"U50277","72Q","NHS SOUTH EAST LONDON CCG",null,null,null,null,"U50277","THE CRAYS COLLABORATIVE PCN","72Q","NHS SOUTH EAST LONDON CCG",null,"U21951","MENDIP PCN"]
["U50322","BARNSTAPLE ALLIANCE PCN",50487.528246789669,"U50322","15N","NHS DEVON CCG",null,null,null,null,"U50322","BARNSTAPLE ALLIANCE PCN","15N","NHS DEVON CCG",null,"U79533","MERICAN PCN"]
["U50573","CARNFORTH AND MILNTHORPE PCN",36086.287703602451,"U50573","01K","NHS MORECAMBE BAY CCG",null,null,null,null,"U50573","CARNFORTH AND MILNTHORPE PCN","01K","NHS MORECAMBE BAY CCG",null,"U16538","MERIDIAN HEALTH GROUP NEL PCN"]
["U50767","ASHFORD MEDICAL PARTNERSHIP PCN",28685.997735701701,"U50767","91Q","NHS KENT AND MEDWAY CCG",null,null,null,null,"U50767","ASHFORD MEDICAL PARTNERSHIP PCN","91Q","NHS KENT AND MEDWAY CCG",null,"U19471","MERIDIAN PCN"]
["U50771","TOWER HAMLETS NETWORK 1 PCN",44524.988474502461,"U50771","08V","NHS TOWER HAMLETS CCG",null,null,null,null,"U50771","TOWER HAMLETS NETWORK 1 PCN","08V","NHS TOWER HAMLETS CCG",null,"U46190","MEWSTONE PCN"]
["U50996","LOWER VALLEY PCN",44952.826076475932,"U50996","02T","NHS CALDERDALE CCG",null,null,null,null,"U50996","LOWER VALLEY PCN","02T","NHS CALDERDALE CCG",null,"U59622","MID CHILTERN PCN"]
["U51050","HARROW EAST PCN",25829.130858627061,"U51050","08E","NHS HARROW CCG",null,null,null,null,"U51050","HARROW EAST PCN","08E","NHS HARROW CCG",null,"U40951","MID DEVON HEALTHCARE PCN"]
["U51153","WEOLEY AND RUBERY PCN",45440.796487377163,"U51153","15E","NHS BIRMINGHAM AND SOLIHULL CCG",null,null,null,null,"U51153","WEOLEY AND RUBERY PCN","15E","NHS BIRMINGHAM AND SOLIHULL CCG",null,"U38731","MID DORSET PCN"]
["U51200","ARNOLD AND CALVERTON PCN",33821.678482593001,{"$f":"A643","v":"U51200"},{"$f":"VLOOKUP($A643,$K$2:$N$1255,3,FALSE)","v":"52R"},{"$f":"VLOOKUP($A643,$K$2:$N$1255,4,FALSE)","v":"NHS NOTTINGHAM AND NOTTINGHAMSHIRE CCG"},null,null,null,null,"U51200","ARNOLD AND CALVERTON PCN","52R","NHS NOTTINGHAM AND NOTTINGHAMSHIRE CCG",null,"U25520","MID FURNESS PCN"]
["U51229","MEDICS PCN",60015.465210453003,"U51229","06P","NHS LUTON CCG",null,null,null,null,"U51229","MEDICS PCN","06P","NHS LUTON CCG",null,"U73212","MID NORFOLK PCN"]
["U51307","CRANBROOK PCN",43588.63923516871,"U51307","08N","NHS REDBRIDGE CCG",null,null,null,null,"U51307","CRANBROOK PCN","08N","NHS REDBRIDGE CCG",null,"U96137","MID SUFFOLK PCN"]
["U51357","WOKING WISE 1 PCN",29457.16923281076,"U51357","92A","NHS SURREY HEARTLANDS CCG",null,null,null,null,"U51357","WOKING WISE 1 PCN","92A","NHS SURREY HEARTLANDS CCG",null,"U94664","MIDDLETON AND HUNSLET PCN"]
["U51429","THE VALE PCN",39729.023698601501,"U51429","11J","NHS DORSET CCG",null,null,null,null,"U51429","THE VALE PCN","11J","NHS DORSET CCG",null,"U16428","MIDDLETON PCN"]
["U51488","EAST HILL & ABBEY FIELDS PCN",26880.301991048727,"U51488","06T","NHS NORTH EAST ESSEX CCG",null,null,null,null,"U51488","EAST HILL & ABBEY FIELDS PCN","06T","NHS NORTH EAST ESSEX CCG",null,"U28237","MIDDLEWOOD PCN"]
["U51492","CLISSOLD PARK PCN",34222.464794482265,"U51492","07T","NHS CITY AND HACKNEY CCG",null,null,null,null,"U51492","CLISSOLD PARK PCN","07T","NHS CITY AND HACKNEY CCG",null,"U13098","MILES PLATTING NEWTON HEATH & MOSTON PCN"]
["U51498","HH COLLABORATIVE PCN",71727.144245766263,"U51498","08G","NHS HILLINGDON CCG",null,null,null,null,"U51498","HH COLLABORATIVE PCN","08G","NHS HILLINGDON CCG",null,"U46417","MILL ROAD GROUP PCN"]
["U51577","KENTISH TOWN CENTRAL PCN",34424.374294803929,"U51577","93C","NHS NORTH CENTRAL LONDON CCG",null,null,null,null,"U51577","KENTISH TOWN CENTRAL PCN","93C","NHS NORTH CENTRAL LONDON CCG",null,"U05642","MILLENNIUM PCN"]
["U51636","HARINGEY - NORTH CENTRAL PCN",37096.233867041788,"U51636","93C","NHS NORTH CENTRAL LONDON CCG",null,null,null,null,"U51636","HARINGEY - NORTH CENTRAL PCN","93C","NHS NORTH CENTRAL LONDON CCG",null,"U17156","MILLTOWN ALLIANCE PCN"]
["U51667","BEACON (CHARNWOOD) PCN",33091.766812816102,"U51667","04V","NHS WEST LEICESTERSHIRE CCG",null,null,null,null,"U51667","BEACON (CHARNWOOD) PCN","04V","NHS WEST LEICESTERSHIRE CCG",null,"U79019","MINERVA HEALTH GROUP PCN"]
["U51839","TOTAL HEALTH EXCELLENCE WEST PCN",36151.13499668958,"U51839","91Q","NHS KENT AND MEDWAY CCG",null,null,null,null,"U51839","TOTAL HEALTH EXCELLENCE WEST PCN","91Q","NHS KENT AND MEDWAY CCG",null,"U74554","MMP CENTRAL AND NORTH PCN"]
["U51930","SYNERGY PCN",39566.346923804769,"U51930","08G","NHS HILLINGDON CCG",null,null,null,null,"U51930","SYNERGY PCN","08G","NHS HILLINGDON CCG",null,"U40159","MMWF PCN"]
["U52026","SW SHROPSHIRE PCN",42674.47731019526,"U52026","05N","NHS SHROPSHIRE CCG",null,null,null,null,"U52026","SW SHROPSHIRE PCN","05N","NHS SHROPSHIRE CCG",null,"U85476","MODALITY (KEIGHLEY) PCN"]
["U52075","NORTH RIDING HEALTHY COMMUNITY PCN",42016.249928514946,"U52075","42D","NHS NORTH YORKSHIRE CCG",null,null,null,null,"U52075","NORTH RIDING HEALTHY COMMUNITY PCN","42D","NHS NORTH YORKSHIRE CCG",null,"U22506","MODALITY LEWISHAM PCN"]
["U52199","SELSDON ADDINGTON & SHIRLEY PCN",43526.226906523167,"U52199","36L","NHS SOUTH WEST LONDON CCG",null,null,null,null,"U52199","SELSDON ADDINGTON & SHIRLEY PCN","36L","NHS SOUTH WEST LONDON CCG",null,"U91937","MOORLANDS & RURAL PCN"]
["U52219","NORTH LINCOLNSHIRE SOUTH PCN",77105.567800621284,"U52219","03K","NHS NORTH LINCOLNSHIRE CCG",null,null,null,null,"U52219","NORTH LINCOLNSHIRE SOUTH PCN","03K","NHS NORTH LINCOLNSHIRE CCG",null,"U40458","MORDEN PCN"]
["U52261","BLUE PCN",59349.898023630187,"U52261","78H","NHS NORTHAMPTONSHIRE CCG",null,null,null,null,"U52261","BLUE PCN","78H","NHS NORTHAMPTONSHIRE CCG",null,"U46976","MORETON AND MEOLS PCN"]
["U52297","SUNDERLAND EAST PCN",54947.372851939224,"U52297","00P","NHS SUNDERLAND CCG",null,null,null,null,"U52297","SUNDERLAND EAST PCN","00P","NHS SUNDERLAND CCG",null,"U78449","MORLEY PCN"]
["U52461","CENTRAL HAMPSTEAD PCN",34725.506681046092,"U52461","93C","NHS NORTH CENTRAL LONDON CCG",null,null,null,null,"U52461","CENTRAL HAMPSTEAD PCN","93C","NHS NORTH CENTRAL LONDON CCG",null,"U26844","MOSAIC HEALTHCARE PCN"]
["U52468","TENDRING PCN",47042.679774311604,"U52468","06T","NHS NORTH EAST ESSEX CCG",null,null,null,null,"U52468","TENDRING PCN","06T","NHS NORTH EAST ESSEX CCG",null,"U69625","MOSELEY, BILLESLEY & YARDLEY WOOD PCN"]
["U52546","NORTH WEST MERTON PCN",27295.834740121718,"U52546","36L","NHS SOUTH WEST LONDON CCG",null,null,null,null,"U52546","NORTH WEST MERTON PCN","36L","NHS SOUTH WEST LONDON CCG",null,"U03551","MOTTINGHAM, DOWNHAM & CHISLEHURST PCN"]
["U52641","NORTH NEWHAM PCN",29786.427137897263,"U52641","08M","NHS NEWHAM CCG",null,null,null,null,"U52641","NORTH NEWHAM PCN","08M","NHS NEWHAM CCG",null,"U98318","MOWBRAY SQUARE PCN"]
["U52694","CRAWLEY CARE COLLABORATIVE PCN",39922.130090410174,"U52694","70F","NHS WEST SUSSEX CCG",null,null,null,null,"U52694","CRAWLEY CARE COLLABORATIVE PCN","70F","NHS WEST SUSSEX CCG",null,"U36651","M-WEB PCN"]
["U52763","HAVERHILL PCN",31447.836504678402,"U52763","07K","NHS WEST SUFFOLK CCG",null,null,null,null,"U52763","HAVERHILL PCN","07K","NHS WEST SUFFOLK CCG",null,"U29951","NANTWICH & RURAL PCN"]
["U52802","FOUR COUNTIES PCN",41635.088971769001,"U52802","71E","NHS LINCOLNSHIRE CCG",null,null,null,null,"U52802","FOUR COUNTIES PCN","71E","NHS LINCOLNSHIRE CCG",null,"U79003","NECHELLS, SALTLEY & ALUM ROCK PCN"]
["U52814","KINGSTON PCN",38447.854623099302,"U52814","36L","NHS SOUTH WEST LONDON CCG",null,null,null,null,"U52814","KINGSTON PCN","36L","NHS SOUTH WEST LONDON CCG",null,"U47608","NEOHEALTH PCN"]
["U52827","NORTH ROAD PLUS PCN",27110.109192354612,"U52827","99G","NHS SOUTHEND CCG",null,null,null,null,"U52827","NORTH ROAD PLUS PCN","99G","NHS SOUTHEND CCG",null,"U14878","NESTON & WILLASTON PCN"]
["U52868","ALPS GROUP PCN",62369.921059796266,"U52868","97R","NHS EAST SUSSEX CCG",null,null,null,null,"U52868","ALPS GROUP PCN","97R","NHS EAST SUSSEX CCG",null,"U37297","NETWORK 4 (BNSSG) PCN"]
["U52875","H IS FOR HEALTH PCN",29901.196525663541,"U52875","06F","NHS BEDFORDSHIRE CCG",null,null,null,null,"U52875","H IS FOR HEALTH PCN","06F","NHS BEDFORDSHIRE CCG",null,"U93827","NETWORK NORTH PCN"]
["U52891","CARE ENTERPRISE PCN",37151.589850938777,"U52891","99A","NHS LIVERPOOL CCG",null,null,null,null,"U52891","CARE ENTERPRISE PCN","99A","NHS LIVERPOOL CCG",null,"U26059","NEW FOREST PCN"]
["U53179","GLOUCESTER INNER CITY PCN",32651.750628511811,"U53179","11M","NHS GLOUCESTERSHIRE CCG",null,null,null,null,"U53179","GLOUCESTER INNER CITY PCN","11M","NHS GLOUCESTERSHIRE CCG",null,"U88126","NEW MALDEN & WORCESTER PARK PCN"]
["U53230","THE PICTON PCN",56132.692907336947,"U53230","99A","NHS LIVERPOOL CCG",null,null,null,null,"U53230","THE PICTON PCN","99A","NHS LIVERPOOL CCG",null,"U65095","NEWARK PCN"]
["U53279","CALDER & RYBURN PCN",39278.334332717684,"U53279","02T","NHS CALDERDALE CCG",null,null,null,null,"U53279","CALDER & RYBURN PCN","02T","NHS CALDERDALE CCG",null,"U43524","NEWCASTLE CENTRAL HEALTH PCN"]
["U53317","WOKING WISE 2 PCN",36466.510335227846,"U53317","92A","NHS SURREY HEARTLANDS CCG",null,null,null,null,"U53317","WOKING WISE 2 PCN","92A","NHS SURREY HEARTLANDS CCG",null,"U36134","NEWCASTLE CENTRAL PCN"]
["U53419","ROCKINGHAM FOREST PCN",67882.002821355592,"U53419","78H","NHS NORTHAMPTONSHIRE CCG",null,null,null,null,"U53419","ROCKINGHAM FOREST PCN","78H","NHS NORTHAMPTONSHIRE CCG",null,"U17849","NEWCASTLE EAST PCN"]
["U53562","NORTH SOUTHALL PCN",51206.328896534018,"U53562","07W","NHS EALING CCG",null,null,null,null,"U53562","NORTH SOUTHALL PCN","07W","NHS EALING CCG",null,"U45898","NEWCASTLE INNER WEST PCN"]
["U53612","DACORUM BETA PCN",37736.253606847058,"U53612","06N","NHS HERTS VALLEYS CCG",null,null,null,null,"U53612","DACORUM BETA PCN","06N","NHS HERTS VALLEYS CCG",null,"U81818","NEWCASTLE NORTH PCN"]
["U53775","WESTONGROVE PCN",29970.2102941212,"U53775","14Y","NHS BUCKINGHAMSHIRE CCG",null,null,null,null,"U53775","WESTONGROVE PCN","14Y","NHS BUCKINGHAMSHIRE CCG",null,"U87170","NEWCASTLE OUTER WEST PCN"]
["U53896","NORTH LEWISHAM PCN",76077.158116975785,"U53896","72Q","NHS SOUTH EAST LONDON CCG",null,null,null,null,"U53896","NORTH LEWISHAM PCN","72Q","NHS SOUTH EAST LONDON CCG",null,"U39113","NEWCASTLE SOUTH PCN"]
["U53900","DENTON PCN",53376.61573776367,"U53900","01Y","NHS TAMESIDE AND GLOSSOP CCG",null,null,null,null,"U53900","DENTON PCN","01Y","NHS TAMESIDE AND GLOSSOP CCG",null,"U10748","NEWGATE MEDICAL GROUP PCN"]
["U53962","DURHAM EAST PCN",31009.670170614401,"U53962","84H","NHS COUNTY DURHAM CCG",null,null,null,null,"U53962","DURHAM EAST PCN","84H","NHS COUNTY DURHAM CCG",null,"U71739","NEWHAM CENTRAL 1 PCN"]
["U53963","ASHFIELD SOUTH PCN",42926.341578808802,"U53963","52R","NHS NOTTINGHAM AND NOTTINGHAMSHIRE CCG",null,null,null,null,"U53963","ASHFIELD SOUTH PCN","52R","NHS NOTTINGHAM AND NOTTINGHAMSHIRE CCG",null,"U11373","NEWHAM CENTRAL PCN"]
["U53997","SOUTHAMPTON WOOLSTON & TOWNHILL PCN",35329.390570151758,"U53997","10X","NHS SOUTHAMPTON CCG",null,null,null,null,"U53997","SOUTHAMPTON WOOLSTON & TOWNHILL PCN","10X","NHS SOUTHAMPTON CCG",null,"U34188","NEWHAM NORTH EAST 1 PCN"]
["U53999","GREATER DERBY PCN",88600.514722736698,"U53999","15M","NHS DERBY AND DERBYSHIRE CCG",null,null,null,null,"U53999","GREATER DERBY PCN","15M","NHS DERBY AND DERBYSHIRE CCG",null,"U06978","NEWHAM NORTH EAST 2 PCN"]
["U54007","NORTH CAMDEN PCN",51281.489243542739,"U54007","93C","NHS NORTH CENTRAL LONDON CCG",null,null,null,null,"U54007","NORTH CAMDEN PCN","93C","NHS NORTH CENTRAL LONDON CCG",null,"U94747","NEWHAM NORTH WEST 2 PCN"]
["U54044","SWB CENTRAL HEALTH PARTNERSHIPS PCN",53469.175571876622,"U54044","05L","NHS SANDWELL AND WEST BIRMINGHAM CCG",null,null,null,null,"U54044","SWB CENTRAL HEALTH PARTNERSHIPS PCN","05L","NHS SANDWELL AND WEST BIRMINGHAM CCG",null,"U64003","NEWPORT AND CENTRAL PCN"]
["U54229","SMARTCARE KINGS HEATH PCN",27571.271765056212,"U54229","15E","NHS BIRMINGHAM AND SOLIHULL CCG",null,null,null,null,"U54229","SMARTCARE KINGS HEATH PCN","15E","NHS BIRMINGHAM AND SOLIHULL CCG",null,"U20349","NEWTON AND HAYDOCK PCN"]
["U54308","EAST & CENTRAL BRIGHTON 2 PCN",32946.885303290626,"U54308","09D","NHS BRIGHTON AND HOVE CCG",null,null,null,null,"U54308","EAST & CENTRAL BRIGHTON 2 PCN","09D","NHS BRIGHTON AND HOVE CCG",null,"U34230","NEWTON WEST PCN"]
["U54372","SPEN HEALTH & WELLBEING PCN",52541.386304939559,"U54372","03J","NHS NORTH KIRKLEES CCG",null,null,null,null,"U54372","SPEN HEALTH & WELLBEING PCN","03J","NHS NORTH KIRKLEES CCG",null,"U06387","NEXUS (DEVON) PCN"]
["U54453","TOWER HAMLETS NETWORK 2 PCN",36150.088162585809,"U54453","08V","NHS TOWER HAMLETS CCG",null,null,null,null,"U54453","TOWER HAMLETS NETWORK 2 PCN","08V","NHS TOWER HAMLETS CCG",null,"U31922","NEXUS MK PCN"]
["U54565","WARWICKSHIRE NORTH PCN",38486.155405138292,"U54565","05H","NHS WARWICKSHIRE NORTH CCG",null,null,null,null,"U54565","WARWICKSHIRE NORTH PCN","05H","NHS WARWICKSHIRE NORTH CCG",null,"U33609","NGP PCN"]
["U54760","HIGH WEALD PCN",54408.709453397554,"U54760","97R","NHS EAST SUSSEX CCG",null,null,null,null,"U54760","HIGH WEALD PCN","97R","NHS EAST SUSSEX CCG",null,"U02454","NIGHTINGALE PCN"]
["U54764","LEICESTER CITY SOUTH PCN",34247.490330618006,"U54764","04C","NHS LEICESTER CITY CCG",null,null,null,null,"U54764","LEICESTER CITY SOUTH PCN","04C","NHS LEICESTER CITY CCG",null,"U75079","NORTH & EAST (IW) PCN"]
["U54853","DONCASTER EAST PCN",68549.202725766343,"U54853","02X","NHS DONCASTER CCG",null,null,null,null,"U54853","DONCASTER EAST PCN","02X","NHS DONCASTER CCG",null,"U16338","NORTH & SOUTH GLOUCESTER (NSG) PCN"]
["U54911","LIVERPOOL FIRST PCN",38789.648155090348,"U54911","99A","NHS LIVERPOOL CCG",null,null,null,null,"U54911","LIVERPOOL FIRST PCN","99A","NHS LIVERPOOL CCG",null,"U38064","NORTH & WEST HEREFORDSHIRE PCN"]
["U54948","BALSALL HEATH, SPARKHILL & MOSELEY PCN",40218.159394643459,"U54948","15E","NHS BIRMINGHAM AND SOLIHULL CCG",null,null,null,null,"U54948","BALSALL HEATH, SPARKHILL & MOSELEY PCN","15E","NHS BIRMINGHAM AND SOLIHULL CCG",null,"U90309","NORTH BEDFORD PCN"]
["U55014","BRIGHTON CLUSTER 5 PCN",43765.628501925887,"U55014","09D","NHS BRIGHTON AND HOVE CCG",null,null,null,null,"U55014","BRIGHTON CLUSTER 5 PCN","09D","NHS BRIGHTON AND HOVE CCG",null,"U67110","NORTH BEXLEY PCN"]
["U55146","CENTRAL BASILDON PCN",41405.314197423577,"U55146","99E","NHS BASILDON AND BRENTWOOD CCG",null,null,null,null,"U55146","CENTRAL BASILDON PCN","99E","NHS BASILDON AND BRENTWOOD CCG",null,"U43660","NORTH BIRMINGHAM PCN"]
["U55161","PENNINES PCN",38217.486559697558,"U55161","01D","NHS HEYWOOD, MIDDLETON AND ROCHDALE CCG",null,null,null,null,"U55161","PENNINES PCN","01D","NHS HEYWOOD, MIDDLETON AND ROCHDALE CCG",null,"U12169","NORTH BLABY PCN"]
["U55369","SOUTH FENLAND PCN",32186.673708255825,"U55369","06H","NHS CAMBRIDGESHIRE AND PETERBOROUGH CCG",null,null,null,null,"U55369","SOUTH FENLAND PCN","06H","NHS CAMBRIDGESHIRE AND PETERBOROUGH CCG",null,"U64748","NORTH BOURNEMOUTH PCN"]
["U55387","BARKING & DAGENHAM NORTH PCN",44427.215183503315,"U55387","07L","NHS BARKING AND DAGENHAM CCG",null,null,null,null,"U55387","BARKING & DAGENHAM NORTH PCN","07L","NHS BARKING AND DAGENHAM CCG",null,"U76383","NORTH BRADFORD PCN"]
["U55397","THE COASTAL NETWORK PCN",40603.843039025181,"U55397","15N","NHS DEVON CCG",null,null,null,null,"U55397","THE COASTAL NETWORK PCN","15N","NHS DEVON CCG",null,"U77200","NORTH BUCKS PCN"]
["U55399","BAYWIDE PCN",56447.869858760896,"U55399","15N","NHS DEVON CCG",null,null,null,null,"U55399","BAYWIDE PCN","15N","NHS DEVON CCG",null,"U54007","NORTH CAMDEN PCN"]
["U55441","HALESOWEN PCN",38881.607032728862,{"$f":"A707","v":"U55441"},{"$f":"VLOOKUP($A707,$K$2:$N$1255,3,FALSE)","v":"05C"},{"$f":"VLOOKUP($A707,$K$2:$N$1255,4,FALSE)","v":"NHS DUDLEY CCG"},null,null,null,null,"U55441","HALESOWEN PCN","05C","NHS DUDLEY CCG",null,"U07392","NORTH CONNECT PCN"]
["U55709","CENTRAL 2 ISLINGTON PCN",44049.629397547964,"U55709","93C","NHS NORTH CENTRAL LONDON CCG",null,null,null,null,"U55709","CENTRAL 2 ISLINGTON PCN","93C","NHS NORTH CENTRAL LONDON CCG",null,"U03864","NORTH CORNWALL COAST"]
["U55717","HAMMERSMITH & FULHAM CENTRAL PCN",32528.135628365206,"U55717","08C","NHS HAMMERSMITH AND FULHAM CCG",null,null,null,null,"U55717","HAMMERSMITH & FULHAM CENTRAL PCN","08C","NHS HAMMERSMITH AND FULHAM CCG",null,"U09847","NORTH COTSWOLDS PCN"]
["U55724","ARDEN PCN",41583.307415257936,"U55724","05R","NHS SOUTH WARWICKSHIRE CCG",null,null,null,null,"U55724","ARDEN PCN","05R","NHS SOUTH WARWICKSHIRE CCG",null,"U91913","NORTH DARTMOOR PCN"]
["U55812","STEVENAGE NORTH PCN",55627.738123231058,"U55812","06K","NHS EAST AND NORTH HERTFORDSHIRE CCG",null,null,null,null,"U55812","STEVENAGE NORTH PCN","06K","NHS EAST AND NORTH HERTFORDSHIRE CCG",null,"U21059","NORTH DEVON COASTAL PCN"]
["U55830","CENTRAL MIDDLESBROUGH PCN",54424.211979451087,"U55830","16C","NHS TEES VALLEY CCG",null,null,null,null,"U55830","CENTRAL MIDDLESBROUGH PCN","16C","NHS TEES VALLEY CCG",null,"U81825","NORTH EASINGTON PCN"]
["U55939","HAVERING NORTH PCN",84659.227325493179,"U55939","08F","NHS HAVERING CCG",null,null,null,null,"U55939","HAVERING NORTH PCN","08F","NHS HAVERING CCG",null,"U10033","NORTH EAST COASTAL PCN"]
["U55979","SARUM WEST PCN",38447.375695626717,"U55979","92G","NHS BATH AND NORTH EAST SOMERSET, SWINDON AND WILTSHIRE CCG",null,null,null,null,"U55979","SARUM WEST PCN","92G","NHS BATH AND NORTH EAST SOMERSET, SWINDON AND WILTSHIRE CCG",null,"U67865","NORTH EAST DERBYSHIRE PCN"]
["U56140","COASTAL (WEST HAMPSHIRE) PCN",38035.141379591703,"U56140","11A","NHS WEST HAMPSHIRE CCG",null,null,null,null,"U56140","COASTAL (WEST HAMPSHIRE) PCN","11A","NHS WEST HAMPSHIRE CCG",null,"U95792","NORTH EAST IPSWICH PCN"]
["U56215","TRENT CARE PCN",44882.208605266584,"U56215","71E","NHS LINCOLNSHIRE CCG",null,null,null,null,"U56215","TRENT CARE PCN","71E","NHS LINCOLNSHIRE CCG",null,"U70624","NORTH GOSFORTH PCN"]
["U56223","BRIDLINGTON PCN",51887.330518429888,"U56223","02Y","NHS EAST RIDING OF YORKSHIRE CCG",null,null,null,null,"U56223","BRIDLINGTON PCN","02Y","NHS EAST RIDING OF YORKSHIRE CCG",null,"U86623","NORTH GUILDFORD PCN"]
["U56341","BRENTWORTH PCN",59530.992054512273,"U56341","07Y","NHS HOUNSLOW CCG",null,null,null,null,"U56341","BRENTWORTH PCN","07Y","NHS HOUNSLOW CCG",null,"U84379","NORTH HALIFAX PCN"]
["U56562","PRIORY MEDICAL GROUP YORK PCN",52492.145009318701,"U56562","03Q","NHS VALE OF YORK CCG",null,null,null,null,"U56562","PRIORY MEDICAL GROUP YORK PCN","03Q","NHS VALE OF YORK CCG",null,"U73163","NORTH HAMMERSMITH & FULHAM PCN"]
["U56575","LOCC PCN",39015.320179425762,"U56575","15D","NHS EAST BERKSHIRE CCG",null,null,null,null,"U56575","LOCC PCN","15D","NHS EAST BERKSHIRE CCG",null,"U05048","NORTH HARDWICK BOLSOVER PCN"]
["U56676","EPPING FOREST NORTH PCN",68601.789519530954,"U56676","07H","NHS WEST ESSEX CCG",null,null,null,null,"U56676","EPPING FOREST NORTH PCN","07H","NHS WEST ESSEX CCG",null,"U36795","NORTH ISLINGTON PCN"]
["U56681","DOCKLANDS PCN",41155.298197157412,"U56681","08M","NHS NEWHAM CCG",null,null,null,null,"U56681","DOCKLANDS PCN","08M","NHS NEWHAM CCG",null,"U68213","NORTH KERRIER EAST PCN"]
["U56729","SEISDON PCN",53133.201339422303,"U56729","05Q","NHS SOUTH EAST STAFFORDSHIRE AND SEISDON PENINSULA CCG",null,null,null,null,"U56729","SEISDON PCN","05Q","NHS SOUTH EAST STAFFORDSHIRE AND SEISDON PENINSULA CCG",null,"U92128","NORTH KERRIER WEST PCN"]
["U56757","MEDWAY PENINSULA PCN",38871.676137574301,"U56757","91Q","NHS KENT AND MEDWAY CCG",null,null,null,null,"U56757","MEDWAY PENINSULA PCN","91Q","NHS KENT AND MEDWAY CCG",null,"U38045","NORTH LAMBETH PCN"]
["U56857","CHEADLE NETWORK PCN",32322.356676032563,"U56857","01W","NHS STOCKPORT CCG",null,null,null,null,"U56857","CHEADLE NETWORK PCN","01W","NHS STOCKPORT CCG",null,"U53896","NORTH LEWISHAM PCN"]
["U56977","KNARESBOROUGH & RURAL PCN",55009.033195923657,"U56977","42D","NHS NORTH YORKSHIRE CCG",null,null,null,null,"U56977","KNARESBOROUGH & RURAL PCN","42D","NHS NORTH YORKSHIRE CCG",null,"U44401","NORTH LINCOLNSHIRE EAST PCN"]
["U57009","FILEY AND SCARBOROUGH PCN",37038.405677666451,"U57009","42D","NHS NORTH YORKSHIRE CCG",null,null,null,null,"U57009","FILEY AND SCARBOROUGH PCN","42D","NHS NORTH YORKSHIRE CCG",null,"U97101","NORTH LINCOLNSHIRE NORTH PCN"]
["U57294","SWB CARITAS PCN",27539.98799970515,"U57294","05L","NHS SANDWELL AND WEST BIRMINGHAM CCG",null,null,null,null,"U57294","SWB CARITAS PCN","05L","NHS SANDWELL AND WEST BIRMINGHAM CCG",null,"U52219","NORTH LINCOLNSHIRE SOUTH PCN"]
["U57300","CARE COLLABORATIVE (REDHILL) PCN",44289.566894097799,"U57300","92A","NHS SURREY HEARTLANDS CCG",null,null,null,null,"U57300","CARE COLLABORATIVE (REDHILL) PCN","92A","NHS SURREY HEARTLANDS CCG",null,"U79163","NORTH LINCOLNSHIRE WEST PCN"]
["U57321","ABINGDON AND DISTRICT PCN",28515.049558530111,"U57321","10Q","NHS OXFORDSHIRE CCG",null,null,null,null,"U57321","ABINGDON AND DISTRICT PCN","10Q","NHS OXFORDSHIRE CCG",null,"U64639","NORTH LIVERPOOL PCN"]
["U57480","SWAGGA PCN",101851.45739710383,"U57480","99A","NHS LIVERPOOL CCG",null,null,null,null,"U57480","SWAGGA PCN","99A","NHS LIVERPOOL CCG",null,"U77811","NORTH MERTON PCN"]
["U57586","BRENT NORTH KWH PCN",40940.852597413657,"U57586","07P","NHS BRENT CCG",null,null,null,null,"U57586","BRENT NORTH KWH PCN","07P","NHS BRENT CCG",null,"U52641","NORTH NEWHAM PCN"]
["U57641","EAST STAFFORDSHIRE PCN",147845.8634546278,"U57641","05D","NHS EAST STAFFORDSHIRE CCG",null,null,null,null,"U57641","EAST STAFFORDSHIRE PCN","05D","NHS EAST STAFFORDSHIRE CCG",null,"U94681","NORTH NORFOLK 1 PCN"]
["U57786","SWINTON PCN",48522.107723442707,"U57786","01G","NHS SALFORD CCG",null,null,null,null,"U57786","SWINTON PCN","01G","NHS SALFORD CCG",null,"U91215","NORTH NORFOLK 2 PCN"]
["U57955","HAMBLETON SOUTH PCN",31590.855975855993,"U57955","42D","NHS NORTH YORKSHIRE CCG",null,null,null,null,"U57955","HAMBLETON SOUTH PCN","42D","NHS NORTH YORKSHIRE CCG",null,"U62485","NORTH NORFOLK 3 PCN"]
["U57981","CHANCTONBURY PCN",51910.174218546701,"U57981","70F","NHS WEST SUSSEX CCG",null,null,null,null,"U57981","CHANCTONBURY PCN","70F","NHS WEST SUSSEX CCG",null,"U04154","NORTH NORFOLK 4 PCN"]
["U58020","SEVENFIELDS PCN",59190.835185135329,"U58020","72Q","NHS SOUTH EAST LONDON CCG",null,null,null,null,"U58020","SEVENFIELDS PCN","72Q","NHS SOUTH EAST LONDON CCG",null,"U95654","NORTH OXFORDSHIRE RURAL ALLIANCE (NORA) PCN"]
["U58127","COVENTRY CENTAL PCN",33263.818619852536,"U58127","05A","NHS COVENTRY AND RUGBY CCG",null,null,null,null,"U58127","COVENTRY CENTAL PCN","05A","NHS COVENTRY AND RUGBY CCG",null,"U52075","NORTH RIDING HEALTHY COMMUNITY PCN"]
["U58188","NORTHENDEN & BROOKLANDS (WYTHENSHAWE) PCN",31508.158948817581,"U58188","14L","NHS MANCHESTER CCG",null,null,null,null,"U58188","NORTHENDEN & BROOKLANDS (WYTHENSHAWE) PCN","14L","NHS MANCHESTER CCG",null,"U52827","NORTH ROAD PLUS PCN"]
["U58215","SOUTH UTTLESFORD PCN",52948.387938329222,"U58215","07H","NHS WEST ESSEX CCG",null,null,null,null,"U58215","SOUTH UTTLESFORD PCN","07H","NHS WEST ESSEX CCG",null,"U00760","NORTH SEDGEMOOR PCN"]
["U58256","WELL STREET COMMON PCN",38166.519321324478,"U58256","07T","NHS CITY AND HACKNEY CCG",null,null,null,null,"U58256","WELL STREET COMMON PCN","07T","NHS CITY AND HACKNEY CCG",null,"U91110","NORTH SHIELDS PCN"]
["U58312","ENFIELD UNITY PCN",144499.32174777624,"U58312","93C","NHS NORTH CENTRAL LONDON CCG",null,null,null,null,"U58312","ENFIELD UNITY PCN","93C","NHS NORTH CENTRAL LONDON CCG",null,"U24883","NORTH SHROPSHIRE PCN"]
["U58435","FIRST COASTAL PCN",73095.750274295409,"U58435","71E","NHS LINCOLNSHIRE CCG",null,null,null,null,"U58435","FIRST COASTAL PCN","71E","NHS LINCOLNSHIRE CCG",null,"U27032","NORTH SOLIHULL NORTH PCN"]
["U58525","SASSE NETWORK 2 PCN",35916.968381901817,"U58525","92A","NHS SURREY HEARTLANDS CCG",null,null,null,null,"U58525","SASSE NETWORK 2 PCN","92A","NHS SURREY HEARTLANDS CCG",null,"U19037","NORTH SOLIHULL SOUTH PCN"]
["U58538","BARNET 3 PCN",111580.35057603139,"U58538","93C","NHS NORTH CENTRAL LONDON CCG",null,null,null,null,"U58538","BARNET 3 PCN","93C","NHS NORTH CENTRAL LONDON CCG",null,"U53562","NORTH SOUTHALL PCN"]
["U58600","WATLING STREET NETWORK PCN",37441.689770381905,"U58600","04F","NHS MILTON KEYNES CCG",null,null,null,null,"U58600","WATLING STREET NETWORK PCN","04F","NHS MILTON KEYNES CCG",null,"U06180","NORTH SOUTHWARK PCN"]
["U58673","ROYAL PARKS PCN",33948.947824229253,"U58673","78H","NHS NORTHAMPTONSHIRE CCG",null,null,null,null,"U58673","ROYAL PARKS PCN","78H","NHS NORTHAMPTONSHIRE CCG",null,"U07032","NORTH STOCKTON PCN"]
["U58704","IMP PCN",71762.589593093784,"U58704","71E","NHS LINCOLNSHIRE CCG",null,null,null,null,"U58704","IMP PCN","71E","NHS LINCOLNSHIRE CCG",null,"U86169","NORTH TANDRIDGE PCN"]
["U58840","JURASSIC COAST PCN",45094.776079252952,"U58840","11J","NHS DORSET CCG",null,null,null,null,"U58840","JURASSIC COAST PCN","11J","NHS DORSET CCG",null,"U66368","NORTH TRAFFORD PCN"]
["U58973","STORT VALLEY & VILLAGES PCN",56231.011155099419,"U58973","06K","NHS EAST AND NORTH HERTFORDSHIRE CCG",null,null,null,null,"U58973","STORT VALLEY & VILLAGES PCN","06K","NHS EAST AND NORTH HERTFORDSHIRE CCG",null,"U95193","NORTH TYNESIDE NORTH WEST PCN"]
["U59216","UNITY (NOTTINGHAM) PCN",35931.232668285607,"U59216","52R","NHS NOTTINGHAM AND NOTTINGHAMSHIRE CCG",null,null,null,null,"U59216","UNITY (NOTTINGHAM) PCN","52R","NHS NOTTINGHAM AND NOTTINGHAMSHIRE CCG",null,"U16446","NORTH UTTLESFORD PCN"]
["U59367","THE GRAND UNION PCN",51723.108904504901,"U59367","06N","NHS HERTS VALLEYS CCG",null,null,null,null,"U59367","THE GRAND UNION PCN","06N","NHS HERTS VALLEYS CCG",null,"U77203","NORTH WATFORD PCN"]
["U59570","GRANGE AND LAKES PCN",35748.537154951111,"U59570","01K","NHS MORECAMBE BAY CCG",null,null,null,null,"U59570","GRANGE AND LAKES PCN","01K","NHS MORECAMBE BAY CCG",null,"U90610","NORTH WEST IPSWICH PCN"]
["U59591","OASIS PCN",34843.337705013888,"U59591","06P","NHS LUTON CCG",null,null,null,null,"U59591","OASIS PCN","06P","NHS LUTON CCG",null,"U42007","NORTH WEST LEICESTERSHIRE PCN"]
["U59622","MID CHILTERN PCN",41308.883905189978,"U59622","14Y","NHS BUCKINGHAMSHIRE CCG",null,null,null,null,"U59622","MID CHILTERN PCN","14Y","NHS BUCKINGHAMSHIRE CCG",null,"U52546","NORTH WEST MERTON PCN"]
["U59961","LOWESTOFT PCN",82684.318863454988,"U59961","26A","NHS NORFOLK AND WAVENEY CCG",null,null,null,null,"U59961","LOWESTOFT PCN","26A","NHS NORFOLK AND WAVENEY CCG",null,"U49616","NORTH WEST SUFFOLK PCN"]
["U59980","WESTERN DALES PCN",20180.070665834381,"U59980","01K","NHS MORECAMBE BAY CCG",null,null,null,null,"U59980","WESTERN DALES PCN","01K","NHS MORECAMBE BAY CCG",null,"U96127","NORTH WIGAN PCN"]
["U60057","SHREWSBURY PCN",129485.37902713048,"U60057","05N","NHS SHROPSHIRE CCG",null,null,null,null,"U60057","SHREWSBURY PCN","05N","NHS SHROPSHIRE CCG",null,"U61347","NORTH WILTS BORDER PCN"]
["U60094","SOUTH SOUTHWARK PCN",147128.20166689489,"U60094","72Q","NHS SOUTH EAST LONDON CCG",null,null,null,null,"U60094","SOUTH SOUTHWARK PCN","72Q","NHS SOUTH EAST LONDON CCG",null,"U96568","NORTHAMPTONSHIRE RURAL PCN"]
["U60098","WOLVERHAMPTON NORTH NETWORK PCN",54999.587827207426,"U60098","06A","NHS WOLVERHAMPTON CCG",null,null,null,null,"U60098","WOLVERHAMPTON NORTH NETWORK PCN","06A","NHS WOLVERHAMPTON CCG",null,"U58188","NORTHENDEN & BROOKLANDS (WYTHENSHAWE) PCN"]
["U60113","THREE HARBOURS AND BOSVENA PCN",46952.523057919949,"U60113","11N","NHS KERNOW CCG",null,null,null,null,"U60113","THREE HARBOURS AND BOSVENA PCN","11N","NHS KERNOW CCG",null,"U70886","NORTHERN ARC PCN"]
["U60176","3 CENTRES PCN",43129.492772973128,"U60176","03J","NHS NORTH KIRKLEES CCG",null,null,null,null,"U60176","3 CENTRES PCN","03J","NHS NORTH KIRKLEES CCG",null,"U67183","NORTHERN PARISHES PCN"]
["U60337","CENTRAL 1 ISLINGTON PCN",55566.866957637059,"U60337","93C","NHS NORTH CENTRAL LONDON CCG",null,null,null,null,"U60337","CENTRAL 1 ISLINGTON PCN","93C","NHS NORTH CENTRAL LONDON CCG",null,"U87298","NORTHOLT PCN"]
["U60450","HEALTH ALLIANCE PCN",47269.033465627486,"U60450","08E","NHS HARROW CCG",null,null,null,null,"U60450","HEALTH ALLIANCE PCN","08E","NHS HARROW CCG",null,"U88623","NORTHWICH PCN"]
["U60509","DERBY CITY NORTH PCN",73658.010897286033,"U60509","15M","NHS DERBY AND DERBYSHIRE CCG",null,null,null,null,"U60509","DERBY CITY NORTH PCN","15M","NHS DERBY AND DERBYSHIRE CCG",null,"U13557","NORWICH PCN"]
["U60510","ORDSALL & CLAREMONT PCN",78171.353278593451,"U60510","01G","NHS SALFORD CCG",null,null,null,null,"U60510","ORDSALL & CLAREMONT PCN","01G","NHS SALFORD CCG",null,"U47242","NOTTINGHAM CITY EAST PCN"]
["U60524","CROXTED PCN",35012.184535666231,"U60524","72Q","NHS SOUTH EAST LONDON CCG",null,null,null,null,"U60524","CROXTED PCN","72Q","NHS SOUTH EAST LONDON CCG",null,"U99463","NOTTINGHAM WEST PCN"]
["U60622","SOUTH SOMERSET WEST PCN",38729.178116126895,"U60622","11X","NHS SOMERSET CCG",null,null,null,null,"U60622","SOUTH SOMERSET WEST PCN","11X","NHS SOMERSET CCG",null,"U92562","NUNEATON NORTH PCN"]
["U60843","OAKDALE PARK PCN",35582.2723301031,"U60843","15M","NHS DERBY AND DERBYSHIRE CCG",null,null,null,null,"U60843","OAKDALE PARK PCN","15M","NHS DERBY AND DERBYSHIRE CCG",null,"U33098","NUNEATON SOUTH PCN"]
["U60845","WALSALL SOUTH 2 PCN",41282.103126805523,"U60845","05Y","NHS WALSALL CCG",null,null,null,null,"U60845","WALSALL SOUTH 2 PCN","05Y","NHS WALSALL CCG",null,"U09521","OADBY & WIGSTON PCN"]
["U60865","TOWER HAMLETS NETWORK 7 PCN",45940.558313606074,{"$f":"A771","v":"U60865"},{"$f":"VLOOKUP($A771,$K$2:$N$1255,3,FALSE)","v":"08V"},{"$f":"VLOOKUP($A771,$K$2:$N$1255,4,FALSE)","v":"NHS TOWER HAMLETS CCG"},null,null,null,null,"U60865","TOWER HAMLETS NETWORK 7 PCN","08V","NHS TOWER HAMLETS CCG",null,"U60843","OAKDALE PARK PCN"]
["U60916","CITY - OX3+ PCN",41902.109349660801,"U60916","10Q","NHS OXFORDSHIRE CCG",null,null,null,null,"U60916","CITY - OX3+ PCN","10Q","NHS OXFORDSHIRE CCG",null,"U59591","OASIS PCN"]
["U60978","GLOSSOP PCN",32110.420353826372,"U60978","01Y","NHS TAMESIDE AND GLOSSOP CCG",null,null,null,null,"U60978","GLOSSOP PCN","01Y","NHS TAMESIDE AND GLOSSOP CCG",null,"U85953","OCTAGON NORTH PCN"]
["U61151","MEDWAY RAINHAM PCN",47630.272683674462,"U61151","91Q","NHS KENT AND MEDWAY CCG",null,null,null,null,"U61151","MEDWAY RAINHAM PCN","91Q","NHS KENT AND MEDWAY CCG",null,"U79015","OCTAGON WISBECH PCN"]
["U61321","BELPER PCN",45490.254757307062,"U61321","15M","NHS DERBY AND DERBYSHIRE CCG",null,null,null,null,"U61321","BELPER PCN","15M","NHS DERBY AND DERBYSHIRE CCG",null,"U45156","OLDBURY & SMETHWICK PCN"]
["U61347","NORTH WILTS BORDER PCN",54511.153374076333,"U61347","92G","NHS BATH AND NORTH EAST SOMERSET, SWINDON AND WILTSHIRE CCG",null,null,null,null,"U61347","NORTH WILTS BORDER PCN","92G","NHS BATH AND NORTH EAST SOMERSET, SWINDON AND WILTSHIRE CCG",null,"U14327","OLDHAM CENTRAL PCN"]
["U61505","HOLT PARK PCN",36744.977800838693,"U61505","15F","NHS LEEDS CCG",null,null,null,null,"U61505","HOLT PARK PCN","15F","NHS LEEDS CCG",null,"U75449","OLDHAM EAST PCN"]
["U61868","WASHINGTON PCN",58016.639288235128,"U61868","00P","NHS SUNDERLAND CCG",null,null,null,null,"U61868","WASHINGTON PCN","00P","NHS SUNDERLAND CCG",null,"U41563","OLDHAM NORTH PCN"]
["U61963","WANDLE PCN",46397.896655851604,"U61963","36L","NHS SOUTH WEST LONDON CCG",null,null,null,null,"U61963","WANDLE PCN","36L","NHS SOUTH WEST LONDON CCG",null,"U67660","OLDHAM SOUTH PCN"]
["U62043","COASTAL (KERNOW) PCN",30753.22217755056,"U62043","11N","NHS KERNOW CCG",null,null,null,null,"U62043","COASTAL (KERNOW) PCN","11N","NHS KERNOW CCG",null,"U85986","ONE ELLESMERE PORT PCN"]
["U62213","RUGBY PCN",109847.41660830614,"U62213","05A","NHS COVENTRY AND RUGBY CCG",null,null,null,null,"U62213","RUGBY PCN","05A","NHS COVENTRY AND RUGBY CCG",null,"U27349","ONE LIFE HARTLEPOOL PCN"]
["U62360","SOUTH FULHAM PCN",51599.866226200291,"U62360","08C","NHS HAMMERSMITH AND FULHAM CCG",null,null,null,null,"U62360","SOUTH FULHAM PCN","08C","NHS HAMMERSMITH AND FULHAM CCG",null,"U33024","ONE THORNTON HEATH PCN"]
["U62384","HULL MODALITY PARTNERSHIP PCN",85262.045686115365,"U62384","03F","NHS HULL CCG",null,null,null,null,"U62384","HULL MODALITY PARTNERSHIP PCN","03F","NHS HULL CCG",null,"U60510","ORDSALL & CLAREMONT PCN"]
["U62485","NORTH NORFOLK 3 PCN",48946.70049343002,"U62485","26A","NHS NORFOLK AND WAVENEY CCG",null,null,null,null,"U62485","NORTH NORFOLK 3 PCN","26A","NHS NORFOLK AND WAVENEY CCG",null,"U21757","ORMSKIRK PCN"]
["U62545","EAST KENNET PCN",37067.902413210388,"U62545","92G","NHS BATH AND NORTH EAST SOMERSET, SWINDON AND WILTSHIRE CCG",null,null,null,null,"U62545","EAST KENNET PCN","92G","NHS BATH AND NORTH EAST SOMERSET, SWINDON AND WILTSHIRE CCG",null,"U87524","ORPINGTON PCN"]
["U62614","K AND C SOUTH PCN",39035.65019413321,"U62614","08Y","NHS WEST LONDON CCG",null,null,null,null,"U62614","K AND C SOUTH PCN","08Y","NHS WEST LONDON CCG",null,"U40593","ORWELL PCN"]
["U62853","TOWNSHIPS 1 PCN",41327.510822505079,"U62853","03N","NHS SHEFFIELD CCG",null,null,null,null,"U62853","TOWNSHIPS 1 PCN","03N","NHS SHEFFIELD CCG",null,"U50263","OTLEY PCN"]
["U62975","SOUTH WORCS DROITWITCH & OMBERSLEY PCN",35750.363915178321,"U62975","18C","NHS HEREFORDSHIRE AND WORCESTERSHIRE CCG",null,null,null,null,"U62975","SOUTH WORCS DROITWITCH & OMBERSLEY PCN","18C","NHS HEREFORDSHIRE AND WORCESTERSHIRE CCG",null,"U32372","OUTER EXETER PCN"]
["U62999","WEST TWICKENHAM PCN",30041.172488324482,"U62999","36L","NHS SOUTH WEST LONDON CCG",null,null,null,null,"U62999","WEST TWICKENHAM PCN","36L","NHS SOUTH WEST LONDON CCG",null,"U26997","OXFORD CENTRAL PCN"]
["U63047","WEST ENFIELD COLLABORATIVE PCN",36240.706371002161,"U63047","93C","NHS NORTH CENTRAL LONDON CCG",null,null,null,null,"U63047","WEST ENFIELD COLLABORATIVE PCN","93C","NHS NORTH CENTRAL LONDON CCG",null,"U93843","PANACEA PCN"]
["U63072","ST IVES PCN",45962.18369454574,"U63072","06H","NHS CAMBRIDGESHIRE AND PETERBOROUGH CCG",null,null,null,null,"U63072","ST IVES PCN","06H","NHS CAMBRIDGESHIRE AND PETERBOROUGH CCG",null,"U69252","PARKWOOD PCN"]
["U63129","BULWELL AND TOP VALLEY PCN",47157.761299524595,"U63129","52R","NHS NOTTINGHAM AND NOTTINGHAMSHIRE CCG",null,null,null,null,"U63129","BULWELL AND TOP VALLEY PCN","52R","NHS NOTTINGHAM AND NOTTINGHAMSHIRE CCG",null,"U69865","PATHFIELDS MEDICAL GROUP PCN"]
["U63186","CAVERSHAM PCN",29429.477386180501,"U63186","15A","NHS BERKSHIRE WEST CCG",null,null,null,null,"U63186","CAVERSHAM PCN","15A","NHS BERKSHIRE WEST CCG",null,"U06438","PCCO PCN"]
["U63233","EASTLEIGH SOUTHERN PARISHES PCN",40328.88223494932,"U63233","11A","NHS WEST HAMPSHIRE CCG",null,null,null,null,"U63233","EASTLEIGH SOUTHERN PARISHES PCN","11A","NHS WEST HAMPSHIRE CCG",null,"U64938","PEAK EDGE PCN"]
["U63258","DERBYSHIRE DALES PCN",87405.289913104061,"U63258","15M","NHS DERBY AND DERBYSHIRE CCG",null,null,null,null,"U63258","DERBYSHIRE DALES PCN","15M","NHS DERBY AND DERBYSHIRE CCG",null,"U21400","PENDLE EAST PCN"]
["U63454","WYRE RURAL EXTENDED NEIGHBOURHOOD (WREN) PCN",64222.608951500668,"U63454","02M","NHS FYLDE AND WYRE CCG",null,null,null,null,"U63454","WYRE RURAL EXTENDED NEIGHBOURHOOD (WREN) PCN","02M","NHS FYLDE AND WYRE CCG",null,"U08086","PENDLE WEST PCN"]
["U63540","BATLEY BIRSTALL PCN",57240.595633235593,"U63540","03J","NHS NORTH KIRKLEES CCG",null,null,null,null,"U63540","BATLEY BIRSTALL PCN","03J","NHS NORTH KIRKLEES CCG",null,"U76778","PENGE PCN"]
["U63565","TWNS PCN",48577.204079759933,"U63565","11M","NHS GLOUCESTERSHIRE CCG",null,null,null,null,"U63565","TWNS PCN","11M","NHS GLOUCESTERSHIRE CCG",null,"U55161","PENNINES PCN"]
["U63770","BATH INDEPENDENTS PCN",24286.235743673082,"U63770","92G","NHS BATH AND NORTH EAST SOMERSET, SWINDON AND WILTSHIRE CCG",null,null,null,null,"U63770","BATH INDEPENDENTS PCN","92G","NHS BATH AND NORTH EAST SOMERSET, SWINDON AND WILTSHIRE CCG",null,"U76032","PENWITH PCN"]
["U63843","PIER HEALTH PCN",102334.94316162531,"U63843","15C","NHS BRISTOL, NORTH SOMERSET AND SOUTH GLOUCESTERSHIRE CCG",null,null,null,null,"U63843","PIER HEALTH PCN","15C","NHS BRISTOL, NORTH SOMERSET AND SOUTH GLOUCESTERSHIRE CCG",null,"U25240","PEOPLE'S HEALTH PARTNERSHIP PCN"]
["U63844","BYTES PCN",49497.052330251325,"U63844","16C","NHS TEES VALLEY CCG",null,null,null,null,"U63844","BYTES PCN","16C","NHS TEES VALLEY CCG",null,"U88190","PERSHORE PCN"]
["U63948","WATERMEAD PCN",30355.343269186404,"U63948","04V","NHS WEST LEICESTERSHIRE CCG",null,null,null,null,"U63948","WATERMEAD PCN","04V","NHS WEST LEICESTERSHIRE CCG",null,"U13771","PETERBOROUGH PARTNERSHIPS PCN"]
["U64003","NEWPORT AND CENTRAL PCN",55164.235369943301,"U64003","05X","NHS TELFORD AND WREKIN CCG",null,null,null,null,"U64003","NEWPORT AND CENTRAL PCN","05X","NHS TELFORD AND WREKIN CCG",null,"U65207","PHOENIX (BNSSG) PCN"]
["U64053","ISLES OF SCILLY & SOUTH KERRIER PCN",36203.1929938709,"U64053","11N","NHS KERNOW CCG",null,null,null,null,"U64053","ISLES OF SCILLY & SOUTH KERRIER PCN","11N","NHS KERNOW CCG",null,"U15166","PHOENIX (MID ESSEX) PCN"]
["U64148","LICHFIELD PCN",40611.395660083399,"U64148","05Q","NHS SOUTH EAST STAFFORDSHIRE AND SEISDON PENINSULA CCG",null,null,null,null,"U64148","LICHFIELD PCN","05Q","NHS SOUTH EAST STAFFORDSHIRE AND SEISDON PENINSULA CCG",null,"U27128","PHOENIX SUNRISERS PCN"]
["U64165","TITAN PCN",31719.022893226113,"U64165","06F","NHS BEDFORDSHIRE CCG",null,null,null,null,"U64165","TITAN PCN","06F","NHS BEDFORDSHIRE CCG",null,"U63843","PIER HEALTH PCN"]
["U64175","CYGNET EAST RIDING PCN",53706.022880666147,"U64175","02Y","NHS EAST RIDING OF YORKSHIRE CCG",null,null,null,null,"U64175","CYGNET EAST RIDING PCN","02Y","NHS EAST RIDING OF YORKSHIRE CCG",null,"U14261","POOLE BAY & BOURNEMOUTH PCN"]
["U64232","B-CONNECTED CARE PCN",34994.409601671199,"U64232","10J","NHS NORTH HAMPSHIRE CCG",null,null,null,null,"U64232","B-CONNECTED CARE PCN","10J","NHS NORTH HAMPSHIRE CCG",null,"U80758","POOLE CENTRAL PCN"]
["U64356","EAST MK PCN",47656.265259893546,"U64356","04F","NHS MILTON KEYNES CCG",null,null,null,null,"U64356","EAST MK PCN","04F","NHS MILTON KEYNES CCG",null,"U16737","POOLE NORTH PCN"]
["U64426","BELGRAVE & SPINNEY HILL PCN",45117.206658566109,"U64426","04C","NHS LEICESTER CITY CCG",null,null,null,null,"U64426","BELGRAVE & SPINNEY HILL PCN","04C","NHS LEICESTER CITY CCG",null,"U13245","PORTER VALLEY PCN"]
["U64487","ROCHDALE NORTH PCN",62174.588051362211,"U64487","01D","NHS HEYWOOD, MIDDLETON AND ROCHDALE CCG",null,null,null,null,"U64487","ROCHDALE NORTH PCN","01D","NHS HEYWOOD, MIDDLETON AND ROCHDALE CCG",null,"U07449","PORTSDOWN PCN"]
["U64531","TEMPLER CARE NETWORK PCN",32707.101674572048,"U64531","15N","NHS DEVON CCG",null,null,null,null,"U64531","TEMPLER CARE NETWORK PCN","15N","NHS DEVON CCG",null,"U19124","PORTSMOUTH NORTH PCN"]
["U64595","HULME MOSS SIDE & RUSHOLME PCN",52006.635421504463,"U64595","14L","NHS MANCHESTER CCG",null,null,null,null,"U64595","HULME MOSS SIDE & RUSHOLME PCN","14L","NHS MANCHESTER CCG",null,"U72114","PORTSMOUTH SOUTH COAST PCN"]
["U64597","HAZEL GROVE HIGH LANE & MARPLE PCN",40333.069359615634,"U64597","01W","NHS STOCKPORT CCG",null,null,null,null,"U64597","HAZEL GROVE HIGH LANE & MARPLE PCN","01W","NHS STOCKPORT CCG",null,"U24727","POTTERS BAR PCN"]
["U64639","NORTH LIVERPOOL PCN",81637.76793032253,"U64639","99A","NHS LIVERPOOL CCG",null,null,null,null,"U64639","NORTH LIVERPOOL PCN","99A","NHS LIVERPOOL CCG",null,"U04914","PRESTON EAST PCN"]
["U64705","DHG SOUTH PCN",36949.667878366905,"U64705","06L","NHS IPSWICH AND EAST SUFFOLK CCG",null,null,null,null,"U64705","DHG SOUTH PCN","06L","NHS IPSWICH AND EAST SUFFOLK CCG",null,"U92975","PRESTON NORTH PCN"]
["U64748","NORTH BOURNEMOUTH PCN",51303.407791340534,"U64748","11J","NHS DORSET CCG",null,null,null,null,"U64748","NORTH BOURNEMOUTH PCN","11J","NHS DORSET CCG",null,"U09072","PRESTON PARK COMMUNITY PCN"]
["U64827","HOLDERNESS PRIMARY CARE HOME PCN",44106.130794545301,"U64827","02Y","NHS EAST RIDING OF YORKSHIRE CCG",null,null,null,null,"U64827","HOLDERNESS PRIMARY CARE HOME PCN","02Y","NHS EAST RIDING OF YORKSHIRE CCG",null,"U73478","PRESTWICH PCN"]
["U64938","PEAK EDGE PCN",40363.705041215668,"U64938","03N","NHS SHEFFIELD CCG",null,null,null,null,"U64938","PEAK EDGE PCN","03N","NHS SHEFFIELD CCG",null,"U85744","PRIMARY CARE NORTH CROYDON PCN"]
["U65039","SUTTON GROUP PRACTICE PCN",50573.106019418497,"U65039","15E","NHS BIRMINGHAM AND SOLIHULL CCG",null,null,null,null,"U65039","SUTTON GROUP PRACTICE PCN","15E","NHS BIRMINGHAM AND SOLIHULL CCG",null,"U97650","PRIME WANDSWORTH PCN"]
["U65044","BRADFORD SOUTH PCN",62364.84938166014,"U65044","36J","NHS BRADFORD DISTRICT AND CRAVEN CCG",null,null,null,null,"U65044","BRADFORD SOUTH PCN","36J","NHS BRADFORD DISTRICT AND CRAVEN CCG",null,"U85493","PRINCEWAY PCN"]
["U65095","NEWARK PCN",77432.392810591686,"U65095","52R","NHS NOTTINGHAM AND NOTTINGHAMSHIRE CCG",null,null,null,null,"U65095","NEWARK PCN","52R","NHS NOTTINGHAM AND NOTTINGHAMSHIRE CCG",null,"U56562","PRIORY MEDICAL GROUP YORK PCN"]
["U65132","WALSALL NORTH PCN",54504.778196601954,"U65132","05Y","NHS WALSALL CCG",null,null,null,null,"U65132","WALSALL NORTH PCN","05Y","NHS WALSALL CCG",null,"U32760","PURBECK PCN"]
["U65207","PHOENIX (BNSSG) PCN",34697.628205366585,"U65207","15C","NHS BRISTOL, NORTH SOMERSET AND SOUTH GLOUCESTERSHIRE CCG",null,null,null,null,"U65207","PHOENIX (BNSSG) PCN","15C","NHS BRISTOL, NORTH SOMERSET AND SOUTH GLOUCESTERSHIRE CCG",null,"U79381","QUINTON AND HARBORNE PCN"]
["U65316","BOLTON CENTRAL PCN",44759.13895425899,"U65316","00T","NHS BOLTON CCG",null,null,null,null,"U65316","BOLTON CENTRAL PCN","00T","NHS BOLTON CCG",null,"U94342","RADFORD AND MARY POTTER PCN"]
["U65398","TILEHURST PCN",31896.021365594792,"U65398","15A","NHS BERKSHIRE WEST CCG",null,null,null,null,"U65398","TILEHURST PCN","15A","NHS BERKSHIRE WEST CCG",null,"U11684","RAMSGATE PCN"]
["U65434","STOCKWELLBEING PCN",43313.82253981808,"U65434","72Q","NHS SOUTH EAST LONDON CCG",null,null,null,null,"U65434","STOCKWELLBEING PCN","72Q","NHS SOUTH EAST LONDON CCG",null,"U88280","RAVEN PCN"]
["U65471","WALTHAM FOREST INTEGRATED HEALTH PCN",52574.004915054473,"U65471","08W","NHS WALTHAM FOREST CCG",null,null,null,null,"U65471","WALTHAM FOREST INTEGRATED HEALTH PCN","08W","NHS WALTHAM FOREST CCG",null,"U30335","RAYLEIGH AND DISTRICT PCN"]
["U65562","HEREFORDSHIRE HEREFORD CITY HMG PCN",47671.483346799097,"U65562","18C","NHS HEREFORDSHIRE AND WORCESTERSHIRE CCG",null,null,null,null,"U65562","HEREFORDSHIRE HEREFORD CITY HMG PCN","18C","NHS HEREFORDSHIRE AND WORCESTERSHIRE CCG",null,"U99474","READING CENTRAL PCN"]
["U65582","CHILDWALL & WAVERTREE PCN",42216.482800894955,"U65582","99A","NHS LIVERPOOL CCG",null,null,null,null,"U65582","CHILDWALL & WAVERTREE PCN","99A","NHS LIVERPOOL CCG",null,"U37007","READING UNIVERSITY PCN"]
["U65725","HULL BEVAN LTD PCN",45389.06443649251,"U65725","03F","NHS HULL CCG",null,null,null,null,"U65725","HULL BEVAN LTD PCN","03F","NHS HULL CCG",null,"U98548","READING WEST PCN"]
["U65853","WITHINGTON & FALLOWFIELD PCN",50016.246697580747,"U65853","14L","NHS MANCHESTER CCG",null,null,null,null,"U65853","WITHINGTON & FALLOWFIELD PCN","14L","NHS MANCHESTER CCG",null,"U09772","RED KITE HEALTHCARE PCN"]
["U65941","CAMBRIDGE CITY 4 PCN",49593.797923992024,"U65941","06H","NHS CAMBRIDGESHIRE AND PETERBOROUGH CCG",null,null,null,null,"U65941","CAMBRIDGE CITY 4 PCN","06H","NHS CAMBRIDGESHIRE AND PETERBOROUGH CCG",null,"U23714","REDCAR COASTAL PCN"]
["U65968","SWB I3 PCN",73032.26511703775,"U65968","05L","NHS SANDWELL AND WEST BIRMINGHAM CCG",null,null,null,null,"U65968","SWB I3 PCN","05L","NHS SANDWELL AND WEST BIRMINGHAM CCG",null,"U84529","REDDITCH & BROMSGROVE & DISTRICT PCN"]
["U66005","SOUTH WORCS PERSHORE & UPTON PCN",37073.500895036399,{"$f":"A835","v":"U66005"},{"$f":"VLOOKUP($A835,$K$2:$N$1255,3,FALSE)","v":"18C"},{"$f":"VLOOKUP($A835,$K$2:$N$1255,4,FALSE)","v":"NHS HEREFORDSHIRE AND WORCESTERSHIRE CCG"},null,null,null,null,"U66005","SOUTH WORCS PERSHORE & UPTON PCN","18C","NHS HEREFORDSHIRE AND WORCESTERSHIRE CCG",null,"U96198","REDDITCH & BROMSGROVE KINGFISHER PCN"]
["U66012","YORK MEDICAL GROUP PCN",40006.577476614199,"U66012","03Q","NHS VALE OF YORK CCG",null,null,null,null,"U66012","YORK MEDICAL GROUP PCN","03Q","NHS VALE OF YORK CCG",null,"U10834","REDDITCH & BROMSGROVE NIGHTINGALES PCN"]
["U66020","RURAL ALLIANCE PCN",44986.442398646432,"U66020","27D","NHS CHESHIRE CCG",null,null,null,null,"U66020","RURAL ALLIANCE PCN","27D","NHS CHESHIRE CCG",null,"U23535","REDHILL PHOENIX PCN"]
["U66146","BRIERLEY HILL PCN",49368.069156219033,"U66146","05C","NHS DUDLEY CCG",null,null,null,null,"U66146","BRIERLEY HILL PCN","05C","NHS DUDLEY CCG",null,"U12548","REGENT HEALTH PCN"]
["U66218","SOUTH HAMBLETON & RYEDALE PCN",39597.917002709517,"U66218","03Q","NHS VALE OF YORK CCG",null,null,null,null,"U66218","SOUTH HAMBLETON & RYEDALE PCN","03Q","NHS VALE OF YORK CCG",null,"U08235","REGIS HEALTHCARE PCN"]
["U66269","KEYNSHAM PCN",25654.528371762321,"U66269","92G","NHS BATH AND NORTH EAST SOMERSET, SWINDON AND WILTSHIRE CCG",null,null,null,null,"U66269","KEYNSHAM PCN","92G","NHS BATH AND NORTH EAST SOMERSET, SWINDON AND WILTSHIRE CCG",null,"U82499","RETFORD AND VILLAGES PCN"]
["U66344","COLCHESTER MEDICAL GROUP PCN",34825.053119083401,"U66344","06T","NHS NORTH EAST ESSEX CCG",null,null,null,null,"U66344","COLCHESTER MEDICAL GROUP PCN","06T","NHS NORTH EAST ESSEX CCG",null,"U11269","RIBBLESDALE PCN"]
["U66368","NORTH TRAFFORD PCN",47372.688481993151,"U66368","02A","NHS TRAFFORD CCG",null,null,null,null,"U66368","NORTH TRAFFORD PCN","02A","NHS TRAFFORD CCG",null,"U90453","RICHMOND PCN"]
["U66484","KINGSWINFORD & WORDSLEY PCN",43882.816447626617,"U66484","05C","NHS DUDLEY CCG",null,null,null,null,"U66484","KINGSWINFORD & WORDSLEY PCN","05C","NHS DUDLEY CCG",null,"U03298","RICHMONDSHIRE PCN"]
["U66596","AFFINITY (BNSSG) PCN",48263.686158492426,"U66596","15C","NHS BRISTOL, NORTH SOMERSET AND SOUTH GLOUCESTERSHIRE CCG",null,null,null,null,"U66596","AFFINITY (BNSSG) PCN","15C","NHS BRISTOL, NORTH SOMERSET AND SOUTH GLOUCESTERSHIRE CCG",null,"U72604","RICKMANSWORTH & CHORLEYWOOD PCN"]
["U66620","WALLINGTON PCN",52533.465325132311,"U66620","36L","NHS SOUTH WEST LONDON CCG",null,null,null,null,"U66620","WALLINGTON PCN","36L","NHS SOUTH WEST LONDON CCG",null,"U13990","RIPON & MASHAM PCN"]
["U66688","CARLISLE PCN",51305.940745359956,"U66688","01H","NHS NORTH CUMBRIA CCG",null,null,null,null,"U66688","CARLISLE PCN","01H","NHS NORTH CUMBRIA CCG",null,"U97785","RIVER & WOLDS EAST RIDING PCN"]
["U66785","TORRIDGE PCN",56546.741412393181,"U66785","15N","NHS DEVON CCG",null,null,null,null,"U66785","TORRIDGE PCN","15N","NHS DEVON CCG",null,"U11690","RIVERVIEW HEALTH PCN"]
["U66858","DEWSBURY & THORNHILL PCN",37725.08355209836,"U66858","03J","NHS NORTH KIRKLEES CCG",null,null,null,null,"U66858","DEWSBURY & THORNHILL PCN","03J","NHS NORTH KIRKLEES CCG",null,"U71839","ROBERT DARBISHIRE PRACTICE PCN"]
["U66904","FENLAND PCN",34633.827083687778,"U66904","06H","NHS CAMBRIDGESHIRE AND PETERBOROUGH CCG",null,null,null,null,"U66904","FENLAND PCN","06H","NHS CAMBRIDGESHIRE AND PETERBOROUGH CCG",null,"U64487","ROCHDALE NORTH PCN"]
["U67032","SURREY HEATH PCN",94442.115942497563,"U67032","10C","NHS SURREY HEATH CCG",null,null,null,null,"U67032","SURREY HEATH PCN","10C","NHS SURREY HEATH CCG",null,"U82359","ROCHESTER PCN"]
["U67045","CARE KENT PCN",50804.254366388122,"U67045","91Q","NHS KENT AND MEDWAY CCG",null,null,null,null,"U67045","CARE KENT PCN","91Q","NHS KENT AND MEDWAY CCG",null,"U49929","ROCHFORD PCN"]
["U67110","NORTH BEXLEY PCN",90864.553578096369,"U67110","72Q","NHS SOUTH EAST LONDON CCG",null,null,null,null,"U67110","NORTH BEXLEY PCN","72Q","NHS SOUTH EAST LONDON CCG",null,"U53419","ROCKINGHAM FOREST PCN"]
["U67133","MAIDSTONE CENTRAL PCN",44590.613321495985,"U67133","91Q","NHS KENT AND MEDWAY CCG",null,null,null,null,"U67133","MAIDSTONE CENTRAL PCN","91Q","NHS KENT AND MEDWAY CCG",null,"U17081","ROMSEY & NORTH BADDESLEY PCN"]
["U67149","ST HELENS CENTRAL PCN",41983.504209060542,"U67149","01X","NHS ST HELENS CCG",null,null,null,null,"U67149","ST HELENS CENTRAL PCN","01X","NHS ST HELENS CCG",null,"U31538","ROSEBANK PCN"]
["U67183","NORTHERN PARISHES PCN",31931.16685200913,"U67183","02G","NHS WEST LANCASHIRE CCG",null,null,null,null,"U67183","NORTHERN PARISHES PCN","02G","NHS WEST LANCASHIRE CCG",null,"U18267","ROSEWOOD PCN"]
["U67243","YORK ROAD PCN",35901.291306661398,"U67243","15F","NHS LEEDS CCG",null,null,null,null,"U67243","YORK ROAD PCN","15F","NHS LEEDS CCG",null,"U81405","ROSSENDALE EAST PCN"]
["U67303","WORKINGTON PCN",36866.91621697259,"U67303","01H","NHS NORTH CUMBRIA CCG",null,null,null,null,"U67303","WORKINGTON PCN","01H","NHS NORTH CUMBRIA CCG",null,"U31504","ROSSENDALE WEST PCN"]
["U67304","WB PCN",28777.98233921095,"U67304","92A","NHS SURREY HEARTLANDS CCG",null,null,null,null,"U67304","WB PCN","92A","NHS SURREY HEARTLANDS CCG",null,"U87177","ROTHER VALLEY SOUTH PCN"]
["U67475","DASHWOOD PCN",49237.678545637405,"U67475","14Y","NHS BUCKINGHAMSHIRE CCG",null,null,null,null,"U67475","DASHWOOD PCN","14Y","NHS BUCKINGHAMSHIRE CCG",null,"U09529","ROTHERHAM CENTRAL NORTH PCN"]
["U67590","RUTLAND HEALTH PCN",40445.235738019386,"U67590","03W","NHS EAST LEICESTERSHIRE AND RUTLAND CCG",null,null,null,null,"U67590","RUTLAND HEALTH PCN","03W","NHS EAST LEICESTERSHIRE AND RUTLAND CCG",null,"U58673","ROYAL PARKS PCN"]
["U67607","GPS HEALTHCARE PCN",39303.355296518101,"U67607","15E","NHS BIRMINGHAM AND SOLIHULL CCG",null,null,null,null,"U67607","GPS HEALTHCARE PCN","15E","NHS BIRMINGHAM AND SOLIHULL CCG",null,"U62213","RUGBY PCN"]
["U67660","OLDHAM SOUTH PCN",41526.94202815125,"U67660","00Y","NHS OLDHAM CCG",null,null,null,null,"U67660","OLDHAM SOUTH PCN","00Y","NHS OLDHAM CCG",null,"U16318","RUGELEY & GREAT HAYWOOD PCN"]
["U67865","NORTH EAST DERBYSHIRE PCN",42657.683701903166,"U67865","15M","NHS DERBY AND DERBYSHIRE CCG",null,null,null,null,"U67865","NORTH EAST DERBYSHIRE PCN","15M","NHS DERBY AND DERBYSHIRE CCG",null,"U07003","RUMWORTH PCN"]
["U68127","GRAYS PCN",63114.174973594192,"U68127","07G","NHS THURROCK CCG",null,null,null,null,"U68127","GRAYS PCN","07G","NHS THURROCK CCG",null,"U09643","RUNCORN PCN"]
["U68213","NORTH KERRIER EAST PCN",34067.905842226071,"U68213","11N","NHS KERNOW CCG",null,null,null,null,"U68213","NORTH KERRIER EAST PCN","11N","NHS KERNOW CCG",null,"U66020","RURAL ALLIANCE PCN"]
["U68252","SOWE VALLEY PCN",84718.262424266519,"U68252","05A","NHS COVENTRY AND RUGBY CCG",null,null,null,null,"U68252","SOWE VALLEY PCN","05A","NHS COVENTRY AND RUGBY CCG",null,"U33593","RURAL NORTH CHICHESTER PCN"]
["U68450","CALNE PCN",32177.388558896069,"U68450","92G","NHS BATH AND NORTH EAST SOMERSET, SWINDON AND WILTSHIRE CCG",null,null,null,null,"U68450","CALNE PCN","92G","NHS BATH AND NORTH EAST SOMERSET, SWINDON AND WILTSHIRE CCG",null,"U79764","RURAL ROTHER PCN"]
["U68552","BEACON MEDICAL GROUP PCN",40006.465257029398,"U68552","15N","NHS DEVON CCG",null,null,null,null,"U68552","BEACON MEDICAL GROUP PCN","15N","NHS DEVON CCG",null,"U20827","RURAL WEST OXFORDSHIRE PCN"]
["U68649","WATERSIDE HEALTH NETWORK PCN",66039.673160240636,"U68649","15N","NHS DEVON CCG",null,null,null,null,"U68649","WATERSIDE HEALTH NETWORK PCN","15N","NHS DEVON CCG",null,"U10995","RURAL WEST PCN"]
["U68696","WOKINGHAM WEST PCN",24607.629498845279,"U68696","15A","NHS BERKSHIRE WEST CCG",null,null,null,null,"U68696","WOKINGHAM WEST PCN","15A","NHS BERKSHIRE WEST CCG",null,"U12563","RUSHCLIFFE PCN"]
["U68943","CHESTER SOUTH PCN",35799.219370385508,"U68943","27D","NHS CHESHIRE CCG",null,null,null,null,"U68943","CHESTER SOUTH PCN","27D","NHS CHESHIRE CCG",null,"U67590","RUTLAND HEALTH PCN"]
["U68970","TUNBRIDGE WELLS PCN",76562.872597303838,"U68970","91Q","NHS KENT AND MEDWAY CCG",null,null,null,null,"U68970","TUNBRIDGE WELLS PCN","91Q","NHS KENT AND MEDWAY CCG",null,"U83990","SALE CENTRAL PCN"]
["U69052","SWAN NETWORK WIGAN PCN",37248.717763574758,"U69052","02H","NHS WIGAN BOROUGH CCG",null,null,null,null,"U69052","SWAN NETWORK WIGAN PCN","02H","NHS WIGAN BOROUGH CCG",null,"U21547","SALISBURY PLAIN PCN"]
["U69072","SOUTH STOKE WEST PCN",32886.940521679899,"U69072","05W","NHS STOKE ON TRENT CCG",null,null,null,null,"U69072","SOUTH STOKE WEST PCN","05W","NHS STOKE ON TRENT CCG",null,"U73005","SALUTEM PCN"]
["U69252","PARKWOOD PCN",33145.580892216873,"U69252","78H","NHS NORTHAMPTONSHIRE CCG",null,null,null,null,"U69252","PARKWOOD PCN","78H","NHS NORTHAMPTONSHIRE CCG",null,"U79313","SAPA 5 PCN"]
["U69393","WALKDEN & LITTLE HULTON PCN",43604.307288730954,"U69393","01G","NHS SALFORD CCG",null,null,null,null,"U69393","WALKDEN & LITTLE HULTON PCN","01G","NHS SALFORD CCG",null,"U26808","SARUM NORTH PCN"]
["U69551","THE VALLEYS HEALTH & SOCIAL CARE PCN",55165.270266625361,"U69551","03A","NHS GREATER HUDDERSFIELD CCG",null,null,null,null,"U69551","THE VALLEYS HEALTH & SOCIAL CARE PCN","03A","NHS GREATER HUDDERSFIELD CCG",null,"U82430","SARUM SOUTH PCN"]
["U69575","VIADUCT CARE PCN",51737.544453646129,"U69575","03A","NHS GREATER HUDDERSFIELD CCG",null,null,null,null,"U69575","VIADUCT CARE PCN","03A","NHS GREATER HUDDERSFIELD CCG",null,"U55979","SARUM WEST PCN"]
["U69625","MOSELEY, BILLESLEY & YARDLEY WOOD PCN",36752.024744041642,"U69625","15E","NHS BIRMINGHAM AND SOLIHULL CCG",null,null,null,null,"U69625","MOSELEY, BILLESLEY & YARDLEY WOOD PCN","15E","NHS BIRMINGHAM AND SOLIHULL CCG",null,"U46901","SASSE NETWORK 1 PCN"]
["U69695","BURNLEY WEST PCN",48447.299043090221,"U69695","01A","NHS EAST LANCASHIRE CCG",null,null,null,null,"U69695","BURNLEY WEST PCN","01A","NHS EAST LANCASHIRE CCG",null,"U58525","SASSE NETWORK 2 PCN"]
["U69720","COALFIELDS PCN",58170.701191921289,"U69720","00P","NHS SUNDERLAND CCG",null,null,null,null,"U69720","COALFIELDS PCN","00P","NHS SUNDERLAND CCG",null,"U90050","SASSE NETWORK 3 PCN"]
["U69841","BLACKBURN NORTH PCN",44699.316358432363,"U69841","00Q","NHS BLACKBURN WITH DARWEN CCG",null,null,null,null,"U69841","BLACKBURN NORTH PCN","00Q","NHS BLACKBURN WITH DARWEN CCG",null,"U98994","SCARBOROUGH CORE PCN"]
["U69865","PATHFIELDS MEDICAL GROUP PCN",30036.187988779304,"U69865","15N","NHS DEVON CCG",null,null,null,null,"U69865","PATHFIELDS MEDICAL GROUP PCN","15N","NHS DEVON CCG",null,"U26345","SE SHROPSHIRE PCN"]
["U69901","ST AUSTELL HEALTHCARE PCN",37840.776389572748,"U69901","11N","NHS KERNOW CCG",null,null,null,null,"U69901","ST AUSTELL HEALTHCARE PCN","11N","NHS KERNOW CCG",null,"U84543","SEACROFT PCN"]
["U70185","HEART OF BATH PCN",25800.666480237,"U70185","92G","NHS BATH AND NORTH EAST SOMERSET, SWINDON AND WILTSHIRE CCG",null,null,null,null,"U70185","HEART OF BATH PCN","92G","NHS BATH AND NORTH EAST SOMERSET, SWINDON AND WILTSHIRE CCG",null,"U05632","SEAFORD PCN"]
["U70212","HARTLEPOOL PCN",35535.263132092012,"U70212","16C","NHS TEES VALLEY CCG",null,null,null,null,"U70212","HARTLEPOOL PCN","16C","NHS TEES VALLEY CCG",null,"U23717","SEAFORTH & LITHERLAND PCN"]
["U70230","LEIGH PCN",61957.172981901655,"U70230","02H","NHS WIGAN BOROUGH CCG",null,null,null,null,"U70230","LEIGH PCN","02H","NHS WIGAN BOROUGH CCG",null,"U37593","SEDGEFIELD 1 PCN"]
["U70326","WOLVERHAMPTON UNITY WEST PCN",39823.032209097961,"U70326","06A","NHS WOLVERHAMPTON CCG",null,null,null,null,"U70326","WOLVERHAMPTON UNITY WEST PCN","06A","NHS WOLVERHAMPTON CCG",null,"U12365","SEDGEFIELD 2 PCN"]
["U70497","DERWENTSIDE PCN",105126.18775090687,"U70497","84H","NHS COUNTY DURHAM CCG",null,null,null,null,"U70497","DERWENTSIDE PCN","84H","NHS COUNTY DURHAM CCG",null,"U88368","SEDGLEY, COSELEY & GORNAL PCN"]
["U70624","NORTH GOSFORTH PCN",34862.669756865158,"U70624","13T","NHS NEWCASTLE GATESHEAD CCG",null,null,null,null,"U70624","NORTH GOSFORTH PCN","13T","NHS NEWCASTLE GATESHEAD CCG",null,"U56729","SEISDON PCN"]
["U70739","THAME PCN",31644.258415114768,"U70739","10Q","NHS OXFORDSHIRE CCG",null,null,null,null,"U70739","THAME PCN","10Q","NHS OXFORDSHIRE CCG",null,"U79246","SELBY TOWN PCN"]
["U70886","NORTHERN ARC PCN",44462.785420323497,"U70886","15C","NHS BRISTOL, NORTH SOMERSET AND SOUTH GLOUCESTERSHIRE CCG",null,null,null,null,"U70886","NORTHERN ARC PCN","15C","NHS BRISTOL, NORTH SOMERSET AND SOUTH GLOUCESTERSHIRE CCG",null,"U52199","SELSDON ADDINGTON & SHIRLEY PCN"]
["U71014","BRUNEL HEALTH GROUP PCN2",21739.389387866242,"U71014","92G","NHS BATH AND NORTH EAST SOMERSET, SWINDON AND WILTSHIRE CCG",null,null,null,null,"U71014","BRUNEL HEALTH GROUP PCN2","92G","NHS BATH AND NORTH EAST SOMERSET, SWINDON AND WILTSHIRE CCG",null,"U38734","SELSDON PURLEY & COULSDON HEALTH PCN"]
["U71089","HATFIELD PCN",47475.883325396513,"U71089","06K","NHS EAST AND NORTH HERTFORDSHIRE CCG",null,null,null,null,"U71089","HATFIELD PCN","06K","NHS EAST AND NORTH HERTFORDSHIRE CCG",null,"U31169","SEVEN HILLS PCN"]
["U71206","BROCKLEBANK PCN",26004.508339225689,"U71206","36L","NHS SOUTH WEST LONDON CCG",null,null,null,null,"U71206","BROCKLEBANK PCN","36L","NHS SOUTH WEST LONDON CCG",null,"U27585","SEVEN KINGS PCN"]
["U71550","K2 HEALTHCARE SLEAFORD PCN",63532.436540227936,"U71550","71E","NHS LINCOLNSHIRE CCG",null,null,null,null,"U71550","K2 HEALTHCARE SLEAFORD PCN","71E","NHS LINCOLNSHIRE CCG",null,"U58020","SEVENFIELDS PCN"]
["U71643","EAST AND SOUTH KNOWSLEY PCN",76480.082335868341,"U71643","01J","NHS KNOWSLEY CCG",null,null,null,null,"U71643","EAST AND SOUTH KNOWSLEY PCN","01J","NHS KNOWSLEY CCG",null,"U24481","SEVENOAKS PCN"]
["U71716","GRANTHAM AND RURAL PCN",75563.943030530034,"U71716","71E","NHS LINCOLNSHIRE CCG",null,null,null,null,"U71716","GRANTHAM AND RURAL PCN","71E","NHS LINCOLNSHIRE CCG",null,"U23710","SEVERN HEALTH PCN"]
["U71739","NEWHAM CENTRAL 1 PCN",62716.689854516997,{"$f":"A899","v":"U71739"},{"$f":"VLOOKUP($A899,$K$2:$N$1255,3,FALSE)","v":"08M"},{"$f":"VLOOKUP($A899,$K$2:$N$1255,4,FALSE)","v":"NHS NEWHAM CCG"},null,null,null,null,"U71739","NEWHAM CENTRAL 1 PCN","08M","NHS NEWHAM CCG",null,"U32001","SEVERNVALE PCN"]
["U71777","CAMBRIDGE CITY PCN",48480.429306280443,"U71777","06H","NHS CAMBRIDGESHIRE AND PETERBOROUGH CCG",null,null,null,null,"U71777","CAMBRIDGE CITY PCN","06H","NHS CAMBRIDGESHIRE AND PETERBOROUGH CCG",null,"U31305","SHAPE PCN"]
["U71839","ROBERT DARBISHIRE PRACTICE PCN",34345.262971683405,"U71839","14L","NHS MANCHESTER CCG",null,null,null,null,"U71839","ROBERT DARBISHIRE PRACTICE PCN","14L","NHS MANCHESTER CCG",null,"U72309","SHARD END AND KITTS GREEN PCN"]
["U71897","SOUTH BUCKS PCN",53244.886439004564,"U71897","14Y","NHS BUCKINGHAMSHIRE CCG",null,null,null,null,"U71897","SOUTH BUCKS PCN","14Y","NHS BUCKINGHAMSHIRE CCG",null,"U32828","SHEEN & BARNES PCN"]
["U71931","SOUTH BLABY & LUTTERWORTH PCN",44908.909689094886,"U71931","03W","NHS EAST LEICESTERSHIRE AND RUTLAND CCG",null,null,null,null,"U71931","SOUTH BLABY & LUTTERWORTH PCN","03W","NHS EAST LEICESTERSHIRE AND RUTLAND CCG",null,"U87255","SHELTON & HANLEY PCN"]
["U72114","PORTSMOUTH SOUTH COAST PCN",35862.8150717975,"U72114","10R","NHS PORTSMOUTH CCG",null,null,null,null,"U72114","PORTSMOUTH SOUTH COAST PCN","10R","NHS PORTSMOUTH CCG",null,"U10128","SHEPPEY PCN"]
["U72129","CENTRAL BMW PCN",36173.280268883849,"U72129","14Y","NHS BUCKINGHAMSHIRE CCG",null,null,null,null,"U72129","CENTRAL BMW PCN","14Y","NHS BUCKINGHAMSHIRE CCG",null,"U75274","SHERBORNE AREA PCN"]
["U72156","WEST BASILDON PCN",49373.95691307199,"U72156","99E","NHS BASILDON AND BRENTWOOD CCG",null,null,null,null,"U72156","WEST BASILDON PCN","99E","NHS BASILDON AND BRENTWOOD CCG",null,"U90349","SHERWOOD PCN"]
["U72231","SURBITON HEALTH CENTRE PCN",28559.264597805963,"U72231","36L","NHS SOUTH WEST LONDON CCG",null,null,null,null,"U72231","SURBITON HEALTH CENTRE PCN","36L","NHS SOUTH WEST LONDON CCG",null,"U21465","SHORE MEDICAL PCN"]
["U72309","SHARD END AND KITTS GREEN PCN",40660.622034986642,"U72309","15E","NHS BIRMINGHAM AND SOLIHULL CCG",null,null,null,null,"U72309","SHARD END AND KITTS GREEN PCN","15E","NHS BIRMINGHAM AND SOLIHULL CCG",null,"U07169","SHOREDITCH PARK PCN"]
["U72457","COLTE PARTNERSHIP (TMR) PCN",32924.369858428479,"U72457","06T","NHS NORTH EAST ESSEX CCG",null,null,null,null,"U72457","COLTE PARTNERSHIP (TMR) PCN","06T","NHS NORTH EAST ESSEX CCG",null,"U37037","SHOREHAM AND SOUTHWICK PCN"]
["U72604","RICKMANSWORTH & CHORLEYWOOD PCN",27174.190990724121,"U72604","06N","NHS HERTS VALLEYS CCG",null,null,null,null,"U72604","RICKMANSWORTH & CHORLEYWOOD PCN","06N","NHS HERTS VALLEYS CCG",null,"U60057","SHREWSBURY PCN"]
["U72706","GREAT YARMOUTH & NORTHERN VILLAGES PCN",71818.473834846125,"U72706","26A","NHS NORFOLK AND WAVENEY CCG",null,null,null,null,"U72706","GREAT YARMOUTH & NORTHERN VILLAGES PCN","26A","NHS NORFOLK AND WAVENEY CCG",null,"U37339","SITTINGBOURNE PCN"]
["U72748","A31 GROUP PCN",32533.067649341057,"U72748","10J","NHS NORTH HAMPSHIRE CCG",null,null,null,null,"U72748","A31 GROUP PCN","10J","NHS NORTH HAMPSHIRE CCG",null,"U45611","SKELMERSDALE PCN"]
["U72812","ALFRETON RIPLEY CRICH & HEANOR PCN",88715.694334659609,"U72812","15M","NHS DERBY AND DERBYSHIRE CCG",null,null,null,null,"U72812","ALFRETON RIPLEY CRICH & HEANOR PCN","15M","NHS DERBY AND DERBYSHIRE CCG",null,"U15552","SMALL HEATH PCN"]
["U72848","DRAKE MEDICAL ALLIANCE PCN",43652.449182334116,"U72848","15N","NHS DEVON CCG",null,null,null,null,"U72848","DRAKE MEDICAL ALLIANCE PCN","15N","NHS DEVON CCG",null,"U22471","SMARTCARE CENTRAL PCN"]
["U72999","4 DONCASTER PCN",56412.215483778491,"U72999","02X","NHS DONCASTER CCG",null,null,null,null,"U72999","4 DONCASTER PCN","02X","NHS DONCASTER CCG",null,"U54229","SMARTCARE KINGS HEATH PCN"]
["U73005","SALUTEM PCN",34057.152714071948,"U73005","04C","NHS LEICESTER CITY CCG",null,null,null,null,"U73005","SALUTEM PCN","04C","NHS LEICESTER CITY CCG",null,"U25799","SMASH PCN"]
["U73009","CANTERBURY NORTH PCN",47014.332760169302,"U73009","91Q","NHS KENT AND MEDWAY CCG",null,null,null,null,"U73009","CANTERBURY NORTH PCN","91Q","NHS KENT AND MEDWAY CCG",null,"U33192","SOAR VALLEY PCN"]
["U73163","NORTH HAMMERSMITH & FULHAM PCN",49370.802480062244,"U73163","08C","NHS HAMMERSMITH AND FULHAM CCG",null,null,null,null,"U73163","NORTH HAMMERSMITH & FULHAM PCN","08C","NHS HAMMERSMITH AND FULHAM CCG",null,"U08229","SOLAS PCN"]
["U73212","MID NORFOLK PCN",49658.508939629872,"U73212","26A","NHS NORFOLK AND WAVENEY CCG",null,null,null,null,"U73212","MID NORFOLK PCN","26A","NHS NORFOLK AND WAVENEY CCG",null,"U45528","SOLIHULL HEALTHCARE PARTNERSHIP PCN"]
["U73227","SPINE PCN",39828.456773397433,"U73227","15D","NHS EAST BERKSHIRE CCG",null,null,null,null,"U73227","SPINE PCN","15D","NHS EAST BERKSHIRE CCG",null,"U41928","SOLIHULL RURAL PCN"]
["U73296","TIVERTON PCN",32590.0911184334,"U73296","15N","NHS DEVON CCG",null,null,null,null,"U73296","TIVERTON PCN","15N","NHS DEVON CCG",null,"U00351","SOLIHULL SOUTH CENTRAL PCN"]
["U73458","WANDSWORTH PCN",40312.686396961282,"U73458","36L","NHS SOUTH WEST LONDON CCG",null,null,null,null,"U73458","WANDSWORTH PCN","36L","NHS SOUTH WEST LONDON CCG",null,"U74074","SOUND PCN"]
["U73478","PRESTWICH PCN",36969.310039069969,"U73478","00V","NHS BURY CCG",null,null,null,null,"U73478","PRESTWICH PCN","00V","NHS BURY CCG",null,"U98974","SOUTH & WEST HEREFORDSHIRE PCN"]
["U73923","WALSALL EAST 2 PCN",44011.107926381897,"U73923","05Y","NHS WALSALL CCG",null,null,null,null,"U73923","WALSALL EAST 2 PCN","05Y","NHS WALSALL CCG",null,"U01198","SOUTH (IW) PCN"]
["U73966","HLH PCN",35529.921063361719,"U73966","06N","NHS HERTS VALLEYS CCG",null,null,null,null,"U73966","HLH PCN","06N","NHS HERTS VALLEYS CCG",null,"U13655","SOUTH BIRMINGHAM ALLIANCE PCN"]
["U74074","SOUND PCN",41307.528416783949,"U74074","15N","NHS DEVON CCG",null,null,null,null,"U74074","SOUND PCN","15N","NHS DEVON CCG",null,"U71931","SOUTH BLABY & LUTTERWORTH PCN"]
["U74229","FLEETWOOD PCN",31696.43496746818,"U74229","02M","NHS FYLDE AND WYRE CCG",null,null,null,null,"U74229","FLEETWOOD PCN","02M","NHS FYLDE AND WYRE CCG",null,"U71897","SOUTH BUCKS PCN"]
["U74266","LMN PCN",25724.182881165252,"U74266","91Q","NHS KENT AND MEDWAY CCG",null,null,null,null,"U74266","LMN PCN","91Q","NHS KENT AND MEDWAY CCG",null,"U05885","SOUTH CAMDEN PCN"]
["U74544","BOSWORTH PCN",35043.766049693382,"U74544","04V","NHS WEST LEICESTERSHIRE CCG",null,null,null,null,"U74544","BOSWORTH PCN","04V","NHS WEST LEICESTERSHIRE CCG",null,"U16083","SOUTH CENTRAL EALING PCN"]
["U74554","MMP CENTRAL AND NORTH PCN",68090.763537291597,"U74554","15E","NHS BIRMINGHAM AND SOLIHULL CCG",null,null,null,null,"U74554","MMP CENTRAL AND NORTH PCN","15E","NHS BIRMINGHAM AND SOLIHULL CCG",null,"U89143","SOUTH COASTAL MEDICAL GROUP PCN"]
["U74798","CROYDON GP SUPER NETWORK PCN",68094.67264312206,"U74798","36L","NHS SOUTH WEST LONDON CCG",null,null,null,null,"U74798","CROYDON GP SUPER NETWORK PCN","36L","NHS SOUTH WEST LONDON CCG",null,"U41523","SOUTH COTSWOLDS PCN"]
["U74819","CARITAS MEDICAL PCN",40880.243028335091,"U74819","06F","NHS BEDFORDSHIRE CCG",null,null,null,null,"U74819","CARITAS MEDICAL PCN","06F","NHS BEDFORDSHIRE CCG",null,"U33451","SOUTH CRAWLEY PCN"]
["U75018","DONCASTER SOUTH PCN",74826.637845571866,"U75018","02X","NHS DONCASTER CCG",null,null,null,null,"U75018","DONCASTER SOUTH PCN","02X","NHS DONCASTER CCG",null,"U84198","SOUTH DARTMOOR AND TOTNES PCN"]
["U75079","NORTH & EAST (IW) PCN",56019.587828736636,"U75079","10L","NHS ISLE OF WIGHT CCG",null,null,null,null,"U75079","NORTH & EAST (IW) PCN","10L","NHS ISLE OF WIGHT CCG",null,"U12754","SOUTH EAST OXFORD HEALTH ALLIANCE (SEOxHA) PCN"]
["U75268","BOSTON PCN",75250.903364715283,"U75268","71E","NHS LINCOLNSHIRE CCG",null,null,null,null,"U75268","BOSTON PCN","71E","NHS LINCOLNSHIRE CCG",null,"U55369","SOUTH FENLAND PCN"]
["U75274","SHERBORNE AREA PCN",24423.316980472719,"U75274","11J","NHS DORSET CCG",null,null,null,null,"U75274","SHERBORNE AREA PCN","11J","NHS DORSET CCG",null,"U62360","SOUTH FULHAM PCN"]
["U75375","WANTAGE PCN",30206.725664682999,"U75375","10Q","NHS OXFORDSHIRE CCG",null,null,null,null,"U75375","WANTAGE PCN","10Q","NHS OXFORDSHIRE CCG",null,"U66218","SOUTH HAMBLETON & RYEDALE PCN"]
["U75382","ALLIANCE PCN",22713.161454947742,"U75382","06N","NHS HERTS VALLEYS CCG",null,null,null,null,"U75382","ALLIANCE PCN","06N","NHS HERTS VALLEYS CCG",null,"U82523","SOUTH HAMS PCN"]
["U75449","OLDHAM EAST PCN",46543.449112017654,"U75449","00Y","NHS OLDHAM CCG",null,null,null,null,"U75449","OLDHAM EAST PCN","00Y","NHS OLDHAM CCG",null,"U17168","SOUTH HARDWICK PCN"]
["U75549","SOUTH PETERBOROUGH PCN",67723.010130882147,"U75549","06H","NHS CAMBRIDGESHIRE AND PETERBOROUGH CCG",null,null,null,null,"U75549","SOUTH PETERBOROUGH PCN","06H","NHS CAMBRIDGESHIRE AND PETERBOROUGH CCG",null,"U87168","SOUTH ISLINGTON PCN"]
["U75847","BRACKNELL AND DISTRICT PCN",67953.990698714668,"U75847","15D","NHS EAST BERKSHIRE CCG",null,null,null,null,"U75847","BRACKNELL AND DISTRICT PCN","15D","NHS EAST BERKSHIRE CCG",null,"U93726","SOUTH LINCOLN PCN"]
["U76028","BIRTLEY, OXFORD TERR & RAWLING RD PCN",36040.292563604104,"U76028","13T","NHS NEWCASTLE GATESHEAD CCG",null,null,null,null,"U76028","BIRTLEY, OXFORD TERR & RAWLING RD PCN","13T","NHS NEWCASTLE GATESHEAD CCG",null,"U17012","SOUTH LINCOLNSHIRE RURAL PCN"]
["U76032","PENWITH PCN",71780.431307615509,"U76032","11N","NHS KERNOW CCG",null,null,null,null,"U76032","PENWITH PCN","11N","NHS KERNOW CCG",null,"U92034","SOUTH MAIDSTONE PCN"]
["U76122","STRATFORD PCN",46421.636194920364,"U76122","08M","NHS NEWHAM CCG",null,null,null,null,"U76122","STRATFORD PCN","08M","NHS NEWHAM CCG",null,"U05433","SOUTH NORFOLK HIP PCN"]
["U76315","LS25/LS26 PCN",77500.024151680045,"U76315","15F","NHS LEEDS CCG",null,null,null,null,"U76315","LS25/LS26 PCN","15F","NHS LEEDS CCG",null,"U23362","SOUTH ONE NEWHAM PCN"]
["U76383","NORTH BRADFORD PCN",36628.807343984401,"U76383","36J","NHS BRADFORD DISTRICT AND CRAVEN CCG",null,null,null,null,"U76383","NORTH BRADFORD PCN","36J","NHS BRADFORD DISTRICT AND CRAVEN CCG",null,"U75549","SOUTH PETERBOROUGH PCN"]
["U76419","WASHWOOD HEATH PCN",50899.465612199478,"U76419","15E","NHS BIRMINGHAM AND SOLIHULL CCG",null,null,null,null,"U76419","WASHWOOD HEATH PCN","15E","NHS BIRMINGHAM AND SOLIHULL CCG",null,"U22273","SOUTH RIBBLE MEDICAL GROUP PCN"]
["U76444","EXETER WEST PCN",34583.391127646471,"U76444","15N","NHS DEVON CCG",null,null,null,null,"U76444","EXETER WEST PCN","15N","NHS DEVON CCG",null,"U49615","SOUTH RURAL PCN"]
["U76572","COCKERMOUTH & MARYPORT PCN",34018.715521396996,"U76572","01H","NHS NORTH CUMBRIA CCG",null,null,null,null,"U76572","COCKERMOUTH & MARYPORT PCN","01H","NHS NORTH CUMBRIA CCG",null,"U81307","SOUTH SOMERSET EAST - RPN PCN"]
["U76772","CARILLON PCN",46231.695089591623,"U76772","04V","NHS WEST LEICESTERSHIRE CCG",null,null,null,null,"U76772","CARILLON PCN","04V","NHS WEST LEICESTERSHIRE CCG",null,"U60622","SOUTH SOMERSET WEST PCN"]
["U76778","PENGE PCN",28470.587573148463,"U76778","72Q","NHS SOUTH EAST LONDON CCG",null,null,null,null,"U76778","PENGE PCN","72Q","NHS SOUTH EAST LONDON CCG",null,"U79587","SOUTH SOUTHALL PCN"]
["U76801","WHITEFIELD DISTRICT & COMMUNITY PCN",30480.021537360721,"U76801","00V","NHS BURY CCG",null,null,null,null,"U76801","WHITEFIELD DISTRICT & COMMUNITY PCN","00V","NHS BURY CCG",null,"U60094","SOUTH SOUTHWARK PCN"]
["U76908","GILLINGHAM SOUTH PCN",32316.242088695224,"U76908","91Q","NHS KENT AND MEDWAY CCG",null,null,null,null,"U76908","GILLINGHAM SOUTH PCN","91Q","NHS KENT AND MEDWAY CCG",null,"U85685","SOUTH STOKE CENTRAL PCN"]
["U76977","HADWEN QUEDGELEY PCN",21772.035809088957,"U76977","11M","NHS GLOUCESTERSHIRE CCG",null,null,null,null,"U76977","HADWEN QUEDGELEY PCN","11M","NHS GLOUCESTERSHIRE CCG",null,"U69072","SOUTH STOKE WEST PCN"]
["U77096","CHESTER LE STREET PCN",61628.461365081625,"U77096","84H","NHS COUNTY DURHAM CCG",null,null,null,null,"U77096","CHESTER LE STREET PCN","84H","NHS COUNTY DURHAM CCG",null,"U02049","SOUTH TANDRIDGE PCN"]
["U77170","BRENT SOUTH KWH PCN",33181.279834864152,"U77170","07P","NHS BRENT CCG",null,null,null,null,"U77170","BRENT SOUTH KWH PCN","07P","NHS BRENT CCG",null,"U42898","SOUTH TRAFFORD PCN"]
["U77200","NORTH BUCKS PCN",65858.72750005548,"U77200","14Y","NHS BUCKINGHAMSHIRE CCG",null,null,null,null,"U77200","NORTH BUCKS PCN","14Y","NHS BUCKINGHAMSHIRE CCG",null,"U20256","SOUTH TYNESIDE EAST PCN"]
["U77203","NORTH WATFORD PCN",25389.93973282295,"U77203","06N","NHS HERTS VALLEYS CCG",null,null,null,null,"U77203","NORTH WATFORD PCN","06N","NHS HERTS VALLEYS CCG",null,"U89118","SOUTH TYNESIDE SOUTH PCN"]
["U77315","LEICESTER CENTRAL PCN",42789.66071426883,"U77315","04C","NHS LEICESTER CITY CCG",null,null,null,null,"U77315","LEICESTER CENTRAL PCN","04C","NHS LEICESTER CITY CCG",null,"U37826","SOUTH TYNESIDE WEST PCN"]
["U77416","WALSALL EAST 1 PCN",33240.729329534239,"U77416","05Y","NHS WALSALL CCG",null,null,null,null,"U77416","WALSALL EAST 1 PCN","05Y","NHS WALSALL CCG",null,"U58215","SOUTH UTTLESFORD PCN"]
["U77447","FIVE ELMS PCN",42771.980478588201,"U77447","72Q","NHS SOUTH EAST LONDON CCG",null,null,null,null,"U77447","FIVE ELMS PCN","72Q","NHS SOUTH EAST LONDON CCG",null,"U31313","SOUTH WARRINGTON PCN"]
["U77584","DORKING PCN",45622.055633045456,"U77584","92A","NHS SURREY HEARTLANDS CCG",null,null,null,null,"U77584","DORKING PCN","92A","NHS SURREY HEARTLANDS CCG",null,"U47975","SOUTH WAVENEY PCN"]
["U77811","NORTH MERTON PCN",32544.566110719068,{"$f":"A963","v":"U77811"},{"$f":"VLOOKUP($A963,$K$2:$N$1255,3,FALSE)","v":"36L"},{"$f":"VLOOKUP($A963,$K$2:$N$1255,4,FALSE)","v":"NHS SOUTH WEST LONDON CCG"},null,null,null,null,"U77811","NORTH MERTON PCN","36L","NHS SOUTH WEST LONDON CCG",null,"U44050","SOUTH WEST MERTON PCN"]
["U78157","BRENT WEST KWH PCN",47229.280155436885,"U78157","07P","NHS BRENT CCG",null,null,null,null,"U78157","BRENT WEST KWH PCN","07P","NHS BRENT CCG",null,"U86258","SOUTH WEST PCN"]
["U78164","WESTBURY & WARMINSTER PCN",43279.663606820803,"U78164","92G","NHS BATH AND NORTH EAST SOMERSET, SWINDON AND WILTSHIRE CCG",null,null,null,null,"U78164","WESTBURY & WARMINSTER PCN","92G","NHS BATH AND NORTH EAST SOMERSET, SWINDON AND WILTSHIRE CCG",null,"U02961","SOUTH WESTMINSTER PCN"]
["U78207","CHESTERFIELD AND DRONFIELD PCN",142111.73438337754,"U78207","15M","NHS DERBY AND DERBYSHIRE CCG",null,null,null,null,"U78207","CHESTERFIELD AND DRONFIELD PCN","15M","NHS DERBY AND DERBYSHIRE CCG",null,"U97695","SOUTH WORCESTERSHIRE MALVERN TOWN PCN"]
["U78272","GRAFTON MEDICAL PARTNERS PCN",36272.298629885001,"U78272","36L","NHS SOUTH WEST LONDON CCG",null,null,null,null,"U78272","GRAFTON MEDICAL PARTNERS PCN","36L","NHS SOUTH WEST LONDON CCG",null,"U62975","SOUTH WORCS DROITWITCH & OMBERSLEY PCN"]
["U78361","BRADFORD CITY 5 PCN",48289.178091939692,"U78361","36J","NHS BRADFORD DISTRICT AND CRAVEN CCG",null,null,null,null,"U78361","BRADFORD CITY 5 PCN","36J","NHS BRADFORD DISTRICT AND CRAVEN CCG",null,"U66005","SOUTH WORCS PERSHORE & UPTON PCN"]
["U78369","ALBAN HEALTHCARE PCN",41172.751434998019,"U78369","06N","NHS HERTS VALLEYS CCG",null,null,null,null,"U78369","ALBAN HEALTHCARE PCN","06N","NHS HERTS VALLEYS CCG",null,"U49326","SOUTH WORCS THE RURALS PCN"]
["U78443","HEYWOOD PCN",35733.065392299002,"U78443","01D","NHS HEYWOOD, MIDDLETON AND ROCHDALE CCG",null,null,null,null,"U78443","HEYWOOD PCN","01D","NHS HEYWOOD, MIDDLETON AND ROCHDALE CCG",null,"U21359","SOUTH WORCS VALE OF EVESHAM HEALTH PCN"]
["U78449","MORLEY PCN",60622.56183439993,"U78449","15F","NHS LEEDS CCG",null,null,null,null,"U78449","MORLEY PCN","15F","NHS LEEDS CCG",null,"U32349","SOUTH WORCS WORCESTER CITY GP PCN"]
["U78462","BRUNEL HEALTH GROUP PCN1",38693.2441385165,"U78462","92G","NHS BATH AND NORTH EAST SOMERSET, SWINDON AND WILTSHIRE CCG",null,null,null,null,"U78462","BRUNEL HEALTH GROUP PCN1","92G","NHS BATH AND NORTH EAST SOMERSET, SWINDON AND WILTSHIRE CCG",null,"U97340","SOUTHAMPTON BITTERNE PCN"]
["U78466","MEDWAY CENTRAL PCN",48186.321090936064,"U78466","91Q","NHS KENT AND MEDWAY CCG",null,null,null,null,"U78466","MEDWAY CENTRAL PCN","91Q","NHS KENT AND MEDWAY CCG",null,"U18986","SOUTHAMPTON CENTRAL PCN"]
["U78490","GORDANO & MENDIP PCN",92913.089820809008,"U78490","15C","NHS BRISTOL, NORTH SOMERSET AND SOUTH GLOUCESTERSHIRE CCG",null,null,null,null,"U78490","GORDANO & MENDIP PCN","15C","NHS BRISTOL, NORTH SOMERSET AND SOUTH GLOUCESTERSHIRE CCG",null,"U08561","SOUTHAMPTON LIVING WELL PARTNERSHIP PCN"]
["U78517","KENTISH TOWN SOUTH PCN",30907.732554152302,"U78517","93C","NHS NORTH CENTRAL LONDON CCG",null,null,null,null,"U78517","KENTISH TOWN SOUTH PCN","93C","NHS NORTH CENTRAL LONDON CCG",null,"U91385","SOUTHAMPTON NORTH PCN"]
["U78575","WANSTEAD AND WOODFORD PCN",73176.286527707212,"U78575","08N","NHS REDBRIDGE CCG",null,null,null,null,"U78575","WANSTEAD AND WOODFORD PCN","08N","NHS REDBRIDGE CCG",null,"U47004","SOUTHAMPTON WEST PCN"]
["U78604","CHRISTCHURCH PCN",53006.471455558072,"U78604","11J","NHS DORSET CCG",null,null,null,null,"U78604","CHRISTCHURCH PCN","11J","NHS DORSET CCG",null,"U53997","SOUTHAMPTON WOOLSTON & TOWNHILL PCN"]
["U78610","VALENS PCN",54747.599577641799,"U78610","00L","NHS NORTHUMBERLAND CCG",null,null,null,null,"U78610","VALENS PCN","00L","NHS NORTHUMBERLAND CCG",null,"U17794","SOUTHEND CENTRAL PCN"]
["U78687","DIDSBURY CHORLTON PARK & BURNAGE PCN",39922.794362385488,"U78687","14L","NHS MANCHESTER CCG",null,null,null,null,"U78687","DIDSBURY CHORLTON PARK & BURNAGE PCN","14L","NHS MANCHESTER CCG",null,"U04545","SOUTHEND EAST PCN"]
["U78694","WYRE FOREST HEALTH PARTNERSHIP PCN",75084.731144587247,"U78694","18C","NHS HEREFORDSHIRE AND WORCESTERSHIRE CCG",null,null,null,null,"U78694","WYRE FOREST HEALTH PARTNERSHIP PCN","18C","NHS HEREFORDSHIRE AND WORCESTERSHIRE CCG",null,"U92600","SOVEREIGN PCN"]
["U78708","CHAPELTOWN PCN",30252.958516534964,"U78708","15F","NHS LEEDS CCG",null,null,null,null,"U78708","CHAPELTOWN PCN","15F","NHS LEEDS CCG",null,"U68252","SOWE VALLEY PCN"]
["U79003","NECHELLS, SALTLEY & ALUM ROCK PCN",35294.612621484681,"U79003","15E","NHS BIRMINGHAM AND SOLIHULL CCG",null,null,null,null,"U79003","NECHELLS, SALTLEY & ALUM ROCK PCN","15E","NHS BIRMINGHAM AND SOLIHULL CCG",null,"U41693","SPALDING & MARKET DEEPING PCN"]
["U79015","OCTAGON WISBECH PCN",54756.555717493015,"U79015","06H","NHS CAMBRIDGESHIRE AND PETERBOROUGH CCG",null,null,null,null,"U79015","OCTAGON WISBECH PCN","06H","NHS CAMBRIDGESHIRE AND PETERBOROUGH CCG",null,"U54372","SPEN HEALTH & WELLBEING PCN"]
["U79019","MINERVA HEALTH GROUP PCN",34847.61683142258,"U79019","92G","NHS BATH AND NORTH EAST SOMERSET, SWINDON AND WILTSHIRE CCG",null,null,null,null,"U79019","MINERVA HEALTH GROUP PCN","92G","NHS BATH AND NORTH EAST SOMERSET, SWINDON AND WILTSHIRE CCG",null,"U89806","SPHERE PCN"]
["U79049","EAGLE BRIDGE PCN",43738.038783572396,"U79049","27D","NHS CHESHIRE CCG",null,null,null,null,"U79049","EAGLE BRIDGE PCN","27D","NHS CHESHIRE CCG",null,"U73227","SPINE PCN"]
["U79121","HEALTHIER WEST WIRRAL PCN",77950.178051455412,"U79121","12F","NHS WIRRAL CCG",null,null,null,null,"U79121","HEALTHIER WEST WIRRAL PCN","12F","NHS WIRRAL CCG",null,"U89154","SPRINGFIELD PARK PCN"]
["U79163","NORTH LINCOLNSHIRE WEST PCN",45783.300101004425,"U79163","03K","NHS NORTH LINCOLNSHIRE CCG",null,null,null,null,"U79163","NORTH LINCOLNSHIRE WEST PCN","03K","NHS NORTH LINCOLNSHIRE CCG",null,"U69901","ST AUSTELL HEALTHCARE PCN"]
["U79246","SELBY TOWN PCN",52982.619794143546,"U79246","03Q","NHS VALE OF YORK CCG",null,null,null,null,"U79246","SELBY TOWN PCN","03Q","NHS VALE OF YORK CCG",null,"U67149","ST HELENS CENTRAL PCN"]
["U79310","THE MAST PCN",35436.541551147828,"U79310","03A","NHS GREATER HUDDERSFIELD CCG",null,null,null,null,"U79310","THE MAST PCN","03A","NHS GREATER HUDDERSFIELD CCG",null,"U94037","ST HELENS NORTH PCN"]
["U79313","SAPA 5 PCN",39032.278286826433,"U79313","03N","NHS SHEFFIELD CCG",null,null,null,null,"U79313","SAPA 5 PCN","03N","NHS SHEFFIELD CCG",null,"U94009","ST HELENS SOUTH PCN"]
["U79381","QUINTON AND HARBORNE PCN",37775.551703656201,"U79381","15E","NHS BIRMINGHAM AND SOLIHULL CCG",null,null,null,null,"U79381","QUINTON AND HARBORNE PCN","15E","NHS BIRMINGHAM AND SOLIHULL CCG",null,"U63072","ST IVES PCN"]
["U79408","WIDNES PCN",72076.381317286316,"U79408","01F","NHS HALTON CCG",null,null,null,null,"U79408","WIDNES PCN","01F","NHS HALTON CCG",null,"U81960","ST JOHN'S WOOD & MAIDA VALE PCN"]
["U79433","BIRMINGHAM EAST CENTRAL PCN",49852.498254120874,"U79433","15E","NHS BIRMINGHAM AND SOLIHULL CCG",null,null,null,null,"U79433","BIRMINGHAM EAST CENTRAL PCN","15E","NHS BIRMINGHAM AND SOLIHULL CCG",null,"U20640","ST NEOTS PCN"]
["U79464","DAVENTRY PCN",33902.857486352899,"U79464","78H","NHS NORTHAMPTONSHIRE CCG",null,null,null,null,"U79464","DAVENTRY PCN","78H","NHS NORTHAMPTONSHIRE CCG",null,"U22020","ST PAUL'S PCN"]
["U79533","MERICAN PCN",86421.244295126831,"U79533","05Q","NHS SOUTH EAST STAFFORDSHIRE AND SEISDON PENINSULA CCG",null,null,null,null,"U79533","MERICAN PCN","05Q","NHS SOUTH EAST STAFFORDSHIRE AND SEISDON PENINSULA CCG",null,"U08925","STAFFORD CENTRAL PCN"]
["U79574","HONITON/OTTERY/SID VALLEY (HOSMS) PCN",52664.523734910705,"U79574","15N","NHS DEVON CCG",null,null,null,null,"U79574","HONITON/OTTERY/SID VALLEY (HOSMS) PCN","15N","NHS DEVON CCG",null,"U84263","STAFFORD NORTH PCN"]
["U79587","SOUTH SOUTHALL PCN",57939.236702892144,"U79587","07W","NHS EALING CCG",null,null,null,null,"U79587","SOUTH SOUTHALL PCN","07W","NHS EALING CCG",null,"U83494","STAFFORD SOUTH PCN"]
["U79678","TURTON PCN",44301.928174626577,"U79678","00T","NHS BOLTON CCG",null,null,null,null,"U79678","TURTON PCN","00T","NHS BOLTON CCG",null,"U01630","STALYBRIDGE PCN"]
["U79723","BRENTWOOD PCN",74159.204640271317,"U79723","99E","NHS BASILDON AND BRENTWOOD CCG",null,null,null,null,"U79723","BRENTWOOD PCN","99E","NHS BASILDON AND BRENTWOOD CCG",null,"U98530","STANFORD-LE-HOPE PCN"]
["U79764","RURAL ROTHER PCN",46207.1702344328,"U79764","97R","NHS EAST SUSSEX CCG",null,null,null,null,"U79764","RURAL ROTHER PCN","97R","NHS EAST SUSSEX CCG",null,"U55812","STEVENAGE NORTH PCN"]
["U79881","TRAFFORD WEST PCN",58634.684782273194,"U79881","02A","NHS TRAFFORD CCG",null,null,null,null,"U79881","TRAFFORD WEST PCN","02A","NHS TRAFFORD CCG",null,"U80335","STEVENAGE SOUTH PCN"]
["U79932","HATTERS HEALTH PCN",43827.315537616203,"U79932","06P","NHS LUTON CCG",null,null,null,null,"U79932","HATTERS HEALTH PCN","06P","NHS LUTON CCG",null,"U89141","STOCKTON PCN"]
["U79938","BREIGHTMET & LITTLE LEVER PCN",37546.206469349032,"U79938","00T","NHS BOLTON CCG",null,null,null,null,"U79938","BREIGHTMET & LITTLE LEVER PCN","00T","NHS BOLTON CCG",null,"U65434","STOCKWELLBEING PCN"]
["U80019","ENFIELD CARE NETWORK PCN",95645.814721118077,"U80019","93C","NHS NORTH CENTRAL LONDON CCG",null,null,null,null,"U80019","ENFIELD CARE NETWORK PCN","93C","NHS NORTH CENTRAL LONDON CCG",null,"U06486","STOKES PCN"]
["U80186","AINTREE PCN",40938.494076830269,"U80186","99A","NHS LIVERPOOL CCG",null,null,null,null,"U80186","AINTREE PCN","99A","NHS LIVERPOOL CCG",null,"U04901","STONE & ECCLESHALL PCN"]
["U80251","LEATHERHEAD PCN",62755.09944120299,"U80251","92A","NHS SURREY HEARTLANDS CCG",null,null,null,null,"U80251","LEATHERHEAD PCN","92A","NHS SURREY HEARTLANDS CCG",null,"U58973","STORT VALLEY & VILLAGES PCN"]
["U80264","WOKINGHAM SOUTH PCN",28056.946473587697,"U80264","15A","NHS BERKSHIRE WEST CCG",null,null,null,null,"U80264","WOKINGHAM SOUTH PCN","15A","NHS BERKSHIRE WEST CCG",null,"U18020","STOURBRIDGE, WOLLESCOTE & LYE PCN"]
["U80335","STEVENAGE SOUTH PCN",47213.878104961543,"U80335","06K","NHS EAST AND NORTH HERTFORDSHIRE CCG",null,null,null,null,"U80335","STEVENAGE SOUTH PCN","06K","NHS EAST AND NORTH HERTFORDSHIRE CCG",null,"U91762","STRATFORD CENTRAL PCN"]
["U80470","HAMBLETON NORTH PCN",48593.524141231115,"U80470","42D","NHS NORTH YORKSHIRE CCG",null,null,null,null,"U80470","HAMBLETON NORTH PCN","42D","NHS NORTH YORKSHIRE CCG",null,"U76122","STRATFORD PCN"]
["U80502","FOLKESTONE HYTHE & RURAL PCN",47621.581959418843,"U80502","91Q","NHS KENT AND MEDWAY CCG",null,null,null,null,"U80502","FOLKESTONE HYTHE & RURAL PCN","91Q","NHS KENT AND MEDWAY CCG",null,"U22092","STRAWBERRY HEALTH PCN"]
["U80633","HILLSBOROUGH PCN",35454.36648133074,"U80633","03N","NHS SHEFFIELD CCG",null,null,null,null,"U80633","HILLSBOROUGH PCN","03N","NHS SHEFFIELD CCG",null,"U99355","STREATHAM PCN"]
["U80679","BRAINTREE PCN",52480.089502546951,"U80679","06Q","NHS MID ESSEX CCG",null,null,null,null,"U80679","BRAINTREE PCN","06Q","NHS MID ESSEX CCG",null,"U27664","STROOD PCN"]
["U80710","GREAT WEST ROAD PCN",58310.612458274692,"U80710","07Y","NHS HOUNSLOW CCG",null,null,null,null,"U80710","GREAT WEST ROAD PCN","07Y","NHS HOUNSLOW CCG",null,"U23862","STROUD COTSWOLD PCN"]
["U80758","POOLE CENTRAL PCN",66455.121482762261,"U80758","11J","NHS DORSET CCG",null,null,null,null,"U80758","POOLE CENTRAL PCN","11J","NHS DORSET CCG",null,"U10430","SUDBURY PCN"]
["U80779","EAST GRINSTEAD PCN",39165.507259366881,"U80779","70F","NHS WEST SUSSEX CCG",null,null,null,null,"U80779","EAST GRINSTEAD PCN","70F","NHS WEST SUSSEX CCG",null,"U52297","SUNDERLAND EAST PCN"]
["U81168","YEADON PCN",35763.927178822603,"U81168","15F","NHS LEEDS CCG",null,null,null,null,"U81168","YEADON PCN","15F","NHS LEEDS CCG",null,"U43314","SUNDERLAND NORTH PCN"]
["U81184","WEST CAMDEN PCN",43422.094179457345,"U81184","93C","NHS NORTH CENTRAL LONDON CCG",null,null,null,null,"U81184","WEST CAMDEN PCN","93C","NHS NORTH CENTRAL LONDON CCG",null,"U14646","SUNDERLAND WEST 1 PCN"]
["U81307","SOUTH SOMERSET EAST - RPN PCN",36580.070342645566,"U81307","11X","NHS SOMERSET CCG",null,null,null,null,"U81307","SOUTH SOMERSET EAST - RPN PCN","11X","NHS SOMERSET CCG",null,"U05458","SUNDERLAND WEST 2 PCN"]
["U81324","ACTON PCN",69857.82449755336,"U81324","07W","NHS EALING CCG",null,null,null,null,"U81324","ACTON PCN","07W","NHS EALING CCG",null,"U72231","SURBITON HEALTH CENTRE PCN"]
["U81398","HITCHIN AND WHITWELL PCN",45989.059315429186,"U81398","06K","NHS EAST AND NORTH HERTFORDSHIRE CCG",null,null,null,null,"U81398","HITCHIN AND WHITWELL PCN","06K","NHS EAST AND NORTH HERTFORDSHIRE CCG",null,"U67032","SURREY HEATH PCN"]
["U81405","ROSSENDALE EAST PCN",34453.579193344107,"U81405","01A","NHS EAST LANCASHIRE CCG",null,null,null,null,"U81405","ROSSENDALE EAST PCN","01A","NHS EAST LANCASHIRE CCG",null,"U65039","SUTTON GROUP PRACTICE PCN"]
["U81415","UPPER CALDER VALLEY PCN",40552.310594016599,"U81415","02T","NHS CALDERDALE CCG",null,null,null,null,"U81415","UPPER CALDER VALLEY PCN","02T","NHS CALDERDALE CCG",null,"U52026","SW SHROPSHIRE PCN"]
["U81483","WHITBY COAST & MOORS PCN",31891.55366520588,"U81483","42D","NHS NORTH YORKSHIRE CCG",null,null,null,null,"U81483","WHITBY COAST & MOORS PCN","42D","NHS NORTH YORKSHIRE CCG",null,"U90656","SWADLINCOTE PCN"]
["U81818","NEWCASTLE NORTH PCN",38138.330817958828,"U81818","05G","NHS NORTH STAFFORDSHIRE CCG",null,null,null,null,"U81818","NEWCASTLE NORTH PCN","05G","NHS NORTH STAFFORDSHIRE CCG",null,"U10555","SWAFFHAM & DOWNHAM MARKET PCN"]
["U81825","NORTH EASINGTON PCN",43878.328919896121,"U81825","84H","NHS COUNTY DURHAM CCG",null,null,null,null,"U81825","NORTH EASINGTON PCN","84H","NHS COUNTY DURHAM CCG",null,"U57480","SWAGGA PCN"]
["U81930","BRIDGWATER PCN",80507.165470302338,"U81930","11X","NHS SOMERSET CCG",null,null,null,null,"U81930","BRIDGWATER PCN","11X","NHS SOMERSET CCG",null,"U69052","SWAN NETWORK WIGAN PCN"]
["U81960","ST JOHN'S WOOD & MAIDA VALE PCN",49589.553285449023,{"$f":"A1027","v":"U81960"},{"$f":"VLOOKUP($A1027,$K$2:$N$1255,3,FALSE)","v":"09A"},{"$f":"VLOOKUP($A1027,$K$2:$N$1255,4,FALSE)","v":"NHS CENTRAL LONDON (WESTMINSTER) CCG"},null,null,null,null,"U81960","ST JOHN'S WOOD & MAIDA VALE PCN","09A","NHS CENTRAL LONDON (WESTMINSTER) CCG",null,"U40722","SWANLEY & RURAL PCN"]
["U82047","ICKNIELD PCN",55857.193881723113,"U82047","06K","NHS EAST AND NORTH HERTFORDSHIRE CCG",null,null,null,null,"U82047","ICKNIELD PCN","06K","NHS EAST AND NORTH HERTFORDSHIRE CCG",null,"U57294","SWB CARITAS PCN"]
["U82077","BLACKPOOL NORTH PCN",31415.001634304699,"U82077","00R","NHS BLACKPOOL CCG",null,null,null,null,"U82077","BLACKPOOL NORTH PCN","00R","NHS BLACKPOOL CCG",null,"U54044","SWB CENTRAL HEALTH PARTNERSHIPS PCN"]
["U82095","HULL MEDICAS PCN",45653.130371720596,"U82095","03F","NHS HULL CCG",null,null,null,null,"U82095","HULL MEDICAS PCN","03F","NHS HULL CCG",null,"U25735","SWB CITRUS PCN"]
["U82305","GOSK PCN",27855.198883342295,"U82305","15E","NHS BIRMINGHAM AND SOLIHULL CCG",null,null,null,null,"U82305","GOSK PCN","15E","NHS BIRMINGHAM AND SOLIHULL CCG",null,"U65968","SWB I3 PCN"]
["U82359","ROCHESTER PCN",32088.31330508077,"U82359","91Q","NHS KENT AND MEDWAY CCG",null,null,null,null,"U82359","ROCHESTER PCN","91Q","NHS KENT AND MEDWAY CCG",null,"U44537","SWB MODALITY PCN"]
["U82404","CENTRAL MAPLE PCN",38279.584818400472,"U82404","14Y","NHS BUCKINGHAMSHIRE CCG",null,null,null,null,"U82404","CENTRAL MAPLE PCN","14Y","NHS BUCKINGHAMSHIRE CCG",null,"U11746","SWB NEWCOMEN PCN"]
["U82430","SARUM SOUTH PCN",75849.67927833568,"U82430","92G","NHS BATH AND NORTH EAST SOMERSET, SWINDON AND WILTSHIRE CCG",null,null,null,null,"U82430","SARUM SOUTH PCN","92G","NHS BATH AND NORTH EAST SOMERSET, SWINDON AND WILTSHIRE CCG",null,"U98291","SWB TOGETHER4HEALTHCARE PCN"]
["U82487","WINDSOR PCN",65079.35497520402,"U82487","15D","NHS EAST BERKSHIRE CCG",null,null,null,null,"U82487","WINDSOR PCN","15D","NHS EAST BERKSHIRE CCG",null,"U48923","SWB URBAN HEALTH PCN"]
["U82499","RETFORD AND VILLAGES PCN",58527.133815864923,"U82499","02Q","NHS BASSETLAW CCG",null,null,null,null,"U82499","RETFORD AND VILLAGES PCN","02Q","NHS BASSETLAW CCG",null,"U32116","SWB YOUR HEALTH PARTNERSHIP PCN"]
["U82523","SOUTH HAMS PCN",34833.862192095068,"U82523","15N","NHS DEVON CCG",null,null,null,null,"U82523","SOUTH HAMS PCN","15N","NHS DEVON CCG",null,"U86579","SWIFT PCN"]
["U82536","BRADFORD ON AVON & MELKSHAM PCN",46452.461627323697,"U82536","92G","NHS BATH AND NORTH EAST SOMERSET, SWINDON AND WILTSHIRE CCG",null,null,null,null,"U82536","BRADFORD ON AVON & MELKSHAM PCN","92G","NHS BATH AND NORTH EAST SOMERSET, SWINDON AND WILTSHIRE CCG",null,"U57786","SWINTON PCN"]
["U82612","MACCLESFIELD PCN",61432.018454735131,"U82612","27D","NHS CHESHIRE CCG",null,null,null,null,"U82612","MACCLESFIELD PCN","27D","NHS CHESHIRE CCG",null,"U12949","SYNERGY HEALTH PCN"]
["U82712","CENTRAL NORTH LEEDS PCN",61302.652607403179,"U82712","15F","NHS LEEDS CCG",null,null,null,null,"U82712","CENTRAL NORTH LEEDS PCN","15F","NHS LEEDS CCG",null,"U51930","SYNERGY PCN"]
["U82731","WYRE INTEGRATED NEIGHBOURHOOD PCN",29685.52562172732,"U82731","02M","NHS FYLDE AND WYRE CCG",null,null,null,null,"U82731","WYRE INTEGRATED NEIGHBOURHOOD PCN","02M","NHS FYLDE AND WYRE CCG",null,"U30170","TABA WIGAN PCN"]
["U82789","LEAMINGTON NORTH PCN",40751.68333781766,"U82789","05R","NHS SOUTH WARWICKSHIRE CCG",null,null,null,null,"U82789","LEAMINGTON NORTH PCN","05R","NHS SOUTH WARWICKSHIRE CCG",null,"U21078","TADCASTER AND SELBY PCN"]
["U82880","FORMBY PCN",15792.483596114551,"U82880","01V","NHS SOUTHPORT AND FORMBY CCG",null,null,null,null,"U82880","FORMBY PCN","01V","NHS SOUTHPORT AND FORMBY CCG",null,"U99971","TAME VALLEY PCN"]
["U83168","HARINGEY - WELBOURNE PCN",49497.989925258938,"U83168","93C","NHS NORTH CENTRAL LONDON CCG",null,null,null,null,"U83168","HARINGEY - WELBOURNE PCN","93C","NHS NORTH CENTRAL LONDON CCG",null,"U96077","TASC PCN"]
["U83279","HEALTHIER OXFORD CITY NETWORK PCN",35271.2108626279,"U83279","10Q","NHS OXFORDSHIRE CCG",null,null,null,null,"U83279","HEALTHIER OXFORD CITY NETWORK PCN","10Q","NHS OXFORDSHIRE CCG",null,"U28174","TAUNTON CENTRAL PCN"]
["U83457","CENTRAL CAMDEN PCN",69219.825003786071,"U83457","93C","NHS NORTH CENTRAL LONDON CCG",null,null,null,null,"U83457","CENTRAL CAMDEN PCN","93C","NHS NORTH CENTRAL LONDON CCG",null,"U09275","TAUNTON DEANE WEST PCN"]
["U83494","STAFFORD SOUTH PCN",31444.277207025749,"U83494","05V","NHS STAFFORD AND SURROUNDS CCG",null,null,null,null,"U83494","STAFFORD SOUTH PCN","05V","NHS STAFFORD AND SURROUNDS CCG",null,"U49896","TEDDINGTON PCN"]
["U83511","HILLTON PCN",32133.145328468119,"U83511","06F","NHS BEDFORDSHIRE CCG",null,null,null,null,"U83511","HILLTON PCN","06F","NHS BEDFORDSHIRE CCG",null,"U31619","TEESDALE PCN"]
["U83524","GRANTA PCN",45025.500763790398,"U83524","06H","NHS CAMBRIDGESHIRE AND PETERBOROUGH CCG",null,null,null,null,"U83524","GRANTA PCN","06H","NHS CAMBRIDGESHIRE AND PETERBOROUGH CCG",null,"U26254","TELDOC PCN"]
["U83604","BICESTER PCN",44160.754058001097,"U83604","10Q","NHS OXFORDSHIRE CCG",null,null,null,null,"U83604","BICESTER PCN","10Q","NHS OXFORDSHIRE CCG",null,"U64531","TEMPLER CARE NETWORK PCN"]
["U83990","SALE CENTRAL PCN",61499.304584877449,"U83990","02A","NHS TRAFFORD CCG",null,null,null,null,"U83990","SALE CENTRAL PCN","02A","NHS TRAFFORD CCG",null,"U52468","TENDRING PCN"]
["U84081","CANTERBURY SOUTH PCN",43008.044819460003,"U84081","91Q","NHS KENT AND MEDWAY CCG",null,null,null,null,"U84081","CANTERBURY SOUTH PCN","91Q","NHS KENT AND MEDWAY CCG",null,"U70739","THAME PCN"]
["U84150","HAMPTON PCN",28396.18371034773,"U84150","36L","NHS SOUTH WEST LONDON CCG",null,null,null,null,"U84150","HAMPTON PCN","36L","NHS SOUTH WEST LONDON CCG",null,"U97651","THE ARC HUB PCN"]
["U84175","FROME PCN",27870.868900997299,"U84175","11X","NHS SOMERSET CCG",null,null,null,null,"U84175","FROME PCN","11X","NHS SOMERSET CCG",null,"U28474","THE BINGLEY BUBBLE PCN"]
["U84198","SOUTH DARTMOOR AND TOTNES PCN",37535.10087822919,"U84198","15N","NHS DEVON CCG",null,null,null,null,"U84198","SOUTH DARTMOOR AND TOTNES PCN","15N","NHS DEVON CCG",null,"U93573","THE BRIDGE MK PCN"]
["U84263","STAFFORD NORTH PCN",39760.824998887103,"U84263","05V","NHS STAFFORD AND SURROUNDS CCG",null,null,null,null,"U84263","STAFFORD NORTH PCN","05V","NHS STAFFORD AND SURROUNDS CCG",null,"U89776","THE BRIDGE PCN"]
["U84277","AVON VALLEY PCN",42897.105719528619,"U84277","11A","NHS WEST HAMPSHIRE CCG",null,null,null,null,"U84277","AVON VALLEY PCN","11A","NHS WEST HAMPSHIRE CCG",null,"U92384","THE CHALFONTS PCN"]
["U84294","BRIDGE VIEW PCN",36313.5947736116,"U84294","15C","NHS BRISTOL, NORTH SOMERSET AND SOUTH GLOUCESTERSHIRE CCG",null,null,null,null,"U84294","BRIDGE VIEW PCN","15C","NHS BRISTOL, NORTH SOMERSET AND SOUTH GLOUCESTERSHIRE CCG",null,"U55397","THE COASTAL NETWORK PCN"]
["U84379","NORTH HALIFAX PCN",45178.374249483888,"U84379","02T","NHS CALDERDALE CCG",null,null,null,null,"U84379","NORTH HALIFAX PCN","02T","NHS CALDERDALE CCG",null,"U50277","THE CRAYS COLLABORATIVE PCN"]
["U84425","CONNECTHEALTH ALLIANCE PCN",47329.429902078351,"U84425","07P","NHS BRENT CCG",null,null,null,null,"U84425","CONNECTHEALTH ALLIANCE PCN","07P","NHS BRENT CCG",null,"U95154","THE EALING NETWORK PCN"]
["U84454","CANVEY PCN",34326.566747888632,"U84454","99F","NHS CASTLE POINT AND ROCHFORD CCG",null,null,null,null,"U84454","CANVEY PCN","99F","NHS CASTLE POINT AND ROCHFORD CCG",null,"U59367","THE GRAND UNION PCN"]
["U84465","COLNE VALLEY PCN",55571.102545578702,"U84465","06Q","NHS MID ESSEX CCG",null,null,null,null,"U84465","COLNE VALLEY PCN","06Q","NHS MID ESSEX CCG",null,"U21317","THE HAVENS PCN"]
["U84490","WAKEFIELD HEALTH ALLIANCE NORTH PCN",50576.883692349598,"U84490","03R","NHS WAKEFIELD CCG",null,null,null,null,"U84490","WAKEFIELD HEALTH ALLIANCE NORTH PCN","03R","NHS WAKEFIELD CCG",null,"U89762","THE HEALTH TRIANGLE PCN"]
["U84529","REDDITCH & BROMSGROVE & DISTRICT PCN",75404.445317494698,"U84529","18C","NHS HEREFORDSHIRE AND WORCESTERSHIRE CCG",null,null,null,null,"U84529","REDDITCH & BROMSGROVE & DISTRICT PCN","18C","NHS HEREFORDSHIRE AND WORCESTERSHIRE CCG",null,"U03186","THE LEICESTER FOXES PCN"]
["U84537","UNITY MEDICAL GROUP PCN",24791.77149261782,"U84537","92G","NHS BATH AND NORTH EAST SOMERSET, SWINDON AND WILTSHIRE CCG",null,null,null,null,"U84537","UNITY MEDICAL GROUP PCN","92G","NHS BATH AND NORTH EAST SOMERSET, SWINDON AND WILTSHIRE CCG",null,"U22192","THE MARSH PCN"]
["U84543","SEACROFT PCN",35483.575617701274,"U84543","15F","NHS LEEDS CCG",null,null,null,null,"U84543","SEACROFT PCN","15F","NHS LEEDS CCG",null,"U79310","THE MAST PCN"]
["U84550","HEALTHY HORLEY PCN",28118.792034766921,"U84550","92A","NHS SURREY HEARTLANDS CCG",null,null,null,null,"U84550","HEALTHY HORLEY PCN","92A","NHS SURREY HEARTLANDS CCG",null,"U53230","THE PICTON PCN"]
["U84655","BARNET 1D PCN",53143.507339933494,"U84655","93C","NHS NORTH CENTRAL LONDON CCG",null,null,null,null,"U84655","BARNET 1D PCN","93C","NHS NORTH CENTRAL LONDON CCG",null,"U13761","THE RIDGE PCN"]
["U84846","HEALTHSENSE PCN",73895.075264627652,"U84846","08E","NHS HARROW CCG",null,null,null,null,"U84846","HEALTHSENSE PCN","08E","NHS HARROW CCG",null,"U51429","THE VALE PCN"]
["U85008","HOLGATE PCN",48599.808625845806,"U85008","16C","NHS TEES VALLEY CCG",null,null,null,null,"U85008","HOLGATE PCN","16C","NHS TEES VALLEY CCG",null,"U69551","THE VALLEYS HEALTH & SOCIAL CARE PCN"]
["U85067","BISHOP AUCKLAND PCN",45152.193096524199,"U85067","84H","NHS COUNTY DURHAM CCG",null,null,null,null,"U85067","BISHOP AUCKLAND PCN","84H","NHS COUNTY DURHAM CCG",null,"U50083","THE WBC (HEREFORD CITY) PCN"]
["U85108","CHORLEY EAST PCN",37342.551525147996,"U85108","00X","NHS CHORLEY AND SOUTH RIBBLE CCG",null,null,null,null,"U85108","CHORLEY EAST PCN","00X","NHS CHORLEY AND SOUTH RIBBLE CCG",null,"U03379","THORPE AND RANWORTH PCN"]
["U85198","ASHFIELD NORTH PCN",55290.167244563811,"U85198","52R","NHS NOTTINGHAM AND NOTTINGHAMSHIRE CCG",null,null,null,null,"U85198","ASHFIELD NORTH PCN","52R","NHS NOTTINGHAM AND NOTTINGHAMSHIRE CCG",null,"U60113","THREE HARBOURS AND BOSVENA PCN"]
["U85257","ESTON PCN",53739.058730593977,"U85257","16C","NHS TEES VALLEY CCG",null,null,null,null,"U85257","ESTON PCN","16C","NHS TEES VALLEY CCG",null,"U05340","THREE VALLEYS HEALTH PCN"]
["U85348","BEXHILL PCN",56051.489740253048,"U85348","97R","NHS EAST SUSSEX CCG",null,null,null,null,"U85348","BEXHILL PCN","97R","NHS EAST SUSSEX CCG",null,"U06243","TILBURY AND CHADWELL PCN"]
["U85476","MODALITY (KEIGHLEY) PCN",89142.649561489656,"U85476","36J","NHS BRADFORD DISTRICT AND CRAVEN CCG",null,null,null,null,"U85476","MODALITY (KEIGHLEY) PCN","36J","NHS BRADFORD DISTRICT AND CRAVEN CCG",null,"U65398","TILEHURST PCN"]
["U85493","PRINCEWAY PCN",28861.415123377101,"U85493","27D","NHS CHESHIRE CCG",null,null,null,null,"U85493","PRINCEWAY PCN","27D","NHS CHESHIRE CCG",null,"U64165","TITAN PCN"]
["U85644","TROWBRIDGE PCN",45196.875682759201,"U85644","92G","NHS BATH AND NORTH EAST SOMERSET, SWINDON AND WILTSHIRE CCG",null,null,null,null,"U85644","TROWBRIDGE PCN","92G","NHS BATH AND NORTH EAST SOMERSET, SWINDON AND WILTSHIRE CCG",null,"U73296","TIVERTON PCN"]
["U85685","SOUTH STOKE CENTRAL PCN",53848.341035434394,"U85685","05W","NHS STOKE ON TRENT CCG",null,null,null,null,"U85685","SOUTH STOKE CENTRAL PCN","05W","NHS STOKE ON TRENT CCG",null,"U38221","TOLSON CARE PARTNERSHIP PCN"]
["U85744","PRIMARY CARE NORTH CROYDON PCN",44239.012280219278,"U85744","36L","NHS SOUTH WEST LONDON CCG",null,null,null,null,"U85744","PRIMARY CARE NORTH CROYDON PCN","36L","NHS SOUTH WEST LONDON CCG",null,"U26743","TONBRIDGE PCN"]
["U85748","CHEETHAM HILL & CRUMPSALL PCN",62478.780636064083,"U85748","14L","NHS MANCHESTER CCG",null,null,null,null,"U85748","CHEETHAM HILL & CRUMPSALL PCN","14L","NHS MANCHESTER CCG",null,"U25707","TONE VALLEY PCN"]
["U85953","OCTAGON NORTH PCN",95681.251391326208,"U85953","06H","NHS CAMBRIDGESHIRE AND PETERBOROUGH CCG",null,null,null,null,"U85953","OCTAGON NORTH PCN","06H","NHS CAMBRIDGESHIRE AND PETERBOROUGH CCG",null,"U87975","TORENTUM PCN"]
["U85954","H-BLACKLEY HARPURHEY & CHARLESTOWN PCN",57323.072977795426,"U85954","14L","NHS MANCHESTER CCG",null,null,null,null,"U85954","H-BLACKLEY HARPURHEY & CHARLESTOWN PCN","14L","NHS MANCHESTER CCG",null,"U87755","TORQUAY PCN"]
["U85986","ONE ELLESMERE PORT PCN",71791.377621458349,"U85986","27D","NHS CHESHIRE CCG",null,null,null,null,"U85986","ONE ELLESMERE PORT PCN","27D","NHS CHESHIRE CCG",null,"U66785","TORRIDGE PCN"]
["U86169","NORTH TANDRIDGE PCN",46404.010194626055,"U86169","92A","NHS SURREY HEARTLANDS CCG",null,null,null,null,"U86169","NORTH TANDRIDGE PCN","92A","NHS SURREY HEARTLANDS CCG",null,"U44623","TOTAL HEALTH EXCELLENCE EAST PCN"]
["U86258","SOUTH WEST PCN",42538.779852180785,"U86258","04F","NHS MILTON KEYNES CCG",null,null,null,null,"U86258","SOUTH WEST PCN","04F","NHS MILTON KEYNES CCG",null,"U51839","TOTAL HEALTH EXCELLENCE WEST PCN"]
["U86579","SWIFT PCN",74774.913549683901,"U86579","15C","NHS BRISTOL, NORTH SOMERSET AND SOUTH GLOUCESTERSHIRE CCG",null,null,null,null,"U86579","SWIFT PCN","15C","NHS BRISTOL, NORTH SOMERSET AND SOUTH GLOUCESTERSHIRE CCG",null,"U29246","TOTTON PCN"]
["U86623","NORTH GUILDFORD PCN",53653.987084714296,"U86623","92A","NHS SURREY HEARTLANDS CCG",null,null,null,null,"U86623","NORTH GUILDFORD PCN","92A","NHS SURREY HEARTLANDS CCG",null,"U50771","TOWER HAMLETS NETWORK 1 PCN"]
["U86774","WATERSIDE PCN",42241.211664727525,"U86774","11A","NHS WEST HAMPSHIRE CCG",null,null,null,null,"U86774","WATERSIDE PCN","11A","NHS WEST HAMPSHIRE CCG",null,"U54453","TOWER HAMLETS NETWORK 2 PCN"]
["U86881","WALSALL SOUTH 1 PCN",41052.180424034981,"U86881","05Y","NHS WALSALL CCG",null,null,null,null,"U86881","WALSALL SOUTH 1 PCN","05Y","NHS WALSALL CCG",null,"U37286","TOWER HAMLETS NETWORK 3 PCN"]
["U86948","WF NETWORK OF INDEPENDENT PRACTICES PCN",45876.232012991532,{"$f":"A1091","v":"U86948"},{"$f":"VLOOKUP($A1091,$K$2:$N$1255,3,FALSE)","v":"18C"},{"$f":"VLOOKUP($A1091,$K$2:$N$1255,4,FALSE)","v":"NHS HEREFORDSHIRE AND WORCESTERSHIRE CCG"},null,null,null,null,"U86948","WF NETWORK OF INDEPENDENT PRACTICES PCN","18C","NHS HEREFORDSHIRE AND WORCESTERSHIRE CCG",null,"U99255","TOWER HAMLETS NETWORK 4 PCN"]
["U86966","BARKING & DAGENHAM EAST PCN",37326.8073914009,"U86966","07L","NHS BARKING AND DAGENHAM CCG",null,null,null,null,"U86966","BARKING & DAGENHAM EAST PCN","07L","NHS BARKING AND DAGENHAM CCG",null,"U87199","TOWER HAMLETS NETWORK 5 PCN"]
["U87168","SOUTH ISLINGTON PCN",69720.635363585621,"U87168","93C","NHS NORTH CENTRAL LONDON CCG",null,null,null,null,"U87168","SOUTH ISLINGTON PCN","93C","NHS NORTH CENTRAL LONDON CCG",null,"U08803","TOWER HAMLETS NETWORK 6 PCN"]
["U87170","NEWCASTLE OUTER WEST PCN",55611.152835418172,"U87170","13T","NHS NEWCASTLE GATESHEAD CCG",null,null,null,null,"U87170","NEWCASTLE OUTER WEST PCN","13T","NHS NEWCASTLE GATESHEAD CCG",null,"U60865","TOWER HAMLETS NETWORK 7 PCN"]
["U87177","ROTHER VALLEY SOUTH PCN",60389.111393933825,"U87177","03L","NHS ROTHERHAM CCG",null,null,null,null,"U87177","ROTHER VALLEY SOUTH PCN","03L","NHS ROTHERHAM CCG",null,"U09193","TOWER HAMLETS NETWORK 8 PCN"]
["U87199","TOWER HAMLETS NETWORK 5 PCN",34567.278520451022,"U87199","08V","NHS TOWER HAMLETS CCG",null,null,null,null,"U87199","TOWER HAMLETS NETWORK 5 PCN","08V","NHS TOWER HAMLETS CCG",null,"U62853","TOWNSHIPS 1 PCN"]
["U87221","EAST HANTS PCN",78119.449770890162,"U87221","10V","NHS SOUTH EASTERN HAMPSHIRE CCG",null,null,null,null,"U87221","EAST HANTS PCN","10V","NHS SOUTH EASTERN HAMPSHIRE CCG",null,"U28378","TOWNSHIPS 2 PCN"]
["U87255","SHELTON & HANLEY PCN",31579.27994053395,"U87255","05W","NHS STOKE ON TRENT CCG",null,null,null,null,"U87255","SHELTON & HANLEY PCN","05W","NHS STOKE ON TRENT CCG",null,"U79881","TRAFFORD WEST PCN"]
["U87298","NORTHOLT PCN",36766.214784771299,"U87298","07W","NHS EALING CCG",null,null,null,null,"U87298","NORTHOLT PCN","07W","NHS EALING CCG",null,"U56215","TRENT CARE PCN"]
["U87332","CITY CARE ALLIANCE PCN",36544.187843964777,"U87332","04C","NHS LEICESTER CITY CCG",null,null,null,null,"U87332","CITY CARE ALLIANCE PCN","04C","NHS LEICESTER CITY CCG",null,"U21248","TRIANGLE PCN"]
["U87442","ASHFORD STOUR PCN",61833.463440894418,"U87442","91Q","NHS KENT AND MEDWAY CCG",null,null,null,null,"U87442","ASHFORD STOUR PCN","91Q","NHS KENT AND MEDWAY CCG",null,"U10827","TRINITY HEALTH GROUP PCN"]
["U87478","LANCING AND SOMPTING PCN",29806.644192602213,"U87478","70F","NHS WEST SUSSEX CCG",null,null,null,null,"U87478","LANCING AND SOMPTING PCN","70F","NHS WEST SUSSEX CCG",null,"U85644","TROWBRIDGE PCN"]
["U87508","HODDESDON & BROXBOURNE PCN",38540.71034151785,"U87508","06K","NHS EAST AND NORTH HERTFORDSHIRE CCG",null,null,null,null,"U87508","HODDESDON & BROXBOURNE PCN","06K","NHS EAST AND NORTH HERTFORDSHIRE CCG",null,"U31970","TRURO PCN"]
["U87524","ORPINGTON PCN",60727.644515654414,"U87524","72Q","NHS SOUTH EAST LONDON CCG",null,null,null,null,"U87524","ORPINGTON PCN","72Q","NHS SOUTH EAST LONDON CCG",null,"U68970","TUNBRIDGE WELLS PCN"]
["U87755","TORQUAY PCN",51700.645659757793,"U87755","15N","NHS DEVON CCG",null,null,null,null,"U87755","TORQUAY PCN","15N","NHS DEVON CCG",null,"U79678","TURTON PCN"]
["U87769","AFFINITY CARE PCN",57998.719547143963,"U87769","36J","NHS BRADFORD DISTRICT AND CRAVEN CCG",null,null,null,null,"U87769","AFFINITY CARE PCN","36J","NHS BRADFORD DISTRICT AND CRAVEN CCG",null,"U63565","TWNS PCN"]
["U87776","WALTHAM FOREST LEYTON COLLABORATIVE PCN",36168.566715618297,"U87776","08W","NHS WALTHAM FOREST CCG",null,null,null,null,"U87776","WALTHAM FOREST LEYTON COLLABORATIVE PCN","08W","NHS WALTHAM FOREST CCG",null,"U21617","TYNTESFIELD PCN"]
["U87787","CARSHALTON PCN",50003.966114702605,"U87787","36L","NHS SOUTH WEST LONDON CCG",null,null,null,null,"U87787","CARSHALTON PCN","36L","NHS SOUTH WEST LONDON CCG",null,"U28178","UNITY (BEDFORD) PCN"]
["U87882","LEA VALLEY HEALTH PCN",37865.888599786587,"U87882","06K","NHS EAST AND NORTH HERTFORDSHIRE CCG",null,null,null,null,"U87882","LEA VALLEY HEALTH PCN","06K","NHS EAST AND NORTH HERTFORDSHIRE CCG",null,"U93499","UNITY (GREENWICH) PCN"]
["U87914","BRIXHAM AND PAIGNTON PCN",46222.828867045748,"U87914","15N","NHS DEVON CCG",null,null,null,null,"U87914","BRIXHAM AND PAIGNTON PCN","15N","NHS DEVON CCG",null,"U59216","UNITY (NOTTINGHAM) PCN"]
["U87975","TORENTUM PCN",37554.72944089894,"U87975","00R","NHS BLACKPOOL CCG",null,null,null,null,"U87975","TORENTUM PCN","00R","NHS BLACKPOOL CCG",null,"U84537","UNITY MEDICAL GROUP PCN"]
["U87998","CHELMSFORD WEST PCN",38762.188083141307,"U87998","06Q","NHS MID ESSEX CCG",null,null,null,null,"U87998","CHELMSFORD WEST PCN","06Q","NHS MID ESSEX CCG",null,"U39345","UOS STUDENT PCN"]
["U88126","NEW MALDEN & WORCESTER PARK PCN",54637.404468840796,"U88126","36L","NHS SOUTH WEST LONDON CCG",null,null,null,null,"U88126","NEW MALDEN & WORCESTER PARK PCN","36L","NHS SOUTH WEST LONDON CCG",null,"U81415","UPPER CALDER VALLEY PCN"]
["U88179","FABB (FISHPONDS, AIR BALLOON & BEECHWOOD) PCN",35973.199450976201,"U88179","15C","NHS BRISTOL, NORTH SOMERSET AND SOUTH GLOUCESTERSHIRE CCG",null,null,null,null,"U88179","FABB (FISHPONDS, AIR BALLOON & BEECHWOOD) PCN","15C","NHS BRISTOL, NORTH SOMERSET AND SOUTH GLOUCESTERSHIRE CCG",null,"U49944","UPPER DON VALLEY PCN"]
["U88190","PERSHORE PCN",36938.697740750948,"U88190","15E","NHS BIRMINGHAM AND SOLIHULL CCG",null,null,null,null,"U88190","PERSHORE PCN","15E","NHS BIRMINGHAM AND SOLIHULL CCG",null,"U78610","VALENS PCN"]
["U88254","CAM MEDICAL PCN",35587.881461466699,"U88254","06H","NHS CAMBRIDGESHIRE AND PETERBOROUGH CCG",null,null,null,null,"U88254","CAM MEDICAL PCN","06H","NHS CAMBRIDGESHIRE AND PETERBOROUGH CCG",null,"U69575","VIADUCT CARE PCN"]
["U88279","CHANDLER'S FORD PCN",27579.795309634901,"U88279","11A","NHS WEST HAMPSHIRE CCG",null,null,null,null,"U88279","CHANDLER'S FORD PCN","11A","NHS WEST HAMPSHIRE CCG",null,"U42972","VICTORIA EASTBOURNE PCN"]
["U88280","RAVEN PCN",44192.678465887933,"U88280","03L","NHS ROTHERHAM CCG",null,null,null,null,"U88280","RAVEN PCN","03L","NHS ROTHERHAM CCG",null,"U14006","VICTORIA PCN"]
["U88348","DARWEN PCN",34074.649825888919,"U88348","00Q","NHS BLACKBURN WITH DARWEN CCG",null,null,null,null,"U88348","DARWEN PCN","00Q","NHS BLACKBURN WITH DARWEN CCG",null,"U49851","WACA PCN"]
["U88368","SEDGLEY, COSELEY & GORNAL PCN",55358.057975289077,"U88368","05C","NHS DUDLEY CCG",null,null,null,null,"U88368","SEDGLEY, COSELEY & GORNAL PCN","05C","NHS DUDLEY CCG",null,"U10439","WAKEFIELD HEALTH ALLIANCE CENTRAL PCN"]
["U88407","EPSOM PCN",55634.374609859107,"U88407","92A","NHS SURREY HEARTLANDS CCG",null,null,null,null,"U88407","EPSOM PCN","92A","NHS SURREY HEARTLANDS CCG",null,"U84490","WAKEFIELD HEALTH ALLIANCE NORTH PCN"]
["U88414","CANNOCK VILLAGES PCN",51460.408245123297,"U88414","04Y","NHS CANNOCK CHASE CCG",null,null,null,null,"U88414","CANNOCK VILLAGES PCN","04Y","NHS CANNOCK CHASE CCG",null,"U31847","WAKEFIELD HEALTH ALLIANCE SOUTH PCN"]
["U88623","NORTHWICH PCN",74529.018897478585,"U88623","27D","NHS CHESHIRE CCG",null,null,null,null,"U88623","NORTHWICH PCN","27D","NHS CHESHIRE CCG",null,"U69393","WALKDEN & LITTLE HULTON PCN"]
["U88743","AYLESBURY VALE SOUTH PCN",47487.215225387496,"U88743","14Y","NHS BUCKINGHAMSHIRE CCG",null,null,null,null,"U88743","AYLESBURY VALE SOUTH PCN","14Y","NHS BUCKINGHAMSHIRE CCG",null,"U25656","WALLASEY PCN"]
["U88820","CLOCKTOWER PCN",46525.768938939727,"U88820","72Q","NHS SOUTH EAST LONDON CCG",null,null,null,null,"U88820","CLOCKTOWER PCN","72Q","NHS SOUTH EAST LONDON CCG",null,"U01367","WALLINGFORD & SURROUNDS PCN"]
["U88890","HULL SYMPHONIE PCN",55858.075378666428,"U88890","03F","NHS HULL CCG",null,null,null,null,"U88890","HULL SYMPHONIE PCN","03F","NHS HULL CCG",null,"U66620","WALLINGTON PCN"]
["U89118","SOUTH TYNESIDE SOUTH PCN",61092.700110311482,"U89118","00N","NHS SOUTH TYNESIDE CCG",null,null,null,null,"U89118","SOUTH TYNESIDE SOUTH PCN","00N","NHS SOUTH TYNESIDE CCG",null,"U10386","WALLSEND PCN"]
["U89131","EAST ELMBRIDGE PCN",53739.404775845658,"U89131","92A","NHS SURREY HEARTLANDS CCG",null,null,null,null,"U89131","EAST ELMBRIDGE PCN","92A","NHS SURREY HEARTLANDS CCG",null,"U77416","WALSALL EAST 1 PCN"]
["U89134","CENTRAL THISTLEMOOR PCN",34489.465226550099,"U89134","06H","NHS CAMBRIDGESHIRE AND PETERBOROUGH CCG",null,null,null,null,"U89134","CENTRAL THISTLEMOOR PCN","06H","NHS CAMBRIDGESHIRE AND PETERBOROUGH CCG",null,"U73923","WALSALL EAST 2 PCN"]
["U89141","STOCKTON PCN",53487.169038746622,"U89141","16C","NHS TEES VALLEY CCG",null,null,null,null,"U89141","STOCKTON PCN","16C","NHS TEES VALLEY CCG",null,"U65132","WALSALL NORTH PCN"]
["U89143","SOUTH COASTAL MEDICAL GROUP PCN",34664.458820117427,"U89143","11J","NHS DORSET CCG",null,null,null,null,"U89143","SOUTH COASTAL MEDICAL GROUP PCN","11J","NHS DORSET CCG",null,"U86881","WALSALL SOUTH 1 PCN"]
["U89154","SPRINGFIELD PARK PCN",34391.199844977011,"U89154","07T","NHS CITY AND HACKNEY CCG",null,null,null,null,"U89154","SPRINGFIELD PARK PCN","07T","NHS CITY AND HACKNEY CCG",null,"U60845","WALSALL SOUTH 2 PCN"]
["U89162","FOREST HEATH PCN",74322.23385874118,"U89162","07K","NHS WEST SUFFOLK CCG",null,null,null,null,"U89162","FOREST HEATH PCN","07K","NHS WEST SUFFOLK CCG",null,"U49728","WALSALL WEST 1 PCN"]
["U89375","BRENT CENTRAL KWH PCN",38519.260903471026,"U89375","07P","NHS BRENT CCG",null,null,null,null,"U89375","BRENT CENTRAL KWH PCN","07P","NHS BRENT CCG",null,"U01577","WALSALL WEST 2 PCN"]
["U89419","EAST WOKINGHAM PCN",43327.123109416643,"U89419","15A","NHS BERKSHIRE WEST CCG",null,null,null,null,"U89419","EAST WOKINGHAM PCN","15A","NHS BERKSHIRE WEST CCG",null,"U92720","WALTHAM FOREST 8 PCN"]
["U89483","WERNETH PCN",32820.111277522599,"U89483","01W","NHS STOCKPORT CCG",null,null,null,null,"U89483","WERNETH PCN","01W","NHS STOCKPORT CCG",null,"U47946","WALTHAM FOREST CHINGFORD E4 PCN"]
["U89554","A1 NETWORK PCN",42245.530317653989,"U89554","06H","NHS CAMBRIDGESHIRE AND PETERBOROUGH CCG",null,null,null,null,"U89554","A1 NETWORK PCN","06H","NHS CAMBRIDGESHIRE AND PETERBOROUGH CCG",null,"U65471","WALTHAM FOREST INTEGRATED HEALTH PCN"]
["U89699","YORKSHIRE COAST & WOLDS PCN",60527.291972206294,"U89699","02Y","NHS EAST RIDING OF YORKSHIRE CCG",null,null,null,null,"U89699","YORKSHIRE COAST & WOLDS PCN","02Y","NHS EAST RIDING OF YORKSHIRE CCG",null,"U87776","WALTHAM FOREST LEYTON COLLABORATIVE PCN"]
["U89762","THE HEALTH TRIANGLE PCN",31697.681957189481,"U89762","15D","NHS EAST BERKSHIRE CCG",null,null,null,null,"U89762","THE HEALTH TRIANGLE PCN","15D","NHS EAST BERKSHIRE CCG",null,"U47812","WALTHAM FOREST SOUTH LEYTONSTONE PCN"]
["U89776","THE BRIDGE PCN",27677.269942529791,"U89776","01D","NHS HEYWOOD, MIDDLETON AND ROCHDALE CCG",null,null,null,null,"U89776","THE BRIDGE PCN","01D","NHS HEYWOOD, MIDDLETON AND ROCHDALE CCG",null,"U93045","WALTHAM FOREST WALTHAMSTOW CENTRAL PCN"]
["U89806","SPHERE PCN",58486.225688381353,"U89806","08E","NHS HARROW CCG",null,null,null,null,"U89806","SPHERE PCN","08E","NHS HARROW CCG",null,"U17084","WALTHAM FOREST WALTHAMSTOW WEST PCN"]
["U90050","SASSE NETWORK 3 PCN",41605.149565203908,"U90050","92A","NHS SURREY HEARTLANDS CCG",null,null,null,null,"U90050","SASSE NETWORK 3 PCN","92A","NHS SURREY HEARTLANDS CCG",null,"U61963","WANDLE PCN"]
["U90174","FARNBOROUGH PCN",55499.923746718763,"U90174","99M","NHS NORTH EAST HAMPSHIRE AND FARNHAM CCG",null,null,null,null,"U90174","FARNBOROUGH PCN","99M","NHS NORTH EAST HAMPSHIRE AND FARNHAM CCG",null,"U73458","WANDSWORTH PCN"]
["U90175","WOKING WISE 3 PCN",31563.98059335984,"U90175","92A","NHS SURREY HEARTLANDS CCG",null,null,null,null,"U90175","WOKING WISE 3 PCN","92A","NHS SURREY HEARTLANDS CCG",null,"U11112","WANSBECK PCN"]
["U90236","CITY - EAST OXFORD PCN",30572.283382431589,"U90236","10Q","NHS OXFORDSHIRE CCG",null,null,null,null,"U90236","CITY - EAST OXFORD PCN","10Q","NHS OXFORDSHIRE CCG",null,"U78575","WANSTEAD AND WOODFORD PCN"]
["U90309","NORTH BEDFORD PCN",38882.310540981103,"U90309","06F","NHS BEDFORDSHIRE CCG",null,null,null,null,"U90309","NORTH BEDFORD PCN","06F","NHS BEDFORDSHIRE CCG",null,"U75375","WANTAGE PCN"]
["U90349","SHERWOOD PCN",69581.91172293968,"U90349","52R","NHS NOTTINGHAM AND NOTTINGHAMSHIRE CCG",null,null,null,null,"U90349","SHERWOOD PCN","52R","NHS NOTTINGHAM AND NOTTINGHAMSHIRE CCG",null,"U48691","WARE AND RURALS PCN"]
["U90453","RICHMOND PCN",38574.344064951911,"U90453","36L","NHS SOUTH WEST LONDON CCG",null,null,null,null,"U90453","RICHMOND PCN","36L","NHS SOUTH WEST LONDON CCG",null,"U29000","WARRINGTON CENTRAL EAST PCN"]
["U90610","NORTH WEST IPSWICH PCN",44132.706572025781,"U90610","06L","NHS IPSWICH AND EAST SUFFOLK CCG",null,null,null,null,"U90610","NORTH WEST IPSWICH PCN","06L","NHS IPSWICH AND EAST SUFFOLK CCG",null,"U45014","WARRINGTON INNOVATION PCN"]
["U90656","SWADLINCOTE PCN",55939.070496717562,"U90656","15M","NHS DERBY AND DERBYSHIRE CCG",null,null,null,null,"U90656","SWADLINCOTE PCN","15M","NHS DERBY AND DERBYSHIRE CCG",null,"U04784","WARWICKSHIRE EAST PCN"]
["U90673","KETTS OAK PCN",61584.634953254717,"U90673","26A","NHS NORFOLK AND WAVENEY CCG",null,null,null,null,"U90673","KETTS OAK PCN","26A","NHS NORFOLK AND WAVENEY CCG",null,"U54565","WARWICKSHIRE NORTH PCN"]
["U90861","HAYLING ISLAND & EMSWORTH PCN",35219.658753762698,"U90861","10V","NHS SOUTH EASTERN HAMPSHIRE CCG",null,null,null,null,"U90861","HAYLING ISLAND & EMSWORTH PCN","10V","NHS SOUTH EASTERN HAMPSHIRE CCG",null,"U11614","WARWICKSHIRE RURAL PCN"]
["U91110","NORTH SHIELDS PCN",60255.066529603318,"U91110","99C","NHS NORTH TYNESIDE CCG",null,null,null,null,"U91110","NORTH SHIELDS PCN","99C","NHS NORTH TYNESIDE CCG",null,"U61868","WASHINGTON PCN"]
["U91215","NORTH NORFOLK 2 PCN",46897.159562027962,"U91215","26A","NHS NORFOLK AND WAVENEY CCG",null,null,null,null,"U91215","NORTH NORFOLK 2 PCN","26A","NHS NORFOLK AND WAVENEY CCG",null,"U76419","WASHWOOD HEATH PCN"]
["U91254","GATESHEAD CENTRAL SOUTH PCN",79494.986345025463,{"$f":"A1155","v":"U91254"},{"$f":"VLOOKUP($A1155,$K$2:$N$1255,3,FALSE)","v":"13T"},{"$f":"VLOOKUP($A1155,$K$2:$N$1255,4,FALSE)","v":"NHS NEWCASTLE GATESHEAD CCG"},null,null,null,null,"U91254","GATESHEAD CENTRAL SOUTH PCN","13T","NHS NEWCASTLE GATESHEAD CCG",null,"U49001","WATERGATE PCN"]
["U91385","SOUTHAMPTON NORTH PCN",33213.852506917974,"U91385","10X","NHS SOUTHAMPTON CCG",null,null,null,null,"U91385","SOUTHAMPTON NORTH PCN","10X","NHS SOUTHAMPTON CCG",null,"U63948","WATERMEAD PCN"]
["U91471","INCLUSIVE HEALTH PCN",37763.573521589591,"U91471","08Y","NHS WEST LONDON CCG",null,null,null,null,"U91471","INCLUSIVE HEALTH PCN","08Y","NHS WEST LONDON CCG",null,"U68649","WATERSIDE HEALTH NETWORK PCN"]
["U91476","GPA1 PCN",45943.573028057232,"U91476","03N","NHS SHEFFIELD CCG",null,null,null,null,"U91476","GPA1 PCN","03N","NHS SHEFFIELD CCG",null,"U86774","WATERSIDE PCN"]
["U91762","STRATFORD CENTRAL PCN",60620.970897402003,"U91762","05R","NHS SOUTH WARWICKSHIRE CCG",null,null,null,null,"U91762","STRATFORD CENTRAL PCN","05R","NHS SOUTH WARWICKSHIRE CCG",null,"U58600","WATLING STREET NETWORK PCN"]
["U91790","HEART OF HARROGATE PCN",48209.900264618307,"U91790","42D","NHS NORTH YORKSHIRE CCG",null,null,null,null,"U91790","HEART OF HARROGATE PCN","42D","NHS NORTH YORKSHIRE CCG",null,"U67304","WB PCN"]
["U91844","MARGATE PCN",60291.706258413207,"U91844","91Q","NHS KENT AND MEDWAY CCG",null,null,null,null,"U91844","MARGATE PCN","91Q","NHS KENT AND MEDWAY CCG",null,"U92096","WEALD PCN"]
["U91913","NORTH DARTMOOR PCN",25330.464625908891,"U91913","15N","NHS DEVON CCG",null,null,null,null,"U91913","NORTH DARTMOOR PCN","15N","NHS DEVON CCG",null,"U27932","WEB PCN"]
["U91930","LONG LANE FIRST CARE GROUP PCN",35492.802205380482,"U91930","08G","NHS HILLINGDON CCG",null,null,null,null,"U91930","LONG LANE FIRST CARE GROUP PCN","08G","NHS HILLINGDON CCG",null,"U58256","WELL STREET COMMON PCN"]
["U91937","MOORLANDS & RURAL PCN",41184.25792206941,"U91937","05G","NHS NORTH STAFFORDSHIRE CCG",null,null,null,null,"U91937","MOORLANDS & RURAL PCN","05G","NHS NORTH STAFFORDSHIRE CCG",null,"U25545","WELL UP NORTH PCN"]
["U91979","BILLERICAY PCN",37683.97104005349,"U91979","99E","NHS BASILDON AND BRENTWOOD CCG",null,null,null,null,"U91979","BILLERICAY PCN","99E","NHS BASILDON AND BRENTWOOD CCG",null,"U19031","WELLINGBOROUGH & DISTRICT PCN"]
["U92034","SOUTH MAIDSTONE PCN",26714.999916010751,"U92034","91Q","NHS KENT AND MEDWAY CCG",null,null,null,null,"U92034","SOUTH MAIDSTONE PCN","91Q","NHS KENT AND MEDWAY CCG",null,"U19152","WELWYN GARDEN CITY A PCN"]
["U92096","WEALD PCN",50394.611388479585,"U92096","91Q","NHS KENT AND MEDWAY CCG",null,null,null,null,"U92096","WEALD PCN","91Q","NHS KENT AND MEDWAY CCG",null,"U01150","WELWYN GARDEN CITY AND VILLAGES PCN"]
["U92128","NORTH KERRIER WEST PCN",39490.39227283682,"U92128","11N","NHS KERNOW CCG",null,null,null,null,"U92128","NORTH KERRIER WEST PCN","11N","NHS KERNOW CCG",null,"U99055","WENTWORTH 1 PCN"]
["U92151","CHEAM AND SOUTH SUTTON PCN",44096.226499897486,"U92151","36L","NHS SOUTH WEST LONDON CCG",null,null,null,null,"U92151","CHEAM AND SOUTH SUTTON PCN","36L","NHS SOUTH WEST LONDON CCG",null,"U51153","WEOLEY AND RUBERY PCN"]
["U92223","CARLISLE HEALTHCARE PCN",38745.698539071898,"U92223","01H","NHS NORTH CUMBRIA CCG",null,null,null,null,"U92223","CARLISLE HEALTHCARE PCN","01H","NHS NORTH CUMBRIA CCG",null,"U89483","WERNETH PCN"]
["U92384","THE CHALFONTS PCN",31266.219080239822,"U92384","14Y","NHS BUCKINGHAMSHIRE CCG",null,null,null,null,"U92384","THE CHALFONTS PCN","14Y","NHS BUCKINGHAMSHIRE CCG",null,"U28163","WEST 5 PCN"]
["U92558","WICKFORD PCN",36971.664615471098,"U92558","99E","NHS BASILDON AND BRENTWOOD CCG",null,null,null,null,"U92558","WICKFORD PCN","99E","NHS BASILDON AND BRENTWOOD CCG",null,"U72156","WEST BASILDON PCN"]
["U92562","NUNEATON NORTH PCN",42450.742735283224,"U92562","05H","NHS WARWICKSHIRE NORTH CCG",null,null,null,null,"U92562","NUNEATON NORTH PCN","05H","NHS WARWICKSHIRE NORTH CCG",null,"U11781","WEST BERKSHIRE RURAL PCN"]
["U92581","ARMLEY PCN",34351.434608924261,"U92581","15F","NHS LEEDS CCG",null,null,null,null,"U92581","ARMLEY PCN","15F","NHS LEEDS CCG",null,"U44365","WEST BIRMINGHAM PCN"]
["U92600","SOVEREIGN PCN",33947.422652736466,"U92600","10K","NHS FAREHAM AND GOSPORT CCG",null,null,null,null,"U92600","SOVEREIGN PCN","10K","NHS FAREHAM AND GOSPORT CCG",null,"U81184","WEST CAMDEN PCN"]
["U92720","WALTHAM FOREST 8 PCN",46176.952777882427,"U92720","08W","NHS WALTHAM FOREST CCG",null,null,null,null,"U92720","WALTHAM FOREST 8 PCN","08W","NHS WALTHAM FOREST CCG",null,"U98408","WEST CENTRAL MANCHESTER PCN"]
["U92836","CROYDON LINK PCN",31745.623900420509,"U92836","36L","NHS SOUTH WEST LONDON CCG",null,null,null,null,"U92836","CROYDON LINK PCN","36L","NHS SOUTH WEST LONDON CCG",null,"U02453","WEST CENTRAL PCN"]
["U92874","BARKING & DAGENHAM NORTH WEST PCN",30993.824355361539,"U92874","07L","NHS BARKING AND DAGENHAM CCG",null,null,null,null,"U92874","BARKING & DAGENHAM NORTH WEST PCN","07L","NHS BARKING AND DAGENHAM CCG",null,"U37412","WEST DEVON PCN"]
["U92975","PRESTON NORTH PCN",56080.1718063605,"U92975","01E","NHS GREATER PRESTON CCG",null,null,null,null,"U92975","PRESTON NORTH PCN","01E","NHS GREATER PRESTON CCG",null,"U37086","WEST END & MARYLEBONE PCN"]
["U93045","WALTHAM FOREST WALTHAMSTOW CENTRAL PCN",37487.500344384913,"U93045","08W","NHS WALTHAM FOREST CCG",null,null,null,null,"U93045","WALTHAM FOREST WALTHAMSTOW CENTRAL PCN","08W","NHS WALTHAM FOREST CCG",null,"U44695","WEST END FAMILY HEALTH PCN"]
["U93148","CHIPPENHAM, CORSHAM & BOX PCN",57064.9721300815,"U93148","92G","NHS BATH AND NORTH EAST SOMERSET, SWINDON AND WILTSHIRE CCG",null,null,null,null,"U93148","CHIPPENHAM, CORSHAM & BOX PCN","92G","NHS BATH AND NORTH EAST SOMERSET, SWINDON AND WILTSHIRE CCG",null,"U63047","WEST ENFIELD COLLABORATIVE PCN"]
["U93499","UNITY (GREENWICH) PCN",38805.501885179423,"U93499","72Q","NHS SOUTH EAST LONDON CCG",null,null,null,null,"U93499","UNITY (GREENWICH) PCN","72Q","NHS SOUTH EAST LONDON CCG",null,"U14062","WEST HOVE PCN"]
["U93573","THE BRIDGE MK PCN",36448.035392385835,"U93573","04F","NHS MILTON KEYNES CCG",null,null,null,null,"U93573","THE BRIDGE MK PCN","04F","NHS MILTON KEYNES CCG",null,"U37296","WEST KNOWSLEY PCN"]
["U93726","SOUTH LINCOLN PCN",51643.399875576433,"U93726","71E","NHS LINCOLNSHIRE CCG",null,null,null,null,"U93726","SOUTH LINCOLN PCN","71E","NHS LINCOLNSHIRE CCG",null,"U31269","WEST LEEDS PCN"]
["U93827","NETWORK NORTH PCN",46036.38413318625,"U93827","03N","NHS SHEFFIELD CCG",null,null,null,null,"U93827","NETWORK NORTH PCN","03N","NHS SHEFFIELD CCG",null,"U04443","WEST LEIGH PCN"]
["U93843","PANACEA PCN",97031.502049669507,"U93843","03H","NHS NORTH EAST LINCOLNSHIRE CCG",null,null,null,null,"U93843","PANACEA PCN","03H","NHS NORTH EAST LINCOLNSHIRE CCG",null,"U17153","WEST MENDIP PCN"]
["U93998","ABOUT BETTER CARE (ABC) PCN",43378.194911868952,"U93998","05G","NHS NORTH STAFFORDSHIRE CCG",null,null,null,null,"U93998","ABOUT BETTER CARE (ABC) PCN","05G","NHS NORTH STAFFORDSHIRE CCG",null,"U00070","WEST MERTON PCN"]
["U94009","ST HELENS SOUTH PCN",97419.418570722599,"U94009","01X","NHS ST HELENS CCG",null,null,null,null,"U94009","ST HELENS SOUTH PCN","01X","NHS ST HELENS CCG",null,"U10602","WEST NORFOLK COASTAL PCN"]
["U94037","ST HELENS NORTH PCN",33465.332287972509,"U94037","01X","NHS ST HELENS CCG",null,null,null,null,"U94037","ST HELENS NORTH PCN","01X","NHS ST HELENS CCG",null,"U05512","WEST NORTHUMBERLAND PCN"]
["U94184","EAST WAVERLEY PCN",57253.535393167942,"U94184","92A","NHS SURREY HEARTLANDS CCG",null,null,null,null,"U94184","EAST WAVERLEY PCN","92A","NHS SURREY HEARTLANDS CCG",null,"U39739","WEST OF WAVERLEY PCN"]
["U94317","BEDWORTH AND BULKINGTON PCN",46004.295659175674,"U94317","05H","NHS WARWICKSHIRE NORTH CCG",null,null,null,null,"U94317","BEDWORTH AND BULKINGTON PCN","05H","NHS WARWICKSHIRE NORTH CCG",null,"U45670","WEST OUTER AND NORTH EAST YORK PCN"]
["U94342","RADFORD AND MARY POTTER PCN",45451.289645197889,"U94342","52R","NHS NOTTINGHAM AND NOTTINGHAMSHIRE CCG",null,null,null,null,"U94342","RADFORD AND MARY POTTER PCN","52R","NHS NOTTINGHAM AND NOTTINGHAMSHIRE CCG",null,"U04079","WEST READING VILLAGES PCN"]
["U94373","WYTHENSHAWE PCN",65713.291919994866,"U94373","14L","NHS MANCHESTER CCG",null,null,null,null,"U94373","WYTHENSHAWE PCN","14L","NHS MANCHESTER CCG",null,"U47425","WEST SOMERSET PCN"]
["U94460","BILLINGHAM & NORTON PCN",55585.663981618549,"U94460","16C","NHS TEES VALLEY CCG",null,null,null,null,"U94460","BILLINGHAM & NORTON PCN","16C","NHS TEES VALLEY CCG",null,"U62999","WEST TWICKENHAM PCN"]
["U94503","LEASIDE NETWORK PCN",40589.443743109419,"U94503","08M","NHS NEWHAM CCG",null,null,null,null,"U94503","LEASIDE NETWORK PCN","08M","NHS NEWHAM CCG",null,"U43084","WEST WAKEFIELD PCN"]
["U94664","MIDDLETON AND HUNSLET PCN",31990.061152857252,"U94664","15F","NHS LEEDS CCG",null,null,null,null,"U94664","MIDDLETON AND HUNSLET PCN","15F","NHS LEEDS CCG",null,"U45842","WEST WANDSWORTH PCN"]
["U94681","NORTH NORFOLK 1 PCN",49659.461538662959,"U94681","26A","NHS NORFOLK AND WAVENEY CCG",null,null,null,null,"U94681","NORTH NORFOLK 1 PCN","26A","NHS NORFOLK AND WAVENEY CCG",null,"U78164","WESTBURY & WARMINSTER PCN"]
["U94747","NEWHAM NORTH WEST 2 PCN",31617.908003433888,"U94747","08M","NHS NEWHAM CCG",null,null,null,null,"U94747","NEWHAM NORTH WEST 2 PCN","08M","NHS NEWHAM CCG",null,"U59980","WESTERN DALES PCN"]
["U94996","HAILSHAM PCN",28612.231143062148,"U94996","97R","NHS EAST SUSSEX CCG",null,null,null,null,"U94996","HAILSHAM PCN","97R","NHS EAST SUSSEX CCG",null,"U14482","WEST-HILL HEALTH PCN"]
["U95154","THE EALING NETWORK PCN",53064.744231801364,"U95154","07W","NHS EALING CCG",null,null,null,null,"U95154","THE EALING NETWORK PCN","07W","NHS EALING CCG",null,"U46071","WESTHOUGHTON NETWORK PCN"]
["U95193","NORTH TYNESIDE NORTH WEST PCN",75622.713053585496,"U95193","99C","NHS NORTH TYNESIDE CCG",null,null,null,null,"U95193","NORTH TYNESIDE NORTH WEST PCN","99C","NHS NORTH TYNESIDE CCG",null,"U53775","WESTONGROVE PCN"]
["U95344","ALTRINCHAM HEALTHCARE ALLIANCE PCN",42126.653119145332,"U95344","02A","NHS TRAFFORD CCG",null,null,null,null,"U95344","ALTRINCHAM HEALTHCARE ALLIANCE PCN","02A","NHS TRAFFORD CCG",null,"U11393","WETHERBY PCN"]
["U95499","FOSSEWAY PCN",41506.488264527048,"U95499","04V","NHS WEST LEICESTERSHIRE CCG",null,null,null,null,"U95499","FOSSEWAY PCN","04V","NHS WEST LEICESTERSHIRE CCG",null,"U25251","WEYMOUTH & PORTLAND PCN"]
["U95574","HUNTINGDON PCN",41031.758786674858,"U95574","06H","NHS CAMBRIDGESHIRE AND PETERBOROUGH CCG",null,null,null,null,"U95574","HUNTINGDON PCN","06H","NHS CAMBRIDGESHIRE AND PETERBOROUGH CCG",null,"U86948","WF NETWORK OF INDEPENDENT PRACTICES PCN"]
["U95654","NORTH OXFORDSHIRE RURAL ALLIANCE (NORA) PCN",49066.042112164425,"U95654","10Q","NHS OXFORDSHIRE CCG",null,null,null,null,"U95654","NORTH OXFORDSHIRE RURAL ALLIANCE (NORA) PCN","10Q","NHS OXFORDSHIRE CCG",null,"U39025","WGGL PCN"]
["U95672","WINCHESTER CITY PCN",55767.384839106002,"U95672","11A","NHS WEST HAMPSHIRE CCG",null,null,null,null,"U95672","WINCHESTER CITY PCN","11A","NHS WEST HAMPSHIRE CCG",null,"U20410","WHAM PCN"]
["U95792","NORTH EAST IPSWICH PCN",34660.641695751401,"U95792","06L","NHS IPSWICH AND EAST SUFFOLK CCG",null,null,null,null,"U95792","NORTH EAST IPSWICH PCN","06L","NHS IPSWICH AND EAST SUFFOLK CCG",null,"U81483","WHITBY COAST & MOORS PCN"]
["U96077","TASC PCN",30955.344705559291,"U96077","15N","NHS DEVON CCG",null,null,null,null,"U96077","TASC PCN","15N","NHS DEVON CCG",null,"U04862","WHITE HORSE BOTLEY PCN"]
["U96099","HENLEY SONNET PCN",34397.023896166982,"U96099","10Q","NHS OXFORDSHIRE CCG",null,null,null,null,"U96099","HENLEY SONNET PCN","10Q","NHS OXFORDSHIRE CCG",null,"U76801","WHITEFIELD DISTRICT & COMMUNITY PCN"]
["U96127","NORTH WIGAN PCN",45728.911452862594,"U96127","02H","NHS WIGAN BOROUGH CCG",null,null,null,null,"U96127","NORTH WIGAN PCN","02H","NHS WIGAN BOROUGH CCG",null,"U34184","WHITEWATER LODDON PCN"]
["U96137","MID SUFFOLK PCN",36487.982439914573,"U96137","06L","NHS IPSWICH AND EAST SUFFOLK CCG",null,null,null,null,"U96137","MID SUFFOLK PCN","06L","NHS IPSWICH AND EAST SUFFOLK CCG",null,"U36512","WHITFIELD PCN"]
["U96198","REDDITCH & BROMSGROVE KINGFISHER PCN",58839.845869444121,"U96198","18C","NHS HEREFORDSHIRE AND WORCESTERSHIRE CCG",null,null,null,null,"U96198","REDDITCH & BROMSGROVE KINGFISHER PCN","18C","NHS HEREFORDSHIRE AND WORCESTERSHIRE CCG",null,"U02739","WHITLEY BAY PCN"]
["U96202","DURHAM DALES PCN",35629.052543242287,"U96202","84H","NHS COUNTY DURHAM CCG",null,null,null,null,"U96202","DURHAM DALES PCN","84H","NHS COUNTY DURHAM CCG",null,"U03989","WHITLEY PCN"]
["U96282","LSMP AND THE LIGHT PCN",47757.338625606906,"U96282","15F","NHS LEEDS CCG",null,null,null,null,"U96282","LSMP AND THE LIGHT PCN","15F","NHS LEEDS CCG",null,"U32995","WHITSTABLE PCN"]
["U96386","HORSHAM COLLABORATIVE PCN",26550.821480302198,"U96386","70F","NHS WEST SUSSEX CCG",null,null,null,null,"U96386","HORSHAM COLLABORATIVE PCN","70F","NHS WEST SUSSEX CCG",null,"U92558","WICKFORD PCN"]
["U96434","EAST TWICKENHAM PCN",27822.909437619928,"U96434","36L","NHS SOUTH WEST LONDON CCG",null,null,null,null,"U96434","EAST TWICKENHAM PCN","36L","NHS SOUTH WEST LONDON CCG",null,"U79408","WIDNES PCN"]
["U96568","NORTHAMPTONSHIRE RURAL PCN",52698.744498411783,"U96568","78H","NHS NORTHAMPTONSHIRE CCG",null,null,null,null,"U96568","NORTHAMPTONSHIRE RURAL PCN","78H","NHS NORTHAMPTONSHIRE CCG",null,"U42152","WIGAN CENTRAL PCN"]
["U96599","HARINGEY - NORTH EAST PCN",53618.14013139197,"U96599","93C","NHS NORTH CENTRAL LONDON CCG",null,null,null,null,"U96599","HARINGEY - NORTH EAST PCN","93C","NHS NORTH CENTRAL LONDON CCG",null,"U19923","WIMBORNE & FERNDOWN PCN"]
["U96653","HYNDBURN CENTRAL PCN",48354.974775852475,{"$f":"A1219","v":"U96653"},{"$f":"VLOOKUP($A1219,$K$2:$N$1255,3,FALSE)","v":"01A"},{"$f":"VLOOKUP($A1219,$K$2:$N$1255,4,FALSE)","v":"NHS EAST LANCASHIRE CCG"},null,null,null,null,"U96653","HYNDBURN CENTRAL PCN","01A","NHS EAST LANCASHIRE CCG",null,"U95672","WINCHESTER CITY PCN"]
["U96870","CENTRAL & WEST WARRINGTON PCN",47354.870870122453,"U96870","02E","NHS WARRINGTON CCG",null,null,null,null,"U96870","CENTRAL & WEST WARRINGTON PCN","02E","NHS WARRINGTON CCG",null,"U46154","WINCHESTER RURAL NORTH & EAST PCN"]
["U97051","HERTS FIVE PCN",65550.341305534719,"U97051","06N","NHS HERTS VALLEYS CCG",null,null,null,null,"U97051","HERTS FIVE PCN","06N","NHS HERTS VALLEYS CCG",null,"U11181","WINCHESTER RURAL SOUTH PCN"]
["U97058","CROSBY & MAGHULL PARTNERSHIP PCN",103320.33953531504,"U97058","01T","NHS SOUTH SEFTON CCG",null,null,null,null,"U97058","CROSBY & MAGHULL PARTNERSHIP PCN","01T","NHS SOUTH SEFTON CCG",null,"U82487","WINDSOR PCN"]
["U97101","NORTH LINCOLNSHIRE NORTH PCN",37830.765808226002,"U97101","03K","NHS NORTH LINCOLNSHIRE CCG",null,null,null,null,"U97101","NORTH LINCOLNSHIRE NORTH PCN","03K","NHS NORTH LINCOLNSHIRE CCG",null,"U02678","WINSFORD PCN"]
["U97340","SOUTHAMPTON BITTERNE PCN",33446.084012489999,"U97340","10X","NHS SOUTHAMPTON CCG",null,null,null,null,"U97340","SOUTHAMPTON BITTERNE PCN","10X","NHS SOUTHAMPTON CCG",null,"U18990","WITHAM & MALDON PCN"]
["U97645","BLACKPOOL CENTRAL PCN",59536.987385492597,"U97645","00R","NHS BLACKPOOL CCG",null,null,null,null,"U97645","BLACKPOOL CENTRAL PCN","00R","NHS BLACKPOOL CCG",null,"U65853","WITHINGTON & FALLOWFIELD PCN"]
["U97650","PRIME WANDSWORTH PCN",44026.524914021233,"U97650","36L","NHS SOUTH WEST LONDON CCG",null,null,null,null,"U97650","PRIME WANDSWORTH PCN","36L","NHS SOUTH WEST LONDON CCG",null,"U51357","WOKING WISE 1 PCN"]
["U97651","THE ARC HUB PCN",27895.08090396268,"U97651","78H","NHS NORTHAMPTONSHIRE CCG",null,null,null,null,"U97651","THE ARC HUB PCN","78H","NHS NORTHAMPTONSHIRE CCG",null,"U53317","WOKING WISE 2 PCN"]
["U97695","SOUTH WORCESTERSHIRE MALVERN TOWN PCN",40626.303785104996,"U97695","18C","NHS HEREFORDSHIRE AND WORCESTERSHIRE CCG",null,null,null,null,"U97695","SOUTH WORCESTERSHIRE MALVERN TOWN PCN","18C","NHS HEREFORDSHIRE AND WORCESTERSHIRE CCG",null,"U90175","WOKING WISE 3 PCN"]
["U97785","RIVER & WOLDS EAST RIDING PCN",40014.964316292397,"U97785","02Y","NHS EAST RIDING OF YORKSHIRE CCG",null,null,null,null,"U97785","RIVER & WOLDS EAST RIDING PCN","02Y","NHS EAST RIDING OF YORKSHIRE CCG",null,"U49304","WOKINGHAM NORTH PCN"]
["U97801","CHORLEY ROADS NETWORK PCN",33506.931533191928,"U97801","00T","NHS BOLTON CCG",null,null,null,null,"U97801","CHORLEY ROADS NETWORK PCN","00T","NHS BOLTON CCG",null,"U80264","WOKINGHAM SOUTH PCN"]
["U98004","FELTHAM & BEDFONNT PCN",72013.303423338133,"U98004","07Y","NHS HOUNSLOW CCG",null,null,null,null,"U98004","FELTHAM & BEDFONNT PCN","07Y","NHS HOUNSLOW CCG",null,"U68696","WOKINGHAM WEST PCN"]
["U98116","CAMROSE, GILLIES & HACKWOOD PARTNERSHIP PCN",42014.888957964897,"U98116","10J","NHS NORTH HAMPSHIRE CCG",null,null,null,null,"U98116","CAMROSE, GILLIES & HACKWOOD PARTNERSHIP PCN","10J","NHS NORTH HAMPSHIRE CCG",null,"U60098","WOLVERHAMPTON NORTH NETWORK PCN"]
["U98152","CHOC (CONGLETON & HOLMES CHAPEL) PCN",46225.363891475259,"U98152","27D","NHS CHESHIRE CCG",null,null,null,null,"U98152","CHOC (CONGLETON & HOLMES CHAPEL) PCN","27D","NHS CHESHIRE CCG",null,"U20454","WOLVERHAMPTON RWT PCN"]
["U98167","FOSS (FIRECLAY & OLD SCHOOL SURGERY) PCN",39800.776120712704,"U98167","15C","NHS BRISTOL, NORTH SOMERSET AND SOUTH GLOUCESTERSHIRE CCG",null,null,null,null,"U98167","FOSS (FIRECLAY & OLD SCHOOL SURGERY) PCN","15C","NHS BRISTOL, NORTH SOMERSET AND SOUTH GLOUCESTERSHIRE CCG",null,"U26715","WOLVERHAMPTON SOUTH EAST PCN"]
["U98291","SWB TOGETHER4HEALTHCARE PCN",43378.238098602902,"U98291","05L","NHS SANDWELL AND WEST BIRMINGHAM CCG",null,null,null,null,"U98291","SWB TOGETHER4HEALTHCARE PCN","05L","NHS SANDWELL AND WEST BIRMINGHAM CCG",null,"U27607","WOLVERHAMPTON TOTAL HEALTH PCN"]
["U98318","MOWBRAY SQUARE PCN",28890.556619457493,"U98318","42D","NHS NORTH YORKSHIRE CCG",null,null,null,null,"U98318","MOWBRAY SQUARE PCN","42D","NHS NORTH YORKSHIRE CCG",null,"U19348","WOLVERHAMPTON UNITY EAST PCN"]
["U98408","WEST CENTRAL MANCHESTER PCN",57280.54295813787,"U98408","14L","NHS MANCHESTER CCG",null,null,null,null,"U98408","WEST CENTRAL MANCHESTER PCN","14L","NHS MANCHESTER CCG",null,"U70326","WOLVERHAMPTON UNITY WEST PCN"]
["U98432","CREWE - GHR PCN",43368.626102472699,"U98432","27D","NHS CHESHIRE CCG",null,null,null,null,"U98432","CREWE - GHR PCN","27D","NHS CHESHIRE CCG",null,"U46293","WOODBERRY WETLANDS PCN"]
["U98513","FIVE LANE ENDS PCN",33419.054121995345,"U98513","36J","NHS BRADFORD DISTRICT AND CRAVEN CCG",null,null,null,null,"U98513","FIVE LANE ENDS PCN","36J","NHS BRADFORD DISTRICT AND CRAVEN CCG",null,"U11864","WOODSLEY PCN"]
["U98530","STANFORD-LE-HOPE PCN",31004.310287852546,"U98530","07G","NHS THURROCK CCG",null,null,null,null,"U98530","STANFORD-LE-HOPE PCN","07G","NHS THURROCK CCG",null,"U67303","WORKINGTON PCN"]
["U98548","READING WEST PCN",39623.955451189198,"U98548","15A","NHS BERKSHIRE WEST CCG",null,null,null,null,"U98548","READING WEST PCN","15A","NHS BERKSHIRE WEST CCG",null,"U13205","WREKIN PCN"]
["U98580","HAYES WICK PCN",37031.186275427805,"U98580","72Q","NHS SOUTH EAST LONDON CCG",null,null,null,null,"U98580","HAYES WICK PCN","72Q","NHS SOUTH EAST LONDON CCG",null,"U78694","WYRE FOREST HEALTH PARTNERSHIP PCN"]
["U98623","BRAMLEY, WORTLEY & MIDDLETON PCN",28413.512525901078,"U98623","15F","NHS LEEDS CCG",null,null,null,null,"U98623","BRAMLEY, WORTLEY & MIDDLETON PCN","15F","NHS LEEDS CCG",null,"U82731","WYRE INTEGRATED NEIGHBOURHOOD PCN"]
["U98785","BURY ST EDMONDS PCN",62971.530545978996,"U98785","07K","NHS WEST SUFFOLK CCG",null,null,null,null,"U98785","BURY ST EDMONDS PCN","07K","NHS WEST SUFFOLK CCG",null,"U63454","WYRE RURAL EXTENDED NEIGHBOURHOOD (WREN) PCN"]
["U98974","SOUTH & WEST HEREFORDSHIRE PCN",44183.375971238624,"U98974","18C","NHS HEREFORDSHIRE AND WORCESTERSHIRE CCG",null,null,null,null,"U98974","SOUTH & WEST HEREFORDSHIRE PCN","18C","NHS HEREFORDSHIRE AND WORCESTERSHIRE CCG",null,"U94373","WYTHENSHAWE PCN"]
["U98994","SCARBOROUGH CORE PCN",54230.999882006457,"U98994","42D","NHS NORTH YORKSHIRE CCG",null,null,null,null,"U98994","SCARBOROUGH CORE PCN","42D","NHS NORTH YORKSHIRE CCG",null,"U49785","WYVERN HEALTH PARTNERSHIP PCN"]
["U99055","WENTWORTH 1 PCN",56347.73860564077,"U99055","03L","NHS ROTHERHAM CCG",null,null,null,null,"U99055","WENTWORTH 1 PCN","03L","NHS ROTHERHAM CCG",null,"U13456","YATE & FRAMPTON PCN"]
["U99194","BIRKENHEAD PCN",140772.10015936606,"U99194","12F","NHS WIRRAL CCG",null,null,null,null,"U99194","BIRKENHEAD PCN","12F","NHS WIRRAL CCG",null,"U25405","YATELEY PCN"]
["U99255","TOWER HAMLETS NETWORK 4 PCN",35258.269386183842,"U99255","08V","NHS TOWER HAMLETS CCG",null,null,null,null,"U99255","TOWER HAMLETS NETWORK 4 PCN","08V","NHS TOWER HAMLETS CCG",null,"U81168","YEADON PCN"]
["U99355","STREATHAM PCN",51714.02368123128,"U99355","72Q","NHS SOUTH EAST LONDON CCG",null,null,null,null,"U99355","STREATHAM PCN","72Q","NHS SOUTH EAST LONDON CCG",null,"U11103","YEOVIL PCN"]
["U99438","HASTINGS & ST LEONARDS PCN",102983.35629486028,"U99438","97R","NHS EAST SUSSEX CCG",null,null,null,null,"U99438","HASTINGS & ST LEONARDS PCN","97R","NHS EAST SUSSEX CCG",null,"U46082","YORK CITY CENTRE PCN"]
["U99463","NOTTINGHAM WEST PCN",106745.13428157933,"U99463","52R","NHS NOTTINGHAM AND NOTTINGHAMSHIRE CCG",null,null,null,null,"U99463","NOTTINGHAM WEST PCN","52R","NHS NOTTINGHAM AND NOTTINGHAMSHIRE CCG",null,"U66012","YORK MEDICAL GROUP PCN"]
["U99474","READING CENTRAL PCN",45675.669181721263,"U99474","15A","NHS BERKSHIRE WEST CCG",null,null,null,null,"U99474","READING CENTRAL PCN","15A","NHS BERKSHIRE WEST CCG",null,"U67243","YORK ROAD PCN"]
["U99739","CHELMSFORD CITY HEALTH PCN",39596.72588997837,"U99739","06Q","NHS MID ESSEX CCG",null,null,null,null,"U99739","CHELMSFORD CITY HEALTH PCN","06Q","NHS MID ESSEX CCG",null,"U89699","YORKSHIRE COAST & WOLDS PCN"]
["U99971","TAME VALLEY PCN",47554.495817974777,"U99971","01W","NHS STOCKPORT CCG",null,null,null,null,"U99971","TAME VALLEY PCN","01W","NHS STOCKPORT CCG",null,"U03826","YORKSHIRE EAST PCN"]
[null,null,null,0,{"$error":"#N/A"},{"$error":"#N/A"}]
[null,null,null,0,{"$error":"#N/A"},{"$error":"#N/A"}]
[null,null,null,0,{"$error":"#N/A"},{"$error":"#N/A"}]
[null,null,null,0,{"$error":"#N/A"},{"$error":"#N/A"}]
[null,null,null,0,{"$error":"#N/A"},{"$error":"#N/A"}]
[null,null,null,0,{"$error":"#N/A"},{"$error":"#N/A"}]
[null,null,null,0,{"$error":"#N/A"},{"$error":"#N/A"}]
[null,null,null,0,{"$error":"#N/A"},{"$error":"#N/A"}]
[null,null,null,0,{"$error":"#N/A"},{"$error":"#N/A"}]
[null,null,null,0,{"$error":"#N/A"},{"$error":"#N/A"}]
[null,null,null,0,{"$error":"#N/A"},{"$error":"#N/A"}]